Workbook

Sheet Overview

Sheet LCOE_breakdown
B2: Inputs | C2: Base Case | E2: Comparison
B4: Geographical region | C4: Lodwar, Kenya | E4: Lusaka, Zambia
B5: Load profile | C5: NREL average | E5: Business heavy
B6: Percent of load served | C6: 1 | E6: 0.85
B7: Discount rate | C7: 0.1 | E7: 0.2
B8: PV/Battery Costs | C8: High | E8: Low
B9: Diesel Generator Costs | C9: Medium | E9: Medium
B10: Diesel Fuel Price | C10: 4.4 | E10: 3.2
B11: Total distribution system costs | C11: Default | E11: Default
B12: Pre-operating soft costs ($/kW) | C12: Default | E12: Default
B13: Annual labor costs | C13: Default | E13: Default
B14: Annual land lease costs | C14: Default | E14: Default
B17: Assumptions
B19: Length of analysis | C19: 20 years | E19: 20 years
B20: Average solar resource (GHI) | C20: =VLOOKUP(C4,process_inputs!A4:B6,2,FALSE) -> 6.1 kWh/m2/day | E20: =VLOOKUP(E4,process_inputs!A4:B6,2,FALSE) -> 5.3 kWh/m2/day
B22: Installed PV cost [$/kW] | C22: =VLOOKUP(C8,process_inputs!$A$12:$J$14,2,FALSE) -> 2200 | E22: =VLOOKUP(E8,process_inputs!A12:J14,2,FALSE) -> 1400
B23: PV O&M [$/kW] | C23: =VLOOKUP(C8,process_inputs!$A$12:$J$14,9,FALSE) -> 44 | E23: =VLOOKUP(E8,process_inputs!$A$12:$J$14,9,FALSE) -> 28
B24: Useful life | C24: 20 years | E24: 20 years
B26: Battery storage cost [$/kWh] | C26: =VLOOKUP(C8,process_inputs!$A$12:$J$14,3,FALSE) -> 500 | E26: =VLOOKUP(E8,process_inputs!$A$12:$J$14,3,FALSE) -> 300
B27: Battery useful life | C27: 7 years | E27: 7 years
B28: Inverter and BOS costs [$/kW] | C28: =VLOOKUP(C8,process_inputs!$A$12:$J$14,4,FALSE) -> 1200 | E28: =VLOOKUP(E8,process_inputs!$A$12:$J$14,4,FALSE) -> 600
B29: Inverter replacement cost [$/kW] | C29: =VLOOKUP(C8,process_inputs!$A$12:$J$14,5,FALSE) -> 600 | E29: =VLOOKUP(E8,process_inputs!$A$12:$J$14,5,FALSE) -> 300
B30: Battery O&M [$/kWh-installed] | C30: =VLOOKUP(C8,process_inputs!$A$12:$J$14,10,FALSE) -> 30 | E30: =VLOOKUP(E8,process_inputs!$A$12:$J$14,10,FALSE) -> 20
B31: Inverter useful life | C31: 10 years | E31: 10 years | H31: RESULTS SUMMARY | I31: Base case | L31: Comparison
B33: Diesel genset cost [$/kW] | C33: =VLOOKUP(C9,process_inputs!$A$12:$J$14,6,FALSE) -> 400 | E33: =VLOOKUP(E9,process_inputs!$A$12:$J$14,6,FALSE) -> 400 | I33: Diesel only | J33: PV+battery | K33: PV+battery+diesel | L33: Diesel only | M33: PV+battery | N33: PV+battery+diesel
B34: Useful life | C34: 10 years | E34: 10 years | H34: PV size | I34: =ROUND(format_plot!I3,1)&" kW" -> 0 kW | J34: =ROUND(format_plot!G3,1)&" kW" -> 27.9 kW | K34: =ROUND(format_plot!E3,1)&" kW" -> 5.5 kW | L34: =ROUND(format_plot!S3,1)&" kW" -> 0 kW | M34: =ROUND(format_plot!Q3,1)&" kW" -> 16.8 kW | N34: =ROUND(format_plot!O3,1)&" kW" -> 6.7 kW
B35: Fuel consumption rate [kWh/gal] | C35: =VLOOKUP(C9,process_inputs!$A$12:$J$14,8,FALSE) -> 10 | E35: =VLOOKUP(E9,process_inputs!$A$12:$J$14,8,FALSE) -> 10 | H35: Battery size | I35: =ROUND(format_plot!I5,1)&" kWh" -> 0 kWh | J35: =ROUND(format_plot!G5,1)&" kWh " -> 49 kWh | K35: =ROUND(format_plot!E5,1)&" kWh" -> 0 kWh | L35: =ROUND(format_plot!S5,1)&" kWh" -> 0 kWh | M35: =ROUND(format_plot!Q5,1)&" kWh" -> 30.1 kWh | N35: =ROUND(format_plot!O5,1)&" kWh" -> 0 kWh
B36: Fuel cost [$/gallon] | C36: =C10 -> 4.4 | E36: =E10 -> 3.2 | H36: Inverter size | I36: =ROUND(format_plot!I4,1)&" kW" -> 0 kW | J36: =ROUND(format_plot!G4,1)&" kW" -> 5.7 kW | K36: =ROUND(format_plot!E4,1)&" kW" -> 0 kW | L36: =ROUND(format_plot!S4,1)&" kW" -> 0 kW | M36: =ROUND(format_plot!Q4,1)&" kW" -> 4 kW | N36: =ROUND(format_plot!O4,1)&" kW" -> 0 kW
B37: Fuel escalation rate | C37: 0.03 | E37: 0.03 | H37: Diesel generator size | I37: =ROUND(format_plot!I6,1)&" kW" -> 7 kW | J37: =ROUND(format_plot!G6,1)&" kW" -> 0 kW | K37: =ROUND(format_plot!E6,1)&" kW" -> 7 kW | L37: =ROUND(format_plot!S6,1)&" kW" -> 6 kW | M37: =ROUND(format_plot!Q6,1)&" kW" -> 0 kW | N37: =ROUND(format_plot!O6,1)&" kW" -> 6 kW
B39: Total distribution system costs | C39: =IF(C11="Default",20000,D11) -> 20000 | E39: =IF(E11="Default",20000,F11) -> 20000 | H39: Total life-cycle cost | I39: =SUM(format_plot!I24:I30) -> 161800.0091 | J39: =SUM(format_plot!G24:G30) -> 194595.2835 | K39: =SUM(format_plot!E24:E30) -> 143243.9553 | L39: =SUM(format_plot!S24:S30) -> 80556.58451 | M39: =SUM(format_plot!Q24:Q30) -> 87700.24483 | N39: =SUM(format_plot!O24:O30) -> 75328.74392
B40: Pre-operating soft costs [$/kW] | C40: =IF(C12="Default",1200,D12) -> 1200 | E40: =IF(E12="Default",1200,F12) -> 1200 | H40: Total CAPEX | I40: =format_plot!I24+format_plot!I25+format_plot!I26+format_plot!I27 -> 30731.54 | J40: =format_plot!G24+format_plot!G25+format_plot!G26+format_plot!G27 -> 139282.7724 | K40: =format_plot!E24+format_plot!E25+format_plot!E26+format_plot!E27 -> 42897.716 | L40: =format_plot!S24+format_plot!S25+format_plot!S26+format_plot!S27 -> 28499.6 | M40: =format_plot!Q24+format_plot!Q25+format_plot!Q26+format_plot!Q27 -> 63975.93107 | N40: =format_plot!O24+format_plot!O25+format_plot!O26+format_plot!O27 -> 37881.28
B41: Annual labor costs [$/year] | C41: =IF(C13="Default",3000,D13) -> 3000 | E41: =IF(E13="Default",3000,F13) -> 3000 | H41: Total OPEX | I41: =format_plot!I28+format_plot!I29+format_plot!I30 -> 131068.4691 | J41: =format_plot!G28+format_plot!G29+format_plot!G30 -> 55312.51111 | K41: =format_plot!E28+format_plot!E29+format_plot!E30 -> 100346.2393 | L41: =format_plot!S28+format_plot!S29+format_plot!S30 -> 52056.98451 | M41: =format_plot!Q28+format_plot!Q29+format_plot!Q30 -> 23724.31376 | N41: =format_plot!O28+format_plot!O29+format_plot!O30 -> 37447.46392
B42: Annual land lease costs [$/year] | C42: =IF(C14="Default",800,D14) -> 800 | E42: =IF(E14="Default",800,F14) -> 800 | H42: LCOE | I42: =format_plot!$I$32 -> 0.9642018845 | J42: =format_plot!$G$32 -> 1.159612367 | K42: =format_plot!$E$32 -> 0.8536166661 | L42: =format_plot!$S$32 -> 0.8392655367 | M42: =format_plot!$Q$32 -> 0.9136850103 | N42: =format_plot!$O$32 -> 0.7847972457
B46: SOLAR RESOURCE PROFILES
B65: LOAD PROFILES | H65: LIST OF ACRONYMS
H67: BOS | I67: balance-of-system
H68: CAPEX | I68: capital expenditures
H69: GHI | I69: global horizontal irradiance
H70: LCOE | I70: levelized cost of electricity
H71: NREL | I71: National Renewable Energy Laboratory
H72: O&M | I72: operation and maintenance
H73: OPEX | I73: operating expenses
H74: PV | I74: photovoltaic
H75: TMY | I75: typical meteorological year
B84: Load Profile | C84: Peak load | D84: Annual Consumption
B85: NREL average | C85: 5.71 kW | D85: 19,711 kWh
B86: Business heavy | C86: 4.76 kW | D86: 19,711 kWh
B87: Residential heavy | C87: 10.62 kW | D87: 19,711 kWh
B89: * Only one day is shown because simulated loads do not vary across days
B92: DETAILED COST BREAKDOWN
B94: Economic parameters | C94: Discount rate | F94: 10-20% (real)
C95: Fuel escalation rate | F95: 0.03
C96: General inflation | F96: -
B98: PV panels + Structure | C98: Total installed costs | F98: $800-1,200/kWp
C99: Useful life | F99: 20 years
B100: Charge Controller | C100: Total installed costs | F100: $200-400/kWp
C101: Useful life | F101: 20 years
B102: Inverter | C102: Total installed costs | F102: $400-800/kW
C103: Useful life | F103: 10 years
B104: Storage | C104: Battery type | F104: deep cycle lead acid
C105: Total installed costs | F105: $300-500/kWh
C106: Useful life | F106: 7 years
C107: Minimum state of charge | F107: 0.3
C108: Round-trip efficiency | F108: 0.8
B109: Auxillary costs - wiring, breakers, protection, panels | C109: Total installed costs | F109: $200-400/kW
B110: Power house/container and civil costs | C110: Total installed costs | F110: $400-600/kW
B111: O&M costs | C111: Technology O&M excluding labor | F111: 2% of CAPEX per year
B113: Diesel generator specifications | C113: Total installed costs including foundation | F113: $400/kW
C114: Fixed O&M | F114: $25/kW/year
C115: Variable O&M | F115: $0.023/kWh
C116: Useful life | F116: 10 years
C117: Fuel cost | F117: $3.20/gallon (Tanzania)
F118: $3.60/gallon (Ghana)
F119: $4.40/gallon (Zambia)
C120: Fuel consumption rate | F120: 8.3-12.5 kWh/gallon
C121: Minimum turndown | F121: 0.3
B123: Distribution network | C123: Total installed costs | F123: $5,000-6,000/km (3-4 km needed for a 100 household village)
C124: Fixed O&M | F124: 2% of distribution CAPEX
C125: Variable O&M | F125: -
B127: Soft costs | C127: Pre-operating expenses | F127: $1,200/kW
C128: Labor costs | F128: $3,000/year*
C129: Land lease | F129: $800/year*
B131: * For the assumed system size of 100 micro-grid connected households, two small shops and one school with a total annual consumption of 19,711 kWh

Sheet process_inputs (hidden)
A1: General
A3: TMY | B3: Solar Resource | D3: Load Profiles | F3: Percent of load served | H3: Cost Ranges | I3: Diesel Prices | J3: Discount Rate | L3: Options for soft costs
A4: Accra, Ghana | B4: 5.1 kWh/m2/day | D4: NREL average | F4: 1 | H4: Low | I4: 3.2 | J4: 0.1 | L4: Default
A5: Lodwar, Kenya | B5: 6.1 kWh/m2/day | D5: Business heavy | F5: 0.95 | H5: Medium | I5: 3.6 | J5: 0.15 | L5: User input
A6: Lusaka, Zambia | B6: 5.3 kWh/m2/day | D6: Residential heavy | F6: 0.9 | H6: High | I6: 4.4 | J6: 0.2
F7: 0.85 | L7: Annual consumption
F8: 0.8 | L8: 19711
A10: Cost Lookup Table | L10: Peak Loads Lookup Table | O10: PWF Lookup Table | R10: Sheet Name Lookup Table
A11: Level | B11: PV cost | C11: Batt kWh | D11: Batt kW | E11: Batt replacement kW | F11: Genset cost | G11: Fuel cost | H11: Fuel consumption | I11: PV O&M | J11: Batt O&M | L11: Type | M11: kW peak | O11: Discount | P11: pwf | R11: Accra, Ghana | S11: Accra_
A12: Low | B12: 1400 | C12: 300 | D12: 600 | E12: 300 | F12: 300 | G12: 3.2 | H12: =1/0.08 -> 12.5 | I12: 28 | J12: 20 | L12: NREL average | M12: 5.71 | O12: 0.1 | P12: 8.51356372 | R12: Lusaka, Zambia | S12: Lusaka_
A13: Medium | B13: 1800 | C13: 400 | D13: 900 | E13: 450 | F13: 400 | G13: 3.6 | H13: =1/0.1 -> 10 | I13: 36 | J13: 25 | L13: Business heavy | M13: 4.76 | O13: 0.15 | P13: 6.259331474 | R13: Lodwar, Kenya | S13: Lodwar_
A14: High | B14: 2200 | C14: 500 | D14: 1200 | E14: 600 | F14: 500 | G14: 4.4 | H14: =ROUND(1/0.12,1) -> 8.3 | I14: 44 | J14: 30 | L14: Residential heavy | M14: 10.62 | O14: 0.2 | P14: 4.8695797
G18: RE Start Lookup Table | J18: Profile Start Lookup Table | M18: Adder for load served
B19: Base Case | D19: Comparison | G19: Low | H19: 811 | J19: NREL average | K19: 7 | M19: 1 | N19: 1
A20: peak load | B20: =VLOOKUP(LCOE_breakdown!C5,process_inputs!L12:M14,2,FALSE) -> 5.71 | D20: =VLOOKUP(LCOE_breakdown!E5,process_inputs!L12:M14,2,FALSE) -> 4.76 | G20: Medium | H20: 406 | J20: Business heavy | K20: 1 | M20: 0.95 | N20: 2
A21: pwf | B21: =VLOOKUP(LCOE_breakdown!C7,process_inputs!O12:P14,2, FALSE) -> 8.51356372 | D21: =VLOOKUP(LCOE_breakdown!E7,process_inputs!O12:P14,2, FALSE) -> 4.8695797 | G21: High | H21: 1 | J21: Residential heavy | K21: 19 | M21: 0.9 | N21: 3
A22: sheet name | B22: =VLOOKUP(LCOE_breakdown!C4,process_inputs!R11:S13,2,FALSE)&(100*LCOE_breakdown!C7) -> Lodwar_10 | D22: =VLOOKUP(LCOE_breakdown!E4,process_inputs!R11:S13,2,FALSE)&(100*LCOE_breakdown!E7) -> Lusaka_20 | M22: 0.85 | N22: 4
G23: Diesel Start Lookup Table | M23: 0.8 | N23: 5
A24: RE adder | B24: =VLOOKUP(LCOE_breakdown!C8,process_inputs!G19:H21,2,FALSE) -> 1 | D24: =VLOOKUP(LCOE_breakdown!E8,process_inputs!G19:H21,2,FALSE) -> 811 | G24: Low | H24: 270
A25: Diesel adder | B25: =VLOOKUP(LCOE_breakdown!C9,process_inputs!G24:H26,2,FALSE) -> 135 | D25: =VLOOKUP(LCOE_breakdown!E9,process_inputs!G24:H26,2,FALSE) -> 135 | G25: Medium | H25: 135
A26: Fuel adder | B26: =VLOOKUP(LCOE_breakdown!C10,process_inputs!G29:H31,2,FALSE) -> 0 | D26: =VLOOKUP(LCOE_breakdown!E10,process_inputs!G29:H31,2,FALSE) -> 90 | G26: High | H26: 0
A28: Final row start | B28: =SUM(B24:B26) -> 136 | D28: =SUM(D24:D26) -> 1036 | G28: Fuel Start Lookup Table
G29: 3.2 | H29: 90
A30: Profile col | B30: =VLOOKUP(LCOE_breakdown!C5,process_inputs!J19:K21,2,FALSE) -> 7 | D30: =VLOOKUP(LCOE_breakdown!E5,process_inputs!J19:K21,2,FALSE) -> 1 | G30: 3.6 | H30: 45
A31: Load col | B31: =VLOOKUP(LCOE_breakdown!C6,process_inputs!M19:N23,2,FALSE) -> 1 | D31: =VLOOKUP(LCOE_breakdown!E6,process_inputs!M19:N23,2,FALSE) -> 4 | G31: 4.4 | H31: 0
A33: Final col start | B33: =SUBSTITUTE(ADDRESS(1,SUM(B30:B31),4),1,"") -> H | D33: =SUBSTITUTE(ADDRESS(1,SUM(D30:D31),4),1,"") -> E
A35: BASE CASE | F35: COMPARISON
A36: Actual start | B36: =B28+1 -> 137 | C36: =B28+16 -> 152 | D36: =B28+31 -> 167 | F36: Actual start | G36: =D28+1 -> 1037 | H36: =D28+16 -> 1052 | I36: =D28+31 -> 1067
B37: PBD | C37: PB | D37: D | G37: PBD | H37: PB | I37: D
A38: 0 | B38: =$B$22&"!"&$B$33&($B$36+A38) -> Lodwar_10!H137 | C38: =$B$22&"!"&$B$33&($C$36+A38) -> Lodwar_10!H152 | D38: =$B$22&"!"&$B$33&($D$36+A38) -> Lodwar_10!H167 | G38: =$D$22&"!"&$D$33&($G$36+A38) -> Lusaka_20!E1037 | H38: =$D$22&"!"&$D$33&($H$36+A38) -> Lusaka_20!E1052 | I38: =$D$22&"!"&$D$33&($I$36+A38) -> Lusaka_20!E1067
A39: 1 | B39: =$B$22&"!"&$B$33&($B$36+A39) -> Lodwar_10!H138 | C39: =$B$22&"!"&$B$33&($C$36+A39) -> Lodwar_10!H153 | D39: =$B$22&"!"&$B$33&($D$36+A39) -> Lodwar_10!H168 | G39: =$D$22&"!"&$D$33&($G$36+A39) -> Lusaka_20!E1038 | H39: =$D$22&"!"&$D$33&($H$36+A39) -> Lusaka_20!E1053 | I39: =$D$22&"!"&$D$33&($I$36+A39) -> Lusaka_20!E1068
A40: 2 | B40: Lodwar_10!H139 | C40: Lodwar_10!H154 | D40: Lodwar_10!H169 | G40: Lusaka_20!E1039 | H40: Lusaka_20!E1054 | I40: Lusaka_20!E1069
A41: 3 | B41: Lodwar_10!H140 | C41: Lodwar_10!H155 | D41: Lodwar_10!H170 | G41: Lusaka_20!E1040 | H41: Lusaka_20!E1055 | I41: Lusaka_20!E1070
A42: 4 | B42: Lodwar_10!H141 | C42: Lodwar_10!H156 | D42: Lodwar_10!H171 | G42: Lusaka_20!E1041 | H42: Lusaka_20!E1056 | I42: Lusaka_20!E1071
A43: 5 | B43: Lodwar_10!H142 | C43: Lodwar_10!H157 | D43: Lodwar_10!H172 | G43: Lusaka_20!E1042 | H43: Lusaka_20!E1057 | I43: Lusaka_20!E1072
A44: 6 | B44: Lodwar_10!H143 | C44: Lodwar_10!H158 | D44: Lodwar_10!H173 | G44: Lusaka_20!E1043 | H44: Lusaka_20!E1058 | I44: Lusaka_20!E1073
A45: 7 | B45: Lodwar_10!H144 | C45: Lodwar_10!H159 | D45: Lodwar_10!H174 | G45: Lusaka_20!E1044 | H45: Lusaka_20!E1059 | I45: Lusaka_20!E1074
A46: 8 | B46: Lodwar_10!H145 | C46: Lodwar_10!H160 | D46: Lodwar_10!H175 | G46: Lusaka_20!E1045 | H46: Lusaka_20!E1060 | I46: Lusaka_20!E1075
A47: 9 | B47: Lodwar_10!H146 | C47: Lodwar_10!H161 | D47: Lodwar_10!H176 | G47: Lusaka_20!E1046 | H47: Lusaka_20!E1061 | I47: Lusaka_20!E1076
A48: 10 | B48: Lodwar_10!H147 | C48: Lodwar_10!H162 | D48: Lodwar_10!H177 | G48: Lusaka_20!E1047 | H48: Lusaka_20!E1062 | I48: Lusaka_20!E1077
A49: 11 | B49: Lodwar_10!H148 | C49: Lodwar_10!H163 | D49: Lodwar_10!H178 | G49: Lusaka_20!E1048 | H49: Lusaka_20!E1063 | I49: Lusaka_20!E1078
A50: 12 | B50: Lodwar_10!H149 | C50: Lodwar_10!H164 | D50: Lodwar_10!H179 | G50: Lusaka_20!E1049 | H50: Lusaka_20!E1064 | I50: Lusaka_20!E1079

Sheet format_plot (hidden)
E1: Base Case | O1: Comparison
E2: PBD | G2: PB | I2: D | O2: PBD | Q2: PB | S2: D
A3: Distribution | B3: =LCOE_breakdown!C39 -> 20000 | D3: PV kW | E3: =INDIRECT(process_inputs!B38) -> 5.53 | G3: =INDIRECT(process_inputs!C38) -> 27.913 | I3: =INDIRECT(process_inputs!D38) -> 0 | L3: Distribution | M3: =LCOE_breakdown!E39 -> 20000 | O3: =INDIRECT(process_inputs!G38) -> 6.701 | Q3: =INDIRECT(process_inputs!H38) -> 16.785 | S3: =INDIRECT(process_inputs!I38) -> 0
D4: Battery kW | E4: =INDIRECT(process_inputs!B39) -> 0 | G4: =INDIRECT(process_inputs!C39) -> 5.71 | I4: =INDIRECT(process_inputs!D39) -> 0 | O4: =INDIRECT(process_inputs!G39) -> 0 | Q4: =INDIRECT(process_inputs!H39) -> 3.976 | S4: =INDIRECT(process_inputs!I39) -> 0
A5: Labor | B5: =LCOE_breakdown!C41 -> 3000 | D5: Battery kWh | E5: =INDIRECT(process_inputs!B40) -> 0 | G5: =INDIRECT(process_inputs!C40) -> 48.96 | I5: =INDIRECT(process_inputs!D40) -> 0 | L5: Labor | M5: =LCOE_breakdown!E41 -> 3000 | O5: =INDIRECT(process_inputs!G40) -> 0 | Q5: =INDIRECT(process_inputs!H40) -> 30.098 | S5: =INDIRECT(process_inputs!I40) -> 0
A6: Land lease | B6: =LCOE_breakdown!C42 -> 800 | D6: Generator kW | E6: =INDIRECT(process_inputs!B41) -> 7 | G6: =INDIRECT(process_inputs!C41) -> 0 | I6: =INDIRECT(process_inputs!D41) -> 7 | L6: Land lease | M6: =LCOE_breakdown!E42 -> 800 | O6: =INDIRECT(process_inputs!G41) -> 6 | Q6: =INDIRECT(process_inputs!H41) -> 0 | S6: =INDIRECT(process_inputs!I41) -> 6
A7: Pre-operating | B7: =LCOE_breakdown!C40 -> 1200 | D7: PV capital cost | E7: =INDIRECT(process_inputs!B42) -> 12166.176 | G7: =INDIRECT(process_inputs!C42) -> 61409.04 | I7: =INDIRECT(process_inputs!D42) -> 0 | L7: Pre-operating | M7: =LCOE_breakdown!E40 -> 1200 | O7: =INDIRECT(process_inputs!G42) -> 9381.68 | Q7: =INDIRECT(process_inputs!H42) -> 23499.14 | S7: =INDIRECT(process_inputs!I42) -> 0
D8: PV O&M | E8: =INDIRECT(process_inputs!B43) -> 2071.550292 | G8: =INDIRECT(process_inputs!C43) -> 10456.1955 | I8: =INDIRECT(process_inputs!D43) -> 0 | O8: =INDIRECT(process_inputs!G43) -> 913.6967696 | Q8: =INDIRECT(process_inputs!H43) -> 2288.618702 | S8: =INDIRECT(process_inputs!I43) -> 0
A9: Peak load | B9: =process_inputs!B20 -> 5.71 | D9: Battery capital cost | E9: =INDIRECT(process_inputs!B44) -> 9.981724805e-10 | G9: =INDIRECT(process_inputs!C44) -> 51021.73243 | I9: =INDIRECT(process_inputs!D44) -> 0 | L9: Peak load | M9: =process_inputs!D20 -> 4.76 | O9: =INDIRECT(process_inputs!G44) -> 0 | Q9: =INDIRECT(process_inputs!H44) -> 14764.79107 | S9: =INDIRECT(process_inputs!I44) -> 0
A10: Annual consumption | B10: =process_inputs!L8 -> 19711 | D10: Battery O&M | E10: =INDIRECT(process_inputs!B45) -> 2.904870509e-10 | G10: =INDIRECT(process_inputs!C45) -> 12504.77347 | I10: =INDIRECT(process_inputs!D45) -> 0 | L10: Annual consumption | M10: =process_inputs!L8 -> 19711 | O10: =INDIRECT(process_inputs!G45) -> 0 | Q10: =INDIRECT(process_inputs!H45) -> 2931.292196 | S10: =INDIRECT(process_inputs!I45) -> 0
D11: Diesel capital cost | E11: =INDIRECT(process_inputs!B46) -> 3879.54 | G11: =INDIRECT(process_inputs!C46) -> 0 | I11: =INDIRECT(process_inputs!D46) -> 3879.54 | O11: =INDIRECT(process_inputs!G46) -> 2787.6 | Q11: =INDIRECT(process_inputs!H46) -> 0 | S11: =INDIRECT(process_inputs!I46) -> 2787.6
A12: pwf | B12: =process_inputs!B21 -> 8.51356372 | D12: Diesel O&M (kW) | E12: =INDIRECT(process_inputs!B47) -> 1489.873651 | G12: =INDIRECT(process_inputs!C47) -> 0 | I12: =INDIRECT(process_inputs!D47) -> 1489.873651 | L12: pwf | M12: =process_inputs!D21 -> 4.8695797 | O12: =INDIRECT(process_inputs!G47) -> 730.436955 | Q12: =INDIRECT(process_inputs!H47) -> 0 | S12: =INDIRECT(process_inputs!I47) -> 730.436955
D13: Diesel O&M (kWh) | E13: =INDIRECT(process_inputs!B48) -> 2558.169631 | G13: =INDIRECT(process_inputs!C48) -> 0 | I13: =INDIRECT(process_inputs!D48) -> 3860.168555 | O13: =INDIRECT(process_inputs!G48) -> 988.7731177 | Q13: =INDIRECT(process_inputs!H48) -> 0 | S13: =INDIRECT(process_inputs!I48) -> 1876.0501
D14: Fuel cost | E14: =INDIRECT(process_inputs!B49) -> 61875.10361 | G14: =INDIRECT(process_inputs!C49) -> 0 | I14: =INDIRECT(process_inputs!D49) -> 93366.88481 | O14: =INDIRECT(process_inputs!G49) -> 16310.15421 | Q14: =INDIRECT(process_inputs!H49) -> 0 | S14: =INDIRECT(process_inputs!I49) -> 30946.0946
D15: REopt LCC | E15: =INDIRECT(process_inputs!B50) -> 84042.6 | G15: =INDIRECT(process_inputs!C50) -> 135392 | I15: =INDIRECT(process_inputs!D50) -> 102600 | O15: =INDIRECT(process_inputs!G50) -> 31111.8 | Q15: =INDIRECT(process_inputs!H50) -> 43483 | S15: =INDIRECT(process_inputs!I50) -> 36339.9
D17: Total distribution system costs | E17: =$B$3 -> 20000 | G17: =$B$3 -> 20000 | I17: =$B$3 -> 20000 | O17: =$M$3 -> 20000 | Q17: =$M$3 -> 20000 | S17: =$M$3 -> 20000
D18: Pre-operating soft costs ($/kW) | E18: =$B$7*$B$9 -> 6852 | G18: =$B$7*$B$9 -> 6852 | I18: =$B$7*$B$9 -> 6852 | O18: =$M$7*$M$9 -> 5712 | Q18: =$M$7*$M$9 -> 5712 | S18: =$M$7*$M$9 -> 5712
D19: Annual labor costs | E19: =$B$5*$B$12 -> 25540.69116 | G19: =$B$5*$B$12 -> 25540.69116 | I19: =$B$5*$B$12 -> 25540.69116 | O19: =$M$5*$M$12 -> 14608.7391 | Q19: =$M$5*$M$12 -> 14608.7391 | S19: =$M$5*$M$12 -> 14608.7391
D20: Annual land lease costs | E20: =$B$6*$B$12 -> 6810.850976 | G20: =$B$6*$B$12 -> 6810.850976 | I20: =$B$6*$B$12 -> 6810.850976 | O20: =$M$12*$M$6 -> 3895.66376 | Q20: =$M$12*$M$6 -> 3895.66376 | S20: =$M$12*$M$6 -> 3895.66376
D22: Total LCC | E22: =E15+E17+E18+E19+E20 -> 143246.1421 | G22: =G15+G17+G18+G19+G20 -> 194595.5421 | I22: =I15+I17+I18+I19+I20 -> 161803.5421 | O22: =O15+O17+O18+O19+O20 -> 75328.20286 | Q22: =Q15+Q17+Q18+Q19+Q20 -> 87699.40286 | S22: =S15+S17+S18+S19+S20 -> 80556.30286
D24: RE CAPEX | E24: =E7+E9 -> 12166.176 | F24: =E24/$E$22 -> 0.08493196269 | G24: =G7+G9 -> 112430.7724 | H24: =G24/$G$22 -> 0.5777664339 | I24: =I7+I9 -> 0 | J24: =I24/$I$22 -> 0 | O24: =O7+O9 -> 9381.68 | P24: =O24/$O$22 -> 0.1245440571 | Q24: =Q7+Q9 -> 38263.93107 | R24: =Q24/$Q$22 -> 0.4363077721 | S24: =S7+S9 -> 0 | T24: =S24/$S$22 -> 0
D25: Diesel CAPEX | E25: =E11 -> 3879.54 | F25: =E25/$E$22 -> 0.02708303304 | G25: =G11 -> 0 | H25: =G25/$G$22 -> 0 | I25: =I11 -> 3879.54 | J25: =I25/$I$22 -> 0.02397685458 | O25: =O11 -> 2787.6 | P25: 0.03700606007 | Q25: =Q11 -> 0 | R25: =Q25/$Q$22 -> 0 | S25: =S11 -> 2787.6 | T25: =S25/$S$22 -> 0.03460436863
D26: Distribution network | E26: =E17 -> 20000 | F26: 0.1396198159 | G26: =G17 -> 20000 | H26: 0.1027772773 | I26: =I17 -> 20000 | J26: 0.1236066883 | O26: =O17 -> 20000 | P26: 0.2655048075 | Q26: =Q17 -> 20000 | R26: 0.2280517238 | S26: =S17 -> 20000 | T26: 0.2482735589
D27: Pre-operation soft costs | E27: =E18 -> 6852 | F27: 0.04783374894 | G27: =G18 -> 6852 | H27: 0.03521149521 | I27: =I18 -> 6852 | J27: 0.04234765141 | O27: =O18 -> 5712 | P27: 0.07582817302 | Q27: =Q18 -> 5712 | R27: 0.06513157232 | S27: =S18 -> 5712 | T27: 0.07090692841
D28: O&M (excluding labor) | E28: =E8+E10+E12+E13+E20 -> 12930.44455 | F28: 0.09026731441 | G28: =G8+G10+G12+G13+G20 -> 29771.81995 | H28: 0.1529933298 | I28: =I8+I10+I12+I13+I20 -> 12160.89318 | J28: 0.07515838665 | O28: =O8+O10+O12+O13+O20 -> 6528.570602 | P28: 0.08666834405 | Q28: =Q8+Q10+Q12+Q13+Q20 -> 9115.574658 | R28: 0.1039411257 | S28: =S8+S10+S12+S13+S20 -> 6502.150815 | T28: 0.08071560615
D29: Fuel | E29: =E14 -> 61875.10361 | F29: =E29/$E$22 -> 0.4319495289 | G29: =G14 -> 0 | H29: 0 | I29: =I14 -> 93366.88481 | J29: 0.5770385714 | O29: =O14 -> 16310.15421 | P29: 0.2165212178 | Q29: =Q14 -> 0 | R29: 0 | S29: =S14 -> 30946.0946 | T29: 0.3841548519
D30: Labor | E30: =E19 -> 25540.69116 | F30: 0.1782993299 | G30: =G19 -> 25540.69116 | H30: 0.1312501349 | I30: =I19 -> 25540.69116 | J30: 0.1578500126 | O30: =O19 -> 14608.7391 | P30: 0.1939345231 | Q30: =Q19 -> 14608.7391 | R30: 0.1665774067 | S30: =S19 -> 14608.7391 | T30: 0.1813481823
D32: LCOE | E32: =(E22/$B$12)/$B$10 -> 0.8536166661 | G32: =(G22/$B$12)/$B$10 -> 1.159612367 | I32: =(I22/$B$12)/$B$10 -> 0.9642018845 | O32: =(O22/$M$12)/$M$10 -> 0.7847972457 | Q32: =(Q22/$M$12)/$M$10 -> 0.9136850103 | S32: =(S22/$M$12)/$M$10 -> 0.8392655367
D34: RE CAPEX | E34: =$E$32*F24 -> 0.07249933884 | G34: =$G$32*H24 -> 0.6699851018 | I34: =$I$32*J24 -> 0 | O34: =$O$32*P24 -> 0.09774183299 | Q34: =$Q$32*R24 -> 0.3986478712 | S34: =$S$32*T24 -> 0
D35: Diesel CAPEX | E35: =$E$32*F25 -> 0.02311852837 | G35: =$G$32*H25 -> 0 | I35: =$I$32*J25 -> 0.02311852837 | O35: 0.02904225402 | Q35: =$Q$32*R25 -> 0 | S35: =$S$32*T25 -> 0.02904225402
D36: Distribution network | E36: 0.1191818018 | G36: 0.1191818018 | I36: 0.1191818018 | O36: 0.2083674416 | Q36: 0.2083674416 | S36: 0.2083674416
D37: Pre-operation soft costs | E37: 0.0408316853 | G37: 0.0408316853 | I37: 0.0408316853 | O37: 0.05950974133 | Q37: 0.05950974133 | S37: 0.05950974133
D38: O&M (excluding labor) | E38: 0.07705368398 | G38: 0.1774129572 | I38: 0.07246785805 | O38: 0.0680170777 | Q38: 0.09496944853 | S38: 0.06774182652
D39: Fuel | E39: 0.3687193168 | G39: 0 | I39: 0.556381678 | O39: 0.1699252553 | Q39: 0 | S39: 0.322407928
D40: Labor | E40: 0.1521992796 | G40: 0.1521992796 | I40: 0.1521992796 | O40: 0.1521992796 | Q40: 0.1521992796 | S40: 0.1521992796
E44: LCOE | Q44: LCC
F45: Diesel only | I45: PV+battery | L45: PV+battery+diesel | R45: Diesel only | U45: PV+battery | X45: PV+battery+diesel
F46: Base case | G46: Comparison | I46: Base case | J46: Comparison | L46: Base case | M46: Comparison | R46: Base case | S46: Comparison | U46: Base case | V46: Comparison | X46: Base case | Y46: Comparison
D47: RE CAPEX | E47: 0 | F47: =I34 -> 0 | G47: =S34 -> 0 | H47: 0 | I47: =G34 -> 0.6699851018 | J47: =Q34 -> 0.3986478712 | K47: 0 | L47: =E34 -> 0.07249933884 | M47: =O34 -> 0.09774183299 | N47: 0 | P47: RE CAPEX | Q47: 0 | R47: =I24 -> 0 | S47: =S24 -> 0 | T47: 0 | U47: =G24 -> 112430.7724 | V47: =Q24 -> 38263.93107 | W47: 0 | X47: =E24 -> 12166.176 | Y47: =O24 -> 9381.68 | Z47: 0
D48: Diesel CAPEX | E48: 0 | F48: =I35 -> 0.02311852837 | G48: =S35 -> 0.02904225402 | H48: 0 | I48: =G35 -> 0 | J48: =Q35 -> 0 | K48: 0 | L48: =E35 -> 0.02311852837 | M48: =O35 -> 0.02904225402 | N48: 0 | P48: Diesel CAPEX | Q48: 0 | R48: =I25 -> 3879.54 | S48: =S25 -> 2787.6 | T48: 0 | U48: =G25 -> 0 | V48: =Q25 -> 0 | W48: 0 | X48: =E25 -> 3879.54 | Y48: =O25 -> 2787.6 | Z48: 0
D49: Distribution network | E49: 0 | F49: 0.1191818018 | G49: 0.2083674416 | H49: 0 | I49: 0.1191818018 | J49: 0.2083674416 | K49: 0 | L49: 0.1191818018 | M49: 0.2083674416 | N49: 0 | P49: Distribution network | Q49: 0 | R49: 20000 | S49: 20000 | T49: 0 | U49: 20000 | V49: 20000 | W49: 0 | X49: 20000 | Y49: 20000 | Z49: 0
D50: Pre-operation soft costs | E50: 0 | F50: 0.0408316853 | G50: 0.05950974133 | H50: 0 | I50: 0.0408316853 | J50: 0.05950974133 | K50: 0 | L50: 0.0408316853 | M50: 0.05950974133 | N50: 0 | P50: Pre-operation soft costs | Q50: 0 | R50: 6852 | S50: 5712 | T50: 0 | U50: 6852 | V50: 5712 | W50: 0 | X50: 6852 | Y50: 5712 | Z50: 0
D51: O&M (excluding labor) | E51: 0 | F51: 0.07246785805 | G51: 0.06774182652 | H51: 0 | I51: 0.1774129572 | J51: 0.09496944853 | K51: 0 | L51: 0.07705368398 | M51: 0.0680170777 | N51: 0 | P51: O&M (excluding labor) | Q51: 0 | R51: 12160.89318 | S51: 6502.150815 | T51: 0 | U51: 29771.81995 | V51: 9115.574658 | W51: 0 | X51: 12930.44455 | Y51: 6528.570602 | Z51: 0
D52: Fuel | E52: 0 | F52: 0.556381678 | G52: 0.322407928 | H52: 0 | I52: 0 | J52: 0 | K52: 0 | L52: 0.3687193168 | M52: 0.1699252553 | N52: 0 | P52: Fuel | Q52: 0 | R52: 93366.88481 | S52: 30946.0946 | T52: 0 | U52: 0 | V52: 0 | W52: 0 | X52: 61875.10361 | Y52: 16310.15421 | Z52: 0
D53: Labor | E53: 0 | F53: 0.1521992796 | G53: 0.1521992796 | H53: 0 | I53: 0.1521992796 | J53: 0.1521992796 | K53: 0 | L53: 0.1521992796 | M53: 0.1521992796 | N53: 0 | P53: Labor | Q53: 0 | R53: 25540.69116 | S53: 14608.7391 | T53: 0 | U53: 25540.69116 | V53: 14608.7391 | W53: 0 | X53: 25540.69116 | Y53: 14608.7391 | Z53: 0
B55: Axis | Q55: Axis
A56: Diesel only | P56: Diesel only
A57: PV+battery | P57: PV+battery
A58: PV+battery+diesel | P58: PV+battery+diesel

Sheet Accra_10
A1: TMY_highPVBatt_HighDiesel_44_PBD_business | B1: 100 | C1: 95 | D1: 90 | E1: 85 | F1: 80 | G1: TMY_highPVBatt_HighDiesel_44_PBD_nrel | H1: 100 | I1: 95 | J1: 90 | K1: 85 | L1: 80 | M1: TMY_highPVBatt_HighDiesel_44_PBD_average | N1: 100 | O1: 95 | P1: 90 | Q1: 85 | R1: 80 | S1: TMY_highPVBatt_HighDiesel_44_PBD_residential | T1: 100 | U1: 95 | V1: 90 | W1: 85 | X1: 80
A2: PV kW | B2: 9.712 | C2: 9.714 | D2: 9.662 | E2: 9.688 | F2: 9.7 | H2: 6.33 | I2: 6.34 | J2: 6.34 | K2: 6.34 | L2: 6.34 | N2: 5.601 | O2: 5.629 | P2: 5.632 | Q2: 5.629 | R2: 5.629 | T2: 4.108 | U2: 4.11 | V2: 4.123 | W2: 4.108 | X2: 4.108
A3: Battery kW | B3: 0.135 | C3: 0.135 | D3: 0.127 | E3: 0.13 | F3: 0.129 | H3: 0 | I3: 0.021 | J3: 0.021 | K3: 0.021 | L3: 0.021 | N3: 0 | O3: 0.038 | P3: 0.038 | Q3: 0.038 | R3: 0.038 | T3: 0.139 | U3: 0.138 | V3: 0.141 | W3: 0.139 | X3: 0.139
A4: Battery kWh | B4: 0.577 | C4: 0.577 | D4: 0.448 | E4: 0.5 | F4: 0.542 | H4: 0 | I4: 0.059 | J4: 0.059 | K4: 0.059 | L4: 0.059 | N4: 0 | O4: 0.162 | P4: 0.164 | Q4: 0.162 | R4: 0.162 | T4: 0.788 | U4: 0.787 | V4: 0.803 | W4: 0.788 | X4: 0.788
A5: Generator kW | B5: 6 | C5: 6 | D5: 6 | E5: 6 | F5: 6 | H5: 7 | I5: 7 | J5: 7 | K5: 7 | L5: 7 | N5: 8 | O5: 8 | P5: 8 | Q5: 8 | R5: 8 | T5: 12 | U5: 12 | V5: 12 | W5: 12 | X5: 12
A6: PV capital cost | B6: 21367.456 | C6: 21370.954 | D6: 21255.784 | E6: 21314.326 | F6: 21340.11 | H6: 13925.736 | I6: 13948.99 | J6: 13948.99 | K6: 13948.99 | L6: 13948.99 | N6: 12321.342 | O6: 12384.372 | P6: 12390.422 | Q6: 12384.372 | R6: 12384.372 | T6: 9038.238 | U6: 9041.098 | V6: 9070.336 | W6: 9038.238 | X6: 9038.238
A7: PV O&M | B7: 3638.263964 | C7: 3638.859573 | D7: 3619.24943 | E7: 3629.217451 | F7: 3633.607726 | H7: 2371.152816 | I7: 2375.112304 | J7: 2375.112304 | K7: 2375.112304 | L7: 2375.112304 | N7: 2097.970605 | O7: 2108.702803 | P7: 2109.732944 | Q7: 2108.702803 | R7: 2108.702803 | T7: 1538.952303 | U7: 1539.439278 | V7: 1544.41767 | W7: 1538.952303 | X7: 1538.952303
A8: Battery capital cost | B8: 695.9863429 | C8: 696.2724453 | D8: 572.6700945 | E8: 621.5614333 | F8: 657.7608445 | H8: 0 | I8: 81.38982343 | J8: 81.38982343 | K8: 81.38982343 | L8: 81.38982343 | N8: 0 | O8: 195.844811 | P8: 198.0591509 | Q8: 195.844811 | R8: 195.844811 | T8: 887.2923261 | U8: 885.6940754 | V8: 903.8948198 | W8: 887.2923261 | X8: 887.2923261
A9: Battery O&M | B9: 147.2673698 | C9: 147.3391392 | D9: 114.5464242 | E9: 127.59312 | F9: 138.4721774 | H9: 0 | I9: 15.15972832 | J9: 15.15972832 | K9: 15.15972832 | L9: 15.15972832 | N9: 0 | O9: 41.45203094 | P9: 41.92070262 | Q9: 41.45203094 | R9: 41.45203094 | T9: 201.2476206 | U9: 200.9421539 | V9: 205.1315935 | W9: 201.2476206 | X9: 201.2476206
A10: Diesel capital cost | B10: 4156.62 | C10: 4156.62 | D10: 4156.62 | E10: 4156.62 | F10: 4156.62 | H10: 4849.39 | I10: 4849.39 | J10: 4849.39 | K10: 4849.39 | L10: 4849.39 | N10: 5542.16 | O10: 5542.16 | P10: 5542.16 | Q10: 5542.16 | R10: 5542.16 | T10: 8313.24 | U10: 8313.24 | V10: 8313.24 | W10: 8313.24 | X10: 8313.24
A11: Diesel O&M (kW) | B11: 1277.034558 | C11: 1277.034558 | D11: 1277.034558 | E11: 1277.034558 | F11: 1277.034558 | H11: 1489.873651 | I11: 1489.873651 | J11: 1489.873651 | K11: 1489.873651 | L11: 1489.873651 | N11: 1702.712744 | O11: 1702.712744 | P11: 1702.712744 | Q11: 1702.712744 | R11: 1702.712744 | T11: 2554.069116 | U11: 2554.069116 | V11: 2554.069116 | W11: 2554.069116 | X11: 2554.069116
A12: Diesel O&M (kWh) | B12: 1882.04587 | C12: 1688.965927 | D12: 1505.965714 | E12: 1308.635419 | F12: 1113.124153 | H12: 2596.400312 | I12: 2399.21729 | J12: 2206.208942 | K12: 2013.20045 | L12: 1820.192018 | N12: 2742.646774 | O12: 2539.128417 | P12: 2345.796011 | Q12: 2153.111539 | R12: 1960.103143 | T12: 3081.942496 | U12: 2888.842811 | V12: 2693.918514 | W12: 2502.70283 | X12: 2309.629341
A13: Fuel cost | B13: 54625.83017 | C13: 49021.74137 | D13: 43710.2138 | E13: 37982.75979 | F13: 32308.10253 | H13: 75359.75865 | I13: 69636.57918 | J13: 64034.56841 | K13: 58432.55345 | L13: 52830.54024 | N13: 79604.51936 | O13: 73697.45866 | P13: 68086.0422 | Q13: 62493.43182 | R13: 56891.41966 | T13: 89452.47833 | U13: 83847.81651 | V13: 78190.1959 | W13: 72640.21665 | X13: 67036.31518
A14: REopt LCC | B14: 87792.1 | C14: 81999.2 | D14: 76213.3 | E14: 70418.8 | F14: 64625.7 | H14: 100595 | I14: 94797.8 | J14: 89002.6 | K14: 83207.3 | L14: 77412.1 | N14: 104014 | O14: 98214 | P14: 92418.8 | Q14: 86623.6 | R14: 80828.4 | T14: 115070 | U14: 109273 | V14: 103477 | W14: 97677.9 | X14: 91880.8
A16: TMY_highPVBatt_HighDiesel_44_PB_business | B16: 100 | C16: 95 | D16: 90 | E16: 85 | F16: 80 | G16: TMY_highPVBatt_HighDiesel_44_PB_nrel | H16: 100 | I16: 95 | J16: 90 | K16: 85 | L16: 80 | M16: TMY_highPVBatt_HighDiesel_44_PB_average | N16: 100 | O16: 95 | P16: 90 | Q16: 85 | R16: 80 | S16: TMY_highPVBatt_HighDiesel_44_PB_residential | T16: 100 | U16: 95 | V16: 90 | W16: 85 | X16: 80
A17: PV kW | B17: 25.944 | C17: 19.53 | D17: 18.211 | E17: 17.095 | F17: 15.95 | H17: 25.682 | I17: 20.273 | J17: 19.126 | K17: 17.96 | L17: 16.819 | N17: 25.873 | O17: 20.53 | P17: 19.232 | Q17: 18.095 | R17: 16.95 | T17: 29.403 | U17: 21.415 | V17: 19.913 | W17: 18.571 | X17: 17.404
A18: Battery kW | B18: 5.498 | C18: 4.322 | D18: 3.315 | E18: 2.729 | F18: 2.291 | H18: 6.914 | I18: 5.167 | J18: 4.627 | K18: 4.233 | L18: 3.823 | N18: 6.938 | O18: 5.857 | P18: 4.99 | Q18: 4.448 | R18: 4.055 | T18: 10.62 | U18: 9.021 | V18: 7.452 | W18: 6.478 | X18: 5.57
A19: Battery kWh | B19: 34.72 | C19: 30.018 | D19: 26.674 | E19: 23.07 | F19: 19.495 | H19: 54.401 | I19: 45.458 | J19: 41.653 | K19: 37.773 | L19: 33.887 | N19: 56.484 | O19: 47.197 | P19: 43.75 | Q19: 39.968 | R19: 36.092 | T19: 56.544 | U19: 54.081 | V19: 50.626 | W19: 47.066 | X19: 43.28
A20: Generator kW | B20: 0 | C20: 0 | D20: 0 | E20: 0 | F20: 0 | H20: 0 | I20: 0 | J20: 0 | K20: 0 | L20: 0 | N20: 0 | O20: 0 | P20: 0 | Q20: 0 | R20: 0 | T20: 0 | U20: 0 | V20: 0 | W20: 0 | X20: 0
A21: PV capital cost | B21: 57076.14 | C21: 42966.22 | D21: 40063.98 | E21: 37609 | F21: 35088.9 | H21: 56500.4 | I21: 44599.94 | J21: 42078.08 | K21: 39512.88 | L21: 37002.02 | N21: 56921.04 | O21: 45166.88 | P21: 42310.84 | Q21: 39809.22 | R21: 37290 | T21: 64687.48 | U21: 47113.88 | V21: 43808.16 | W21: 40856.86 | X21: 38288.8
A22: PV O&M | B22: 9718.427096 | C22: 7315.913036 | D22: 6821.744932 | E22: 6403.732359 | F22: 5974.63172 | H22: 9620.395112 | I22: 7594.088622 | J22: 7164.688306 | K22: 6727.908433 | L22: 6300.381101 | N22: 9692.018021 | O22: 7690.622218 | P22: 7204.320648 | Q22: 6778.366622 | R22: 6349.415822 | T22: 11014.41966 | U22: 8022.14039 | V22: 7459.271232 | W22: 6956.74962 | X22: 6519.482771
A23: Battery capital cost | B23: 38225.52091 | C23: 32439.86338 | D23: 28084.85013 | E23: 24096.01932 | F23: 20340.29963 | H23: 57495.11778 | I23: 47181.32004 | J23: 43081.20842 | K23: 39120.98038 | L23: 35132.48614 | N23: 59357.62135 | O23: 49680.95689 | P23: 45433.03306 | Q23: 41350.8113 | R23: 37393.80846 | T23: 64602.23338 | U23: 60185.83794 | V23: 54940.69581 | W23: 50442.99739 | X23: 45839.42143
A24: Battery O&M | B24: 8867.753511 | C24: 7666.855754 | D24: 6812.826123 | E24: 5892.365154 | F24: 4979.259904 | H24: 13894.49356 | I24: 11610.18522 | J24: 10638.46409 | K24: 9647.587435 | L24: 8655.076176 | N24: 14426.5317 | O24: 12054.41447 | P24: 11173.97576 | Q24: 10208.15452 | R24: 9218.044091 | T24: 14441.77949 | U24: 13812.73781 | V24: 12930.25585 | W24: 12020.9817 | X24: 11053.93451
A25: Diesel capital cost | B25: 0 | C25: 0 | D25: 0 | E25: 0 | F25: 0 | H25: 0 | I25: 0 | J25: 0 | K25: 0 | L25: 0 | N25: 0 | O25: 0 | P25: 0 | Q25: 0 | R25: 0 | T25: 0 | U25: 0 | V25: 0 | W25: 0 | X25: 0
A26: Diesel O&M (kW) | B26: 0 | C26: 0 | D26: 0 | E26: 0 | F26: 0 | H26: 0 | I26: 0 | J26: 0 | K26: 0 | L26: 0 | N26: 0 | O26: 0 | P26: 0 | Q26: 0 | R26: 0 | T26: 0 | U26: 0 | V26: 0 | W26: 0 | X26: 0
A27: Diesel O&M (kWh) | B27: 0 | C27: 0 | D27: 0 | E27: 0 | F27: 0 | H27: 0 | I27: 0 | J27: 0 | K27: 0 | L27: 0 | N27: 0 | O27: 0 | P27: 0 | Q27: 0 | R27: 0 | T27: 0 | U27: 0 | V27: 0 | W27: 0 | X27: 0
A28: Fuel cost | B28: 0 | C28: 0 | D28: 0 | E28: 0 | F28: 0 | H28: 0 | I28: 0 | J28: 0 | K28: 0 | L28: 0 | N28: 0 | O28: 0 | P28: 0 | Q28: 0 | R28: 0 | T28: 0 | U28: 0 | V28: 0 | W28: 0 | X28: 0
A29: REopt LCC | B29: 113888 | C29: 90389 | D29: 81783.5 | E29: 74001.3 | F29: 66383.2 | H29: 137511 | I29: 110986 | J29: 102962 | K29: 95009.5 | L29: 87090.1 | N29: 140397 | O29: 114593 | P29: 106122 | Q29: 98146.6 | R29: 90251.4 | T29: 154746 | U29: 129135 | V29: 119138 | W29: 110278 | X29: 101702
A31: TMY_highPVBatt_HighDiesel_44_D_business | B31: 100 | C31: 95 | D31: 90 | E31: 85 | F31: 80 | G31: TMY_highPVBatt_HighDiesel_44_D_nrel | H31: 100 | I31: 95 | J31: 90 | K31: 85 | L31: 80 | M31: TMY_highPVBatt_HighDiesel_44_D_average | N31: 100 | O31: 95 | P31: 90 | Q31: 85 | R31: 80 | S31: TMY_highPVBatt_HighDiesel_44_D_residential | T31: 100 | U31: 95 | V31: 90 | W31: 85 | X31: 80
A32: PV kW | B32: 0 | C32: 0 | D32: 0 | E32: 0 | F32: 0 | H32: 0 | I32: 0 | J32: 0 | K32: 0 | L32: 0 | N32: 0 | O32: 0 | P32: 0 | Q32: 0 | R32: 0 | T32: 0 | U32: 0 | V32: 0 | W32: 0 | X32: 0
A33: Battery kW | B33: 0 | C33: 0 | D33: 0 | E33: 0 | F33: 0 | H33: 0 | I33: 0 | J33: 0 | K33: 0 | L33: 0 | N33: 0 | O33: 0 | P33: 0 | Q33: 0 | R33: 0 | T33: 0 | U33: 0 | V33: 0 | W33: 0 | X33: 0
A34: Battery kWh | B34: 0 | C34: 0 | D34: 0 | E34: 0 | F34: 0 | H34: 0 | I34: 0 | J34: 0 | K34: 0 | L34: 0 | N34: 0 | O34: 0 | P34: 0 | Q34: 0 | R34: 0 | T34: 0 | U34: 0 | V34: 0 | W34: 0 | X34: 0
A35: Generator kW | B35: 6 | C35: 6 | D35: 6 | E35: 6 | F35: 6 | H35: 7 | I35: 7 | J35: 7 | K35: 7 | L35: 7 | N35: 8 | O35: 8 | P35: 8 | Q35: 8 | R35: 8 | T35: 12 | U35: 12 | V35: 12 | W35: 12 | X35: 12
A36: PV capital cost | B36: 0 | C36: 0 | D36: 0 | E36: 0 | F36: 0 | H36: 0 | I36: 0 | J36: 0 | K36: 0 | L36: 0 | N36: 0 | O36: 0 | P36: 0 | Q36: 0 | R36: 0 | T36: 0 | U36: 0 | V36: 0 | W36: 0 | X36: 0
A37: PV O&M | B37: 0 | C37: 0 | D37: 0 | E37: 0 | F37: 0 | H37: 0 | I37: 0 | J37: 0 | K37: 0 | L37: 0 | N37: 0 | O37: 0 | P37: 0 | Q37: 0 | R37: 0 | T37: 0 | U37: 0 | V37: 0 | W37: 0 | X37: 0
A38: Battery capital cost | B38: 0 | C38: 0 | D38: 0 | E38: 0 | F38: 0 | H38: 0 | I38: 0 | J38: 0 | K38: 0 | L38: 0 | N38: 0 | O38: 0 | P38: 0 | Q38: 0 | R38: 0 | T38: 0 | U38: 0 | V38: 0 | W38: 0 | X38: 0
A39: Battery O&M | B39: 0 | C39: 0 | D39: 0 | E39: 0 | F39: 0 | H39: 0 | I39: 0 | J39: 0 | K39: 0 | L39: 0 | N39: 0 | O39: 0 | P39: 0 | Q39: 0 | R39: 0 | T39: 0 | U39: 0 | V39: 0 | W39: 0 | X39: 0
A40: Diesel capital cost | B40: 4156.62 | C40: 4156.62 | D40: 4156.62 | E40: 4156.62 | F40: 4156.62 | H40: 4849.39 | I40: 4849.39 | J40: 4849.39 | K40: 4849.39 | L40: 4849.39 | N40: 5542.16 | O40: 5542.16 | P40: 5542.16 | Q40: 5542.16 | R40: 5542.16 | T40: 8313.24 | U40: 8313.24 | V40: 8313.24 | W40: 8313.24 | X40: 8313.24
A41: Diesel O&M (kW) | B41: 1277.034558 | C41: 1277.034558 | D41: 1277.034558 | E41: 1277.034558 | F41: 1277.034558 | H41: 1489.873651 | I41: 1489.873651 | J41: 1489.873651 | K41: 1489.873651 | L41: 1489.873651 | N41: 1702.712744 | O41: 1702.712744 | P41: 1702.712744 | Q41: 1702.712744 | R41: 1702.712744 | T41: 2554.069116 | U41: 2554.069116 | V41: 2554.069116 | W41: 2554.069116 | X41: 2554.069116
A42: Diesel O&M (kWh) | B42: 3858.739128 | C42: 3665.802171 | D42: 3472.865215 | E42: 3279.928258 | F42: 3086.991302 | H42: 3860.168555 | I42: 3667.160127 | J42: 3474.151699 | K42: 3281.143272 | L42: 3088.134844 | N42: 3860.168555 | O42: 3667.160127 | P42: 3474.151699 | Q42: 3281.143272 | R42: 3088.134844 | T42: 3861.597982 | U42: 3668.518083 | V42: 3475.438184 | W42: 3282.358285 | X42: 3089.278386
A43: Fuel cost | B43: 111998.7731 | C43: 106398.8344 | D43: 100798.8958 | E43: 95198.9571 | F43: 89599.01845 | H43: 112040.2618 | I43: 106438.2487 | J43: 100836.2356 | K43: 95234.2225 | L43: 89632.20941 | N43: 112040.2618 | O43: 106438.2487 | P43: 100836.2356 | Q43: 95234.2225 | R43: 89632.20941 | T43: 112081.7505 | U43: 106477.663 | V43: 100873.5754 | W43: 95269.48791 | X43: 89665.40038
A44: REopt LCC | B44: 121295 | C44: 115502 | D44: 109709 | E44: 103915 | F44: 98122.4 | H44: 122243 | I44: 116448 | J44: 110653 | K44: 104858 | L44: 99062.3 | N44: 123149 | O44: 117353 | P44: 111558 | Q44: 105763 | R44: 99967.9 | T44: 126814 | U44: 121017 | V44: 115219 | W44: 109422 | X44: 103624
A46: TMY_highPVBatt_HighDiesel_36_PBD_business | B46: 100 | C46: 95 | D46: 90 | E46: 85 | F46: 80 | G46: TMY_highPVBatt_HighDiesel_36_PBD_nrel | H46: 100 | I46: 95 | J46: 90 | K46: 85 | L46: 80 | M46: TMY_highPVBatt_HighDiesel_36_PBD_average | N46: 100 | O46: 95 | P46: 90 | Q46: 85 | R46: 80 | S46: TMY_highPVBatt_HighDiesel_36_PBD_residential | T46: 100 | U46: 95 | V46: 90 | W46: 85 | X46: 80
A47: PV kW | B47: 9.07 | C47: 9.07 | D47: 9.07 | E47: 9.07 | F47: 9.07 | H47: 5.953 | I47: 5.953 | J47: 5.953 | K47: 5.953 | L47: 5.953 | N47: 5.226 | O47: 5.226 | P47: 5.226 | Q47: 5.226 | R47: 5.226 | T47: 3.49 | U47: 3.49 | V47: 3.49 | W47: 3.49 | X47: 3.49
A48: Battery kW | B48: 0 | C48: 0 | D48: 0 | E48: 0 | F48: 0 | H48: 0 | I48: 0 | J48: 0 | K48: 0 | L48: 0 | N48: 0 | O48: 0 | P48: 0 | Q48: 0 | R48: 0 | T48: 0 | U48: 0 | V48: 0 | W48: 0 | X48: 0
A49: Battery kWh | B49: 0 | C49: 0 | D49: 0 | E49: 0 | F49: 0 | H49: 0 | I49: 0 | J49: 0 | K49: 0 | L49: 0 | N49: 0 | O49: 0 | P49: 0 | Q49: 0 | R49: 0 | T49: 0 | U49: 0 | V49: 0 | W49: 0 | X49: 0
A50: Generator kW | B50: 6 | C50: 6 | D50: 6 | E50: 6 | F50: 6 | H50: 7 | I50: 7 | J50: 7 | K50: 7 | L50: 7 | N50: 8 | O50: 8 | P50: 8 | Q50: 8 | R50: 8 | T50: 12 | U50: 12 | V50: 12 | W50: 12 | X50: 12
A51: PV capital cost | B51: 19954.308 | C51: 19954.308 | D51: 19954.308 | E51: 19954.308 | F51: 19954.308 | H51: 13097.502 | I51: 13097.502 | J51: 13097.502 | K51: 13097.502 | L51: 13097.502 | N51: 11496.804 | O51: 11496.804 | P51: 11496.804 | Q51: 11496.804 | R51: 11496.804 | T51: 7677.494 | U51: 7677.494 | V51: 7677.494 | W51: 7677.494 | X51: 7677.494
A52: PV O&M | B52: 3397.645453 | C52: 3397.645453 | D52: 3397.645453 | E52: 3397.645453 | F52: 3397.645453 | H52: 2230.128357 | I52: 2230.128357 | J52: 2230.128357 | K52: 2230.128357 | L52: 2230.128357 | N52: 1957.575469 | O52: 1957.575469 | P52: 1957.575469 | Q52: 1957.575469 | R52: 1957.575469 | T52: 1307.256688 | U52: 1307.256688 | V52: 1307.256688 | W52: 1307.256688 | X52: 1307.256688
A53: Battery capital cost | B53: 0 | C53: 0 | D53: 0 | E53: 0 | F53: 0 | H53: 0 | I53: 0 | J53: 0 | K53: 0 | L53: 0 | N53: 3.592157143e-10 | O53: 0 | P53: 0 | Q53: 0 | R53: 0 | T53: 0 | U53: 0 | V53: 0 | W53: 0 | X53: 0
A54: Battery O&M | B54: 0 | C54: 0 | D54: 0 | E54: 0 | F54: 0 | H54: 0 | I54: 0 | J54: 0 | K54: 0 | L54: 0 | N54: 1.045385597e-10 | O54: 0 | P54: 0 | Q54: 0 | R54: 0 | T54: 0 | U54: 0 | V54: 0 | W54: 0 | X54: 0
A55: Diesel capital cost | B55: 4156.62 | C55: 4156.62 | D55: 4156.62 | E55: 4156.62 | F55: 4156.62 | H55: 4849.39 | I55: 4849.39 | J55: 4849.39 | K55: 4849.39 | L55: 4849.39 | N55: 5542.16 | O55: 5542.16 | P55: 5542.16 | Q55: 5542.16 | R55: 5542.16 | T55: 8313.24 | U55: 8313.24 | V55: 8313.24 | W55: 8313.24 | X55: 8313.24
A56: Diesel O&M (kW) | B56: 1277.034558 | C56: 1277.034558 | D56: 1277.034558 | E56: 1277.034558 | F56: 1277.034558 | H56: 1489.873651 | I56: 1489.873651 | J56: 1489.873651 | K56: 1489.873651 | L56: 1489.873651 | N56: 1702.712744 | O56: 1702.712744 | P56: 1702.712744 | Q56: 1702.712744 | R56: 1702.712744 | T56: 2554.069116 | U56: 2554.069116 | V56: 2554.069116 | W56: 2554.069116 | X56: 2554.069116
A57: Diesel O&M (kWh) | B57: 1971.873388 | C57: 1778.936432 | D57: 1585.999475 | E57: 1393.062518 | F57: 1200.125561 | H57: 2632.099652 | I57: 2439.091224 | J57: 2246.082796 | K57: 2053.074369 | L57: 1860.065941 | N57: 2777.948862 | O57: 2584.940435 | P57: 2391.932007 | Q57: 2198.923579 | R57: 2005.915151 | T57: 3177.708137 | U57: 2984.628238 | V57: 2791.548339 | W57: 2598.46844 | X57: 2405.388541
A58: Fuel cost | B58: 46827.03892 | C58: 42245.27095 | D58: 37663.50295 | E58: 33081.73495 | F58: 28499.96693 | H58: 62505.75398 | I58: 57922.28872 | J58: 53338.82347 | K58: 48755.35822 | L58: 44171.89296 | N58: 65969.3063 | O58: 61385.84104 | P58: 56802.37579 | Q58: 52218.91054 | R58: 47635.44528 | T58: 75462.58474 | U58: 70877.42222 | V58: 66292.2597 | W58: 61707.09718 | X58: 57121.93466
A59: REopt LCC | B59: 77586.2 | C59: 72811.3 | D59: 68036.4 | E59: 63261.5 | F59: 58486.7 | H59: 86807 | I59: 82030.4 | J59: 77253.7 | K59: 72477 | L59: 67700.4 | N59: 89448.9 | O59: 84672.2 | P59: 79895.6 | Q59: 75118.9 | R59: 70342.3 | T59: 98494.9 | U59: 93716.5 | V59: 88938.1 | W59: 84159.7 | X59: 79381.2
A61: TMY_highPVBatt_HighDiesel_36_PB_business | B61: 100 | C61: 95 | D61: 90 | E61: 85 | F61: 80 | G61: TMY_highPVBatt_HighDiesel_36_PB_nrel | H61: 100 | I61: 95 | J61: 90 | K61: 85 | L61: 80 | M61: TMY_highPVBatt_HighDiesel_36_PB_average | N61: 100 | O61: 95 | P61: 90 | Q61: 85 | R61: 80 | S61: TMY_highPVBatt_HighDiesel_36_PB_residential | T61: 100 | U61: 95 | V61: 90 | W61: 85 | X61: 80
A62: PV kW | B62: 25.944 | C62: 19.53 | D62: 18.211 | E62: 17.095 | F62: 15.95 | H62: 25.682 | I62: 20.273 | J62: 19.126 | K62: 17.96 | L62: 16.819 | N62: 25.873 | O62: 20.53 | P62: 19.232 | Q62: 18.095 | R62: 16.95 | T62: 29.403 | U62: 21.415 | V62: 19.913 | W62: 18.571 | X62: 17.404
A63: Battery kW | B63: 5.498 | C63: 4.322 | D63: 3.315 | E63: 2.729 | F63: 2.291 | H63: 6.914 | I63: 5.167 | J63: 4.627 | K63: 4.233 | L63: 3.823 | N63: 6.938 | O63: 5.857 | P63: 4.99 | Q63: 4.448 | R63: 4.055 | T63: 10.62 | U63: 9.021 | V63: 7.452 | W63: 6.478 | X63: 5.57
A64: Battery kWh | B64: 34.72 | C64: 30.018 | D64: 26.674 | E64: 23.07 | F64: 19.495 | H64: 54.401 | I64: 45.458 | J64: 41.653 | K64: 37.773 | L64: 33.887 | N64: 56.484 | O64: 47.197 | P64: 43.75 | Q64: 39.968 | R64: 36.092 | T64: 56.544 | U64: 54.081 | V64: 50.626 | W64: 47.066 | X64: 43.28
A65: Generator kW | B65: 0 | C65: 0 | D65: 0 | E65: 0 | F65: 0 | H65: 0 | I65: 0 | J65: 0 | K65: 0 | L65: 0 | N65: 0 | O65: 0 | P65: 0 | Q65: 0 | R65: 0 | T65: 0 | U65: 0 | V65: 0 | W65: 0 | X65: 0
A66: PV capital cost | B66: 57076.14 | C66: 42966.22 | D66: 40063.98 | E66: 37609 | F66: 35088.9 | H66: 56500.4 | I66: 44599.94 | J66: 42078.08 | K66: 39512.88 | L66: 37002.02 | N66: 56921.04 | O66: 45166.88 | P66: 42310.84 | Q66: 39809.22 | R66: 37290 | T66: 64687.48 | U66: 47113.88 | V66: 43808.16 | W66: 40856.86 | X66: 38288.8
A67: PV O&M | B67: 9718.427096 | C67: 7315.913036 | D67: 6821.744932 | E67: 6403.732359 | F67: 5974.63172 | H67: 9620.395112 | I67: 7594.088622 | J67: 7164.688306 | K67: 6727.908433 | L67: 6300.381101 | N67: 9692.018021 | O67: 7690.622218 | P67: 7204.320648 | Q67: 6778.366622 | R67: 6349.415822 | T67: 11014.41966 | U67: 8022.14039 | V67: 7459.271232 | W67: 6956.74962 | X67: 6519.482771
A68: Battery capital cost | B68: 38225.52091 | C68: 32439.86338 | D68: 28084.85013 | E68: 24096.01932 | F68: 20340.29963 | H68: 57495.11778 | I68: 47181.32004 | J68: 43081.20842 | K68: 39120.98038 | L68: 35132.48614 | N68: 59357.62135 | O68: 49680.95689 | P68: 45433.03306 | Q68: 41350.8113 | R68: 37393.80846 | T68: 64602.23338 | U68: 60185.83794 | V68: 54940.69581 | W68: 50442.99739 | X68: 45839.42143
A69: Battery O&M | B69: 8867.753511 | C69: 7666.855754 | D69: 6812.826123 | E69: 5892.365154 | F69: 4979.259904 | H69: 13894.49356 | I69: 11610.18522 | J69: 10638.46409 | K69: 9647.587435 | L69: 8655.076176 | N69: 14426.5317 | O69: 12054.41447 | P69: 11173.97576 | Q69: 10208.15452 | R69: 9218.044091 | T69: 14441.77949 | U69: 13812.73781 | V69: 12930.25585 | W69: 12020.9817 | X69: 11053.93451
A70: Diesel capital cost | B70: 0 | C70: 0 | D70: 0 | E70: 0 | F70: 0 | H70: 0 | I70: 0 | J70: 0 | K70: 0 | L70: 0 | N70: 0 | O70: 0 | P70: 0 | Q70: 0 | R70: 0 | T70: 0 | U70: 0 | V70: 0 | W70: 0 | X70: 0
A71: Diesel O&M (kW) | B71: 0 | C71: 0 | D71: 0 | E71: 0 | F71: 0 | H71: 0 | I71: 0 | J71: 0 | K71: 0 | L71: 0 | N71: 0 | O71: 0 | P71: 0 | Q71: 0 | R71: 0 | T71: 0 | U71: 0 | V71: 0 | W71: 0 | X71: 0
A72: Diesel O&M (kWh) | B72: 0 | C72: 0 | D72: 0 | E72: 0 | F72: 0 | H72: 0 | I72: 0 | J72: 0 | K72: 0 | L72: 0 | N72: 0 | O72: 0 | P72: 0 | Q72: 0 | R72: 0 | T72: 0 | U72: 0 | V72: 0 | W72: 0 | X72: 0
A73: Fuel cost | B73: 0 | C73: 0 | D73: 0 | E73: 0 | F73: 0 | H73: 0 | I73: 0 | J73: 0 | K73: 0 | L73: 0 | N73: 0 | O73: 0 | P73: 0 | Q73: 0 | R73: 0 | T73: 0 | U73: 0 | V73: 0 | W73: 0 | X73: 0
A74: REopt LCC | B74: 113888 | C74: 90389 | D74: 81783.5 | E74: 74001.3 | F74: 66383.2 | H74: 137511 | I74: 110986 | J74: 102962 | K74: 95009.5 | L74: 87090.1 | N74: 140397 | O74: 114593 | P74: 106122 | Q74: 98146.6 | R74: 90251.4 | T74: 154746 | U74: 129135 | V74: 119138 | W74: 110278 | X74: 101702
A76: TMY_highPVBatt_HighDiesel_36_D_business | B76: 100 | C76: 95 | D76: 90 | E76: 85 | F76: 80 | G76: TMY_highPVBatt_HighDiesel_36_D_nrel | H76: 100 | I76: 95 | J76: 90 | K76: 85 | L76: 80 | M76: TMY_highPVBatt_HighDiesel_36_D_average | N76: 100 | O76: 95 | P76: 90 | Q76: 85 | R76: 80 | S76: TMY_highPVBatt_HighDiesel_36_D_residential | T76: 100 | U76: 95 | V76: 90 | W76: 85 | X76: 80
A77: PV kW | B77: 0 | C77: 0 | D77: 0 | E77: 0 | F77: 0 | H77: 0 | I77: 0 | J77: 0 | K77: 0 | L77: 0 | N77: 0 | O77: 0 | P77: 0 | Q77: 0 | R77: 0 | T77: 0 | U77: 0 | V77: 0 | W77: 0 | X77: 0
A78: Battery kW | B78: 0 | C78: 0 | D78: 0 | E78: 0 | F78: 0 | H78: 0 | I78: 0 | J78: 0 | K78: 0 | L78: 0 | N78: 0 | O78: 0 | P78: 0 | Q78: 0 | R78: 0 | T78: 0 | U78: 0 | V78: 0 | W78: 0 | X78: 0
A79: Battery kWh | B79: 0 | C79: 0 | D79: 0 | E79: 0 | F79: 0 | H79: 0 | I79: 0 | J79: 0 | K79: 0 | L79: 0 | N79: 0 | O79: 0 | P79: 0 | Q79: 0 | R79: 0 | T79: 0 | U79: 0 | V79: 0 | W79: 0 | X79: 0
A80: Generator kW | B80: 6 | C80: 6 | D80: 6 | E80: 6 | F80: 6 | H80: 7 | I80: 7 | J80: 7 | K80: 7 | L80: 7 | N80: 8 | O80: 8 | P80: 8 | Q80: 8 | R80: 8 | T80: 12 | U80: 12 | V80: 12 | W80: 12 | X80: 12
A81: PV capital cost | B81: 0 | C81: 0 | D81: 0 | E81: 0 | F81: 0 | H81: 0 | I81: 0 | J81: 0 | K81: 0 | L81: 0 | N81: 0 | O81: 0 | P81: 0 | Q81: 0 | R81: 0 | T81: 0 | U81: 0 | V81: 0 | W81: 0 | X81: 0
A82: PV O&M | B82: 0 | C82: 0 | D82: 0 | E82: 0 | F82: 0 | H82: 0 | I82: 0 | J82: 0 | K82: 0 | L82: 0 | N82: 0 | O82: 0 | P82: 0 | Q82: 0 | R82: 0 | T82: 0 | U82: 0 | V82: 0 | W82: 0 | X82: 0
A83: Battery capital cost | B83: 0 | C83: 0 | D83: 0 | E83: 0 | F83: 0 | H83: 0 | I83: 0 | J83: 0 | K83: 0 | L83: 0 | N83: 0 | O83: 0 | P83: 0 | Q83: 0 | R83: 0 | T83: 0 | U83: 0 | V83: 0 | W83: 0 | X83: 0
A84: Battery O&M | B84: 0 | C84: 0 | D84: 0 | E84: 0 | F84: 0 | H84: 0 | I84: 0 | J84: 0 | K84: 0 | L84: 0 | N84: 0 | O84: 0 | P84: 0 | Q84: 0 | R84: 0 | T84: 0 | U84: 0 | V84: 0 | W84: 0 | X84: 0
A85: Diesel capital cost | B85: 4156.62 | C85: 4156.62 | D85: 4156.62 | E85: 4156.62 | F85: 4156.62 | H85: 4849.39 | I85: 4849.39 | J85: 4849.39 | K85: 4849.39 | L85: 4849.39 | N85: 5542.16 | O85: 5542.16 | P85: 5542.16 | Q85: 5542.16 | R85: 5542.16 | T85: 8313.24 | U85: 8313.24 | V85: 8313.24 | W85: 8313.24 | X85: 8313.24
A86: Diesel O&M (kW) | B86: 1277.034558 | C86: 1277.034558 | D86: 1277.034558 | E86: 1277.034558 | F86: 1277.034558 | H86: 1489.873651 | I86: 1489.873651 | J86: 1489.873651 | K86: 1489.873651 | L86: 1489.873651 | N86: 1702.712744 | O86: 1702.712744 | P86: 1702.712744 | Q86: 1702.712744 | R86: 1702.712744 | T86: 2554.069116 | U86: 2554.069116 | V86: 2554.069116 | W86: 2554.069116 | X86: 2554.069116
A87: Diesel O&M (kWh) | B87: 3858.739128 | C87: 3665.802171 | D87: 3472.865215 | E87: 3279.928258 | F87: 3086.991302 | H87: 3860.168555 | I87: 3667.160127 | J87: 3474.151699 | K87: 3281.143272 | L87: 3088.134844 | N87: 3860.168555 | O87: 3667.160127 | P87: 3474.151699 | Q87: 3281.143272 | R87: 3088.134844 | T87: 3861.597982 | U87: 3668.518083 | V87: 3475.438184 | W87: 3282.358285 | X87: 3089.278386
A88: Fuel cost | B88: 91635.35977 | C88: 87053.59179 | D88: 82471.8238 | E88: 77890.05581 | F88: 73308.28782 | H88: 91669.30508 | I88: 87085.83983 | J88: 82502.37457 | K88: 77918.90932 | L88: 73335.44407 | N88: 91669.30508 | O88: 87085.83983 | P88: 82502.37457 | Q88: 77918.90932 | R88: 73335.44407 | T88: 91703.25039 | U88: 87118.08787 | V88: 82532.92535 | W88: 77947.76283 | X88: 73362.60031
A89: REopt LCC | B89: 100931 | C89: 96156.3 | D89: 91381.4 | E89: 86606.6 | F89: 81831.7 | H89: 101872 | I89: 97095.5 | J89: 92318.9 | K89: 87542.2 | L89: 82765.5 | N89: 102778 | O89: 98001.1 | P89: 93224.4 | Q89: 88447.8 | R89: 83671.1 | T89: 106435 | U89: 101657 | V89: 96878.5 | W89: 92100.1 | X89: 87321.7
A91: TMY_highPVBatt_HighDiesel_32_PBD_business | B91: 100 | C91: 95 | D91: 90 | E91: 85 | F91: 80 | G91: TMY_highPVBatt_HighDiesel_32_PBD_nrel | H91: 100 | I91: 95 | J91: 90 | K91: 85 | L91: 80 | M91: TMY_highPVBatt_HighDiesel_32_PBD_average | N91: 100 | O91: 95 | P91: 90 | Q91: 85 | R91: 80 | S91: TMY_highPVBatt_HighDiesel_32_PBD_residential | T91: 100 | U91: 95 | V91: 90 | W91: 85 | X91: 80
A92: PV kW | B92: 8.769 | C92: 8.769 | D92: 8.769 | E92: 8.769 | F92: 8.769 | H92: 5.748 | I92: 5.748 | J92: 5.748 | K92: 5.748 | L92: 5.748 | N92: 5.039 | O92: 5.039 | P92: 5.039 | Q92: 5.039 | R92: 5.039 | T92: 3.255 | U92: 3.255 | V92: 3.255 | W92: 3.255 | X92: 3.255
A93: Battery kW | B93: 0 | C93: 0 | D93: 0 | E93: 0 | F93: 0 | H93: 0 | I93: 0 | J93: 0 | K93: 0 | L93: 0 | N93: 0 | O93: 0 | P93: 0 | Q93: 0 | R93: 0 | T93: 0 | U93: 0 | V93: 0 | W93: 0 | X93: 0
A94: Battery kWh | B94: 0 | C94: 0 | D94: 0 | E94: 0 | F94: 0 | H94: 0 | I94: 0 | J94: 0 | K94: 0 | L94: 0 | N94: 0 | O94: 0 | P94: 0 | Q94: 0 | R94: 0 | T94: 0 | U94: 0 | V94: 0 | W94: 0 | X94: 0
A95: Generator kW | B95: 6 | C95: 6 | D95: 6 | E95: 6 | F95: 6 | H95: 7 | I95: 7 | J95: 7 | K95: 7 | L95: 7 | N95: 8 | O95: 8 | P95: 8 | Q95: 8 | R95: 8 | T95: 12 | U95: 12 | V95: 12 | W95: 12 | X95: 12
A96: PV capital cost | B96: 19292.306 | C96: 19292.306 | D96: 19292.306 | E96: 19292.306 | F96: 19292.306 | H96: 12645.028 | I96: 12645.028 | J96: 12645.028 | K96: 12645.028 | L96: 12645.028 | N96: 11086.218 | O96: 11086.218 | P96: 11086.218 | Q96: 11086.218 | R96: 11086.218 | T96: 7161.154 | U96: 7161.154 | V96: 7161.154 | W96: 7161.154 | X96: 7161.154
A97: PV O&M | B97: 3284.925529 | C97: 3284.925529 | D97: 3284.925529 | E97: 3284.925529 | F97: 3284.925529 | H97: 2153.085032 | I97: 2153.085032 | J97: 2153.085032 | K97: 2153.085032 | L97: 2153.085032 | N97: 1887.664467 | O97: 1887.664467 | P97: 1887.664467 | Q97: 1887.664467 | R97: 1887.664467 | T97: 1219.338818 | U97: 1219.338818 | V97: 1219.338818 | W97: 1219.338818 | X97: 1219.338818
A98: Battery capital cost | B98: 0 | C98: 0 | D98: 0 | E98: 0 | F98: 0 | H98: 0 | I98: 0 | J98: 0 | K98: 0 | L98: 0 | N98: 0 | O98: 0 | P98: 0 | Q98: 0 | R98: 0 | T98: -1.037060266e-09 | U98: 0 | V98: 0 | W98: 0 | X98: 0
A99: Battery O&M | B99: 0 | C99: 0 | D99: 0 | E99: 0 | F99: 0 | H99: 0 | I99: 0 | J99: 0 | K99: 0 | L99: 0 | N99: 0 | O99: 0 | P99: 0 | Q99: 0 | R99: 0 | T99: -3.018041312e-10 | U99: 0 | V99: 0 | W99: 0 | X99: 0
A100: Diesel capital cost | B100: 4156.62 | C100: 4156.62 | D100: 4156.62 | E100: 4156.62 | F100: 4156.62 | H100: 4849.39 | I100: 4849.39 | J100: 4849.39 | K100: 4849.39 | L100: 4849.39 | N100: 5542.16 | O100: 5542.16 | P100: 5542.16 | Q100: 5542.16 | R100: 5542.16 | T100: 8313.24 | U100: 8313.24 | V100: 8313.24 | W100: 8313.24 | X100: 8313.24
A101: Diesel O&M (kW) | B101: 1277.034558 | C101: 1277.034558 | D101: 1277.034558 | E101: 1277.034558 | F101: 1277.034558 | H101: 1489.873651 | I101: 1489.873651 | J101: 1489.873651 | K101: 1489.873651 | L101: 1489.873651 | N101: 1702.712744 | O101: 1702.712744 | P101: 1702.712744 | Q101: 1702.712744 | R101: 1702.712744 | T101: 2554.069116 | U101: 2554.069116 | V101: 2554.069116 | W101: 2554.069116 | X101: 2554.069116
A102: Diesel O&M (kWh) | B102: 2005.023197 | C102: 1812.086241 | D102: 1619.149285 | E102: 1426.212328 | F102: 1233.27538 | H102: 2654.655354 | I102: 2461.646927 | J102: 2268.638499 | K102: 2075.630071 | L102: 1882.621643 | N102: 2798.450977 | O102: 2605.442549 | P102: 2412.434121 | Q102: 2219.425694 | R102: 2026.417266 | T102: 3203.443797 | U102: 3010.363897 | V102: 2817.283998 | W102: 2624.204099 | X102: 2431.1242
A103: Fuel cost | B103: 42323.78988 | C103: 38251.10723 | D103: 34178.42457 | E103: 30105.7419 | F103: 26033.05942 | H103: 56036.79577 | I103: 51962.60443 | J103: 47888.4131 | K103: 43814.22176 | L103: 39740.03042 | N103: 59072.16001 | O103: 54997.96867 | P103: 50923.77734 | Q103: 46849.586 | R103: 42775.39466 | T103: 67621.104 | U103: 63545.40398 | V103: 59469.70396 | W103: 55394.00394 | X103: 51318.30393
A104: REopt LCC | B104: 72341.4 | C104: 68075.6 | D104: 63809.8 | E104: 59544 | F104: 55278.2 | H104: 79831.1 | I104: 75563.7 | J104: 71296.4 | K104: 67029 | L104: 62761.6 | N104: 82091.8 | O104: 77824.4 | P104: 73557 | Q104: 69289.6 | R104: 65022.2 | T104: 90075 | U104: 85806 | V104: 81537 | W104: 77268.1 | X104: 72999.1
A106: TMY_highPVBatt_HighDiesel_32_PB_business | B106: 100 | C106: 95 | D106: 90 | E106: 85 | F106: 80 | G106: TMY_highPVBatt_HighDiesel_32_PB_nrel | H106: 100 | I106: 95 | J106: 90 | K106: 85 | L106: 80 | M106: TMY_highPVBatt_HighDiesel_32_PB_average | N106: 100 | O106: 95 | P106: 90 | Q106: 85 | R106: 80 | S106: TMY_highPVBatt_HighDiesel_32_PB_residential | T106: 100 | U106: 95 | V106: 90 | W106: 85 | X106: 80
A107: PV kW | B107: 25.944 | C107: 19.53 | D107: 18.211 | E107: 17.095 | F107: 15.95 | H107: 25.682 | I107: 20.273 | J107: 19.126 | K107: 17.96 | L107: 16.819 | N107: 25.873 | O107: 20.53 | P107: 19.232 | Q107: 18.095 | R107: 16.95 | T107: 29.403 | U107: 21.415 | V107: 19.913 | W107: 18.571 | X107: 17.404
A108: Battery kW | B108: 5.498 | C108: 4.322 | D108: 3.315 | E108: 2.729 | F108: 2.291 | H108: 6.914 | I108: 5.167 | J108: 4.627 | K108: 4.233 | L108: 3.823 | N108: 6.938 | O108: 5.857 | P108: 4.99 | Q108: 4.448 | R108: 4.055 | T108: 10.62 | U108: 9.021 | V108: 7.452 | W108: 6.478 | X108: 5.57
A109: Battery kWh | B109: 34.72 | C109: 30.018 | D109: 26.674 | E109: 23.07 | F109: 19.495 | H109: 54.401 | I109: 45.458 | J109: 41.653 | K109: 37.773 | L109: 33.887 | N109: 56.484 | O109: 47.197 | P109: 43.75 | Q109: 39.968 | R109: 36.092 | T109: 56.544 | U109: 54.081 | V109: 50.626 | W109: 47.066 | X109: 43.28
A110: Generator kW | B110: 0 | C110: 0 | D110: 0 | E110: 0 | F110: 0 | H110: 0 | I110: 0 | J110: 0 | K110: 0 | L110: 0 | N110: 0 | O110: 0 | P110: 0 | Q110: 0 | R110: 0 | T110: 0 | U110: 0 | V110: 0 | W110: 0 | X110: 0
A111: PV capital cost | B111: 57076.14 | C111: 42966.22 | D111: 40063.98 | E111: 37609 | F111: 35088.9 | H111: 56500.4 | I111: 44599.94 | J111: 42078.08 | K111: 39512.88 | L111: 37002.02 | N111: 56921.04 | O111: 45166.88 | P111: 42310.84 | Q111: 39809.22 | R111: 37290 | T111: 64687.48 | U111: 47113.88 | V111: 43808.16 | W111: 40856.86 | X111: 38288.8
A112: PV O&M | B112: 9718.427096 | C112: 7315.913036 | D112: 6821.744932 | E112: 6403.732359 | F112: 5974.63172 | H112: 9620.395112 | I112: 7594.088622 | J112: 7164.688306 | K112: 6727.908433 | L112: 6300.381101 | N112: 9692.018021 | O112: 7690.622218 | P112: 7204.320648 | Q112: 6778.366622 | R112: 6349.415822 | T112: 11014.41966 | U112: 8022.14039 | V112: 7459.271232 | W112: 6956.74962 | X112: 6519.482771
A113: Battery capital cost | B113: 38225.52091 | C113: 32439.86338 | D113: 28084.85013 | E113: 24096.01932 | F113: 20340.29963 | H113: 57495.11778 | I113: 47181.32004 | J113: 43081.20842 | K113: 39120.98038 | L113: 35132.48614 | N113: 59357.62135 | O113: 49680.95689 | P113: 45433.03306 | Q113: 41350.8113 | R113: 37393.80846 | T113: 64602.23338 | U113: 60185.83794 | V113: 54940.69581 | W113: 50442.99739 | X113: 45839.42143
A114: Battery O&M | B114: 8867.753511 | C114: 7666.855754 | D114: 6812.826123 | E114: 5892.365154 | F114: 4979.259904 | H114: 13894.49356 | I114: 11610.18522 | J114: 10638.46409 | K114: 9647.587435 | L114: 8655.076176 | N114: 14426.5317 | O114: 12054.41447 | P114: 11173.97576 | Q114: 10208.15452 | R114: 9218.044091 | T114: 14441.77949 | U114: 13812.73781 | V114: 12930.25585 | W114: 12020.9817 | X114: 11053.93451
A115: Diesel capital cost | B115: 0 | C115: 0 | D115: 0 | E115: 0 | F115: 0 | H115: 0 | I115: 0 | J115: 0 | K115: 0 | L115: 0 | N115: 0 | O115: 0 | P115: 0 | Q115: 0 | R115: 0 | T115: 0 | U115: 0 | V115: 0 | W115: 0 | X115: 0
A116: Diesel O&M (kW) | B116: 0 | C116: 0 | D116: 0 | E116: 0 | F116: 0 | H116: 0 | I116: 0 | J116: 0 | K116: 0 | L116: 0 | N116: 0 | O116: 0 | P116: 0 | Q116: 0 | R116: 0 | T116: 0 | U116: 0 | V116: 0 | W116: 0 | X116: 0
A117: Diesel O&M (kWh) | B117: 0 | C117: 0 | D117: 0 | E117: 0 | F117: 0 | H117: 0 | I117: 0 | J117: 0 | K117: 0 | L117: 0 | N117: 0 | O117: 0 | P117: 0 | Q117: 0 | R117: 0 | T117: 0 | U117: 0 | V117: 0 | W117: 0 | X117: 0
A118: Fuel cost | B118: 0 | C118: 0 | D118: 0 | E118: 0 | F118: 0 | H118: 0 | I118: 0 | J118: 0 | K118: 0 | L118: 0 | N118: 0 | O118: 0 | P118: 0 | Q118: 0 | R118: 0 | T118: 0 | U118: 0 | V118: 0 | W118: 0 | X118: 0
A119: REopt LCC | B119: 113888 | C119: 90389 | D119: 81783.5 | E119: 74001.3 | F119: 66383.2 | H119: 137511 | I119: 110986 | J119: 102962 | K119: 95009.5 | L119: 87090.1 | N119: 140397 | O119: 114593 | P119: 106122 | Q119: 98146.6 | R119: 90251.4 | T119: 154746 | U119: 129135 | V119: 119138 | W119: 110278 | X119: 101702
A121: TMY_highPVBatt_HighDiesel_32_D_business | B121: 100 | C121: 95 | D121: 90 | E121: 85 | F121: 80 | G121: TMY_highPVBatt_HighDiesel_32_D_nrel | H121: 100 | I121: 95 | J121: 90 | K121: 85 | L121: 80 | M121: TMY_highPVBatt_HighDiesel_32_D_average | N121: 100 | O121: 95 | P121: 90 | Q121: 85 | R121: 80 | S121: TMY_highPVBatt_HighDiesel_32_D_residential | T121: 100 | U121: 95 | V121: 90 | W121: 85 | X121: 80
A122: PV kW | B122: 0 | C122: 0 | D122: 0 | E122: 0 | F122: 0 | H122: 0 | I122: 0 | J122: 0 | K122: 0 | L122: 0 | N122: 0 | O122: 0 | P122: 0 | Q122: 0 | R122: 0 | T122: 0 | U122: 0 | V122: 0 | W122: 0 | X122: 0
A123: Battery kW | B123: 0 | C123: 0 | D123: 0 | E123: 0 | F123: 0 | H123: 0 | I123: 0 | J123: 0 | K123: 0 | L123: 0 | N123: 0 | O123: 0 | P123: 0 | Q123: 0 | R123: 0 | T123: 0 | U123: 0 | V123: 0 | W123: 0 | X123: 0
A124: Battery kWh | B124: 0 | C124: 0 | D124: 0 | E124: 0 | F124: 0 | H124: 0 | I124: 0 | J124: 0 | K124: 0 | L124: 0 | N124: 0 | O124: 0 | P124: 0 | Q124: 0 | R124: 0 | T124: 0 | U124: 0 | V124: 0 | W124: 0 | X124: 0
A125: Generator kW | B125: 6 | C125: 6 | D125: 6 | E125: 6 | F125: 6 | H125: 7 | I125: 7 | J125: 7 | K125: 7 | L125: 7 | N125: 8 | O125: 8 | P125: 8 | Q125: 8 | R125: 8 | T125: 12 | U125: 12 | V125: 12 | W125: 12 | X125: 12
A126: PV capital cost | B126: 0 | C126: 0 | D126: 0 | E126: 0 | F126: 0 | H126: 0 | I126: 0 | J126: 0 | K126: 0 | L126: 0 | N126: 0 | O126: 0 | P126: 0 | Q126: 0 | R126: 0 | T126: 0 | U126: 0 | V126: 0 | W126: 0 | X126: 0
A127: PV O&M | B127: 0 | C127: 0 | D127: 0 | E127: 0 | F127: 0 | H127: 0 | I127: 0 | J127: 0 | K127: 0 | L127: 0 | N127: 0 | O127: 0 | P127: 0 | Q127: 0 | R127: 0 | T127: 0 | U127: 0 | V127: 0 | W127: 0 | X127: 0
A128: Battery capital cost | B128: 0 | C128: 0 | D128: 0 | E128: 0 | F128: 0 | H128: 0 | I128: 0 | J128: 0 | K128: 0 | L128: 0 | N128: 0 | O128: 0 | P128: 0 | Q128: 0 | R128: 0 | T128: 0 | U128: 0 | V128: 0 | W128: 0 | X128: 0
A129: Battery O&M | B129: 0 | C129: 0 | D129: 0 | E129: 0 | F129: 0 | H129: 0 | I129: 0 | J129: 0 | K129: 0 | L129: 0 | N129: 0 | O129: 0 | P129: 0 | Q129: 0 | R129: 0 | T129: 0 | U129: 0 | V129: 0 | W129: 0 | X129: 0
A130: Diesel capital cost | B130: 4156.62 | C130: 4156.62 | D130: 4156.62 | E130: 4156.62 | F130: 4156.62 | H130: 4849.39 | I130: 4849.39 | J130: 4849.39 | K130: 4849.39 | L130: 4849.39 | N130: 5542.16 | O130: 5542.16 | P130: 5542.16 | Q130: 5542.16 | R130: 5542.16 | T130: 8313.24 | U130: 8313.24 | V130: 8313.24 | W130: 8313.24 | X130: 8313.24
A131: Diesel O&M (kW) | B131: 1277.034558 | C131: 1277.034558 | D131: 1277.034558 | E131: 1277.034558 | F131: 1277.034558 | H131: 1489.873651 | I131: 1489.873651 | J131: 1489.873651 | K131: 1489.873651 | L131: 1489.873651 | N131: 1702.712744 | O131: 1702.712744 | P131: 1702.712744 | Q131: 1702.712744 | R131: 1702.712744 | T131: 2554.069116 | U131: 2554.069116 | V131: 2554.069116 | W131: 2554.069116 | X131: 2554.069116
A132: Diesel O&M (kWh) | B132: 3858.739128 | C132: 3665.802171 | D132: 3472.865215 | E132: 3279.928258 | F132: 3086.991302 | H132: 3860.168555 | I132: 3667.160127 | J132: 3474.151699 | K132: 3281.143272 | L132: 3088.134844 | N132: 3860.168555 | O132: 3667.160127 | P132: 3474.151699 | Q132: 3281.143272 | R132: 3088.134844 | T132: 3861.597982 | U132: 3668.518083 | V132: 3475.438184 | W132: 3282.358285 | X132: 3089.278386
A133: Fuel cost | B133: 81453.65313 | C133: 77380.97048 | D133: 73308.28782 | E133: 69235.60516 | F133: 65162.92251 | H133: 81483.82674 | I133: 77409.6354 | J133: 73335.44407 | K133: 69261.25273 | L133: 65187.06139 | N133: 81483.82674 | O133: 77409.6354 | P133: 73335.44407 | Q133: 69261.25273 | R133: 65187.06139 | T133: 81514.00035 | U133: 77438.30033 | V133: 73362.60031 | W133: 69286.9003 | X133: 65211.20028
A134: REopt LCC | B134: 90749.5 | C134: 86483.7 | D134: 82217.9 | E134: 77952.1 | F134: 73686.3 | H134: 91686.7 | I134: 87419.3 | J134: 83151.9 | K134: 78884.5 | L134: 74617.2 | N134: 92592.3 | O134: 88324.9 | P134: 84057.5 | Q134: 79790.1 | R134: 75522.7 | T134: 96246.1 | U134: 91977.2 | V134: 87708.2 | W134: 83439.3 | X134: 79170.3
A136: TMY_highPVBatt_MedDiesel_44_PBD_business | B136: 100 | C136: 95 | D136: 90 | E136: 85 | F136: 80 | G136: TMY_highPVBatt_MedDiesel_44_PBD_nrel | H136: 100 | I136: 95 | J136: 90 | K136: 85 | L136: 80 | M136: TMY_highPVBatt_MedDiesel_44_PBD_average | N136: 100 | O136: 95 | P136: 90 | Q136: 85 | R136: 80 | S136: TMY_highPVBatt_MedDiesel_44_PBD_residential | T136: 100 | U136: 95 | V136: 90 | W136: 85 | X136: 80
A137: PV kW | B137: 9.11 | C137: 9.11 | D137: 9.11 | E137: 9.11 | F137: 9.11 | H137: 5.989 | I137: 5.989 | J137: 5.989 | K137: 5.989 | L137: 5.989 | N137: 5.257 | O137: 5.257 | P137: 5.257 | Q137: 5.257 | R137: 5.257 | T137: 3.524 | U137: 3.524 | V137: 3.524 | W137: 3.524 | X137: 3.524
A138: Battery kW | B138: 0 | C138: 0 | D138: 0 | E138: 0 | F138: 0 | H138: 0 | I138: 0 | J138: 0 | K138: 0 | L138: 0 | N138: 0 | O138: 0 | P138: 0 | Q138: 0 | R138: 0 | T138: 0 | U138: 0 | V138: 0 | W138: 0 | X138: 0
A139: Battery kWh | B139: 0 | C139: 0 | D139: 0 | E139: 0 | F139: 0 | H139: 0 | I139: 0 | J139: 0 | K139: 0 | L139: 0 | N139: 0 | O139: 0 | P139: 0 | Q139: 0 | R139: 0 | T139: 0 | U139: 0 | V139: 0 | W139: 0 | X139: 0
A140: Generator kW | B140: 6 | C140: 6 | D140: 6 | E140: 6 | F140: 6 | H140: 7 | I140: 7 | J140: 7 | K140: 7 | L140: 7 | N140: 8 | O140: 8 | P140: 8 | Q140: 8 | R140: 8 | T140: 12 | U140: 12 | V140: 12 | W140: 12 | X140: 12
A141: PV capital cost | B141: 20041.714 | C141: 20041.714 | D141: 20041.714 | E141: 20041.714 | F141: 20041.714 | H141: 13175.932 | I141: 13175.932 | J141: 13175.932 | K141: 13175.932 | L141: 13175.932 | N141: 11564.85 | O141: 11564.85 | P141: 11564.85 | Q141: 11564.85 | R141: 11564.85 | T141: 7752.118 | U141: 7752.118 | V141: 7752.118 | W141: 7752.118 | X141: 7752.118
A142: PV O&M | B142: 3412.528184 | C142: 3412.528184 | D142: 3412.528184 | E142: 3412.528184 | F142: 3412.528184 | H142: 2243.482733 | I142: 2243.482733 | J142: 2243.482733 | K142: 2243.482733 | L142: 2243.482733 | N142: 1969.161748 | O142: 1969.161748 | P142: 1969.161748 | Q142: 1969.161748 | R142: 1969.161748 | T142: 1319.963011 | U142: 1319.963011 | V142: 1319.963011 | W142: 1319.963011 | X142: 1319.963011
A143: Battery capital cost | B143: 0 | C143: 0 | D143: 0 | E143: 0 | F143: 0 | H143: 0 | I143: 0 | J143: 0 | K143: 0 | L143: 0 | N143: 1.760218609e-10 | O143: 0 | P143: 0 | Q143: 0 | R143: 0 | T143: 0 | U143: 0 | V143: 0 | W143: 0 | X143: 0
A144: Battery O&M | B144: 0 | C144: 0 | D144: 0 | E144: 0 | F144: 0 | H144: 0 | I144: 0 | J144: 0 | K144: 0 | L144: 0 | N144: 5.122568723e-11 | O144: 0 | P144: 0 | Q144: 0 | R144: 0 | T144: 0 | U144: 0 | V144: 0 | W144: 0 | X144: 0
A145: Diesel capital cost | B145: 3325.32 | C145: 3325.32 | D145: 3325.32 | E145: 3325.32 | F145: 3325.32 | H145: 3879.54 | I145: 3879.54 | J145: 3879.54 | K145: 3879.54 | L145: 3879.54 | N145: 4433.76 | O145: 4433.76 | P145: 4433.76 | Q145: 4433.76 | R145: 4433.76 | T145: 6650.64 | U145: 6650.64 | V145: 6650.64 | W145: 6650.64 | X145: 6650.64
A146: Diesel O&M (kW) | B146: 1277.034558 | C146: 1277.034558 | D146: 1277.034558 | E146: 1277.034558 | F146: 1277.034558 | H146: 1489.873651 | I146: 1489.873651 | J146: 1489.873651 | K146: 1489.873651 | L146: 1489.873651 | N146: 1702.712744 | O146: 1702.712744 | P146: 1702.712744 | Q146: 1702.712744 | R146: 1702.712744 | T146: 2554.069116 | U146: 2554.069116 | V146: 2554.069116 | W146: 2554.069116 | X146: 2554.069116
A147: Diesel O&M (kWh) | B147: 1967.781372 | C147: 1774.844416 | D147: 1581.90746 | E147: 1388.970503 | F147: 1196.03354 | H147: 2628.420966 | I147: 2435.412538 | J147: 2242.40411 | K147: 2049.395683 | L147: 1856.387255 | N147: 2774.760107 | O147: 2581.751679 | P147: 2388.743252 | Q147: 2195.734824 | R147: 2002.726396 | T147: 3174.214246 | U147: 2981.134347 | V147: 2788.054448 | W147: 2594.974549 | X147: 2401.89465
A148: Fuel cost | B148: 47595.23168 | C148: 42928.61614 | D148: 38262.0006 | E148: 33595.38505 | F148: 28928.76934 | H148: 63574.29062 | I148: 58905.94638 | J148: 54237.60214 | K148: 49569.2579 | L148: 44900.91366 | N148: 67113.83288 | O148: 62445.48864 | P148: 57777.1444 | Q148: 53108.80016 | R148: 48440.45592 | T148: 76775.53238 | U148: 72105.45945 | V148: 67435.38651 | W148: 62765.31357 | X148: 58095.24064
A149: REopt LCC | B149: 77621.3 | C149: 72761.6 | D149: 67901.8 | E149: 63042.1 | F149: 58182.4 | H149: 86993.8 | I149: 82132.3 | J149: 77270.7 | K149: 72409.2 | L149: 67547.7 | N149: 89561.5 | O149: 84699.9 | P149: 79838.4 | Q149: 74976.8 | R149: 70115.3 | T149: 98229.1 | U149: 93365.8 | V149: 88502.5 | W149: 83639.1 | X149: 78775.8
A151: TMY_highPVBatt_MedDiesel_44_PB_business | B151: 100 | C151: 95 | D151: 90 | E151: 85 | F151: 80 | G151: TMY_highPVBatt_MedDiesel_44_PB_nrel | H151: 100 | I151: 95 | J151: 90 | K151: 85 | L151: 80 | M151: TMY_highPVBatt_MedDiesel_44_PB_average | N151: 100 | O151: 95 | P151: 90 | Q151: 85 | R151: 80 | S151: TMY_highPVBatt_MedDiesel_44_PB_residential | T151: 100 | U151: 95 | V151: 90 | W151: 85 | X151: 80
A152: PV kW | B152: 25.944 | C152: 19.53 | D152: 18.211 | E152: 17.095 | F152: 15.95 | H152: 25.682 | I152: 20.273 | J152: 19.126 | K152: 17.96 | L152: 16.819 | N152: 25.873 | O152: 20.53 | P152: 19.232 | Q152: 18.095 | R152: 16.95 | T152: 29.403 | U152: 21.415 | V152: 19.913 | W152: 18.571 | X152: 17.404
A153: Battery kW | B153: 5.498 | C153: 4.322 | D153: 3.315 | E153: 2.729 | F153: 2.291 | H153: 6.914 | I153: 5.167 | J153: 4.627 | K153: 4.233 | L153: 3.823 | N153: 6.938 | O153: 5.857 | P153: 4.99 | Q153: 4.448 | R153: 4.055 | T153: 10.62 | U153: 9.021 | V153: 7.452 | W153: 6.478 | X153: 5.57
A154: Battery kWh | B154: 34.72 | C154: 30.018 | D154: 26.674 | E154: 23.07 | F154: 19.495 | H154: 54.401 | I154: 45.458 | J154: 41.653 | K154: 37.773 | L154: 33.887 | N154: 56.484 | O154: 47.197 | P154: 43.75 | Q154: 39.968 | R154: 36.092 | T154: 56.544 | U154: 54.081 | V154: 50.626 | W154: 47.066 | X154: 43.28
A155: Generator kW | B155: 0 | C155: 0 | D155: 0 | E155: 0 | F155: 0 | H155: 0 | I155: 0 | J155: 0 | K155: 0 | L155: 0 | N155: 0 | O155: 0 | P155: 0 | Q155: 0 | R155: 0 | T155: 0 | U155: 0 | V155: 0 | W155: 0 | X155: 0
A156: PV capital cost | B156: 57076.14 | C156: 42966.22 | D156: 40063.98 | E156: 37609 | F156: 35088.9 | H156: 56500.4 | I156: 44599.94 | J156: 42078.08 | K156: 39512.88 | L156: 37002.02 | N156: 56921.04 | O156: 45166.88 | P156: 42310.84 | Q156: 39809.22 | R156: 37290 | T156: 64687.48 | U156: 47113.88 | V156: 43808.16 | W156: 40856.86 | X156: 38288.8
A157: PV O&M | B157: 9718.427096 | C157: 7315.913036 | D157: 6821.744932 | E157: 6403.732359 | F157: 5974.63172 | H157: 9620.395112 | I157: 7594.088622 | J157: 7164.688306 | K157: 6727.908433 | L157: 6300.381101 | N157: 9692.018021 | O157: 7690.622218 | P157: 7204.320648 | Q157: 6778.366622 | R157: 6349.415822 | T157: 11014.41966 | U157: 8022.14039 | V157: 7459.271232 | W157: 6956.74962 | X157: 6519.482771
A158: Battery capital cost | B158: 38225.52091 | C158: 32439.86338 | D158: 28084.85013 | E158: 24096.01932 | F158: 20340.29963 | H158: 57495.11778 | I158: 47181.32004 | J158: 43081.20842 | K158: 39120.98038 | L158: 35132.48614 | N158: 59357.62135 | O158: 49680.95689 | P158: 45433.03306 | Q158: 41350.8113 | R158: 37393.80846 | T158: 64602.23338 | U158: 60185.83794 | V158: 54940.69581 | W158: 50442.99739 | X158: 45839.42143
A159: Battery O&M | B159: 8867.753511 | C159: 7666.855754 | D159: 6812.826123 | E159: 5892.365154 | F159: 4979.259904 | H159: 13894.49356 | I159: 11610.18522 | J159: 10638.46409 | K159: 9647.587435 | L159: 8655.076176 | N159: 14426.5317 | O159: 12054.41447 | P159: 11173.97576 | Q159: 10208.15452 | R159: 9218.044091 | T159: 14441.77949 | U159: 13812.73781 | V159: 12930.25585 | W159: 12020.9817 | X159: 11053.93451
A160: Diesel capital cost | B160: 0 | C160: 0 | D160: 0 | E160: 0 | F160: 0 | H160: 0 | I160: 0 | J160: 0 | K160: 0 | L160: 0 | N160: 0 | O160: 0 | P160: 0 | Q160: 0 | R160: 0 | T160: 0 | U160: 0 | V160: 0 | W160: 0 | X160: 0
A161: Diesel O&M (kW) | B161: 0 | C161: 0 | D161: 0 | E161: 0 | F161: 0 | H161: 0 | I161: 0 | J161: 0 | K161: 0 | L161: 0 | N161: 0 | O161: 0 | P161: 0 | Q161: 0 | R161: 0 | T161: 0 | U161: 0 | V161: 0 | W161: 0 | X161: 0
A162: Diesel O&M (kWh) | B162: 0 | C162: 0 | D162: 0 | E162: 0 | F162: 0 | H162: 0 | I162: 0 | J162: 0 | K162: 0 | L162: 0 | N162: 0 | O162: 0 | P162: 0 | Q162: 0 | R162: 0 | T162: 0 | U162: 0 | V162: 0 | W162: 0 | X162: 0
A163: Fuel cost | B163: 0 | C163: 0 | D163: 0 | E163: 0 | F163: 0 | H163: 0 | I163: 0 | J163: 0 | K163: 0 | L163: 0 | N163: 0 | O163: 0 | P163: 0 | Q163: 0 | R163: 0 | T163: 0 | U163: 0 | V163: 0 | W163: 0 | X163: 0
A164: REopt LCC | B164: 113888 | C164: 90389 | D164: 81783.5 | E164: 74001.3 | F164: 66383.2 | H164: 137511 | I164: 110986 | J164: 102962 | K164: 95009.5 | L164: 87090.1 | N164: 140397 | O164: 114593 | P164: 106122 | Q164: 98146.6 | R164: 90251.4 | T164: 154746 | U164: 129135 | V164: 119138 | W164: 110278 | X164: 101702
A166: TMY_highPVBatt_MedDiesel_44_D_business | B166: 100 | C166: 95 | D166: 90 | E166: 85 | F166: 80 | G166: TMY_highPVBatt_MedDiesel_44_D_nrel | H166: 100 | I166: 95 | J166: 90 | K166: 85 | L166: 80 | M166: TMY_highPVBatt_MedDiesel_44_D_average | N166: 100 | O166: 95 | P166: 90 | Q166: 85 | R166: 80 | S166: TMY_highPVBatt_MedDiesel_44_D_residential | T166: 100 | U166: 95 | V166: 90 | W166: 85 | X166: 80
A167: PV kW | B167: 0 | C167: 0 | D167: 0 | E167: 0 | F167: 0 | H167: 0 | I167: 0 | J167: 0 | K167: 0 | L167: 0 | N167: 0 | O167: 0 | P167: 0 | Q167: 0 | R167: 0 | T167: 0 | U167: 0 | V167: 0 | W167: 0 | X167: 0
A168: Battery kW | B168: 0 | C168: 0 | D168: 0 | E168: 0 | F168: 0 | H168: 0 | I168: 0 | J168: 0 | K168: 0 | L168: 0 | N168: 0 | O168: 0 | P168: 0 | Q168: 0 | R168: 0 | T168: 0 | U168: 0 | V168: 0 | W168: 0 | X168: 0
A169: Battery kWh | B169: 0 | C169: 0 | D169: 0 | E169: 0 | F169: 0 | H169: 0 | I169: 0 | J169: 0 | K169: 0 | L169: 0 | N169: 0 | O169: 0 | P169: 0 | Q169: 0 | R169: 0 | T169: 0 | U169: 0 | V169: 0 | W169: 0 | X169: 0
A170: Generator kW | B170: 6 | C170: 6 | D170: 6 | E170: 6 | F170: 6 | H170: 7 | I170: 7 | J170: 7 | K170: 7 | L170: 7 | N170: 8 | O170: 8 | P170: 8 | Q170: 8 | R170: 8 | T170: 12 | U170: 12 | V170: 12 | W170: 12 | X170: 12
A171: PV capital cost | B171: 0 | C171: 0 | D171: 0 | E171: 0 | F171: 0 | H171: 0 | I171: 0 | J171: 0 | K171: 0 | L171: 0 | N171: 0 | O171: 0 | P171: 0 | Q171: 0 | R171: 0 | T171: 0 | U171: 0 | V171: 0 | W171: 0 | X171: 0
A172: PV O&M | B172: 0 | C172: 0 | D172: 0 | E172: 0 | F172: 0 | H172: 0 | I172: 0 | J172: 0 | K172: 0 | L172: 0 | N172: 0 | O172: 0 | P172: 0 | Q172: 0 | R172: 0 | T172: 0 | U172: 0 | V172: 0 | W172: 0 | X172: 0
A173: Battery capital cost | B173: 0 | C173: 0 | D173: 0 | E173: 0 | F173: 0 | H173: 0 | I173: 0 | J173: 0 | K173: 0 | L173: 0 | N173: 0 | O173: 0 | P173: 0 | Q173: 0 | R173: 0 | T173: 0 | U173: 0 | V173: 0 | W173: 0 | X173: 0
A174: Battery O&M | B174: 0 | C174: 0 | D174: 0 | E174: 0 | F174: 0 | H174: 0 | I174: 0 | J174: 0 | K174: 0 | L174: 0 | N174: 0 | O174: 0 | P174: 0 | Q174: 0 | R174: 0 | T174: 0 | U174: 0 | V174: 0 | W174: 0 | X174: 0
A175: Diesel capital cost | B175: 3325.32 | C175: 3325.32 | D175: 3325.32 | E175: 3325.32 | F175: 3325.32 | H175: 3879.54 | I175: 3879.54 | J175: 3879.54 | K175: 3879.54 | L175: 3879.54 | N175: 4433.76 | O175: 4433.76 | P175: 4433.76 | Q175: 4433.76 | R175: 4433.76 | T175: 6650.64 | U175: 6650.64 | V175: 6650.64 | W175: 6650.64 | X175: 6650.64
A176: Diesel O&M (kW) | B176: 1277.034558 | C176: 1277.034558 | D176: 1277.034558 | E176: 1277.034558 | F176: 1277.034558 | H176: 1489.873651 | I176: 1489.873651 | J176: 1489.873651 | K176: 1489.873651 | L176: 1489.873651 | N176: 1702.712744 | O176: 1702.712744 | P176: 1702.712744 | Q176: 1702.712744 | R176: 1702.712744 | T176: 2554.069116 | U176: 2554.069116 | V176: 2554.069116 | W176: 2554.069116 | X176: 2554.069116
A177: Diesel O&M (kWh) | B177: 3858.739128 | C177: 3665.802171 | D177: 3472.865215 | E177: 3279.928258 | F177: 3086.991302 | H177: 3860.168555 | I177: 3667.160127 | J177: 3474.151699 | K177: 3281.143272 | L177: 3088.134844 | N177: 3860.168555 | O177: 3667.160127 | P177: 3474.151699 | Q177: 3281.143272 | R177: 3088.134844 | T177: 3861.597982 | U177: 3668.518083 | V177: 3475.438184 | W177: 3282.358285 | X177: 3089.278386
A178: Fuel cost | B178: 93332.31088 | C178: 88665.69534 | D178: 83999.07979 | E178: 79332.46425 | F178: 74665.84871 | H178: 93366.88481 | I178: 88698.54057 | J178: 84030.19633 | K178: 79361.85209 | L178: 74693.50785 | N178: 93366.88481 | O178: 88698.54057 | P178: 84030.19633 | Q178: 79361.85209 | R178: 74693.50785 | T178: 93401.45873 | U178: 88731.3858 | V178: 84061.31286 | W178: 79391.23992 | X178: 74721.16699
A179: REopt LCC | B179: 101797 | C179: 96937.1 | D179: 92077.4 | E179: 87217.7 | F179: 82357.9 | H179: 102600 | I179: 97738.4 | J179: 92876.8 | K179: 88015.3 | L179: 83153.8 | N179: 103367 | O179: 98505.4 | P179: 93643.8 | Q179: 88782.3 | R179: 83920.8 | T179: 106471 | U179: 101608 | V179: 96744.3 | W179: 91881 | X179: 87017.7
A181: TMY_highPVBatt_MedDiesel_36_PBD_business | B181: 100 | C181: 95 | D181: 90 | E181: 85 | F181: 80 | G181: TMY_highPVBatt_MedDiesel_36_PBD_nrel | H181: 100 | I181: 95 | J181: 90 | K181: 85 | L181: 80 | M181: TMY_highPVBatt_MedDiesel_36_PBD_average | N181: 100 | O181: 95 | P181: 90 | Q181: 85 | R181: 80 | S181: TMY_highPVBatt_MedDiesel_36_PBD_residential | T181: 100 | U181: 95 | V181: 90 | W181: 85 | X181: 80
A182: PV kW | B182: 8.628 | C182: 8.628 | D182: 8.628 | E182: 8.628 | F182: 8.628 | H182: 5.634 | I182: 5.634 | J182: 5.634 | K182: 5.634 | L182: 5.634 | N182: 4.955 | O182: 4.955 | P182: 4.955 | Q182: 4.955 | R182: 4.955 | T182: 3.115 | U182: 3.115 | V182: 3.115 | W182: 3.115 | X182: 3.115
A183: Battery kW | B183: 0 | C183: 0 | D183: 0 | E183: 0 | F183: 0 | H183: 0 | I183: 0 | J183: 0 | K183: 0 | L183: 0 | N183: 0 | O183: 0 | P183: 0 | Q183: 0 | R183: 0 | T183: 0 | U183: 0 | V183: 0 | W183: 0 | X183: 0
A184: Battery kWh | B184: 0 | C184: 0 | D184: 0 | E184: 0 | F184: 0 | H184: 0 | I184: 0 | J184: 0 | K184: 0 | L184: 0 | N184: 0 | O184: 0 | P184: 0 | Q184: 0 | R184: 0 | T184: 0 | U184: 0 | V184: 0 | W184: 0 | X184: 0
A185: Generator kW | B185: 6 | C185: 6 | D185: 6 | E185: 6 | F185: 6 | H185: 7 | I185: 7 | J185: 7 | K185: 7 | L185: 7 | N185: 8 | O185: 8 | P185: 8 | Q185: 8 | R185: 8 | T185: 12 | U185: 12 | V185: 12 | W185: 12 | X185: 12
A186: PV capital cost | B186: 18980.676 | C186: 18980.676 | D186: 18980.676 | E186: 18980.676 | F186: 18980.676 | H186: 12394.36 | I186: 12394.36 | J186: 12394.36 | K186: 12394.36 | L186: 12394.36 | N186: 10901.704 | O186: 10901.704 | P186: 10901.704 | Q186: 10901.704 | R186: 10901.704 | T186: 6852.186 | U186: 6852.186 | V186: 6852.186 | W186: 6852.186 | X186: 6852.186
A187: PV O&M | B187: 3231.863891 | C187: 3231.863891 | D187: 3231.863891 | E187: 3231.863891 | F187: 3231.863891 | H187: 2110.403473 | I187: 2110.403473 | J187: 2110.403473 | K187: 2110.403473 | L187: 2110.403473 | N187: 1856.247033 | O187: 1856.247033 | P187: 1856.247033 | Q187: 1856.247033 | R187: 1856.247033 | T187: 1166.730443 | U187: 1166.730443 | V187: 1166.730443 | W187: 1166.730443 | X187: 1166.730443
A188: Battery capital cost | B188: 0 | C188: 0 | D188: 0 | E188: 0 | F188: 0 | H188: 1.79721949e-09 | I188: 0 | J188: 0 | K188: 0 | L188: 0 | N188: 3.365087933e-10 | O188: 0 | P188: 0 | Q188: 0 | R188: 0 | T188: 1.190531424e-09 | U188: 0 | V188: 0 | W188: 0 | X188: 0
A189: Battery O&M | B189: 0 | C189: 0 | D189: 0 | E189: 0 | F189: 0 | H189: 5.230248276e-10 | I189: 0 | J189: 0 | K189: 0 | L189: 0 | N189: 9.793041671e-11 | O189: 0 | P189: 0 | Q189: 0 | R189: 0 | T189: 3.464671378e-10 | U189: 0 | V189: 0 | W189: 0 | X189: 0
A190: Diesel capital cost | B190: 3325.32 | C190: 3325.32 | D190: 3325.32 | E190: 3325.32 | F190: 3325.32 | H190: 3879.54 | I190: 3879.54 | J190: 3879.54 | K190: 3879.54 | L190: 3879.54 | N190: 4433.76 | O190: 4433.76 | P190: 4433.76 | Q190: 4433.76 | R190: 4433.76 | T190: 6650.64 | U190: 6650.64 | V190: 6650.64 | W190: 6650.64 | X190: 6650.64
A191: Diesel O&M (kW) | B191: 1277.034558 | C191: 1277.034558 | D191: 1277.034558 | E191: 1277.034558 | F191: 1277.034558 | H191: 1489.873651 | I191: 1489.873651 | J191: 1489.873651 | K191: 1489.873651 | L191: 1489.873651 | N191: 1702.712744 | O191: 1702.712744 | P191: 1702.712744 | Q191: 1702.712744 | R191: 1702.712744 | T191: 2554.069116 | U191: 2554.069116 | V191: 2554.069116 | W191: 2554.069116 | X191: 2554.069116
A192: Diesel O&M (kWh) | B192: 2021.996179 | C192: 1829.059223 | D192: 1636.122266 | E192: 1443.185309 | F192: 1250.24835 | H192: 2668.365534 | I192: 2475.357106 | J192: 2282.348679 | K192: 2089.340251 | L192: 1896.331823 | N192: 2808.535897 | O192: 2615.527469 | P192: 2422.519042 | Q192: 2229.510614 | R192: 2036.502186 | T192: 3220.283918 | U192: 3027.204019 | V192: 2834.12412 | W192: 2641.044221 | X192: 2447.964321
A193: Fuel cost | B193: 40014.44108 | C193: 36196.30109 | D193: 32378.16109 | E193: 28560.02108 | F193: 24741.88104 | H193: 52805.81464 | I193: 48986.26026 | J193: 45166.70588 | K193: 41347.1515 | L193: 37527.59712 | N193: 55579.72628 | O193: 51760.1719 | P193: 47940.61752 | Q193: 44121.06314 | R193: 40301.50876 | T193: 63728.04381 | U193: 59907.07504 | V193: 56086.10627 | W193: 52265.13751 | X193: 48444.16874
A194: REopt LCC | B194: 68853.1 | C194: 64841.8 | D194: 60830.6 | E194: 56819.3 | F194: 52808 | H194: 75350.7 | I194: 71337.9 | J194: 67325.2 | K194: 63312.4 | L194: 59299.7 | N194: 77285.1 | O194: 73272.3 | P194: 69259.6 | Q194: 65246.8 | R194: 61234.1 | T194: 84174.6 | U194: 80160.4 | V194: 76146.1 | W194: 72131.9 | X194: 68117.7
A196: TMY_highPVBatt_MedDiesel_36_PB_business | B196: 100 | C196: 95 | D196: 90 | E196: 85 | F196: 80 | G196: TMY_highPVBatt_MedDiesel_36_PB_nrel | H196: 100 | I196: 95 | J196: 90 | K196: 85 | L196: 80 | M196: TMY_highPVBatt_MedDiesel_36_PB_average | N196: 100 | O196: 95 | P196: 90 | Q196: 85 | R196: 80 | S196: TMY_highPVBatt_MedDiesel_36_PB_residential | T196: 100 | U196: 95 | V196: 90 | W196: 85 | X196: 80
A197: PV kW | B197: 25.944 | C197: 19.53 | D197: 18.211 | E197: 17.095 | F197: 15.95 | H197: 25.682 | I197: 20.273 | J197: 19.126 | K197: 17.96 | L197: 16.819 | N197: 25.873 | O197: 20.53 | P197: 19.232 | Q197: 18.095 | R197: 16.95 | T197: 29.403 | U197: 21.415 | V197: 19.913 | W197: 18.571 | X197: 17.404
A198: Battery kW | B198: 5.498 | C198: 4.322 | D198: 3.315 | E198: 2.729 | F198: 2.291 | H198: 6.914 | I198: 5.167 | J198: 4.627 | K198: 4.233 | L198: 3.823 | N198: 6.938 | O198: 5.857 | P198: 4.99 | Q198: 4.448 | R198: 4.055 | T198: 10.62 | U198: 9.021 | V198: 7.452 | W198: 6.478 | X198: 5.57
A199: Battery kWh | B199: 34.72 | C199: 30.018 | D199: 26.674 | E199: 23.07 | F199: 19.495 | H199: 54.401 | I199: 45.458 | J199: 41.653 | K199: 37.773 | L199: 33.887 | N199: 56.484 | O199: 47.197 | P199: 43.75 | Q199: 39.968 | R199: 36.092 | T199: 56.544 | U199: 54.081 | V199: 50.626 | W199: 47.066 | X199: 43.28
A200: Generator kW | B200: 0 | C200: 0 | D200: 0 | E200: 0 | F200: 0 | H200: 0 | I200: 0 | J200: 0 | K200: 0 | L200: 0 | N200: 0 | O200: 0 | P200: 0 | Q200: 0 | R200: 0 | T200: 0 | U200: 0 | V200: 0 | W200: 0 | X200: 0
A201: PV capital cost | B201: 57076.14 | C201: 42966.22 | D201: 40063.98 | E201: 37609 | F201: 35088.9 | H201: 56500.4 | I201: 44599.94 | J201: 42078.08 | K201: 39512.88 | L201: 37002.02 | N201: 56921.04 | O201: 45166.88 | P201: 42310.84 | Q201: 39809.22 | R201: 37290 | T201: 64687.48 | U201: 47113.88 | V201: 43808.16 | W201: 40856.86 | X201: 38288.8
A202: PV O&M | B202: 9718.427096 | C202: 7315.913036 | D202: 6821.744932 | E202: 6403.732359 | F202: 5974.63172 | H202: 9620.395112 | I202: 7594.088622 | J202: 7164.688306 | K202: 6727.908433 | L202: 6300.381101 | N202: 9692.018021 | O202: 7690.622218 | P202: 7204.320648 | Q202: 6778.366622 | R202: 6349.415822 | T202: 11014.41966 | U202: 8022.14039 | V202: 7459.271232 | W202: 6956.74962 | X202: 6519.482771
A203: Battery capital cost | B203: 38225.52091 | C203: 32439.86338 | D203: 28084.85013 | E203: 24096.01932 | F203: 20340.29963 | H203: 57495.11778 | I203: 47181.32004 | J203: 43081.20842 | K203: 39120.98038 | L203: 35132.48614 | N203: 59357.62135 | O203: 49680.95689 | P203: 45433.03306 | Q203: 41350.8113 | R203: 37393.80846 | T203: 64602.23338 | U203: 60185.83794 | V203: 54940.69581 | W203: 50442.99739 | X203: 45839.42143
A204: Battery O&M | B204: 8867.753511 | C204: 7666.855754 | D204: 6812.826123 | E204: 5892.365154 | F204: 4979.259904 | H204: 13894.49356 | I204: 11610.18522 | J204: 10638.46409 | K204: 9647.587435 | L204: 8655.076176 | N204: 14426.5317 | O204: 12054.41447 | P204: 11173.97576 | Q204: 10208.15452 | R204: 9218.044091 | T204: 14441.77949 | U204: 13812.73781 | V204: 12930.25585 | W204: 12020.9817 | X204: 11053.93451
A205: Diesel capital cost | B205: 0 | C205: 0 | D205: 0 | E205: 0 | F205: 0 | H205: 0 | I205: 0 | J205: 0 | K205: 0 | L205: 0 | N205: 0 | O205: 0 | P205: 0 | Q205: 0 | R205: 0 | T205: 0 | U205: 0 | V205: 0 | W205: 0 | X205: 0
A206: Diesel O&M (kW) | B206: 0 | C206: 0 | D206: 0 | E206: 0 | F206: 0 | H206: 0 | I206: 0 | J206: 0 | K206: 0 | L206: 0 | N206: 0 | O206: 0 | P206: 0 | Q206: 0 | R206: 0 | T206: 0 | U206: 0 | V206: 0 | W206: 0 | X206: 0
A207: Diesel O&M (kWh) | B207: 0 | C207: 0 | D207: 0 | E207: 0 | F207: 0 | H207: 0 | I207: 0 | J207: 0 | K207: 0 | L207: 0 | N207: 0 | O207: 0 | P207: 0 | Q207: 0 | R207: 0 | T207: 0 | U207: 0 | V207: 0 | W207: 0 | X207: 0
A208: Fuel cost | B208: 0 | C208: 0 | D208: 0 | E208: 0 | F208: 0 | H208: 0 | I208: 0 | J208: 0 | K208: 0 | L208: 0 | N208: 0 | O208: 0 | P208: 0 | Q208: 0 | R208: 0 | T208: 0 | U208: 0 | V208: 0 | W208: 0 | X208: 0
A209: REopt LCC | B209: 113888 | C209: 90389 | D209: 81783.5 | E209: 74001.3 | F209: 66383.2 | H209: 137511 | I209: 110986 | J209: 102962 | K209: 95009.5 | L209: 87090.1 | N209: 140397 | O209: 114593 | P209: 106122 | Q209: 98146.6 | R209: 90251.4 | T209: 154746 | U209: 129135 | V209: 119138 | W209: 110278 | X209: 101702
A211: TMY_highPVBatt_MedDiesel_36_D_business | B211: 100 | C211: 95 | D211: 90 | E211: 85 | F211: 80 | G211: TMY_highPVBatt_MedDiesel_36_D_nrel | H211: 100 | I211: 95 | J211: 90 | K211: 85 | L211: 80 | M211: TMY_highPVBatt_MedDiesel_36_D_average | N211: 100 | O211: 95 | P211: 90 | Q211: 85 | R211: 80 | S211: TMY_highPVBatt_MedDiesel_36_D_residential | T211: 100 | U211: 95 | V211: 90 | W211: 85 | X211: 80
A212: PV kW | B212: 0 | C212: 0 | D212: 0 | E212: 0 | F212: 0 | H212: 0 | I212: 0 | J212: 0 | K212: 0 | L212: 0 | N212: 0 | O212: 0 | P212: 0 | Q212: 0 | R212: 0 | T212: 0 | U212: 0 | V212: 0 | W212: 0 | X212: 0
A213: Battery kW | B213: 0 | C213: 0 | D213: 0 | E213: 0 | F213: 0 | H213: 0 | I213: 0 | J213: 0 | K213: 0 | L213: 0 | N213: 0 | O213: 0 | P213: 0 | Q213: 0 | R213: 0 | T213: 0 | U213: 0 | V213: 0 | W213: 0 | X213: 0
A214: Battery kWh | B214: 0 | C214: 0 | D214: 0 | E214: 0 | F214: 0 | H214: 0 | I214: 0 | J214: 0 | K214: 0 | L214: 0 | N214: 0 | O214: 0 | P214: 0 | Q214: 0 | R214: 0 | T214: 0 | U214: 0 | V214: 0 | W214: 0 | X214: 0
... 934 more rows

Sheet Lodwar_10
A1: TMY_highPVBatt_HighDiesel_44_PBD_business | B1: 100 | C1: 95 | D1: 90 | E1: 85 | F1: 80 | G1: TMY_highPVBatt_HighDiesel_44_PBD_nrel | H1: 100 | I1: 95 | J1: 90 | K1: 85 | L1: 80 | M1: TMY_highPVBatt_HighDiesel_44_PBD_average | N1: 100 | O1: 95 | P1: 90 | Q1: 85 | R1: 80 | S1: TMY_highPVBatt_HighDiesel_44_PBD_residential | T1: 100 | U1: 95 | V1: 90 | W1: 85 | X1: 80
A2: PV kW | B2: 9.239 | C2: 9.157 | D2: 9.203 | E2: 9.191 | F2: 9.216 | H2: 5.823 | I2: 5.855 | J2: 5.855 | K2: 5.815 | L2: 5.857 | N2: 5.298 | O2: 5.255 | P2: 5.303 | Q2: 5.245 | R2: 5.262 | T2: 4.011 | U2: 4.024 | V2: 4.019 | W2: 4.024 | X2: 4.018
A3: Battery kW | B3: 0.174 | C3: 0.147 | D3: 0.162 | E3: 0.163 | F3: 0.16 | H3: 0.057 | I3: 0.073 | J3: 0.073 | K3: 0.044 | L3: 0.074 | N3: 0.085 | O3: 0.058 | P3: 0.086 | Q3: 0.065 | R3: 0.084 | T3: 0.271 | U3: 0.276 | V3: 0.274 | W3: 0.276 | X3: 0.274
A4: Battery kWh | B4: 0.844 | C4: 0.631 | D4: 0.762 | E4: 0.767 | F4: 0.771 | H4: 0.244 | I4: 0.339 | J4: 0.339 | K4: 0.19 | L4: 0.343 | N4: 0.451 | O4: 0.332 | P4: 0.46 | Q4: 0.277 | R4: 0.36 | T4: 1.573 | U4: 1.601 | V4: 1.592 | W4: 1.605 | X4: 1.591
A5: Generator kW | B5: 6 | C5: 6 | D5: 6 | E5: 6 | F5: 6 | H5: 7 | I5: 7 | J5: 7 | K5: 7 | L5: 7 | N5: 8 | O5: 8 | P5: 8 | Q5: 8 | R5: 8 | T5: 12 | U5: 12 | V5: 12 | W5: 12 | X5: 12
A6: PV capital cost | B6: 20326.372 | C6: 20145.862 | D6: 20246.314 | E6: 20219.628 | F6: 20275.794 | H6: 12811.238 | I6: 12881.924 | J6: 12880.956 | K6: 12791.922 | L6: 12885.708 | N6: 11655.622 | O6: 11561.99 | P6: 11667.084 | Q6: 11538.912 | R6: 11576.972 | T6: 8823.848 | U6: 8853.79 | V6: 8841.602 | W6: 8853.79 | X6: 8840.656
A7: PV O&M | B7: 3460.997264 | C7: 3430.261597 | D7: 3447.365687 | E7: 3442.821827 | F7: 3452.385284 | H7: 2181.385821 | I7: 2193.421616 | J7: 2193.256794 | K7: 2178.096861 | L7: 2194.065923 | N7: 1984.617612 | O7: 1968.674772 | P7: 1986.569261 | Q7: 1964.745251 | R7: 1971.225776 | T7: 1502.447844 | U7: 1507.546107 | V7: 1505.47084 | W7: 1507.546107 | X7: 1505.309764
A8: Battery capital cost | B8: 985.4448067 | C8: 761.3221313 | D8: 897.135283 | E8: 903.8205724 | F8: 902.6766477 | H8: 293.867349 | I8: 400.9319933 | J8: 399.9954169 | K8: 229.3657536 | L8: 404.6031698 | N8: 515.1203366 | O8: 372.7918193 | P8: 524.2838467 | Q8: 334.2810981 | R8: 434.5612762 | T8: 1763.033373 | U8: 1794.547406 | V8: 1783.841617 | W8: 1798.128136 | X8: 1782.719062
A9: Battery O&M | B9: 215.4880884 | C9: 161.1395408 | D9: 194.6826413 | E9: 195.9280054 | F9: 197.0282984 | H9: 62.19924518 | I9: 86.66952598 | J9: 86.45881527 | K9: 48.54697954 | L9: 87.49551193 | N9: 115.1550588 | O9: 84.67709666 | P9: 117.4005964 | Q9: 70.75307806 | R9: 91.97815863 | T9: 401.683558 | U9: 408.8604922 | V9: 406.5567219 | W9: 409.9025524 | X9: 406.2936528
A10: Diesel capital cost | B10: 4156.62 | C10: 4156.62 | D10: 4156.62 | E10: 4156.62 | F10: 4156.62 | H10: 4849.39 | I10: 4849.39 | J10: 4849.39 | K10: 4849.39 | L10: 4849.39 | N10: 5542.16 | O10: 5542.16 | P10: 5542.16 | Q10: 5542.16 | R10: 5542.16 | T10: 8313.24 | U10: 8313.24 | V10: 8313.24 | W10: 8313.24 | X10: 8313.24
A11: Diesel O&M (kW) | B11: 1277.034558 | C11: 1277.034558 | D11: 1277.034558 | E11: 1277.034558 | F11: 1277.034558 | H11: 1489.873651 | I11: 1489.873651 | J11: 1489.873651 | K11: 1489.873651 | L11: 1489.873651 | N11: 1702.712744 | O11: 1702.712744 | P11: 1702.712744 | Q11: 1702.712744 | R11: 1702.712744 | T11: 2554.069116 | U11: 2554.069116 | V11: 2554.069116 | W11: 2554.069116 | X11: 2554.069116
A12: Diesel O&M (kWh) | B12: 1696.775304 | C12: 1520.327564 | D12: 1317.799439 | E12: 1125.683373 | F12: 930.5151797 | H12: 2518.985725 | I12: 2318.538237 | J12: 2125.60231 | K12: 1943.265537 | L12: 1739.214315 | N12: 2636.104141 | O12: 2452.806496 | P12: 2249.262144 | Q12: 2069.377958 | R12: 1870.830652 | T12: 2979.694204 | U12: 2784.209508 | V12: 2592.013597 | W12: 2397.871125 | X12: 2205.926806
A13: Fuel cost | B13: 49248.40627 | C13: 44127.06228 | D13: 38248.74277 | E13: 32672.63021 | F13: 27007.93057 | H13: 73112.82292 | I13: 67294.89329 | J13: 61694.98451 | K13: 56402.71308 | L13: 50480.18612 | N13: 76512.15065 | O13: 71191.99018 | P13: 65284.17498 | Q13: 60063.08918 | R13: 54300.31177 | T13: 86484.75159 | U13: 80810.86556 | V13: 75232.43552 | W13: 69597.50712 | X13: 64026.37949
A14: REopt LCC | B14: 81368.6 | C14: 75580.9 | D14: 69786.8 | E14: 63995 | F14: 58200.7 | H14: 97321.9 | I14: 91517.6 | J14: 85722.3 | K14: 79934.8 | L14: 74132 | N14: 100666 | O14: 94879.9 | P14: 89075.5 | Q14: 83287.7 | R14: 77492.3 | T14: 112825 | U14: 107029 | V14: 101231 | W14: 95433.9 | X14: 89636.2
A16: TMY_highPVBatt_HighDiesel_44_PB_business | B16: 100 | C16: 95 | D16: 90 | E16: 85 | F16: 80 | G16: TMY_highPVBatt_HighDiesel_44_PB_nrel | H16: 100 | I16: 95 | J16: 90 | K16: 85 | L16: 80 | M16: TMY_highPVBatt_HighDiesel_44_PB_average | N16: 100 | O16: 95 | P16: 90 | Q16: 85 | R16: 80 | S16: TMY_highPVBatt_HighDiesel_44_PB_residential | T16: 100 | U16: 95 | V16: 90 | W16: 85 | X16: 80
A17: PV kW | B17: 27.557 | C17: 16.558 | D17: 15.432 | E17: 14.471 | F17: 13.549 | H17: 27.913 | I17: 17.258 | J17: 16.222 | K17: 15.265 | L17: 14.284 | N17: 29.071 | O17: 17.406 | P17: 16.354 | Q17: 15.376 | R17: 14.394 | T17: 29.948 | U17: 18.045 | V17: 16.892 | W17: 15.802 | X17: 14.809
A18: Battery kW | B18: 4.76 | C18: 4.174 | D18: 3.136 | E18: 2.508 | F18: 2.056 | H18: 5.71 | I18: 5.067 | J18: 4.412 | K18: 4.036 | L18: 3.651 | N18: 6.78 | O18: 5.828 | P18: 4.929 | Q18: 4.231 | R18: 3.853 | T18: 10.62 | U18: 9.171 | V18: 7.455 | W18: 6.458 | X18: 5.545
A19: Battery kWh | B19: 30.104 | C19: 27.338 | D19: 23.96 | E19: 20.413 | F19: 16.779 | H19: 48.96 | I19: 44.013 | J19: 40.513 | K19: 36.618 | L19: 32.809 | N19: 48.58 | O19: 45.924 | P19: 42.327 | Q19: 38.741 | R19: 34.923 | T19: 56.059 | U19: 53.348 | V19: 49.659 | W19: 45.998 | X19: 42.257
A20: Generator kW | B20: 0 | C20: 0 | D20: 0 | E20: 0 | F20: 0 | H20: 0 | I20: 0 | J20: 0 | K20: 0 | L20: 0 | N20: 0 | O20: 0 | P20: 0 | Q20: 0 | R20: 0 | T20: 0 | U20: 0 | V20: 0 | W20: 0 | X20: 0
A21: PV capital cost | B21: 60624.52 | C21: 36427.38 | D21: 33951.06 | E21: 31835.98 | F21: 29808.24 | H21: 61409.04 | I21: 37967.82 | J21: 35688.84 | K21: 33582.12 | L21: 31423.7 | N21: 63955.32 | O21: 38292.32 | P21: 35979.02 | Q21: 33826.32 | R21: 31667.46 | T21: 65886.48 | U21: 39698.12 | V21: 37162.4 | W21: 34764.84 | X21: 32580.24
A22: PV O&M | B22: 10322.61428 | C22: 6202.536416 | D22: 5780.890253 | E22: 5420.752886 | F22: 5075.487012 | H22: 10456.1955 | I22: 6464.829098 | J22: 6076.784269 | K22: 5718.070369 | L22: 5350.553445 | N22: 10889.75384 | O22: 6520.082126 | P22: 6126.193587 | Q22: 5759.650615 | R22: 5392.058771 | T22: 11218.57492 | U22: 6759.449484 | V22: 6327.689208 | W22: 5919.453611 | X22: 5547.478985
A23: Battery capital cost | B23: 33133.27186 | C23: 29879.68497 | D23: 25450.3829 | E23: 21452.29281 | F23: 17625.20241 | H23: 51021.73243 | I23: 45772.49432 | J23: 41776.68006 | K23: 37829.43131 | L23: 33942.76754 | N23: 52197.25011 | O23: 48523.45746 | P23: 44098.42585 | Q23: 39967.68838 | R23: 36083.48694 | T23: 64176.84612 | U23: 59753.96363 | V23: 54096.31175 | W23: 49477.14415 | X23: 44905.56191
A24: Battery O&M | B24: 7688.795207 | C24: 6982.263068 | D24: 6119.575143 | E24: 5213.595746 | F24: 4285.523651 | H24: 12504.77347 | I24: 11241.2244 | J24: 10347.19805 | K24: 9352.464748 | L24: 8379.594281 | N24: 12407.71885 | O24: 11729.40917 | P24: 10810.58281 | Q24: 9894.795784 | R24: 8919.703277 | T24: 14317.98376 | U24: 13625.499 | V24: 12683.25182 | W24: 11748.20712 | X24: 10792.67878
A25: Diesel capital cost | B25: 0 | C25: 0 | D25: 0 | E25: 0 | F25: 0 | H25: 0 | I25: 0 | J25: 0 | K25: 0 | L25: 0 | N25: 0 | O25: 0 | P25: 0 | Q25: 0 | R25: 0 | T25: 0 | U25: 0 | V25: 0 | W25: 0 | X25: 0
A26: Diesel O&M (kW) | B26: 0 | C26: 0 | D26: 0 | E26: 0 | F26: 0 | H26: 0 | I26: 0 | J26: 0 | K26: 0 | L26: 0 | N26: 0 | O26: 0 | P26: 0 | Q26: 0 | R26: 0 | T26: 0 | U26: 0 | V26: 0 | W26: 0 | X26: 0
A27: Diesel O&M (kWh) | B27: 0 | C27: 0 | D27: 0 | E27: 0 | F27: 0 | H27: 0 | I27: 0 | J27: 0 | K27: 0 | L27: 0 | N27: 0 | O27: 0 | P27: 0 | Q27: 0 | R27: 0 | T27: 0 | U27: 0 | V27: 0 | W27: 0 | X27: 0
A28: Fuel cost | B28: 0 | C28: 0 | D28: 0 | E28: 0 | F28: 0 | H28: 0 | I28: 0 | J28: 0 | K28: 0 | L28: 0 | N28: 0 | O28: 0 | P28: 0 | Q28: 0 | R28: 0 | T28: 0 | U28: 0 | V28: 0 | W28: 0 | X28: 0
A29: REopt LCC | B29: 111769 | C29: 79492 | D29: 71302 | E29: 63922.7 | F29: 56794.4 | H29: 135392 | I29: 101447 | J29: 93889.6 | K29: 86482.1 | L29: 79096.7 | N29: 139450 | O29: 105065 | P29: 97014.2 | Q29: 89448.5 | R29: 82062.7 | T29: 155600 | U29: 119837 | V29: 110270 | W29: 101910 | X29: 93826.1
A31: TMY_highPVBatt_HighDiesel_44_D_business | B31: 100 | C31: 95 | D31: 90 | E31: 85 | F31: 80 | G31: TMY_highPVBatt_HighDiesel_44_D_nrel | H31: 100 | I31: 95 | J31: 90 | K31: 85 | L31: 80 | M31: TMY_highPVBatt_HighDiesel_44_D_average | N31: 100 | O31: 95 | P31: 90 | Q31: 85 | R31: 80 | S31: TMY_highPVBatt_HighDiesel_44_D_residential | T31: 100 | U31: 95 | V31: 90 | W31: 85 | X31: 80
A32: PV kW | B32: 0 | C32: 0 | D32: 0 | E32: 0 | F32: 0 | H32: 0 | I32: 0 | J32: 0 | K32: 0 | L32: 0 | N32: 0 | O32: 0 | P32: 0 | Q32: 0 | R32: 0 | T32: 0 | U32: 0 | V32: 0 | W32: 0 | X32: 0
A33: Battery kW | B33: 0 | C33: 0 | D33: 0 | E33: 0 | F33: 0 | H33: 0 | I33: 0 | J33: 0 | K33: 0 | L33: 0 | N33: 0 | O33: 0 | P33: 0 | Q33: 0 | R33: 0 | T33: 0 | U33: 0 | V33: 0 | W33: 0 | X33: 0
A34: Battery kWh | B34: 0 | C34: 0 | D34: 0 | E34: 0 | F34: 0 | H34: 0 | I34: 0 | J34: 0 | K34: 0 | L34: 0 | N34: 0 | O34: 0 | P34: 0 | Q34: 0 | R34: 0 | T34: 0 | U34: 0 | V34: 0 | W34: 0 | X34: 0
A35: Generator kW | B35: 6 | C35: 6 | D35: 6 | E35: 6 | F35: 6 | H35: 7 | I35: 7 | J35: 7 | K35: 7 | L35: 7 | N35: 8 | O35: 8 | P35: 8 | Q35: 8 | R35: 8 | T35: 12 | U35: 12 | V35: 12 | W35: 12 | X35: 12
A36: PV capital cost | B36: 0 | C36: 0 | D36: 0 | E36: 0 | F36: 0 | H36: 0 | I36: 0 | J36: 0 | K36: 0 | L36: 0 | N36: 0 | O36: 0 | P36: 0 | Q36: 0 | R36: 0 | T36: 0 | U36: 0 | V36: 0 | W36: 0 | X36: 0
A37: PV O&M | B37: 0 | C37: 0 | D37: 0 | E37: 0 | F37: 0 | H37: 0 | I37: 0 | J37: 0 | K37: 0 | L37: 0 | N37: 0 | O37: 0 | P37: 0 | Q37: 0 | R37: 0 | T37: 0 | U37: 0 | V37: 0 | W37: 0 | X37: 0
A38: Battery capital cost | B38: 0 | C38: 0 | D38: 0 | E38: 0 | F38: 0 | H38: 0 | I38: 0 | J38: 0 | K38: 0 | L38: 0 | N38: 0 | O38: 0 | P38: 0 | Q38: 0 | R38: 0 | T38: 0 | U38: 0 | V38: 0 | W38: 0 | X38: 0
A39: Battery O&M | B39: 0 | C39: 0 | D39: 0 | E39: 0 | F39: 0 | H39: 0 | I39: 0 | J39: 0 | K39: 0 | L39: 0 | N39: 0 | O39: 0 | P39: 0 | Q39: 0 | R39: 0 | T39: 0 | U39: 0 | V39: 0 | W39: 0 | X39: 0
A40: Diesel capital cost | B40: 4156.62 | C40: 4156.62 | D40: 4156.62 | E40: 4156.62 | F40: 4156.62 | H40: 4849.39 | I40: 4849.39 | J40: 4849.39 | K40: 4849.39 | L40: 4849.39 | N40: 5542.16 | O40: 5542.16 | P40: 5542.16 | Q40: 5542.16 | R40: 5542.16 | T40: 8313.24 | U40: 8313.24 | V40: 8313.24 | W40: 8313.24 | X40: 8313.24
A41: Diesel O&M (kW) | B41: 1277.034558 | C41: 1277.034558 | D41: 1277.034558 | E41: 1277.034558 | F41: 1277.034558 | H41: 1489.873651 | I41: 1489.873651 | J41: 1489.873651 | K41: 1489.873651 | L41: 1489.873651 | N41: 1702.712744 | O41: 1702.712744 | P41: 1702.712744 | Q41: 1702.712744 | R41: 1702.712744 | T41: 2554.069116 | U41: 2554.069116 | V41: 2554.069116 | W41: 2554.069116 | X41: 2554.069116
A42: Diesel O&M (kWh) | B42: 3858.739128 | C42: 3665.802171 | D42: 3472.865215 | E42: 3279.928258 | F42: 3086.991302 | H42: 3860.168555 | I42: 3667.160127 | J42: 3474.151699 | K42: 3281.143272 | L42: 3088.134844 | N42: 3860.168555 | O42: 3667.160127 | P42: 3474.151699 | Q42: 3281.143272 | R42: 3088.134844 | T42: 3861.597982 | U42: 3668.518083 | V42: 3475.438184 | W42: 3282.358285 | X42: 3089.278386
A43: Fuel cost | B43: 111998.7731 | C43: 106398.8344 | D43: 100798.8958 | E43: 95198.9571 | F43: 89599.01845 | H43: 112040.2618 | I43: 106438.2487 | J43: 100836.2356 | K43: 95234.2225 | L43: 89632.20941 | N43: 112040.2618 | O43: 106438.2487 | P43: 100836.2356 | Q43: 95234.2225 | R43: 89632.20941 | T43: 112081.7505 | U43: 106477.663 | V43: 100873.5754 | W43: 95269.48791 | X43: 89665.40038
A44: REopt LCC | B44: 121295 | C44: 115502 | D44: 109709 | E44: 103915 | F44: 98122.4 | H44: 122243 | I44: 116448 | J44: 110653 | K44: 104858 | L44: 99062.3 | N44: 123149 | O44: 117353 | P44: 111558 | Q44: 105763 | R44: 99967.9 | T44: 126814 | U44: 121017 | V44: 115219 | W44: 109422 | X44: 103624
A46: TMY_highPVBatt_HighDiesel_36_PBD_business | B46: 100 | C46: 95 | D46: 90 | E46: 85 | F46: 80 | G46: TMY_highPVBatt_HighDiesel_36_PBD_nrel | H46: 100 | I46: 95 | J46: 90 | K46: 85 | L46: 80 | M46: TMY_highPVBatt_HighDiesel_36_PBD_average | N46: 100 | O46: 95 | P46: 90 | Q46: 85 | R46: 80 | S46: TMY_highPVBatt_HighDiesel_36_PBD_residential | T46: 100 | U46: 95 | V46: 90 | W46: 85 | X46: 80
A47: PV kW | B47: 8.566 | C47: 8.566 | D47: 8.566 | E47: 8.566 | F47: 8.566 | H47: 5.499 | I47: 5.499 | J47: 5.499 | K47: 5.499 | L47: 5.499 | N47: 4.925 | O47: 4.925 | P47: 4.925 | Q47: 4.925 | R47: 4.925 | T47: 3.48 | U47: 3.48 | V47: 3.48 | W47: 3.48 | X47: 3.48
A48: Battery kW | B48: 0 | C48: 0 | D48: 0 | E48: 0 | F48: 0 | H48: 0 | I48: 0 | J48: 0 | K48: 0 | L48: 0 | N48: 0 | O48: 0 | P48: 0 | Q48: 0 | R48: 0 | T48: 0 | U48: 0 | V48: 0 | W48: 0 | X48: 0
A49: Battery kWh | B49: 0 | C49: 0 | D49: 0 | E49: 0 | F49: 0 | H49: 0 | I49: 0 | J49: 0 | K49: 0 | L49: 0 | N49: 0 | O49: 0 | P49: 0 | Q49: 0 | R49: 0 | T49: 0 | U49: 0 | V49: 0 | W49: 0 | X49: 0
A50: Generator kW | B50: 6 | C50: 6 | D50: 6 | E50: 6 | F50: 6 | H50: 7 | I50: 7 | J50: 7 | K50: 7 | L50: 7 | N50: 8 | O50: 8 | P50: 8 | Q50: 8 | R50: 8 | T50: 12 | U50: 12 | V50: 12 | W50: 12 | X50: 12
A51: PV capital cost | B51: 18844.804 | C51: 18844.804 | D51: 18844.804 | E51: 18844.804 | F51: 18844.804 | H51: 12098.834 | I51: 12098.834 | J51: 12098.834 | K51: 12098.834 | L51: 12098.834 | N51: 10834.472 | O51: 10834.472 | P51: 10834.472 | Q51: 10834.472 | R51: 10834.472 | T51: 7655.78 | U51: 7655.78 | V51: 7655.78 | W51: 7655.78 | X51: 7655.78
A52: PV O&M | B52: 3208.728793 | C52: 3208.728793 | D52: 3208.728793 | E52: 3208.728793 | F52: 3208.728793 | H52: 2060.083884 | I52: 2060.083884 | J52: 2060.083884 | K52: 2060.083884 | L52: 2060.083884 | N52: 1844.799355 | O52: 1844.799355 | P52: 1844.799355 | Q52: 1844.799355 | R52: 1844.799355 | T52: 1303.559417 | U52: 1303.559417 | V52: 1303.559417 | W52: 1303.559417 | X52: 1303.559417
A53: Battery capital cost | B53: 0 | C53: 0 | D53: 0 | E53: 0 | F53: 0 | H53: 0 | I53: 0 | J53: 0 | K53: 0 | L53: 0 | N53: 0 | O53: 0 | P53: 0 | Q53: 0 | R53: 0 | T53: 0 | U53: 0 | V53: 0 | W53: 0 | X53: 0
A54: Battery O&M | B54: 0 | C54: 0 | D54: 0 | E54: 0 | F54: 0 | H54: 0 | I54: 0 | J54: 0 | K54: 0 | L54: 0 | N54: 0 | O54: 0 | P54: 0 | Q54: 0 | R54: 0 | T54: 0 | U54: 0 | V54: 0 | W54: 0 | X54: 0
A55: Diesel capital cost | B55: 4156.62 | C55: 4156.62 | D55: 4156.62 | E55: 4156.62 | F55: 4156.62 | H55: 4849.39 | I55: 4849.39 | J55: 4849.39 | K55: 4849.39 | L55: 4849.39 | N55: 5542.16 | O55: 5542.16 | P55: 5542.16 | Q55: 5542.16 | R55: 5542.16 | T55: 8313.24 | U55: 8313.24 | V55: 8313.24 | W55: 8313.24 | X55: 8313.24
A56: Diesel O&M (kW) | B56: 1277.034558 | C56: 1277.034558 | D56: 1277.034558 | E56: 1277.034558 | F56: 1277.034558 | H56: 1489.873651 | I56: 1489.873651 | J56: 1489.873651 | K56: 1489.873651 | L56: 1489.873651 | N56: 1702.712744 | O56: 1702.712744 | P56: 1702.712744 | Q56: 1702.712744 | R56: 1702.712744 | T56: 2554.069116 | U56: 2554.069116 | V56: 2554.069116 | W56: 2554.069116 | X56: 2554.069116
A57: Diesel O&M (kWh) | B57: 1800.857047 | C57: 1607.920091 | D57: 1414.983135 | E57: 1222.046178 | F57: 1029.109216 | H57: 2561.322181 | I57: 2368.313754 | J57: 2175.305326 | K57: 1982.296898 | L57: 1789.28847 | N57: 2692.451643 | O57: 2499.443216 | P57: 2306.434788 | Q57: 2113.42636 | R57: 1920.417933 | T57: 3105.051337 | U57: 2911.971438 | V57: 2718.891539 | W57: 2525.81164 | X57: 2332.731741
A58: Fuel cost | B58: 42765.83049 | C58: 38184.0625 | D58: 33602.29451 | E58: 29020.52652 | F58: 24438.7584 | H58: 60824.96687 | I58: 56241.50162 | J58: 51658.03636 | K58: 47074.57111 | L58: 42491.10586 | N58: 63938.96215 | O58: 59355.4969 | P58: 54772.03164 | Q58: 50188.56639 | R58: 45605.10114 | T58: 73737.16829 | U58: 69152.00577 | V58: 64566.84325 | W58: 59981.68073 | X58: 55396.51821
A59: REopt LCC | B59: 72055.4 | C59: 67280.5 | D59: 62505.6 | E59: 57730.7 | F59: 52955.9 | H59: 83886.7 | I59: 79110 | J59: 74333.4 | K59: 69556.7 | L59: 64780 | N59: 86557.8 | O59: 81781.2 | P59: 77004.5 | Q59: 72227.9 | R59: 67451.2 | T59: 96671.4 | U59: 91893 | V59: 87114.5 | W59: 82336.1 | X59: 77557.7
A61: TMY_highPVBatt_HighDiesel_36_PB_business | B61: 100 | C61: 95 | D61: 90 | E61: 85 | F61: 80 | G61: TMY_highPVBatt_HighDiesel_36_PB_nrel | H61: 100 | I61: 95 | J61: 90 | K61: 85 | L61: 80 | M61: TMY_highPVBatt_HighDiesel_36_PB_average | N61: 100 | O61: 95 | P61: 90 | Q61: 85 | R61: 80 | S61: TMY_highPVBatt_HighDiesel_36_PB_residential | T61: 100 | U61: 95 | V61: 90 | W61: 85 | X61: 80
A62: PV kW | B62: 27.557 | C62: 16.558 | D62: 15.432 | E62: 14.471 | F62: 13.549 | H62: 27.913 | I62: 17.258 | J62: 16.222 | K62: 15.265 | L62: 14.284 | N62: 29.071 | O62: 17.406 | P62: 16.354 | Q62: 15.376 | R62: 14.394 | T62: 29.948 | U62: 18.045 | V62: 16.892 | W62: 15.802 | X62: 14.809
A63: Battery kW | B63: 4.76 | C63: 4.174 | D63: 3.136 | E63: 2.508 | F63: 2.056 | H63: 5.71 | I63: 5.067 | J63: 4.412 | K63: 4.036 | L63: 3.651 | N63: 6.78 | O63: 5.828 | P63: 4.929 | Q63: 4.231 | R63: 3.853 | T63: 10.62 | U63: 9.171 | V63: 7.455 | W63: 6.458 | X63: 5.545
A64: Battery kWh | B64: 30.104 | C64: 27.338 | D64: 23.96 | E64: 20.413 | F64: 16.779 | H64: 48.96 | I64: 44.013 | J64: 40.513 | K64: 36.618 | L64: 32.809 | N64: 48.58 | O64: 45.924 | P64: 42.327 | Q64: 38.741 | R64: 34.923 | T64: 56.059 | U64: 53.348 | V64: 49.659 | W64: 45.998 | X64: 42.257
A65: Generator kW | B65: 0 | C65: 0 | D65: 0 | E65: 0 | F65: 0 | H65: 0 | I65: 0 | J65: 0 | K65: 0 | L65: 0 | N65: 0 | O65: 0 | P65: 0 | Q65: 0 | R65: 0 | T65: 0 | U65: 0 | V65: 0 | W65: 0 | X65: 0
A66: PV capital cost | B66: 60624.52 | C66: 36427.38 | D66: 33951.06 | E66: 31835.98 | F66: 29808.24 | H66: 61409.04 | I66: 37967.82 | J66: 35688.84 | K66: 33582.12 | L66: 31423.7 | N66: 63955.32 | O66: 38292.32 | P66: 35979.02 | Q66: 33826.32 | R66: 31667.46 | T66: 65886.48 | U66: 39698.12 | V66: 37162.4 | W66: 34764.84 | X66: 32580.24
A67: PV O&M | B67: 10322.61428 | C67: 6202.536416 | D67: 5780.890253 | E67: 5420.752886 | F67: 5075.487012 | H67: 10456.1955 | I67: 6464.829098 | J67: 6076.784269 | K67: 5718.070369 | L67: 5350.553445 | N67: 10889.75384 | O67: 6520.082126 | P67: 6126.193587 | Q67: 5759.650615 | R67: 5392.058771 | T67: 11218.57492 | U67: 6759.449484 | V67: 6327.689208 | W67: 5919.453611 | X67: 5547.478985
A68: Battery capital cost | B68: 33133.27186 | C68: 29879.68497 | D68: 25450.3829 | E68: 21452.29281 | F68: 17625.20241 | H68: 51021.73243 | I68: 45772.49432 | J68: 41776.68006 | K68: 37829.43131 | L68: 33942.76754 | N68: 52197.25011 | O68: 48523.45746 | P68: 44098.42585 | Q68: 39967.68838 | R68: 36083.48694 | T68: 64176.84612 | U68: 59753.96363 | V68: 54096.31175 | W68: 49477.14415 | X68: 44905.56191
A69: Battery O&M | B69: 7688.795207 | C69: 6982.263068 | D69: 6119.575143 | E69: 5213.595746 | F69: 4285.523651 | H69: 12504.77347 | I69: 11241.2244 | J69: 10347.19805 | K69: 9352.464748 | L69: 8379.594281 | N69: 12407.71885 | O69: 11729.40917 | P69: 10810.58281 | Q69: 9894.795784 | R69: 8919.703277 | T69: 14317.98376 | U69: 13625.499 | V69: 12683.25182 | W69: 11748.20712 | X69: 10792.67878
A70: Diesel capital cost | B70: 0 | C70: 0 | D70: 0 | E70: 0 | F70: 0 | H70: 0 | I70: 0 | J70: 0 | K70: 0 | L70: 0 | N70: 0 | O70: 0 | P70: 0 | Q70: 0 | R70: 0 | T70: 0 | U70: 0 | V70: 0 | W70: 0 | X70: 0
A71: Diesel O&M (kW) | B71: 0 | C71: 0 | D71: 0 | E71: 0 | F71: 0 | H71: 0 | I71: 0 | J71: 0 | K71: 0 | L71: 0 | N71: 0 | O71: 0 | P71: 0 | Q71: 0 | R71: 0 | T71: 0 | U71: 0 | V71: 0 | W71: 0 | X71: 0
A72: Diesel O&M (kWh) | B72: 0 | C72: 0 | D72: 0 | E72: 0 | F72: 0 | H72: 0 | I72: 0 | J72: 0 | K72: 0 | L72: 0 | N72: 0 | O72: 0 | P72: 0 | Q72: 0 | R72: 0 | T72: 0 | U72: 0 | V72: 0 | W72: 0 | X72: 0
A73: Fuel cost | B73: 0 | C73: 0 | D73: 0 | E73: 0 | F73: 0 | H73: 0 | I73: 0 | J73: 0 | K73: 0 | L73: 0 | N73: 0 | O73: 0 | P73: 0 | Q73: 0 | R73: 0 | T73: 0 | U73: 0 | V73: 0 | W73: 0 | X73: 0
A74: REopt LCC | B74: 111769 | C74: 79492 | D74: 71302 | E74: 63922.7 | F74: 56794.4 | H74: 135392 | I74: 101447 | J74: 93889.6 | K74: 86482.1 | L74: 79096.7 | N74: 139450 | O74: 105065 | P74: 97014.2 | Q74: 89448.5 | R74: 82062.7 | T74: 155600 | U74: 119837 | V74: 110270 | W74: 101910 | X74: 93826.1
A76: TMY_highPVBatt_HighDiesel_36_D_business | B76: 100 | C76: 95 | D76: 90 | E76: 85 | F76: 80 | G76: TMY_highPVBatt_HighDiesel_36_D_nrel | H76: 100 | I76: 95 | J76: 90 | K76: 85 | L76: 80 | M76: TMY_highPVBatt_HighDiesel_36_D_average | N76: 100 | O76: 95 | P76: 90 | Q76: 85 | R76: 80 | S76: TMY_highPVBatt_HighDiesel_36_D_residential | T76: 100 | U76: 95 | V76: 90 | W76: 85 | X76: 80
A77: PV kW | B77: 0 | C77: 0 | D77: 0 | E77: 0 | F77: 0 | H77: 0 | I77: 0 | J77: 0 | K77: 0 | L77: 0 | N77: 0 | O77: 0 | P77: 0 | Q77: 0 | R77: 0 | T77: 0 | U77: 0 | V77: 0 | W77: 0 | X77: 0
A78: Battery kW | B78: 0 | C78: 0 | D78: 0 | E78: 0 | F78: 0 | H78: 0 | I78: 0 | J78: 0 | K78: 0 | L78: 0 | N78: 0 | O78: 0 | P78: 0 | Q78: 0 | R78: 0 | T78: 0 | U78: 0 | V78: 0 | W78: 0 | X78: 0
A79: Battery kWh | B79: 0 | C79: 0 | D79: 0 | E79: 0 | F79: 0 | H79: 0 | I79: 0 | J79: 0 | K79: 0 | L79: 0 | N79: 0 | O79: 0 | P79: 0 | Q79: 0 | R79: 0 | T79: 0 | U79: 0 | V79: 0 | W79: 0 | X79: 0
A80: Generator kW | B80: 6 | C80: 6 | D80: 6 | E80: 6 | F80: 6 | H80: 7 | I80: 7 | J80: 7 | K80: 7 | L80: 7 | N80: 8 | O80: 8 | P80: 8 | Q80: 8 | R80: 8 | T80: 12 | U80: 12 | V80: 12 | W80: 12 | X80: 12
A81: PV capital cost | B81: 0 | C81: 0 | D81: 0 | E81: 0 | F81: 0 | H81: 0 | I81: 0 | J81: 0 | K81: 0 | L81: 0 | N81: 0 | O81: 0 | P81: 0 | Q81: 0 | R81: 0 | T81: 0 | U81: 0 | V81: 0 | W81: 0 | X81: 0
A82: PV O&M | B82: 0 | C82: 0 | D82: 0 | E82: 0 | F82: 0 | H82: 0 | I82: 0 | J82: 0 | K82: 0 | L82: 0 | N82: 0 | O82: 0 | P82: 0 | Q82: 0 | R82: 0 | T82: 0 | U82: 0 | V82: 0 | W82: 0 | X82: 0
A83: Battery capital cost | B83: 0 | C83: 0 | D83: 0 | E83: 0 | F83: 0 | H83: 0 | I83: 0 | J83: 0 | K83: 0 | L83: 0 | N83: 0 | O83: 0 | P83: 0 | Q83: 0 | R83: 0 | T83: 0 | U83: 0 | V83: 0 | W83: 0 | X83: 0
A84: Battery O&M | B84: 0 | C84: 0 | D84: 0 | E84: 0 | F84: 0 | H84: 0 | I84: 0 | J84: 0 | K84: 0 | L84: 0 | N84: 0 | O84: 0 | P84: 0 | Q84: 0 | R84: 0 | T84: 0 | U84: 0 | V84: 0 | W84: 0 | X84: 0
A85: Diesel capital cost | B85: 4156.62 | C85: 4156.62 | D85: 4156.62 | E85: 4156.62 | F85: 4156.62 | H85: 4849.39 | I85: 4849.39 | J85: 4849.39 | K85: 4849.39 | L85: 4849.39 | N85: 5542.16 | O85: 5542.16 | P85: 5542.16 | Q85: 5542.16 | R85: 5542.16 | T85: 8313.24 | U85: 8313.24 | V85: 8313.24 | W85: 8313.24 | X85: 8313.24
A86: Diesel O&M (kW) | B86: 1277.034558 | C86: 1277.034558 | D86: 1277.034558 | E86: 1277.034558 | F86: 1277.034558 | H86: 1489.873651 | I86: 1489.873651 | J86: 1489.873651 | K86: 1489.873651 | L86: 1489.873651 | N86: 1702.712744 | O86: 1702.712744 | P86: 1702.712744 | Q86: 1702.712744 | R86: 1702.712744 | T86: 2554.069116 | U86: 2554.069116 | V86: 2554.069116 | W86: 2554.069116 | X86: 2554.069116
A87: Diesel O&M (kWh) | B87: 3858.739128 | C87: 3665.802171 | D87: 3472.865215 | E87: 3279.928258 | F87: 3086.991302 | H87: 3860.168555 | I87: 3667.160127 | J87: 3474.151699 | K87: 3281.143272 | L87: 3088.134844 | N87: 3860.168555 | O87: 3667.160127 | P87: 3474.151699 | Q87: 3281.143272 | R87: 3088.134844 | T87: 3861.597982 | U87: 3668.518083 | V87: 3475.438184 | W87: 3282.358285 | X87: 3089.278386
A88: Fuel cost | B88: 91635.35977 | C88: 87053.59179 | D88: 82471.8238 | E88: 77890.05581 | F88: 73308.28782 | H88: 91669.30508 | I88: 87085.83983 | J88: 82502.37457 | K88: 77918.90932 | L88: 73335.44407 | N88: 91669.30508 | O88: 87085.83983 | P88: 82502.37457 | Q88: 77918.90932 | R88: 73335.44407 | T88: 91703.25039 | U88: 87118.08787 | V88: 82532.92535 | W88: 77947.76283 | X88: 73362.60031
A89: REopt LCC | B89: 100931 | C89: 96156.3 | D89: 91381.4 | E89: 86606.6 | F89: 81831.7 | H89: 101872 | I89: 97095.5 | J89: 92318.9 | K89: 87542.2 | L89: 82765.5 | N89: 102778 | O89: 98001.1 | P89: 93224.4 | Q89: 88447.8 | R89: 83671.1 | T89: 106435 | U89: 101657 | V89: 96878.5 | W89: 92100.1 | X89: 87321.7
A91: TMY_highPVBatt_HighDiesel_32_PBD_business | B91: 100 | C91: 95 | D91: 90 | E91: 85 | F91: 80 | G91: TMY_highPVBatt_HighDiesel_32_PBD_nrel | H91: 100 | I91: 95 | J91: 90 | K91: 85 | L91: 80 | M91: TMY_highPVBatt_HighDiesel_32_PBD_average | N91: 100 | O91: 95 | P91: 90 | Q91: 85 | R91: 80 | S91: TMY_highPVBatt_HighDiesel_32_PBD_residential | T91: 100 | U91: 95 | V91: 90 | W91: 85 | X91: 80
A92: PV kW | B92: 8.312 | C92: 8.312 | D92: 8.312 | E92: 8.312 | F92: 8.312 | H92: 5.296 | I92: 5.296 | J92: 5.296 | K92: 5.296 | L92: 5.296 | N92: 4.731 | O92: 4.731 | P92: 4.731 | Q92: 4.731 | R92: 4.731 | T92: 3.217 | U92: 3.217 | V92: 3.217 | W92: 3.217 | X92: 3.217
A93: Battery kW | B93: 0 | C93: 0 | D93: 0 | E93: 0 | F93: 0 | H93: 0 | I93: 0 | J93: 0 | K93: 0 | L93: 0 | N93: 0 | O93: 0 | P93: 0 | Q93: 0 | R93: 0 | T93: 0 | U93: 0 | V93: 0 | W93: 0 | X93: 0
A94: Battery kWh | B94: 0 | C94: 0 | D94: 0 | E94: 0 | F94: 0 | H94: 0 | I94: 0 | J94: 0 | K94: 0 | L94: 0 | N94: 0 | O94: 0 | P94: 0 | Q94: 0 | R94: 0 | T94: 0 | U94: 0 | V94: 0 | W94: 0 | X94: 0
A95: Generator kW | B95: 6 | C95: 6 | D95: 6 | E95: 6 | F95: 6 | H95: 7 | I95: 7 | J95: 7 | K95: 7 | L95: 7 | N95: 8 | O95: 8 | P95: 8 | Q95: 8 | R95: 8 | T95: 12 | U95: 12 | V95: 12 | W95: 12 | X95: 12
A96: PV capital cost | B96: 18287.28 | C96: 18287.28 | D96: 18287.28 | E96: 18287.28 | F96: 18287.28 | H96: 11652.146 | I96: 11652.146 | J96: 11652.146 | K96: 11652.146 | L96: 11652.146 | N96: 10407.364 | O96: 10407.364 | P96: 10407.364 | Q96: 10407.364 | R96: 10407.364 | T96: 7078.434 | U96: 7078.434 | V96: 7078.434 | W96: 7078.434 | X96: 7078.434
A97: PV O&M | B97: 3113.798471 | C97: 3113.798471 | D97: 3113.798471 | E97: 3113.798471 | F97: 3113.798471 | H97: 1984.025749 | I97: 1984.025749 | J97: 1984.025749 | K97: 1984.025749 | L97: 1984.025749 | N97: 1772.075131 | O97: 1772.075131 | P97: 1772.075131 | Q97: 1772.075131 | R97: 1772.075131 | T97: 1205.253978 | U97: 1205.253978 | V97: 1205.253978 | W97: 1205.253978 | X97: 1205.253978
A98: Battery capital cost | B98: 3.67335547e-09 | C98: 0 | D98: 0 | E98: 0 | F98: 0 | H98: 0 | I98: 0 | J98: 0 | K98: 0 | L98: 0 | N98: 0 | O98: 0 | P98: 0 | Q98: 0 | R98: 0 | T98: 0 | U98: 0 | V98: 0 | W98: 0 | X98: 0
A99: Battery O&M | B99: 1.069015845e-09 | C99: 0 | D99: 0 | E99: 0 | F99: 0 | H99: 0 | I99: 0 | J99: 0 | K99: 0 | L99: 0 | N99: 0 | O99: 0 | P99: 0 | Q99: 0 | R99: 0 | T99: 0 | U99: 0 | V99: 0 | W99: 0 | X99: 0
A100: Diesel capital cost | B100: 4156.62 | C100: 4156.62 | D100: 4156.62 | E100: 4156.62 | F100: 4156.62 | H100: 4849.39 | I100: 4849.39 | J100: 4849.39 | K100: 4849.39 | L100: 4849.39 | N100: 5542.16 | O100: 5542.16 | P100: 5542.16 | Q100: 5542.16 | R100: 5542.16 | T100: 8313.24 | U100: 8313.24 | V100: 8313.24 | W100: 8313.24 | X100: 8313.24
A101: Diesel O&M (kW) | B101: 1277.034558 | C101: 1277.034558 | D101: 1277.034558 | E101: 1277.034558 | F101: 1277.034558 | H101: 1489.873651 | I101: 1489.873651 | J101: 1489.873651 | K101: 1489.873651 | L101: 1489.873651 | N101: 1702.712744 | O101: 1702.712744 | P101: 1702.712744 | Q101: 1702.712744 | R101: 1702.712744 | T101: 2554.069116 | U101: 2554.069116 | V101: 2554.069116 | W101: 2554.069116 | X101: 2554.069116
A102: Diesel O&M (kWh) | B102: 1828.774841 | C102: 1635.837884 | D102: 1442.900929 | E102: 1249.963972 | F102: 1057.027026 | H102: 2583.589882 | I102: 2390.581455 | J102: 2197.573027 | K102: 2004.564599 | L102: 1811.556172 | N102: 2713.794426 | O102: 2520.785998 | P102: 2327.77757 | Q102: 2134.769143 | R102: 1941.760715 | T102: 3133.943718 | U102: 2940.863819 | V102: 2747.78392 | W102: 2554.70402 | X102: 2361.624121
A103: Fuel cost | B103: 38603.38485 | C103: 34530.70218 | D103: 30458.01954 | E103: 26385.33688 | F103: 22312.65444 | H103: 54536.6834 | I103: 50462.49206 | J103: 46388.30073 | K103: 42314.10939 | L103: 38239.91805 | N103: 57285.15521 | O103: 53210.96387 | P103: 49136.77254 | Q103: 45062.5812 | R103: 40988.38986 | T103: 66154.03532 | U103: 62078.3353 | V103: 58002.63528 | W103: 53926.93527 | X103: 49851.23525
A104: REopt LCC | B104: 67268.4 | C104: 63002.6 | D104: 58736.8 | E104: 54471 | F104: 50205.2 | H104: 77097.9 | I104: 72830.5 | J104: 68563.2 | K104: 64295.8 | L104: 60028.4 | N104: 79425.6 | O104: 75158.2 | P104: 70890.8 | Q104: 66623.4 | R104: 62356 | T104: 88441.5 | U104: 84172.6 | V104: 79903.6 | W104: 75634.6 | X104: 71365.7
A106: TMY_highPVBatt_HighDiesel_32_PB_business | B106: 100 | C106: 95 | D106: 90 | E106: 85 | F106: 80 | G106: TMY_highPVBatt_HighDiesel_32_PB_nrel | H106: 100 | I106: 95 | J106: 90 | K106: 85 | L106: 80 | M106: TMY_highPVBatt_HighDiesel_32_PB_average | N106: 100 | O106: 95 | P106: 90 | Q106: 85 | R106: 80 | S106: TMY_highPVBatt_HighDiesel_32_PB_residential | T106: 100 | U106: 95 | V106: 90 | W106: 85 | X106: 80
A107: PV kW | B107: 27.557 | C107: 16.558 | D107: 15.432 | E107: 14.471 | F107: 13.549 | H107: 27.913 | I107: 17.258 | J107: 16.222 | K107: 15.265 | L107: 14.284 | N107: 29.071 | O107: 17.406 | P107: 16.354 | Q107: 15.376 | R107: 14.394 | T107: 29.948 | U107: 18.045 | V107: 16.892 | W107: 15.802 | X107: 14.809
A108: Battery kW | B108: 4.76 | C108: 4.174 | D108: 3.136 | E108: 2.508 | F108: 2.056 | H108: 5.71 | I108: 5.067 | J108: 4.412 | K108: 4.036 | L108: 3.651 | N108: 6.78 | O108: 5.828 | P108: 4.929 | Q108: 4.231 | R108: 3.853 | T108: 10.62 | U108: 9.171 | V108: 7.455 | W108: 6.458 | X108: 5.545
A109: Battery kWh | B109: 30.104 | C109: 27.338 | D109: 23.96 | E109: 20.413 | F109: 16.779 | H109: 48.96 | I109: 44.013 | J109: 40.513 | K109: 36.618 | L109: 32.809 | N109: 48.58 | O109: 45.924 | P109: 42.327 | Q109: 38.741 | R109: 34.923 | T109: 56.059 | U109: 53.348 | V109: 49.659 | W109: 45.998 | X109: 42.257
A110: Generator kW | B110: 0 | C110: 0 | D110: 0 | E110: 0 | F110: 0 | H110: 0 | I110: 0 | J110: 0 | K110: 0 | L110: 0 | N110: 0 | O110: 0 | P110: 0 | Q110: 0 | R110: 0 | T110: 0 | U110: 0 | V110: 0 | W110: 0 | X110: 0
A111: PV capital cost | B111: 60624.52 | C111: 36427.38 | D111: 33951.06 | E111: 31835.98 | F111: 29808.24 | H111: 61409.04 | I111: 37967.82 | J111: 35688.84 | K111: 33582.12 | L111: 31423.7 | N111: 63955.32 | O111: 38292.32 | P111: 35979.02 | Q111: 33826.32 | R111: 31667.46 | T111: 65886.48 | U111: 39698.12 | V111: 37162.4 | W111: 34764.84 | X111: 32580.24
A112: PV O&M | B112: 10322.61428 | C112: 6202.536416 | D112: 5780.890253 | E112: 5420.752886 | F112: 5075.487012 | H112: 10456.1955 | I112: 6464.829098 | J112: 6076.784269 | K112: 5718.070369 | L112: 5350.553445 | N112: 10889.75384 | O112: 6520.082126 | P112: 6126.193587 | Q112: 5759.650615 | R112: 5392.058771 | T112: 11218.57492 | U112: 6759.449484 | V112: 6327.689208 | W112: 5919.453611 | X112: 5547.478985
A113: Battery capital cost | B113: 33133.27186 | C113: 29879.68497 | D113: 25450.3829 | E113: 21452.29281 | F113: 17625.20241 | H113: 51021.73243 | I113: 45772.49432 | J113: 41776.68006 | K113: 37829.43131 | L113: 33942.76754 | N113: 52197.25011 | O113: 48523.45746 | P113: 44098.42585 | Q113: 39967.68838 | R113: 36083.48694 | T113: 64176.84612 | U113: 59753.96363 | V113: 54096.31175 | W113: 49477.14415 | X113: 44905.56191
A114: Battery O&M | B114: 7688.795207 | C114: 6982.263068 | D114: 6119.575143 | E114: 5213.595746 | F114: 4285.523651 | H114: 12504.77347 | I114: 11241.2244 | J114: 10347.19805 | K114: 9352.464748 | L114: 8379.594281 | N114: 12407.71885 | O114: 11729.40917 | P114: 10810.58281 | Q114: 9894.795784 | R114: 8919.703277 | T114: 14317.98376 | U114: 13625.499 | V114: 12683.25182 | W114: 11748.20712 | X114: 10792.67878
A115: Diesel capital cost | B115: 0 | C115: 0 | D115: 0 | E115: 0 | F115: 0 | H115: 0 | I115: 0 | J115: 0 | K115: 0 | L115: 0 | N115: 0 | O115: 0 | P115: 0 | Q115: 0 | R115: 0 | T115: 0 | U115: 0 | V115: 0 | W115: 0 | X115: 0
A116: Diesel O&M (kW) | B116: 0 | C116: 0 | D116: 0 | E116: 0 | F116: 0 | H116: 0 | I116: 0 | J116: 0 | K116: 0 | L116: 0 | N116: 0 | O116: 0 | P116: 0 | Q116: 0 | R116: 0 | T116: 0 | U116: 0 | V116: 0 | W116: 0 | X116: 0
A117: Diesel O&M (kWh) | B117: 0 | C117: 0 | D117: 0 | E117: 0 | F117: 0 | H117: 0 | I117: 0 | J117: 0 | K117: 0 | L117: 0 | N117: 0 | O117: 0 | P117: 0 | Q117: 0 | R117: 0 | T117: 0 | U117: 0 | V117: 0 | W117: 0 | X117: 0
A118: Fuel cost | B118: 0 | C118: 0 | D118: 0 | E118: 0 | F118: 0 | H118: 0 | I118: 0 | J118: 0 | K118: 0 | L118: 0 | N118: 0 | O118: 0 | P118: 0 | Q118: 0 | R118: 0 | T118: 0 | U118: 0 | V118: 0 | W118: 0 | X118: 0
A119: REopt LCC | B119: 111769 | C119: 79492 | D119: 71302 | E119: 63922.7 | F119: 56794.4 | H119: 135392 | I119: 101447 | J119: 93889.6 | K119: 86482.1 | L119: 79096.7 | N119: 139450 | O119: 105065 | P119: 97014.2 | Q119: 89448.5 | R119: 82062.7 | T119: 155600 | U119: 119837 | V119: 110270 | W119: 101910 | X119: 93826.1
A121: TMY_highPVBatt_HighDiesel_32_D_business | B121: 100 | C121: 95 | D121: 90 | E121: 85 | F121: 80 | G121: TMY_highPVBatt_HighDiesel_32_D_nrel | H121: 100 | I121: 95 | J121: 90 | K121: 85 | L121: 80 | M121: TMY_highPVBatt_HighDiesel_32_D_average | N121: 100 | O121: 95 | P121: 90 | Q121: 85 | R121: 80 | S121: TMY_highPVBatt_HighDiesel_32_D_residential | T121: 100 | U121: 95 | V121: 90 | W121: 85 | X121: 80
A122: PV kW | B122: 0 | C122: 0 | D122: 0 | E122: 0 | F122: 0 | H122: 0 | I122: 0 | J122: 0 | K122: 0 | L122: 0 | N122: 0 | O122: 0 | P122: 0 | Q122: 0 | R122: 0 | T122: 0 | U122: 0 | V122: 0 | W122: 0 | X122: 0
A123: Battery kW | B123: 0 | C123: 0 | D123: 0 | E123: 0 | F123: 0 | H123: 0 | I123: 0 | J123: 0 | K123: 0 | L123: 0 | N123: 0 | O123: 0 | P123: 0 | Q123: 0 | R123: 0 | T123: 0 | U123: 0 | V123: 0 | W123: 0 | X123: 0
A124: Battery kWh | B124: 0 | C124: 0 | D124: 0 | E124: 0 | F124: 0 | H124: 0 | I124: 0 | J124: 0 | K124: 0 | L124: 0 | N124: 0 | O124: 0 | P124: 0 | Q124: 0 | R124: 0 | T124: 0 | U124: 0 | V124: 0 | W124: 0 | X124: 0
A125: Generator kW | B125: 6 | C125: 6 | D125: 6 | E125: 6 | F125: 6 | H125: 7 | I125: 7 | J125: 7 | K125: 7 | L125: 7 | N125: 8 | O125: 8 | P125: 8 | Q125: 8 | R125: 8 | T125: 12 | U125: 12 | V125: 12 | W125: 12 | X125: 12
A126: PV capital cost | B126: 0 | C126: 0 | D126: 0 | E126: 0 | F126: 0 | H126: 0 | I126: 0 | J126: 0 | K126: 0 | L126: 0 | N126: 0 | O126: 0 | P126: 0 | Q126: 0 | R126: 0 | T126: 0 | U126: 0 | V126: 0 | W126: 0 | X126: 0
A127: PV O&M | B127: 0 | C127: 0 | D127: 0 | E127: 0 | F127: 0 | H127: 0 | I127: 0 | J127: 0 | K127: 0 | L127: 0 | N127: 0 | O127: 0 | P127: 0 | Q127: 0 | R127: 0 | T127: 0 | U127: 0 | V127: 0 | W127: 0 | X127: 0
A128: Battery capital cost | B128: 0 | C128: 0 | D128: 0 | E128: 0 | F128: 0 | H128: 0 | I128: 0 | J128: 0 | K128: 0 | L128: 0 | N128: 0 | O128: 0 | P128: 0 | Q128: 0 | R128: 0 | T128: 0 | U128: 0 | V128: 0 | W128: 0 | X128: 0
A129: Battery O&M | B129: 0 | C129: 0 | D129: 0 | E129: 0 | F129: 0 | H129: 0 | I129: 0 | J129: 0 | K129: 0 | L129: 0 | N129: 0 | O129: 0 | P129: 0 | Q129: 0 | R129: 0 | T129: 0 | U129: 0 | V129: 0 | W129: 0 | X129: 0
A130: Diesel capital cost | B130: 4156.62 | C130: 4156.62 | D130: 4156.62 | E130: 4156.62 | F130: 4156.62 | H130: 4849.39 | I130: 4849.39 | J130: 4849.39 | K130: 4849.39 | L130: 4849.39 | N130: 5542.16 | O130: 5542.16 | P130: 5542.16 | Q130: 5542.16 | R130: 5542.16 | T130: 8313.24 | U130: 8313.24 | V130: 8313.24 | W130: 8313.24 | X130: 8313.24
A131: Diesel O&M (kW) | B131: 1277.034558 | C131: 1277.034558 | D131: 1277.034558 | E131: 1277.034558 | F131: 1277.034558 | H131: 1489.873651 | I131: 1489.873651 | J131: 1489.873651 | K131: 1489.873651 | L131: 1489.873651 | N131: 1702.712744 | O131: 1702.712744 | P131: 1702.712744 | Q131: 1702.712744 | R131: 1702.712744 | T131: 2554.069116 | U131: 2554.069116 | V131: 2554.069116 | W131: 2554.069116 | X131: 2554.069116
A132: Diesel O&M (kWh) | B132: 3858.739128 | C132: 3665.802171 | D132: 3472.865215 | E132: 3279.928258 | F132: 3086.991302 | H132: 3860.168555 | I132: 3667.160127 | J132: 3474.151699 | K132: 3281.143272 | L132: 3088.134844 | N132: 3860.168555 | O132: 3667.160127 | P132: 3474.151699 | Q132: 3281.143272 | R132: 3088.134844 | T132: 3861.597982 | U132: 3668.518083 | V132: 3475.438184 | W132: 3282.358285 | X132: 3089.278386
A133: Fuel cost | B133: 81453.65313 | C133: 77380.97048 | D133: 73308.28782 | E133: 69235.60516 | F133: 65162.92251 | H133: 81483.82674 | I133: 77409.6354 | J133: 73335.44407 | K133: 69261.25273 | L133: 65187.06139 | N133: 81483.82674 | O133: 77409.6354 | P133: 73335.44407 | Q133: 69261.25273 | R133: 65187.06139 | T133: 81514.00035 | U133: 77438.30033 | V133: 73362.60031 | W133: 69286.9003 | X133: 65211.20028
A134: REopt LCC | B134: 90749.5 | C134: 86483.7 | D134: 82217.9 | E134: 77952.1 | F134: 73686.3 | H134: 91686.7 | I134: 87419.3 | J134: 83151.9 | K134: 78884.5 | L134: 74617.2 | N134: 92592.3 | O134: 88324.9 | P134: 84057.5 | Q134: 79790.1 | R134: 75522.7 | T134: 96246.1 | U134: 91977.2 | V134: 87708.2 | W134: 83439.3 | X134: 79170.3
A136: TMY_highPVBatt_MedDiesel_44_PBD_business | B136: 100 | C136: 95 | D136: 90 | E136: 85 | F136: 80 | G136: TMY_highPVBatt_MedDiesel_44_PBD_nrel | H136: 100 | I136: 95 | J136: 90 | K136: 85 | L136: 80 | M136: TMY_highPVBatt_MedDiesel_44_PBD_average | N136: 100 | O136: 95 | P136: 90 | Q136: 85 | R136: 80 | S136: TMY_highPVBatt_MedDiesel_44_PBD_residential | T136: 100 | U136: 95 | V136: 90 | W136: 85 | X136: 80
A137: PV kW | B137: 8.615 | C137: 8.615 | D137: 8.615 | E137: 8.615 | F137: 8.615 | H137: 5.53 | I137: 5.53 | J137: 5.53 | K137: 5.53 | L137: 5.53 | N137: 4.961 | O137: 4.961 | P137: 4.961 | Q137: 4.961 | R137: 4.961 | T137: 3.503 | U137: 3.503 | V137: 3.503 | W137: 3.503 | X137: 3.503
A138: Battery kW | B138: 0 | C138: 0 | D138: 0 | E138: 0 | F138: 0 | H138: 0 | I138: 0 | J138: 0 | K138: 0 | L138: 0 | N138: 0 | O138: 0 | P138: 0 | Q138: 0 | R138: 0 | T138: 0 | U138: 0 | V138: 0 | W138: 0 | X138: 0
A139: Battery kWh | B139: 0 | C139: 0 | D139: 0 | E139: 0 | F139: 0 | H139: 0 | I139: 0 | J139: 0 | K139: 0 | L139: 0 | N139: 0 | O139: 0 | P139: 0 | Q139: 0 | R139: 0 | T139: 0 | U139: 0 | V139: 0 | W139: 0 | X139: 0
A140: Generator kW | B140: 6 | C140: 6 | D140: 6 | E140: 6 | F140: 6 | H140: 7 | I140: 7 | J140: 7 | K140: 7 | L140: 7 | N140: 8 | O140: 8 | P140: 8 | Q140: 8 | R140: 8 | T140: 12 | U140: 12 | V140: 12 | W140: 12 | X140: 12
A141: PV capital cost | B141: 18952.208 | C141: 18952.208 | D141: 18952.208 | E141: 18952.208 | F141: 18952.208 | H141: 12166.176 | I141: 12166.176 | J141: 12166.176 | K141: 12166.176 | L141: 12166.176 | N141: 10913.584 | O141: 10913.584 | P141: 10913.584 | Q141: 10913.584 | R141: 10913.584 | T141: 7707.172 | U141: 7707.172 | V141: 7707.172 | W141: 7707.172 | X141: 7707.172
A142: PV O&M | B142: 3227.016609 | C142: 3227.016609 | D142: 3227.016609 | E142: 3227.016609 | F142: 3227.016609 | H142: 2071.550292 | I142: 2071.550292 | J142: 2071.550292 | K142: 2071.550292 | L142: 2071.550292 | N142: 1858.269856 | O142: 1858.269856 | P142: 1858.269856 | Q142: 1858.269856 | R142: 1858.269856 | T142: 1312.309998 | U142: 1312.309998 | V142: 1312.309998 | W142: 1312.309998 | X142: 1312.309998
A143: Battery capital cost | B143: 0 | C143: 0 | D143: 0 | E143: 0 | F143: 0 | H143: 9.981724805e-10 | I143: 0 | J143: 0 | K143: 0 | L143: 0 | N143: 1.290467152e-09 | O143: 0 | P143: 0 | Q143: 0 | R143: 0 | T143: 0 | U143: 0 | V143: 0 | W143: 0 | X143: 0
A144: Battery O&M | B144: 0 | C144: 0 | D144: 0 | E144: 0 | F144: 0 | H144: 2.904870509e-10 | I144: 0 | J144: 0 | K144: 0 | L144: 0 | N144: 3.755503228e-10 | O144: 0 | P144: 0 | Q144: 0 | R144: 0 | T144: 0 | U144: 0 | V144: 0 | W144: 0 | X144: 0
A145: Diesel capital cost | B145: 3325.32 | C145: 3325.32 | D145: 3325.32 | E145: 3325.32 | F145: 3325.32 | H145: 3879.54 | I145: 3879.54 | J145: 3879.54 | K145: 3879.54 | L145: 3879.54 | N145: 4433.76 | O145: 4433.76 | P145: 4433.76 | Q145: 4433.76 | R145: 4433.76 | T145: 6650.64 | U145: 6650.64 | V145: 6650.64 | W145: 6650.64 | X145: 6650.64
A146: Diesel O&M (kW) | B146: 1277.034558 | C146: 1277.034558 | D146: 1277.034558 | E146: 1277.034558 | F146: 1277.034558 | H146: 1489.873651 | I146: 1489.873651 | J146: 1489.873651 | K146: 1489.873651 | L146: 1489.873651 | N146: 1702.712744 | O146: 1702.712744 | P146: 1702.712744 | Q146: 1702.712744 | R146: 1702.712744 | T146: 2554.069116 | U146: 2554.069116 | V146: 2554.069116 | W146: 2554.069116 | X146: 2554.069116
A147: Diesel O&M (kWh) | B147: 1795.820755 | C147: 1602.883798 | D147: 1409.946842 | E147: 1217.009886 | F147: 1024.07294 | H147: 2558.169631 | I147: 2365.161204 | J147: 2172.152776 | K147: 1979.144348 | L147: 1786.13592 | N147: 2688.748309 | O147: 2495.739881 | P147: 2302.731454 | Q147: 2109.723026 | R147: 1916.714598 | T147: 3102.642812 | U147: 2909.562913 | V147: 2716.483013 | W147: 2523.403114 | X147: 2330.323215
A148: Fuel cost | B148: 43435.97622 | C148: 38769.36068 | D148: 34102.74513 | E148: 29436.12959 | F148: 24769.5143 | H148: 61875.10361 | I148: 57206.75937 | J148: 52538.41513 | K148: 47870.07089 | L148: 43201.72665 | N148: 65033.44351 | O148: 60365.09927 | P148: 55696.75503 | Q148: 51028.41079 | R148: 46360.06655 | T148: 75044.41578 | U148: 70374.34284 | V148: 65704.2699 | W148: 61034.19697 | X148: 56364.12403
A149: REopt LCC | B149: 72014.9 | C149: 67155.2 | D149: 62295.4 | E149: 57435.7 | F149: 52576 | H149: 84042.6 | I149: 79181.1 | J149: 74319.5 | K149: 69458 | L149: 64596.5 | N149: 86632.8 | O149: 81771.3 | P149: 76909.7 | Q149: 72048.2 | R149: 67186.7 | T149: 96373.8 | U149: 91510.4 | V149: 86647.1 | W149: 81783.8 | X149: 76920.4
A151: TMY_highPVBatt_MedDiesel_44_PB_business | B151: 100 | C151: 95 | D151: 90 | E151: 85 | F151: 80 | G151: TMY_highPVBatt_MedDiesel_44_PB_nrel | H151: 100 | I151: 95 | J151: 90 | K151: 85 | L151: 80 | M151: TMY_highPVBatt_MedDiesel_44_PB_average | N151: 100 | O151: 95 | P151: 90 | Q151: 85 | R151: 80 | S151: TMY_highPVBatt_MedDiesel_44_PB_residential | T151: 100 | U151: 95 | V151: 90 | W151: 85 | X151: 80
A152: PV kW | B152: 27.557 | C152: 16.558 | D152: 15.432 | E152: 14.471 | F152: 13.549 | H152: 27.913 | I152: 17.258 | J152: 16.222 | K152: 15.265 | L152: 14.284 | N152: 29.071 | O152: 17.406 | P152: 16.354 | Q152: 15.376 | R152: 14.394 | T152: 29.948 | U152: 18.045 | V152: 16.892 | W152: 15.802 | X152: 14.809
A153: Battery kW | B153: 4.76 | C153: 4.174 | D153: 3.136 | E153: 2.508 | F153: 2.056 | H153: 5.71 | I153: 5.067 | J153: 4.412 | K153: 4.036 | L153: 3.651 | N153: 6.78 | O153: 5.828 | P153: 4.929 | Q153: 4.231 | R153: 3.853 | T153: 10.62 | U153: 9.171 | V153: 7.455 | W153: 6.458 | X153: 5.545
A154: Battery kWh | B154: 30.104 | C154: 27.338 | D154: 23.96 | E154: 20.413 | F154: 16.779 | H154: 48.96 | I154: 44.013 | J154: 40.513 | K154: 36.618 | L154: 32.809 | N154: 48.58 | O154: 45.924 | P154: 42.327 | Q154: 38.741 | R154: 34.923 | T154: 56.059 | U154: 53.348 | V154: 49.659 | W154: 45.998 | X154: 42.257
A155: Generator kW | B155: 0 | C155: 0 | D155: 0 | E155: 0 | F155: 0 | H155: 0 | I155: 0 | J155: 0 | K155: 0 | L155: 0 | N155: 0 | O155: 0 | P155: 0 | Q155: 0 | R155: 0 | T155: 0 | U155: 0 | V155: 0 | W155: 0 | X155: 0
A156: PV capital cost | B156: 60624.52 | C156: 36427.38 | D156: 33951.06 | E156: 31835.98 | F156: 29808.24 | H156: 61409.04 | I156: 37967.82 | J156: 35688.84 | K156: 33582.12 | L156: 31423.7 | N156: 63955.32 | O156: 38292.32 | P156: 35979.02 | Q156: 33826.32 | R156: 31667.46 | T156: 65886.48 | U156: 39698.12 | V156: 37162.4 | W156: 34764.84 | X156: 32580.24
A157: PV O&M | B157: 10322.61428 | C157: 6202.536416 | D157: 5780.890253 | E157: 5420.752886 | F157: 5075.487012 | H157: 10456.1955 | I157: 6464.829098 | J157: 6076.784269 | K157: 5718.070369 | L157: 5350.553445 | N157: 10889.75384 | O157: 6520.082126 | P157: 6126.193587 | Q157: 5759.650615 | R157: 5392.058771 | T157: 11218.57492 | U157: 6759.449484 | V157: 6327.689208 | W157: 5919.453611 | X157: 5547.478985
A158: Battery capital cost | B158: 33133.27186 | C158: 29879.68497 | D158: 25450.3829 | E158: 21452.29281 | F158: 17625.20241 | H158: 51021.73243 | I158: 45772.49432 | J158: 41776.68006 | K158: 37829.43131 | L158: 33942.76754 | N158: 52197.25011 | O158: 48523.45746 | P158: 44098.42585 | Q158: 39967.68838 | R158: 36083.48694 | T158: 64176.84612 | U158: 59753.96363 | V158: 54096.31175 | W158: 49477.14415 | X158: 44905.56191
A159: Battery O&M | B159: 7688.795207 | C159: 6982.263068 | D159: 6119.575143 | E159: 5213.595746 | F159: 4285.523651 | H159: 12504.77347 | I159: 11241.2244 | J159: 10347.19805 | K159: 9352.464748 | L159: 8379.594281 | N159: 12407.71885 | O159: 11729.40917 | P159: 10810.58281 | Q159: 9894.795784 | R159: 8919.703277 | T159: 14317.98376 | U159: 13625.499 | V159: 12683.25182 | W159: 11748.20712 | X159: 10792.67878
A160: Diesel capital cost | B160: 0 | C160: 0 | D160: 0 | E160: 0 | F160: 0 | H160: 0 | I160: 0 | J160: 0 | K160: 0 | L160: 0 | N160: 0 | O160: 0 | P160: 0 | Q160: 0 | R160: 0 | T160: 0 | U160: 0 | V160: 0 | W160: 0 | X160: 0
A161: Diesel O&M (kW) | B161: 0 | C161: 0 | D161: 0 | E161: 0 | F161: 0 | H161: 0 | I161: 0 | J161: 0 | K161: 0 | L161: 0 | N161: 0 | O161: 0 | P161: 0 | Q161: 0 | R161: 0 | T161: 0 | U161: 0 | V161: 0 | W161: 0 | X161: 0
A162: Diesel O&M (kWh) | B162: 0 | C162: 0 | D162: 0 | E162: 0 | F162: 0 | H162: 0 | I162: 0 | J162: 0 | K162: 0 | L162: 0 | N162: 0 | O162: 0 | P162: 0 | Q162: 0 | R162: 0 | T162: 0 | U162: 0 | V162: 0 | W162: 0 | X162: 0
A163: Fuel cost | B163: 0 | C163: 0 | D163: 0 | E163: 0 | F163: 0 | H163: 0 | I163: 0 | J163: 0 | K163: 0 | L163: 0 | N163: 0 | O163: 0 | P163: 0 | Q163: 0 | R163: 0 | T163: 0 | U163: 0 | V163: 0 | W163: 0 | X163: 0
A164: REopt LCC | B164: 111769 | C164: 79492 | D164: 71302 | E164: 63922.7 | F164: 56794.4 | H164: 135392 | I164: 101447 | J164: 93889.6 | K164: 86482.1 | L164: 79096.7 | N164: 139450 | O164: 105065 | P164: 97014.2 | Q164: 89448.5 | R164: 82062.7 | T164: 155600 | U164: 119837 | V164: 110270 | W164: 101910 | X164: 93826.1
A166: TMY_highPVBatt_MedDiesel_44_D_business | B166: 100 | C166: 95 | D166: 90 | E166: 85 | F166: 80 | G166: TMY_highPVBatt_MedDiesel_44_D_nrel | H166: 100 | I166: 95 | J166: 90 | K166: 85 | L166: 80 | M166: TMY_highPVBatt_MedDiesel_44_D_average | N166: 100 | O166: 95 | P166: 90 | Q166: 85 | R166: 80 | S166: TMY_highPVBatt_MedDiesel_44_D_residential | T166: 100 | U166: 95 | V166: 90 | W166: 85 | X166: 80
A167: PV kW | B167: 0 | C167: 0 | D167: 0 | E167: 0 | F167: 0 | H167: 0 | I167: 0 | J167: 0 | K167: 0 | L167: 0 | N167: 0 | O167: 0 | P167: 0 | Q167: 0 | R167: 0 | T167: 0 | U167: 0 | V167: 0 | W167: 0 | X167: 0
A168: Battery kW | B168: 0 | C168: 0 | D168: 0 | E168: 0 | F168: 0 | H168: 0 | I168: 0 | J168: 0 | K168: 0 | L168: 0 | N168: 0 | O168: 0 | P168: 0 | Q168: 0 | R168: 0 | T168: 0 | U168: 0 | V168: 0 | W168: 0 | X168: 0
A169: Battery kWh | B169: 0 | C169: 0 | D169: 0 | E169: 0 | F169: 0 | H169: 0 | I169: 0 | J169: 0 | K169: 0 | L169: 0 | N169: 0 | O169: 0 | P169: 0 | Q169: 0 | R169: 0 | T169: 0 | U169: 0 | V169: 0 | W169: 0 | X169: 0
A170: Generator kW | B170: 6 | C170: 6 | D170: 6 | E170: 6 | F170: 6 | H170: 7 | I170: 7 | J170: 7 | K170: 7 | L170: 7 | N170: 8 | O170: 8 | P170: 8 | Q170: 8 | R170: 8 | T170: 12 | U170: 12 | V170: 12 | W170: 12 | X170: 12
A171: PV capital cost | B171: 0 | C171: 0 | D171: 0 | E171: 0 | F171: 0 | H171: 0 | I171: 0 | J171: 0 | K171: 0 | L171: 0 | N171: 0 | O171: 0 | P171: 0 | Q171: 0 | R171: 0 | T171: 0 | U171: 0 | V171: 0 | W171: 0 | X171: 0
A172: PV O&M | B172: 0 | C172: 0 | D172: 0 | E172: 0 | F172: 0 | H172: 0 | I172: 0 | J172: 0 | K172: 0 | L172: 0 | N172: 0 | O172: 0 | P172: 0 | Q172: 0 | R172: 0 | T172: 0 | U172: 0 | V172: 0 | W172: 0 | X172: 0
A173: Battery capital cost | B173: 0 | C173: 0 | D173: 0 | E173: 0 | F173: 0 | H173: 0 | I173: 0 | J173: 0 | K173: 0 | L173: 0 | N173: 0 | O173: 0 | P173: 0 | Q173: 0 | R173: 0 | T173: 0 | U173: 0 | V173: 0 | W173: 0 | X173: 0
A174: Battery O&M | B174: 0 | C174: 0 | D174: 0 | E174: 0 | F174: 0 | H174: 0 | I174: 0 | J174: 0 | K174: 0 | L174: 0 | N174: 0 | O174: 0 | P174: 0 | Q174: 0 | R174: 0 | T174: 0 | U174: 0 | V174: 0 | W174: 0 | X174: 0
A175: Diesel capital cost | B175: 3325.32 | C175: 3325.32 | D175: 3325.32 | E175: 3325.32 | F175: 3325.32 | H175: 3879.54 | I175: 3879.54 | J175: 3879.54 | K175: 3879.54 | L175: 3879.54 | N175: 4433.76 | O175: 4433.76 | P175: 4433.76 | Q175: 4433.76 | R175: 4433.76 | T175: 6650.64 | U175: 6650.64 | V175: 6650.64 | W175: 6650.64 | X175: 6650.64
A176: Diesel O&M (kW) | B176: 1277.034558 | C176: 1277.034558 | D176: 1277.034558 | E176: 1277.034558 | F176: 1277.034558 | H176: 1489.873651 | I176: 1489.873651 | J176: 1489.873651 | K176: 1489.873651 | L176: 1489.873651 | N176: 1702.712744 | O176: 1702.712744 | P176: 1702.712744 | Q176: 1702.712744 | R176: 1702.712744 | T176: 2554.069116 | U176: 2554.069116 | V176: 2554.069116 | W176: 2554.069116 | X176: 2554.069116
A177: Diesel O&M (kWh) | B177: 3858.739128 | C177: 3665.802171 | D177: 3472.865215 | E177: 3279.928258 | F177: 3086.991302 | H177: 3860.168555 | I177: 3667.160127 | J177: 3474.151699 | K177: 3281.143272 | L177: 3088.134844 | N177: 3860.168555 | O177: 3667.160127 | P177: 3474.151699 | Q177: 3281.143272 | R177: 3088.134844 | T177: 3861.597982 | U177: 3668.518083 | V177: 3475.438184 | W177: 3282.358285 | X177: 3089.278386
A178: Fuel cost | B178: 93332.31088 | C178: 88665.69534 | D178: 83999.07979 | E178: 79332.46425 | F178: 74665.84871 | H178: 93366.88481 | I178: 88698.54057 | J178: 84030.19633 | K178: 79361.85209 | L178: 74693.50785 | N178: 93366.88481 | O178: 88698.54057 | P178: 84030.19633 | Q178: 79361.85209 | R178: 74693.50785 | T178: 93401.45873 | U178: 88731.3858 | V178: 84061.31286 | W178: 79391.23992 | X178: 74721.16699
A179: REopt LCC | B179: 101797 | C179: 96937.1 | D179: 92077.4 | E179: 87217.7 | F179: 82357.9 | H179: 102600 | I179: 97738.4 | J179: 92876.8 | K179: 88015.3 | L179: 83153.8 | N179: 103367 | O179: 98505.4 | P179: 93643.8 | Q179: 88782.3 | R179: 83920.8 | T179: 106471 | U179: 101608 | V179: 96744.3 | W179: 91881 | X179: 87017.7
A181: TMY_highPVBatt_MedDiesel_36_PBD_business | B181: 100 | C181: 95 | D181: 90 | E181: 85 | F181: 80 | G181: TMY_highPVBatt_MedDiesel_36_PBD_nrel | H181: 100 | I181: 95 | J181: 90 | K181: 85 | L181: 80 | M181: TMY_highPVBatt_MedDiesel_36_PBD_average | N181: 100 | O181: 95 | P181: 90 | Q181: 85 | R181: 80 | S181: TMY_highPVBatt_MedDiesel_36_PBD_residential | T181: 100 | U181: 95 | V181: 90 | W181: 85 | X181: 80
A182: PV kW | B182: 8.151 | C182: 8.151 | D182: 8.151 | E182: 8.151 | F182: 8.151 | H182: 5.198 | I182: 5.198 | J182: 5.198 | K182: 5.198 | L182: 5.198 | N182: 4.656 | O182: 4.656 | P182: 4.656 | Q182: 4.656 | R182: 4.656 | T182: 3.104 | U182: 3.104 | V182: 3.104 | W182: 3.104 | X182: 3.104
A183: Battery kW | B183: 0 | C183: 0 | D183: 0 | E183: 0 | F183: 0 | H183: 0 | I183: 0 | J183: 0 | K183: 0 | L183: 0 | N183: 0 | O183: 0 | P183: 0 | Q183: 0 | R183: 0 | T183: 0 | U183: 0 | V183: 0 | W183: 0 | X183: 0
A184: Battery kWh | B184: 0 | C184: 0 | D184: 0 | E184: 0 | F184: 0 | H184: 0 | I184: 0 | J184: 0 | K184: 0 | L184: 0 | N184: 0 | O184: 0 | P184: 0 | Q184: 0 | R184: 0 | T184: 0 | U184: 0 | V184: 0 | W184: 0 | X184: 0
A185: Generator kW | B185: 6 | C185: 6 | D185: 6 | E185: 6 | F185: 6 | H185: 7 | I185: 7 | J185: 7 | K185: 7 | L185: 7 | N185: 8 | O185: 8 | P185: 8 | Q185: 8 | R185: 8 | T185: 12 | U185: 12 | V185: 12 | W185: 12 | X185: 12
A186: PV capital cost | B186: 17931.364 | C186: 17931.364 | D186: 17931.364 | E186: 17931.364 | F186: 17931.364 | H186: 11435.094 | I186: 11435.094 | J186: 11435.094 | K186: 11435.094 | L186: 11435.094 | N186: 10243.596 | O186: 10243.596 | P186: 10243.596 | Q186: 10243.596 | R186: 10243.596 | T186: 6829.262 | U186: 6829.262 | V186: 6829.262 | W186: 6829.262 | X186: 6829.262
A187: PV O&M | B187: 3053.1962 | C187: 3053.1962 | D187: 3053.1962 | E187: 3053.1962 | F187: 3053.1962 | H187: 1947.068028 | I187: 1947.068028 | J187: 1947.068028 | K187: 1947.068028 | L187: 1947.068028 | N187: 1744.190145 | O187: 1744.190145 | P187: 1744.190145 | Q187: 1744.190145 | R187: 1744.190145 | T187: 1162.827144 | U187: 1162.827144 | V187: 1162.827144 | W187: 1162.827144 | X187: 1162.827144
A188: Battery capital cost | B188: 0 | C188: 0 | D188: 0 | E188: 0 | F188: 0 | H188: 0 | I188: 0 | J188: 0 | K188: 0 | L188: 0 | N188: 0 | O188: 0 | P188: 0 | Q188: 0 | R188: 0 | T188: -5.598752822e-09 | U188: 0 | V188: 0 | W188: 0 | X188: 0
A189: Battery O&M | B189: 0 | C189: 0 | D189: 0 | E189: 0 | F189: 0 | H189: 0 | I189: 0 | J189: 0 | K189: 0 | L189: 0 | N189: 0 | O189: 0 | P189: 0 | Q189: 0 | R189: 0 | T189: -1.629342852e-09 | U189: 0 | V189: 0 | W189: 0 | X189: 0
A190: Diesel capital cost | B190: 3325.32 | C190: 3325.32 | D190: 3325.32 | E190: 3325.32 | F190: 3325.32 | H190: 3879.54 | I190: 3879.54 | J190: 3879.54 | K190: 3879.54 | L190: 3879.54 | N190: 4433.76 | O190: 4433.76 | P190: 4433.76 | Q190: 4433.76 | R190: 4433.76 | T190: 6650.64 | U190: 6650.64 | V190: 6650.64 | W190: 6650.64 | X190: 6650.64
A191: Diesel O&M (kW) | B191: 1277.034558 | C191: 1277.034558 | D191: 1277.034558 | E191: 1277.034558 | F191: 1277.034558 | H191: 1489.873651 | I191: 1489.873651 | J191: 1489.873651 | K191: 1489.873651 | L191: 1489.873651 | N191: 1702.712744 | O191: 1702.712744 | P191: 1702.712744 | Q191: 1702.712744 | R191: 1702.712744 | T191: 2554.069116 | U191: 2554.069116 | V191: 2554.069116 | W191: 2554.069116 | X191: 2554.069116
A192: Diesel O&M (kWh) | B192: 1848.194883 | C192: 1655.257927 | D192: 1462.320971 | E192: 1269.384014 | F192: 1076.447062 | H192: 2595.422558 | I192: 2402.41413 | J192: 2209.405702 | K192: 2016.397275 | L192: 1823.388847 | N192: 2722.755948 | O192: 2529.74752 | P192: 2336.739092 | Q192: 2143.730665 | R192: 1950.722237 | T192: 3147.575096 | U192: 2954.495197 | V192: 2761.415298 | W192: 2568.335399 | X192: 2375.2555
A193: Fuel cost | B193: 36574.98764 | C193: 32756.84765 | D193: 28938.70766 | E193: 25120.56767 | F193: 21302.42777 | H193: 51362.30428 | I193: 47542.74991 | J193: 43723.19553 | K193: 39903.64115 | L193: 36084.08677 | N193: 53882.1777 | O193: 50062.62333 | P193: 46243.06895 | Q193: 42423.51457 | R193: 38603.96019 | T193: 62289.16727 | U193: 58468.19851 | V193: 54647.22974 | W193: 50826.26097 | X193: 47005.29221
A194: REopt LCC | B194: 64011.7 | C194: 60000.4 | D194: 55989.1 | E194: 51977.9 | F194: 47966.6 | H194: 72711.5 | I194: 68698.8 | J194: 64686 | K194: 60673.3 | L194: 56660.5 | N194: 74731.5 | O194: 70718.8 | P194: 66706 | Q194: 62693.3 | R194: 58680.5 | T194: 82636.1 | U194: 78621.9 | V194: 74607.6 | W194: 70593.4 | X194: 66579.2
A196: TMY_highPVBatt_MedDiesel_36_PB_business | B196: 100 | C196: 95 | D196: 90 | E196: 85 | F196: 80 | G196: TMY_highPVBatt_MedDiesel_36_PB_nrel | H196: 100 | I196: 95 | J196: 90 | K196: 85 | L196: 80 | M196: TMY_highPVBatt_MedDiesel_36_PB_average | N196: 100 | O196: 95 | P196: 90 | Q196: 85 | R196: 80 | S196: TMY_highPVBatt_MedDiesel_36_PB_residential | T196: 100 | U196: 95 | V196: 90 | W196: 85 | X196: 80
A197: PV kW | B197: 27.557 | C197: 16.558 | D197: 15.432 | E197: 14.471 | F197: 13.549 | H197: 27.913 | I197: 17.258 | J197: 16.222 | K197: 15.265 | L197: 14.284 | N197: 29.071 | O197: 17.406 | P197: 16.354 | Q197: 15.376 | R197: 14.394 | T197: 29.948 | U197: 18.045 | V197: 16.892 | W197: 15.802 | X197: 14.809
A198: Battery kW | B198: 4.76 | C198: 4.174 | D198: 3.136 | E198: 2.508 | F198: 2.056 | H198: 5.71 | I198: 5.067 | J198: 4.412 | K198: 4.036 | L198: 3.651 | N198: 6.78 | O198: 5.828 | P198: 4.929 | Q198: 4.231 | R198: 3.853 | T198: 10.62 | U198: 9.171 | V198: 7.455 | W198: 6.458 | X198: 5.545
A199: Battery kWh | B199: 30.104 | C199: 27.338 | D199: 23.96 | E199: 20.413 | F199: 16.779 | H199: 48.96 | I199: 44.013 | J199: 40.513 | K199: 36.618 | L199: 32.809 | N199: 48.58 | O199: 45.924 | P199: 42.327 | Q199: 38.741 | R199: 34.923 | T199: 56.059 | U199: 53.348 | V199: 49.659 | W199: 45.998 | X199: 42.257
A200: Generator kW | B200: 0 | C200: 0 | D200: 0 | E200: 0 | F200: 0 | H200: 0 | I200: 0 | J200: 0 | K200: 0 | L200: 0 | N200: 0 | O200: 0 | P200: 0 | Q200: 0 | R200: 0 | T200: 0 | U200: 0 | V200: 0 | W200: 0 | X200: 0
A201: PV capital cost | B201: 60624.52 | C201: 36427.38 | D201: 33951.06 | E201: 31835.98 | F201: 29808.24 | H201: 61409.04 | I201: 37967.82 | J201: 35688.84 | K201: 33582.12 | L201: 31423.7 | N201: 63955.32 | O201: 38292.32 | P201: 35979.02 | Q201: 33826.32 | R201: 31667.46 | T201: 65886.48 | U201: 39698.12 | V201: 37162.4 | W201: 34764.84 | X201: 32580.24
A202: PV O&M | B202: 10322.61428 | C202: 6202.536416 | D202: 5780.890253 | E202: 5420.752886 | F202: 5075.487012 | H202: 10456.1955 | I202: 6464.829098 | J202: 6076.784269 | K202: 5718.070369 | L202: 5350.553445 | N202: 10889.75384 | O202: 6520.082126 | P202: 6126.193587 | Q202: 5759.650615 | R202: 5392.058771 | T202: 11218.57492 | U202: 6759.449484 | V202: 6327.689208 | W202: 5919.453611 | X202: 5547.478985
A203: Battery capital cost | B203: 33133.27186 | C203: 29879.68497 | D203: 25450.3829 | E203: 21452.29281 | F203: 17625.20241 | H203: 51021.73243 | I203: 45772.49432 | J203: 41776.68006 | K203: 37829.43131 | L203: 33942.76754 | N203: 52197.25011 | O203: 48523.45746 | P203: 44098.42585 | Q203: 39967.68838 | R203: 36083.48694 | T203: 64176.84612 | U203: 59753.96363 | V203: 54096.31175 | W203: 49477.14415 | X203: 44905.56191
A204: Battery O&M | B204: 7688.795207 | C204: 6982.263068 | D204: 6119.575143 | E204: 5213.595746 | F204: 4285.523651 | H204: 12504.77347 | I204: 11241.2244 | J204: 10347.19805 | K204: 9352.464748 | L204: 8379.594281 | N204: 12407.71885 | O204: 11729.40917 | P204: 10810.58281 | Q204: 9894.795784 | R204: 8919.703277 | T204: 14317.98376 | U204: 13625.499 | V204: 12683.25182 | W204: 11748.20712 | X204: 10792.67878
A205: Diesel capital cost | B205: 0 | C205: 0 | D205: 0 | E205: 0 | F205: 0 | H205: 0 | I205: 0 | J205: 0 | K205: 0 | L205: 0 | N205: 0 | O205: 0 | P205: 0 | Q205: 0 | R205: 0 | T205: 0 | U205: 0 | V205: 0 | W205: 0 | X205: 0
A206: Diesel O&M (kW) | B206: 0 | C206: 0 | D206: 0 | E206: 0 | F206: 0 | H206: 0 | I206: 0 | J206: 0 | K206: 0 | L206: 0 | N206: 0 | O206: 0 | P206: 0 | Q206: 0 | R206: 0 | T206: 0 | U206: 0 | V206: 0 | W206: 0 | X206: 0
A207: Diesel O&M (kWh) | B207: 0 | C207: 0 | D207: 0 | E207: 0 | F207: 0 | H207: 0 | I207: 0 | J207: 0 | K207: 0 | L207: 0 | N207: 0 | O207: 0 | P207: 0 | Q207: 0 | R207: 0 | T207: 0 | U207: 0 | V207: 0 | W207: 0 | X207: 0
A208: Fuel cost | B208: 0 | C208: 0 | D208: 0 | E208: 0 | F208: 0 | H208: 0 | I208: 0 | J208: 0 | K208: 0 | L208: 0 | N208: 0 | O208: 0 | P208: 0 | Q208: 0 | R208: 0 | T208: 0 | U208: 0 | V208: 0 | W208: 0 | X208: 0
A209: REopt LCC | B209: 111769 | C209: 79492 | D209: 71302 | E209: 63922.7 | F209: 56794.4 | H209: 135392 | I209: 101447 | J209: 93889.6 | K209: 86482.1 | L209: 79096.7 | N209: 139450 | O209: 105065 | P209: 97014.2 | Q209: 89448.5 | R209: 82062.7 | T209: 155600 | U209: 119837 | V209: 110270 | W209: 101910 | X209: 93826.1
A211: TMY_highPVBatt_MedDiesel_36_D_business | B211: 100 | C211: 95 | D211: 90 | E211: 85 | F211: 80 | G211: TMY_highPVBatt_MedDiesel_36_D_nrel | H211: 100 | I211: 95 | J211: 90 | K211: 85 | L211: 80 | M211: TMY_highPVBatt_MedDiesel_36_D_average | N211: 100 | O211: 95 | P211: 90 | Q211: 85 | R211: 80 | S211: TMY_highPVBatt_MedDiesel_36_D_residential | T211: 100 | U211: 95 | V211: 90 | W211: 85 | X211: 80
A212: PV kW | B212: 0 | C212: 0 | D212: 0 | E212: 0 | F212: 0 | H212: 0 | I212: 0 | J212: 0 | K212: 0 | L212: 0 | N212: 0 | O212: 0 | P212: 0 | Q212: 0 | R212: 0 | T212: 0 | U212: 0 | V212: 0 | W212: 0 | X212: 0
A213: Battery kW | B213: 0 | C213: 0 | D213: 0 | E213: 0 | F213: 0 | H213: 0 | I213: 0 | J213: 0 | K213: 0 | L213: 0 | N213: 0 | O213: 0 | P213: 0 | Q213: 0 | R213: 0 | T213: 0 | U213: 0 | V213: 0 | W213: 0 | X213: 0
A214: Battery kWh | B214: 0 | C214: 0 | D214: 0 | E214: 0 | F214: 0 | H214: 0 | I214: 0 | J214: 0 | K214: 0 | L214: 0 | N214: 0 | O214: 0 | P214: 0 | Q214: 0 | R214: 0 | T214: 0 | U214: 0 | V214: 0 | W214: 0 | X214: 0
... 934 more rows

Sheet Lusaka_10
A1: TMY_highPVBatt_HighDiesel_44_PBD_business | B1: 100 | C1: 95 | D1: 90 | E1: 85 | F1: 80 | G1: TMY_highPVBatt_HighDiesel_44_PBD_nrel | H1: 100 | I1: 95 | J1: 90 | K1: 85 | L1: 80 | M1: TMY_highPVBatt_HighDiesel_44_PBD_average | N1: 100 | O1: 95 | P1: 90 | Q1: 85 | R1: 80 | S1: TMY_highPVBatt_HighDiesel_44_PBD_residential | T1: 100 | U1: 95 | V1: 90 | W1: 85 | X1: 80
A2: PV kW | B2: 8.462 | C2: 8.462 | D2: 8.462 | E2: 8.462 | F2: 8.462 | H2: 5.62 | I2: 5.62 | J2: 5.62 | K2: 5.62 | L2: 5.62 | N2: 4.964 | O2: 4.964 | P2: 4.964 | Q2: 4.964 | R2: 4.964 | T2: 3.506 | U2: 3.506 | V2: 3.506 | W2: 3.506 | X2: 3.506
A3: Battery kW | B3: 0 | C3: 0 | D3: 0 | E3: 0 | F3: 0 | H3: 0 | I3: 0 | J3: 0 | K3: 0 | L3: 0 | N3: 0 | O3: 0 | P3: 0 | Q3: 0 | R3: 0 | T3: 0.044 | U3: 0.044 | V3: 0.044 | W3: 0.044 | X3: 0.044
A4: Battery kWh | B4: 0 | C4: 0 | D4: 0 | E4: 0 | F4: 0 | H4: 0 | I4: 0 | J4: 0 | K4: 0 | L4: 0 | N4: 0 | O4: 0 | P4: 0 | Q4: 0 | R4: 0 | T4: 0.187 | U4: 0.187 | V4: 0.187 | W4: 0.187 | X4: 0.187
A5: Generator kW | B5: 6 | C5: 6 | D5: 6 | E5: 6 | F5: 6 | H5: 7 | I5: 7 | J5: 7 | K5: 7 | L5: 7 | N5: 8 | O5: 8 | P5: 8 | Q5: 8 | R5: 8 | T5: 12 | U5: 12 | V5: 12 | W5: 12 | X5: 12
A6: PV capital cost | B6: 18615.388 | C6: 18615.388 | D6: 18615.388 | E6: 18615.388 | F6: 18615.388 | H6: 12364.924 | I6: 12364.924 | J6: 12364.924 | K6: 12364.924 | L6: 12364.924 | N6: 10921.13 | O6: 10921.13 | P6: 10921.13 | Q6: 10921.13 | R6: 10921.13 | T6: 7712.452 | U6: 7712.452 | V6: 7712.452 | W6: 7712.452 | X6: 7712.452
A7: PV O&M | B7: 3169.665838 | C7: 3169.665838 | D7: 3169.665838 | E7: 3169.665838 | F7: 3169.665838 | H7: 2105.391367 | I7: 2105.391367 | J7: 2105.391367 | K7: 2105.391367 | L7: 2105.391367 | N7: 1859.554723 | O7: 1859.554723 | P7: 1859.554723 | Q7: 1859.554723 | R7: 1859.554723 | T7: 1313.209031 | U7: 1313.209031 | V7: 1313.209031 | W7: 1313.209031 | X7: 1313.209031
A8: Battery capital cost | B8: 4.593155592e-08 | C8: 0 | D8: 0 | E8: 0 | F8: 0 | H8: 0 | I8: 0 | J8: 0 | K8: 0 | L8: 0 | N8: 0 | O8: 0 | P8: 0 | Q8: 0 | R8: 0 | T8: 225.257084 | U8: 225.257084 | V8: 225.257084 | W8: 225.257084 | X8: 225.257084
A9: Battery O&M | B9: 1.336695058e-08 | C9: 0 | D9: 0 | E9: 0 | F9: 0 | H9: 0 | I9: 0 | J9: 0 | K9: 0 | L9: 0 | N9: 0 | O9: 0 | P9: 0 | Q9: 0 | R9: 0 | T9: 47.677319 | U9: 47.677319 | V9: 47.677319 | W9: 47.677319 | X9: 47.677319
A10: Diesel capital cost | B10: 4156.62 | C10: 4156.62 | D10: 4156.62 | E10: 4156.62 | F10: 4156.62 | H10: 4849.39 | I10: 4849.39 | J10: 4849.39 | K10: 4849.39 | L10: 4849.39 | N10: 5542.16 | O10: 5542.16 | P10: 5542.16 | Q10: 5542.16 | R10: 5542.16 | T10: 8313.24 | U10: 8313.24 | V10: 8313.24 | W10: 8313.24 | X10: 8313.24
A11: Diesel O&M (kW) | B11: 1277.034558 | C11: 1277.034558 | D11: 1277.034558 | E11: 1277.034558 | F11: 1277.034558 | H11: 1489.873651 | I11: 1489.873651 | J11: 1489.873651 | K11: 1489.873651 | L11: 1489.873651 | N11: 1702.712744 | O11: 1702.712744 | P11: 1702.712744 | Q11: 1702.712744 | R11: 1702.712744 | T11: 2554.069116 | U11: 2554.069116 | V11: 2554.069116 | W11: 2554.069116 | X11: 2554.069116
A12: Diesel O&M (kWh) | B12: 2125.079406 | C12: 1932.142449 | D12: 1739.205493 | E12: 1546.268537 | F12: 1353.331592 | H12: 2711.775157 | I12: 2518.76673 | J12: 2325.758302 | K12: 2132.749874 | L12: 1939.741446 | N12: 2852.5636 | O12: 2659.555172 | P12: 2466.546744 | Q12: 2273.538316 | R12: 2080.529889 | T12: 3184.839871 | U12: 2991.760061 | V12: 2798.680161 | W12: 2605.600309 | X12: 2412.520098
A13: Fuel cost | B13: 61679.80737 | C13: 56079.86872 | D13: 50479.93007 | E13: 44879.99141 | F13: 39280.05311 | H13: 78708.47974 | I13: 73106.46665 | J13: 67504.45356 | K13: 61902.44047 | L13: 56300.42738 | N13: 82794.82304 | O13: 77192.80996 | P13: 71590.79687 | Q13: 65988.78378 | R13: 60386.77069 | T13: 92439.04452 | U13: 86834.95955 | V13: 81230.872 | W13: 75626.78586 | X13: 70022.68929
A14: REopt LCC | B14: 91025.4 | C14: 85232.4 | D14: 79439.3 | E14: 73646.2 | F14: 67853.2 | H14: 102232 | I14: 96437 | J14: 90641.8 | K14: 84846.6 | L14: 79051.4 | N14: 105675 | O14: 99880.2 | P14: 94085 | Q14: 88289.8 | R14: 82494.6 | T14: 115792 | U14: 109995 | V14: 104198 | W14: 98400.3 | X14: 92603
A16: TMY_highPVBatt_HighDiesel_44_PB_business | B16: 100 | C16: 95 | D16: 90 | E16: 85 | F16: 80 | G16: TMY_highPVBatt_HighDiesel_44_PB_nrel | H16: 100 | I16: 95 | J16: 90 | K16: 85 | L16: 80 | M16: TMY_highPVBatt_HighDiesel_44_PB_average | N16: 100 | O16: 95 | P16: 90 | Q16: 85 | R16: 80 | S16: TMY_highPVBatt_HighDiesel_44_PB_residential | T16: 100 | U16: 95 | V16: 90 | W16: 85 | X16: 80
A17: PV kW | B17: 34.202 | C17: 23.841 | D17: 19.234 | E17: 17.756 | F17: 16.399 | H17: 36.053 | I17: 24.584 | J17: 19.94 | K17: 18.192 | L17: 16.938 | N17: 35.987 | O17: 24.553 | P17: 20.306 | Q17: 18.433 | R17: 17.152 | T17: 36.783 | U17: 24.935 | V17: 21.352 | W17: 19.502 | X17: 17.919
A18: Battery kW | B18: 4.76 | C18: 4.76 | D18: 4.728 | E18: 3.63 | F18: 3.007 | H18: 6.078 | I18: 5.798 | J18: 5.449 | K18: 4.775 | L18: 4.276 | N18: 6.78 | O18: 6.78 | P18: 6.099 | Q18: 5.383 | R18: 4.696 | T18: 10.62 | U18: 10.62 | V18: 9.157 | W18: 7.624 | X18: 6.671
A19: Battery kWh | B19: 132.214 | C19: 33.32 | D19: 31.801 | E19: 28.496 | F19: 24.962 | H19: 146.979 | I19: 48.543 | J19: 47.307 | K19: 44.17 | L19: 40.143 | N19: 149.64 | O19: 50.686 | P19: 49.063 | Q19: 45.974 | R19: 42.111 | T19: 158.465 | U19: 58.191 | V19: 55.742 | W19: 52.294 | X19: 48.688
A20: Generator kW | B20: 0 | C20: 0 | D20: 0 | E20: 0 | F20: 0 | H20: 0 | I20: 0 | J20: 0 | K20: 0 | L20: 0 | N20: 0 | O20: 0 | P20: 0 | Q20: 0 | R20: 0 | T20: 0 | U20: 0 | V20: 0 | W20: 0 | X20: 0
A21: PV capital cost | B21: 75244.4 | C21: 52451.3 | D21: 42315.02 | E21: 39064.08 | F21: 36077.8 | H21: 79316.6 | I21: 54085.24 | J21: 43868 | K21: 40021.52 | L21: 37263.82 | N21: 79170.96 | O21: 54015.72 | P21: 44672.54 | Q21: 40553.48 | R21: 37733.74 | T21: 80922.82 | U21: 54856.56 | V21: 46974.18 | W21: 42903.3 | X21: 39422.68
A22: PV O&M | B22: 12811.95988 | C22: 8930.949695 | D22: 7205.032382 | E22: 6651.490685 | F22: 6143.012984 | H22: 13505.33856 | I22: 9209.162741 | J22: 7469.460265 | K22: 6814.515214 | L22: 6344.95812 | N22: 13480.54025 | O22: 9197.325482 | P22: 7606.450316 | Q22: 6905.092721 | R22: 6424.971998 | T22: 13778.83169 | U22: 9340.49638 | V22: 7998.353492 | W22: 7305.199567 | X22: 6712.549964
A23: Battery capital cost | B23: 122747.9834 | C23: 35955.8177 | D23: 34576.8004 | E23: 30128.36717 | F23: 26148.53412 | H23: 137564.6366 | I23: 50779.12401 | J23: 49203.36932 | K23: 45498.73736 | L23: 41261.16903 | N23: 140890.3624 | O23: 54045.10008 | P23: 51661.37766 | Q23: 47940.33846 | R23: 43581.67064 | T23: 154050.9851 | U23: 66047.33893 | V23: 61835.78285 | W23: 56646.52832 | X23: 52138.55789
A24: Battery O&M | B24: 33768.36941 | C24: 8510.209376 | D24: 8122.195196 | E24: 7277.998731 | F24: 6375.518409 | H24: 37539.45246 | I24: 12398.19217 | J24: 12082.66247 | K24: 11281.2722 | L24: 10252.90182 | N24: 38219.09025 | O24: 12945.4781 | P24: 12531.15701 | Q24: 11742.20506 | R24: 10755.54262 | T24: 40473.05625 | U24: 14862.33251 | V24: 14237.01977 | W24: 13356.12133 | X24: 12435.35387
A25: Diesel capital cost | B25: 0 | C25: 0 | D25: 0 | E25: 0 | F25: 0 | H25: 0 | I25: 0 | J25: 0 | K25: 0 | L25: 0 | N25: 0 | O25: 0 | P25: 0 | Q25: 0 | R25: 0 | T25: 0 | U25: 0 | V25: 0 | W25: 0 | X25: 0
A26: Diesel O&M (kW) | B26: 0 | C26: 0 | D26: 0 | E26: 0 | F26: 0 | H26: 0 | I26: 0 | J26: 0 | K26: 0 | L26: 0 | N26: 0 | O26: 0 | P26: 0 | Q26: 0 | R26: 0 | T26: 0 | U26: 0 | V26: 0 | W26: 0 | X26: 0
A27: Diesel O&M (kWh) | B27: 0 | C27: 0 | D27: 0 | E27: 0 | F27: 0 | H27: 0 | I27: 0 | J27: 0 | K27: 0 | L27: 0 | N27: 0 | O27: 0 | P27: 0 | Q27: 0 | R27: 0 | T27: 0 | U27: 0 | V27: 0 | W27: 0 | X27: 0
A28: Fuel cost | B28: 0 | C28: 0 | D28: 0 | E28: 0 | F28: 0 | H28: 0 | I28: 0 | J28: 0 | K28: 0 | L28: 0 | N28: 0 | O28: 0 | P28: 0 | Q28: 0 | R28: 0 | T28: 0 | U28: 0 | V28: 0 | W28: 0 | X28: 0
A29: REopt LCC | B29: 244573 | C29: 105848 | D29: 92219.1 | E29: 83122.1 | F29: 74744.9 | H29: 267926 | I29: 126472 | J29: 112624 | K29: 103616 | L29: 95123 | N29: 271762 | O29: 130204 | P29: 116472 | Q29: 107141 | R29: 98496 | T29: 289226 | U29: 145107 | V29: 131045 | W29: 120211 | X29: 110709
A31: TMY_highPVBatt_HighDiesel_44_D_business | B31: 100 | C31: 95 | D31: 90 | E31: 85 | F31: 80 | G31: TMY_highPVBatt_HighDiesel_44_D_nrel | H31: 100 | I31: 95 | J31: 90 | K31: 85 | L31: 80 | M31: TMY_highPVBatt_HighDiesel_44_D_average | N31: 100 | O31: 95 | P31: 90 | Q31: 85 | R31: 80 | S31: TMY_highPVBatt_HighDiesel_44_D_residential | T31: 100 | U31: 95 | V31: 90 | W31: 85 | X31: 80
A32: PV kW | B32: 0 | C32: 0 | D32: 0 | E32: 0 | F32: 0 | H32: 0 | I32: 0 | J32: 0 | K32: 0 | L32: 0 | N32: 0 | O32: 0 | P32: 0 | Q32: 0 | R32: 0 | T32: 0 | U32: 0 | V32: 0 | W32: 0 | X32: 0
A33: Battery kW | B33: 0 | C33: 0 | D33: 0 | E33: 0 | F33: 0 | H33: 0 | I33: 0 | J33: 0 | K33: 0 | L33: 0 | N33: 0 | O33: 0 | P33: 0 | Q33: 0 | R33: 0 | T33: 0 | U33: 0 | V33: 0 | W33: 0 | X33: 0
A34: Battery kWh | B34: 0 | C34: 0 | D34: 0 | E34: 0 | F34: 0 | H34: 0 | I34: 0 | J34: 0 | K34: 0 | L34: 0 | N34: 0 | O34: 0 | P34: 0 | Q34: 0 | R34: 0 | T34: 0 | U34: 0 | V34: 0 | W34: 0 | X34: 0
A35: Generator kW | B35: 6 | C35: 6 | D35: 6 | E35: 6 | F35: 6 | H35: 7 | I35: 7 | J35: 7 | K35: 7 | L35: 7 | N35: 8 | O35: 8 | P35: 8 | Q35: 8 | R35: 8 | T35: 12 | U35: 12 | V35: 12 | W35: 12 | X35: 12
A36: PV capital cost | B36: 0 | C36: 0 | D36: 0 | E36: 0 | F36: 0 | H36: 0 | I36: 0 | J36: 0 | K36: 0 | L36: 0 | N36: 0 | O36: 0 | P36: 0 | Q36: 0 | R36: 0 | T36: 0 | U36: 0 | V36: 0 | W36: 0 | X36: 0
A37: PV O&M | B37: 0 | C37: 0 | D37: 0 | E37: 0 | F37: 0 | H37: 0 | I37: 0 | J37: 0 | K37: 0 | L37: 0 | N37: 0 | O37: 0 | P37: 0 | Q37: 0 | R37: 0 | T37: 0 | U37: 0 | V37: 0 | W37: 0 | X37: 0
A38: Battery capital cost | B38: 0 | C38: 0 | D38: 0 | E38: 0 | F38: 0 | H38: 0 | I38: 0 | J38: 0 | K38: 0 | L38: 0 | N38: 0 | O38: 0 | P38: 0 | Q38: 0 | R38: 0 | T38: 0 | U38: 0 | V38: 0 | W38: 0 | X38: 0
A39: Battery O&M | B39: 0 | C39: 0 | D39: 0 | E39: 0 | F39: 0 | H39: 0 | I39: 0 | J39: 0 | K39: 0 | L39: 0 | N39: 0 | O39: 0 | P39: 0 | Q39: 0 | R39: 0 | T39: 0 | U39: 0 | V39: 0 | W39: 0 | X39: 0
A40: Diesel capital cost | B40: 4156.62 | C40: 4156.62 | D40: 4156.62 | E40: 4156.62 | F40: 4156.62 | H40: 4849.39 | I40: 4849.39 | J40: 4849.39 | K40: 4849.39 | L40: 4849.39 | N40: 5542.16 | O40: 5542.16 | P40: 5542.16 | Q40: 5542.16 | R40: 5542.16 | T40: 8313.24 | U40: 8313.24 | V40: 8313.24 | W40: 8313.24 | X40: 8313.24
A41: Diesel O&M (kW) | B41: 1277.034558 | C41: 1277.034558 | D41: 1277.034558 | E41: 1277.034558 | F41: 1277.034558 | H41: 1489.873651 | I41: 1489.873651 | J41: 1489.873651 | K41: 1489.873651 | L41: 1489.873651 | N41: 1702.712744 | O41: 1702.712744 | P41: 1702.712744 | Q41: 1702.712744 | R41: 1702.712744 | T41: 2554.069116 | U41: 2554.069116 | V41: 2554.069116 | W41: 2554.069116 | X41: 2554.069116
A42: Diesel O&M (kWh) | B42: 3858.739128 | C42: 3665.802171 | D42: 3472.865215 | E42: 3279.928258 | F42: 3086.991302 | H42: 3860.168555 | I42: 3667.160127 | J42: 3474.151699 | K42: 3281.143272 | L42: 3088.134844 | N42: 3860.168555 | O42: 3667.160127 | P42: 3474.151699 | Q42: 3281.143272 | R42: 3088.134844 | T42: 3861.597982 | U42: 3668.518083 | V42: 3475.438184 | W42: 3282.358285 | X42: 3089.278386
A43: Fuel cost | B43: 111998.7731 | C43: 106398.8344 | D43: 100798.8958 | E43: 95198.9571 | F43: 89599.01845 | H43: 112040.2618 | I43: 106438.2487 | J43: 100836.2356 | K43: 95234.2225 | L43: 89632.20941 | N43: 112040.2618 | O43: 106438.2487 | P43: 100836.2356 | Q43: 95234.2225 | R43: 89632.20941 | T43: 112081.7505 | U43: 106477.663 | V43: 100873.5754 | W43: 95269.48791 | X43: 89665.40038
A44: REopt LCC | B44: 121295 | C44: 115502 | D44: 109709 | E44: 103915 | F44: 98122.4 | H44: 122243 | I44: 116448 | J44: 110653 | K44: 104858 | L44: 99062.3 | N44: 123149 | O44: 117353 | P44: 111558 | Q44: 105763 | R44: 99967.9 | T44: 126814 | U44: 121017 | V44: 115219 | W44: 109422 | X44: 103624
A46: TMY_highPVBatt_HighDiesel_36_PBD_business | B46: 100 | C46: 95 | D46: 90 | E46: 85 | F46: 80 | G46: TMY_highPVBatt_HighDiesel_36_PBD_nrel | H46: 100 | I46: 95 | J46: 90 | K46: 85 | L46: 80 | M46: TMY_highPVBatt_HighDiesel_36_PBD_average | N46: 100 | O46: 95 | P46: 90 | Q46: 85 | R46: 80 | S46: TMY_highPVBatt_HighDiesel_36_PBD_residential | T46: 100 | U46: 95 | V46: 90 | W46: 85 | X46: 80
A47: PV kW | B47: 7.676 | C47: 7.676 | D47: 7.676 | E47: 7.676 | F47: 7.676 | H47: 5.117 | I47: 5.117 | J47: 5.117 | K47: 5.117 | L47: 5.117 | N47: 4.513 | O47: 4.513 | P47: 4.513 | Q47: 4.513 | R47: 4.513 | T47: 3.19 | U47: 3.19 | V47: 3.19 | W47: 3.19 | X47: 3.19
A48: Battery kW | B48: 0 | C48: 0 | D48: 0 | E48: 0 | F48: 0 | H48: 0 | I48: 0 | J48: 0 | K48: 0 | L48: 0 | N48: 0 | O48: 0 | P48: 0 | Q48: 0 | R48: 0 | T48: 0 | U48: 0 | V48: 0 | W48: 0 | X48: 0
A49: Battery kWh | B49: 0 | C49: 0 | D49: 0 | E49: 0 | F49: 0 | H49: 0 | I49: 0 | J49: 0 | K49: 0 | L49: 0 | N49: 0 | O49: 0 | P49: 0 | Q49: 0 | R49: 0 | T49: 0 | U49: 0 | V49: 0 | W49: 0 | X49: 0
A50: Generator kW | B50: 6 | C50: 6 | D50: 6 | E50: 6 | F50: 6 | H50: 7 | I50: 7 | J50: 7 | K50: 7 | L50: 7 | N50: 8 | O50: 8 | P50: 8 | Q50: 8 | R50: 8 | T50: 12 | U50: 12 | V50: 12 | W50: 12 | X50: 12
A51: PV capital cost | B51: 16887.09 | C51: 16887.09 | D51: 16887.09 | E51: 16887.09 | F51: 16887.09 | H51: 11257.114 | I51: 11257.114 | J51: 11257.114 | K51: 11257.114 | L51: 11257.114 | N51: 9928.952 | O51: 9928.952 | P51: 9928.952 | Q51: 9928.952 | R51: 9928.952 | T51: 7017.164 | U51: 7017.164 | V51: 7017.164 | W51: 7017.164 | X51: 7017.164
A52: PV O&M | B52: 2875.386335 | C52: 2875.386335 | D52: 2875.386335 | E52: 2875.386335 | F52: 2875.386335 | H52: 1916.763147 | I52: 1916.763147 | J52: 1916.763147 | K52: 1916.763147 | L52: 1916.763147 | N52: 1690.61531 | O52: 1690.61531 | P52: 1690.61531 | Q52: 1690.61531 | R52: 1690.61531 | T52: 1194.821457 | U52: 1194.821457 | V52: 1194.821457 | W52: 1194.821457 | X52: 1194.821457
A53: Battery capital cost | B53: 0 | C53: 0 | D53: 0 | E53: 0 | F53: 0 | H53: 0 | I53: 0 | J53: 0 | K53: 0 | L53: 0 | N53: 0 | O53: 0 | P53: 0 | Q53: 0 | R53: 0 | T53: 0 | U53: 0 | V53: 0 | W53: 0 | X53: 0
A54: Battery O&M | B54: 0 | C54: 0 | D54: 0 | E54: 0 | F54: 0 | H54: 0 | I54: 0 | J54: 0 | K54: 0 | L54: 0 | N54: 0 | O54: 0 | P54: 0 | Q54: 0 | R54: 0 | T54: 0 | U54: 0 | V54: 0 | W54: 0 | X54: 0
A55: Diesel capital cost | B55: 4156.62 | C55: 4156.62 | D55: 4156.62 | E55: 4156.62 | F55: 4156.62 | H55: 4849.39 | I55: 4849.39 | J55: 4849.39 | K55: 4849.39 | L55: 4849.39 | N55: 5542.16 | O55: 5542.16 | P55: 5542.16 | Q55: 5542.16 | R55: 5542.16 | T55: 8313.24 | U55: 8313.24 | V55: 8313.24 | W55: 8313.24 | X55: 8313.24
A56: Diesel O&M (kW) | B56: 1277.034558 | C56: 1277.034558 | D56: 1277.034558 | E56: 1277.034558 | F56: 1277.034558 | H56: 1489.873651 | I56: 1489.873651 | J56: 1489.873651 | K56: 1489.873651 | L56: 1489.873651 | N56: 1702.712744 | O56: 1702.712744 | P56: 1702.712744 | Q56: 1702.712744 | R56: 1702.712744 | T56: 2554.069116 | U56: 2554.069116 | V56: 2554.069116 | W56: 2554.069116 | X56: 2554.069116
A57: Diesel O&M (kWh) | B57: 2199.032365 | C57: 2006.095408 | D57: 1813.158452 | E57: 1620.221496 | F57: 1427.284533 | H57: 2758.853359 | I57: 2565.844932 | J57: 2372.836504 | K57: 2179.828076 | L57: 1986.819648 | N57: 2895.144854 | O57: 2702.136427 | P57: 2509.127999 | Q57: 2316.119571 | R57: 2123.111143 | T57: 3224.162333 | U57: 3031.082434 | V57: 2838.002535 | W57: 2644.922636 | X57: 2451.842737
A58: Fuel cost | B58: 52221.49392 | C58: 47639.72594 | D58: 43057.95795 | E58: 38476.18996 | F58: 33894.42181 | H58: 65515.83608 | I58: 60932.37083 | J58: 56348.90557 | K58: 51765.44032 | L58: 47181.97506 | N58: 68752.41667 | O58: 64168.95142 | P58: 59585.48616 | Q58: 55002.02091 | R58: 50418.55566 | T58: 76565.75519 | U58: 71980.59267 | V58: 67395.43015 | W58: 62810.26763 | X58: 58225.10511
A59: REopt LCC | B59: 79618.6 | C59: 74843.7 | D59: 70068.8 | E59: 65293.9 | F59: 60519 | H59: 87790.2 | I59: 83013.6 | J59: 78236.9 | K59: 73460.2 | L59: 68683.6 | N59: 90514.5 | O59: 85737.8 | P59: 80961.2 | Q59: 76184.5 | R59: 71407.9 | T59: 98871.8 | U59: 94093.4 | V59: 89315 | W59: 84536.6 | X59: 79758.1
A61: TMY_highPVBatt_HighDiesel_36_PB_business | B61: 100 | C61: 95 | D61: 90 | E61: 85 | F61: 80 | G61: TMY_highPVBatt_HighDiesel_36_PB_nrel | H61: 100 | I61: 95 | J61: 90 | K61: 85 | L61: 80 | M61: TMY_highPVBatt_HighDiesel_36_PB_average | N61: 100 | O61: 95 | P61: 90 | Q61: 85 | R61: 80 | S61: TMY_highPVBatt_HighDiesel_36_PB_residential | T61: 100 | U61: 95 | V61: 90 | W61: 85 | X61: 80
A62: PV kW | B62: 34.202 | C62: 23.841 | D62: 19.234 | E62: 17.756 | F62: 16.399 | H62: 36.053 | I62: 24.584 | J62: 19.94 | K62: 18.192 | L62: 16.938 | N62: 35.987 | O62: 24.553 | P62: 20.306 | Q62: 18.433 | R62: 17.152 | T62: 36.783 | U62: 24.935 | V62: 21.352 | W62: 19.502 | X62: 17.919
A63: Battery kW | B63: 4.76 | C63: 4.76 | D63: 4.728 | E63: 3.63 | F63: 3.007 | H63: 6.078 | I63: 5.798 | J63: 5.449 | K63: 4.775 | L63: 4.276 | N63: 6.78 | O63: 6.78 | P63: 6.099 | Q63: 5.383 | R63: 4.696 | T63: 10.62 | U63: 10.62 | V63: 9.157 | W63: 7.624 | X63: 6.671
A64: Battery kWh | B64: 132.214 | C64: 33.32 | D64: 31.801 | E64: 28.496 | F64: 24.962 | H64: 146.979 | I64: 48.543 | J64: 47.307 | K64: 44.17 | L64: 40.143 | N64: 149.64 | O64: 50.686 | P64: 49.063 | Q64: 45.974 | R64: 42.111 | T64: 158.465 | U64: 58.191 | V64: 55.742 | W64: 52.294 | X64: 48.688
A65: Generator kW | B65: 0 | C65: 0 | D65: 0 | E65: 0 | F65: 0 | H65: 0 | I65: 0 | J65: 0 | K65: 0 | L65: 0 | N65: 0 | O65: 0 | P65: 0 | Q65: 0 | R65: 0 | T65: 0 | U65: 0 | V65: 0 | W65: 0 | X65: 0
A66: PV capital cost | B66: 75244.4 | C66: 52451.3 | D66: 42315.02 | E66: 39064.08 | F66: 36077.8 | H66: 79316.6 | I66: 54085.24 | J66: 43868 | K66: 40021.52 | L66: 37263.82 | N66: 79170.96 | O66: 54015.72 | P66: 44672.54 | Q66: 40553.48 | R66: 37733.74 | T66: 80922.82 | U66: 54856.56 | V66: 46974.18 | W66: 42903.3 | X66: 39422.68
A67: PV O&M | B67: 12811.95988 | C67: 8930.949695 | D67: 7205.032382 | E67: 6651.490685 | F67: 6143.012984 | H67: 13505.33856 | I67: 9209.162741 | J67: 7469.460265 | K67: 6814.515214 | L67: 6344.95812 | N67: 13480.54025 | O67: 9197.325482 | P67: 7606.450316 | Q67: 6905.092721 | R67: 6424.971998 | T67: 13778.83169 | U67: 9340.49638 | V67: 7998.353492 | W67: 7305.199567 | X67: 6712.549964
A68: Battery capital cost | B68: 122747.9834 | C68: 35955.8177 | D68: 34576.8004 | E68: 30128.36717 | F68: 26148.53412 | H68: 137564.6366 | I68: 50779.12401 | J68: 49203.36932 | K68: 45498.73736 | L68: 41261.16903 | N68: 140890.3624 | O68: 54045.10008 | P68: 51661.37766 | Q68: 47940.33846 | R68: 43581.67064 | T68: 154050.9851 | U68: 66047.33893 | V68: 61835.78285 | W68: 56646.52832 | X68: 52138.55789
A69: Battery O&M | B69: 33768.36941 | C69: 8510.209376 | D69: 8122.195196 | E69: 7277.998731 | F69: 6375.518409 | H69: 37539.45246 | I69: 12398.19217 | J69: 12082.66247 | K69: 11281.2722 | L69: 10252.90182 | N69: 38219.09025 | O69: 12945.4781 | P69: 12531.15701 | Q69: 11742.20506 | R69: 10755.54262 | T69: 40473.05625 | U69: 14862.33251 | V69: 14237.01977 | W69: 13356.12133 | X69: 12435.35387
A70: Diesel capital cost | B70: 0 | C70: 0 | D70: 0 | E70: 0 | F70: 0 | H70: 0 | I70: 0 | J70: 0 | K70: 0 | L70: 0 | N70: 0 | O70: 0 | P70: 0 | Q70: 0 | R70: 0 | T70: 0 | U70: 0 | V70: 0 | W70: 0 | X70: 0
A71: Diesel O&M (kW) | B71: 0 | C71: 0 | D71: 0 | E71: 0 | F71: 0 | H71: 0 | I71: 0 | J71: 0 | K71: 0 | L71: 0 | N71: 0 | O71: 0 | P71: 0 | Q71: 0 | R71: 0 | T71: 0 | U71: 0 | V71: 0 | W71: 0 | X71: 0
A72: Diesel O&M (kWh) | B72: 0 | C72: 0 | D72: 0 | E72: 0 | F72: 0 | H72: 0 | I72: 0 | J72: 0 | K72: 0 | L72: 0 | N72: 0 | O72: 0 | P72: 0 | Q72: 0 | R72: 0 | T72: 0 | U72: 0 | V72: 0 | W72: 0 | X72: 0
A73: Fuel cost | B73: 0 | C73: 0 | D73: 0 | E73: 0 | F73: 0 | H73: 0 | I73: 0 | J73: 0 | K73: 0 | L73: 0 | N73: 0 | O73: 0 | P73: 0 | Q73: 0 | R73: 0 | T73: 0 | U73: 0 | V73: 0 | W73: 0 | X73: 0
A74: REopt LCC | B74: 244573 | C74: 105848 | D74: 92219.1 | E74: 83122.1 | F74: 74744.9 | H74: 267926 | I74: 126472 | J74: 112624 | K74: 103616 | L74: 95123 | N74: 271762 | O74: 130204 | P74: 116472 | Q74: 107141 | R74: 98496 | T74: 289226 | U74: 145107 | V74: 131045 | W74: 120211 | X74: 110709
A76: TMY_highPVBatt_HighDiesel_36_D_business | B76: 100 | C76: 95 | D76: 90 | E76: 85 | F76: 80 | G76: TMY_highPVBatt_HighDiesel_36_D_nrel | H76: 100 | I76: 95 | J76: 90 | K76: 85 | L76: 80 | M76: TMY_highPVBatt_HighDiesel_36_D_average | N76: 100 | O76: 95 | P76: 90 | Q76: 85 | R76: 80 | S76: TMY_highPVBatt_HighDiesel_36_D_residential | T76: 100 | U76: 95 | V76: 90 | W76: 85 | X76: 80
A77: PV kW | B77: 0 | C77: 0 | D77: 0 | E77: 0 | F77: 0 | H77: 0 | I77: 0 | J77: 0 | K77: 0 | L77: 0 | N77: 0 | O77: 0 | P77: 0 | Q77: 0 | R77: 0 | T77: 0 | U77: 0 | V77: 0 | W77: 0 | X77: 0
A78: Battery kW | B78: 0 | C78: 0 | D78: 0 | E78: 0 | F78: 0 | H78: 0 | I78: 0 | J78: 0 | K78: 0 | L78: 0 | N78: 0 | O78: 0 | P78: 0 | Q78: 0 | R78: 0 | T78: 0 | U78: 0 | V78: 0 | W78: 0 | X78: 0
A79: Battery kWh | B79: 0 | C79: 0 | D79: 0 | E79: 0 | F79: 0 | H79: 0 | I79: 0 | J79: 0 | K79: 0 | L79: 0 | N79: 0 | O79: 0 | P79: 0 | Q79: 0 | R79: 0 | T79: 0 | U79: 0 | V79: 0 | W79: 0 | X79: 0
A80: Generator kW | B80: 6 | C80: 6 | D80: 6 | E80: 6 | F80: 6 | H80: 7 | I80: 7 | J80: 7 | K80: 7 | L80: 7 | N80: 8 | O80: 8 | P80: 8 | Q80: 8 | R80: 8 | T80: 12 | U80: 12 | V80: 12 | W80: 12 | X80: 12
A81: PV capital cost | B81: 0 | C81: 0 | D81: 0 | E81: 0 | F81: 0 | H81: 0 | I81: 0 | J81: 0 | K81: 0 | L81: 0 | N81: 0 | O81: 0 | P81: 0 | Q81: 0 | R81: 0 | T81: 0 | U81: 0 | V81: 0 | W81: 0 | X81: 0
A82: PV O&M | B82: 0 | C82: 0 | D82: 0 | E82: 0 | F82: 0 | H82: 0 | I82: 0 | J82: 0 | K82: 0 | L82: 0 | N82: 0 | O82: 0 | P82: 0 | Q82: 0 | R82: 0 | T82: 0 | U82: 0 | V82: 0 | W82: 0 | X82: 0
A83: Battery capital cost | B83: 0 | C83: 0 | D83: 0 | E83: 0 | F83: 0 | H83: 0 | I83: 0 | J83: 0 | K83: 0 | L83: 0 | N83: 0 | O83: 0 | P83: 0 | Q83: 0 | R83: 0 | T83: 0 | U83: 0 | V83: 0 | W83: 0 | X83: 0
A84: Battery O&M | B84: 0 | C84: 0 | D84: 0 | E84: 0 | F84: 0 | H84: 0 | I84: 0 | J84: 0 | K84: 0 | L84: 0 | N84: 0 | O84: 0 | P84: 0 | Q84: 0 | R84: 0 | T84: 0 | U84: 0 | V84: 0 | W84: 0 | X84: 0
A85: Diesel capital cost | B85: 4156.62 | C85: 4156.62 | D85: 4156.62 | E85: 4156.62 | F85: 4156.62 | H85: 4849.39 | I85: 4849.39 | J85: 4849.39 | K85: 4849.39 | L85: 4849.39 | N85: 5542.16 | O85: 5542.16 | P85: 5542.16 | Q85: 5542.16 | R85: 5542.16 | T85: 8313.24 | U85: 8313.24 | V85: 8313.24 | W85: 8313.24 | X85: 8313.24
A86: Diesel O&M (kW) | B86: 1277.034558 | C86: 1277.034558 | D86: 1277.034558 | E86: 1277.034558 | F86: 1277.034558 | H86: 1489.873651 | I86: 1489.873651 | J86: 1489.873651 | K86: 1489.873651 | L86: 1489.873651 | N86: 1702.712744 | O86: 1702.712744 | P86: 1702.712744 | Q86: 1702.712744 | R86: 1702.712744 | T86: 2554.069116 | U86: 2554.069116 | V86: 2554.069116 | W86: 2554.069116 | X86: 2554.069116
A87: Diesel O&M (kWh) | B87: 3858.739128 | C87: 3665.802171 | D87: 3472.865215 | E87: 3279.928258 | F87: 3086.991302 | H87: 3860.168555 | I87: 3667.160127 | J87: 3474.151699 | K87: 3281.143272 | L87: 3088.134844 | N87: 3860.168555 | O87: 3667.160127 | P87: 3474.151699 | Q87: 3281.143272 | R87: 3088.134844 | T87: 3861.597982 | U87: 3668.518083 | V87: 3475.438184 | W87: 3282.358285 | X87: 3089.278386
A88: Fuel cost | B88: 91635.35977 | C88: 87053.59179 | D88: 82471.8238 | E88: 77890.05581 | F88: 73308.28782 | H88: 91669.30508 | I88: 87085.83983 | J88: 82502.37457 | K88: 77918.90932 | L88: 73335.44407 | N88: 91669.30508 | O88: 87085.83983 | P88: 82502.37457 | Q88: 77918.90932 | R88: 73335.44407 | T88: 91703.25039 | U88: 87118.08787 | V88: 82532.92535 | W88: 77947.76283 | X88: 73362.60031
A89: REopt LCC | B89: 100931 | C89: 96156.3 | D89: 91381.4 | E89: 86606.6 | F89: 81831.7 | H89: 101872 | I89: 97095.5 | J89: 92318.9 | K89: 87542.2 | L89: 82765.5 | N89: 102778 | O89: 98001.1 | P89: 93224.4 | Q89: 88447.8 | R89: 83671.1 | T89: 106435 | U89: 101657 | V89: 96878.5 | W89: 92100.1 | X89: 87321.7
A91: TMY_highPVBatt_HighDiesel_32_PBD_business | B91: 100 | C91: 95 | D91: 90 | E91: 85 | F91: 80 | G91: TMY_highPVBatt_HighDiesel_32_PBD_nrel | H91: 100 | I91: 95 | J91: 90 | K91: 85 | L91: 80 | M91: TMY_highPVBatt_HighDiesel_32_PBD_average | N91: 100 | O91: 95 | P91: 90 | Q91: 85 | R91: 80 | S91: TMY_highPVBatt_HighDiesel_32_PBD_residential | T91: 100 | U91: 95 | V91: 90 | W91: 85 | X91: 80
A92: PV kW | B92: 7.24 | C92: 7.24 | D92: 7.24 | E92: 7.24 | F92: 7.24 | H92: 4.846 | I92: 4.846 | J92: 4.846 | K92: 4.846 | L92: 4.846 | N92: 4.288 | O92: 4.288 | P92: 4.288 | Q92: 4.288 | R92: 4.288 | T92: 3.003 | U92: 3.003 | V92: 3.003 | W92: 3.003 | X92: 3.003
A93: Battery kW | B93: 0 | C93: 0 | D93: 0 | E93: 0 | F93: 0 | H93: 0 | I93: 0 | J93: 0 | K93: 0 | L93: 0 | N93: 0 | O93: 0 | P93: 0 | Q93: 0 | R93: 0 | T93: 0 | U93: 0 | V93: 0 | W93: 0 | X93: 0
A94: Battery kWh | B94: 0 | C94: 0 | D94: 0 | E94: 0 | F94: 0 | H94: 0 | I94: 0 | J94: 0 | K94: 0 | L94: 0 | N94: 0 | O94: 0 | P94: 0 | Q94: 0 | R94: 0 | T94: 0 | U94: 0 | V94: 0 | W94: 0 | X94: 0
A95: Generator kW | B95: 6 | C95: 6 | D95: 6 | E95: 6 | F95: 6 | H95: 7 | I95: 7 | J95: 7 | K95: 7 | L95: 7 | N95: 8 | O95: 8 | P95: 8 | Q95: 8 | R95: 8 | T95: 12 | U95: 12 | V95: 12 | W95: 12 | X95: 12
A96: PV capital cost | B96: 15927.186 | C96: 15927.186 | D96: 15927.186 | E96: 15927.186 | F96: 15927.186 | H96: 10662.146 | I96: 10662.146 | J96: 10662.146 | K96: 10662.146 | L96: 10662.146 | N96: 9433.072 | O96: 9433.072 | P96: 9433.072 | Q96: 9433.072 | R96: 9433.072 | T96: 6606.842 | U96: 6606.842 | V96: 6606.842 | W96: 6606.842 | X96: 6606.842
A97: PV O&M | B97: 2711.942258 | C97: 2711.942258 | D97: 2711.942258 | E97: 2711.942258 | F97: 2711.942258 | H97: 1815.457187 | I97: 1815.457187 | J97: 1815.457187 | K97: 1815.457187 | L97: 1815.457187 | N97: 1606.181191 | O97: 1606.181191 | P97: 1606.181191 | Q97: 1606.181191 | R97: 1606.181191 | T97: 1124.955407 | U97: 1124.955407 | V97: 1124.955407 | W97: 1124.955407 | X97: 1124.955407
A98: Battery capital cost | B98: 0 | C98: 0 | D98: 0 | E98: 0 | F98: 0 | H98: 0 | I98: 0 | J98: 0 | K98: 0 | L98: 0 | N98: 0 | O98: 0 | P98: 0 | Q98: 0 | R98: 0 | T98: 0 | U98: 0 | V98: 0 | W98: 0 | X98: 0
A99: Battery O&M | B99: 0 | C99: 0 | D99: 0 | E99: 0 | F99: 0 | H99: 0 | I99: 0 | J99: 0 | K99: 0 | L99: 0 | N99: 0 | O99: 0 | P99: 0 | Q99: 0 | R99: 0 | T99: 0 | U99: 0 | V99: 0 | W99: 0 | X99: 0
A100: Diesel capital cost | B100: 4156.62 | C100: 4156.62 | D100: 4156.62 | E100: 4156.62 | F100: 4156.62 | H100: 4849.39 | I100: 4849.39 | J100: 4849.39 | K100: 4849.39 | L100: 4849.39 | N100: 5542.16 | O100: 5542.16 | P100: 5542.16 | Q100: 5542.16 | R100: 5542.16 | T100: 8313.24 | U100: 8313.24 | V100: 8313.24 | W100: 8313.24 | X100: 8313.24
A101: Diesel O&M (kW) | B101: 1277.034558 | C101: 1277.034558 | D101: 1277.034558 | E101: 1277.034558 | F101: 1277.034558 | H101: 1489.873651 | I101: 1489.873651 | J101: 1489.873651 | K101: 1489.873651 | L101: 1489.873651 | N101: 1702.712744 | O101: 1702.712744 | P101: 1702.712744 | Q101: 1702.712744 | R101: 1702.712744 | T101: 2554.069116 | U101: 2554.069116 | V101: 2554.069116 | W101: 2554.069116 | X101: 2554.069116
A102: Diesel O&M (kWh) | B102: 2246.541233 | C102: 2053.604279 | D102: 1860.667321 | E102: 1667.730364 | F102: 1474.793411 | H102: 2788.588794 | I102: 2595.580366 | J102: 2402.571939 | K102: 2209.563511 | L102: 2016.555083 | N102: 2920.064865 | O102: 2727.056437 | P102: 2534.048009 | Q102: 2341.039581 | R102: 2148.031154 | T102: 3244.666233 | U102: 3051.586334 | V102: 2858.506435 | W102: 2665.426536 | X102: 2472.346637
A103: Fuel cost | B103: 47421.96462 | C103: 43349.28199 | D103: 39276.59931 | E103: 35203.91665 | F103: 31131.23406 | H103: 58863.9804 | I103: 54789.78906 | J103: 50715.59773 | K103: 46641.40639 | L103: 42567.21505 | N103: 61639.29272 | O103: 57565.10138 | P103: 53490.91004 | Q103: 49416.71871 | R103: 45342.52737 | T103: 68491.26337 | U103: 64415.56336 | V103: 60339.86334 | W103: 56264.16332 | X103: 52188.4633
A104: REopt LCC | B104: 73743.2 | C104: 69477.4 | D104: 65211.6 | E104: 60945.8 | F104: 56680 | H104: 80471.9 | I104: 76204.5 | J104: 71937.1 | K104: 67669.7 | L104: 63402.3 | N104: 82846 | O104: 78578.6 | P104: 74311.2 | Q104: 70043.8 | R104: 65776.4 | T104: 90337.7 | U104: 86068.7 | V104: 81799.8 | W104: 77530.8 | X104: 73261.8
A106: TMY_highPVBatt_HighDiesel_32_PB_business | B106: 100 | C106: 95 | D106: 90 | E106: 85 | F106: 80 | G106: TMY_highPVBatt_HighDiesel_32_PB_nrel | H106: 100 | I106: 95 | J106: 90 | K106: 85 | L106: 80 | M106: TMY_highPVBatt_HighDiesel_32_PB_average | N106: 100 | O106: 95 | P106: 90 | Q106: 85 | R106: 80 | S106: TMY_highPVBatt_HighDiesel_32_PB_residential | T106: 100 | U106: 95 | V106: 90 | W106: 85 | X106: 80
A107: PV kW | B107: 34.202 | C107: 23.841 | D107: 19.234 | E107: 17.756 | F107: 16.399 | H107: 36.053 | I107: 24.584 | J107: 19.94 | K107: 18.192 | L107: 16.938 | N107: 35.987 | O107: 24.553 | P107: 20.306 | Q107: 18.433 | R107: 17.152 | T107: 36.783 | U107: 24.935 | V107: 21.352 | W107: 19.502 | X107: 17.919
A108: Battery kW | B108: 4.76 | C108: 4.76 | D108: 4.728 | E108: 3.63 | F108: 3.007 | H108: 6.078 | I108: 5.798 | J108: 5.449 | K108: 4.775 | L108: 4.276 | N108: 6.78 | O108: 6.78 | P108: 6.099 | Q108: 5.383 | R108: 4.696 | T108: 10.62 | U108: 10.62 | V108: 9.157 | W108: 7.624 | X108: 6.671
A109: Battery kWh | B109: 132.214 | C109: 33.32 | D109: 31.801 | E109: 28.496 | F109: 24.962 | H109: 146.979 | I109: 48.543 | J109: 47.307 | K109: 44.17 | L109: 40.143 | N109: 149.64 | O109: 50.686 | P109: 49.063 | Q109: 45.974 | R109: 42.111 | T109: 158.465 | U109: 58.191 | V109: 55.742 | W109: 52.294 | X109: 48.688
A110: Generator kW | B110: 0 | C110: 0 | D110: 0 | E110: 0 | F110: 0 | H110: 0 | I110: 0 | J110: 0 | K110: 0 | L110: 0 | N110: 0 | O110: 0 | P110: 0 | Q110: 0 | R110: 0 | T110: 0 | U110: 0 | V110: 0 | W110: 0 | X110: 0
A111: PV capital cost | B111: 75244.4 | C111: 52451.3 | D111: 42315.02 | E111: 39064.08 | F111: 36077.8 | H111: 79316.6 | I111: 54085.24 | J111: 43868 | K111: 40021.52 | L111: 37263.82 | N111: 79170.96 | O111: 54015.72 | P111: 44672.54 | Q111: 40553.48 | R111: 37733.74 | T111: 80922.82 | U111: 54856.56 | V111: 46974.18 | W111: 42903.3 | X111: 39422.68
A112: PV O&M | B112: 12811.95988 | C112: 8930.949695 | D112: 7205.032382 | E112: 6651.490685 | F112: 6143.012984 | H112: 13505.33856 | I112: 9209.162741 | J112: 7469.460265 | K112: 6814.515214 | L112: 6344.95812 | N112: 13480.54025 | O112: 9197.325482 | P112: 7606.450316 | Q112: 6905.092721 | R112: 6424.971998 | T112: 13778.83169 | U112: 9340.49638 | V112: 7998.353492 | W112: 7305.199567 | X112: 6712.549964
A113: Battery capital cost | B113: 122747.9834 | C113: 35955.8177 | D113: 34576.8004 | E113: 30128.36717 | F113: 26148.53412 | H113: 137564.6366 | I113: 50779.12401 | J113: 49203.36932 | K113: 45498.73736 | L113: 41261.16903 | N113: 140890.3624 | O113: 54045.10008 | P113: 51661.37766 | Q113: 47940.33846 | R113: 43581.67064 | T113: 154050.9851 | U113: 66047.33893 | V113: 61835.78285 | W113: 56646.52832 | X113: 52138.55789
A114: Battery O&M | B114: 33768.36941 | C114: 8510.209376 | D114: 8122.195196 | E114: 7277.998731 | F114: 6375.518409 | H114: 37539.45246 | I114: 12398.19217 | J114: 12082.66247 | K114: 11281.2722 | L114: 10252.90182 | N114: 38219.09025 | O114: 12945.4781 | P114: 12531.15701 | Q114: 11742.20506 | R114: 10755.54262 | T114: 40473.05625 | U114: 14862.33251 | V114: 14237.01977 | W114: 13356.12133 | X114: 12435.35387
A115: Diesel capital cost | B115: 0 | C115: 0 | D115: 0 | E115: 0 | F115: 0 | H115: 0 | I115: 0 | J115: 0 | K115: 0 | L115: 0 | N115: 0 | O115: 0 | P115: 0 | Q115: 0 | R115: 0 | T115: 0 | U115: 0 | V115: 0 | W115: 0 | X115: 0
A116: Diesel O&M (kW) | B116: 0 | C116: 0 | D116: 0 | E116: 0 | F116: 0 | H116: 0 | I116: 0 | J116: 0 | K116: 0 | L116: 0 | N116: 0 | O116: 0 | P116: 0 | Q116: 0 | R116: 0 | T116: 0 | U116: 0 | V116: 0 | W116: 0 | X116: 0
A117: Diesel O&M (kWh) | B117: 0 | C117: 0 | D117: 0 | E117: 0 | F117: 0 | H117: 0 | I117: 0 | J117: 0 | K117: 0 | L117: 0 | N117: 0 | O117: 0 | P117: 0 | Q117: 0 | R117: 0 | T117: 0 | U117: 0 | V117: 0 | W117: 0 | X117: 0
A118: Fuel cost | B118: 0 | C118: 0 | D118: 0 | E118: 0 | F118: 0 | H118: 0 | I118: 0 | J118: 0 | K118: 0 | L118: 0 | N118: 0 | O118: 0 | P118: 0 | Q118: 0 | R118: 0 | T118: 0 | U118: 0 | V118: 0 | W118: 0 | X118: 0
A119: REopt LCC | B119: 244573 | C119: 105848 | D119: 92219.1 | E119: 83122.1 | F119: 74744.9 | H119: 267926 | I119: 126472 | J119: 112624 | K119: 103616 | L119: 95123 | N119: 271762 | O119: 130204 | P119: 116472 | Q119: 107141 | R119: 98496 | T119: 289226 | U119: 145107 | V119: 131045 | W119: 120211 | X119: 110709
A121: TMY_highPVBatt_HighDiesel_32_D_business | B121: 100 | C121: 95 | D121: 90 | E121: 85 | F121: 80 | G121: TMY_highPVBatt_HighDiesel_32_D_nrel | H121: 100 | I121: 95 | J121: 90 | K121: 85 | L121: 80 | M121: TMY_highPVBatt_HighDiesel_32_D_average | N121: 100 | O121: 95 | P121: 90 | Q121: 85 | R121: 80 | S121: TMY_highPVBatt_HighDiesel_32_D_residential | T121: 100 | U121: 95 | V121: 90 | W121: 85 | X121: 80
A122: PV kW | B122: 0 | C122: 0 | D122: 0 | E122: 0 | F122: 0 | H122: 0 | I122: 0 | J122: 0 | K122: 0 | L122: 0 | N122: 0 | O122: 0 | P122: 0 | Q122: 0 | R122: 0 | T122: 0 | U122: 0 | V122: 0 | W122: 0 | X122: 0
A123: Battery kW | B123: 0 | C123: 0 | D123: 0 | E123: 0 | F123: 0 | H123: 0 | I123: 0 | J123: 0 | K123: 0 | L123: 0 | N123: 0 | O123: 0 | P123: 0 | Q123: 0 | R123: 0 | T123: 0 | U123: 0 | V123: 0 | W123: 0 | X123: 0
A124: Battery kWh | B124: 0 | C124: 0 | D124: 0 | E124: 0 | F124: 0 | H124: 0 | I124: 0 | J124: 0 | K124: 0 | L124: 0 | N124: 0 | O124: 0 | P124: 0 | Q124: 0 | R124: 0 | T124: 0 | U124: 0 | V124: 0 | W124: 0 | X124: 0
A125: Generator kW | B125: 6 | C125: 6 | D125: 6 | E125: 6 | F125: 6 | H125: 7 | I125: 7 | J125: 7 | K125: 7 | L125: 7 | N125: 8 | O125: 8 | P125: 8 | Q125: 8 | R125: 8 | T125: 12 | U125: 12 | V125: 12 | W125: 12 | X125: 12
A126: PV capital cost | B126: 0 | C126: 0 | D126: 0 | E126: 0 | F126: 0 | H126: 0 | I126: 0 | J126: 0 | K126: 0 | L126: 0 | N126: 0 | O126: 0 | P126: 0 | Q126: 0 | R126: 0 | T126: 0 | U126: 0 | V126: 0 | W126: 0 | X126: 0
A127: PV O&M | B127: 0 | C127: 0 | D127: 0 | E127: 0 | F127: 0 | H127: 0 | I127: 0 | J127: 0 | K127: 0 | L127: 0 | N127: 0 | O127: 0 | P127: 0 | Q127: 0 | R127: 0 | T127: 0 | U127: 0 | V127: 0 | W127: 0 | X127: 0
A128: Battery capital cost | B128: 0 | C128: 0 | D128: 0 | E128: 0 | F128: 0 | H128: 0 | I128: 0 | J128: 0 | K128: 0 | L128: 0 | N128: 0 | O128: 0 | P128: 0 | Q128: 0 | R128: 0 | T128: 0 | U128: 0 | V128: 0 | W128: 0 | X128: 0
A129: Battery O&M | B129: 0 | C129: 0 | D129: 0 | E129: 0 | F129: 0 | H129: 0 | I129: 0 | J129: 0 | K129: 0 | L129: 0 | N129: 0 | O129: 0 | P129: 0 | Q129: 0 | R129: 0 | T129: 0 | U129: 0 | V129: 0 | W129: 0 | X129: 0
A130: Diesel capital cost | B130: 4156.62 | C130: 4156.62 | D130: 4156.62 | E130: 4156.62 | F130: 4156.62 | H130: 4849.39 | I130: 4849.39 | J130: 4849.39 | K130: 4849.39 | L130: 4849.39 | N130: 5542.16 | O130: 5542.16 | P130: 5542.16 | Q130: 5542.16 | R130: 5542.16 | T130: 8313.24 | U130: 8313.24 | V130: 8313.24 | W130: 8313.24 | X130: 8313.24
A131: Diesel O&M (kW) | B131: 1277.034558 | C131: 1277.034558 | D131: 1277.034558 | E131: 1277.034558 | F131: 1277.034558 | H131: 1489.873651 | I131: 1489.873651 | J131: 1489.873651 | K131: 1489.873651 | L131: 1489.873651 | N131: 1702.712744 | O131: 1702.712744 | P131: 1702.712744 | Q131: 1702.712744 | R131: 1702.712744 | T131: 2554.069116 | U131: 2554.069116 | V131: 2554.069116 | W131: 2554.069116 | X131: 2554.069116
A132: Diesel O&M (kWh) | B132: 3858.739128 | C132: 3665.802171 | D132: 3472.865215 | E132: 3279.928258 | F132: 3086.991302 | H132: 3860.168555 | I132: 3667.160127 | J132: 3474.151699 | K132: 3281.143272 | L132: 3088.134844 | N132: 3860.168555 | O132: 3667.160127 | P132: 3474.151699 | Q132: 3281.143272 | R132: 3088.134844 | T132: 3861.597982 | U132: 3668.518083 | V132: 3475.438184 | W132: 3282.358285 | X132: 3089.278386
A133: Fuel cost | B133: 81453.65313 | C133: 77380.97048 | D133: 73308.28782 | E133: 69235.60516 | F133: 65162.92251 | H133: 81483.82674 | I133: 77409.6354 | J133: 73335.44407 | K133: 69261.25273 | L133: 65187.06139 | N133: 81483.82674 | O133: 77409.6354 | P133: 73335.44407 | Q133: 69261.25273 | R133: 65187.06139 | T133: 81514.00035 | U133: 77438.30033 | V133: 73362.60031 | W133: 69286.9003 | X133: 65211.20028
A134: REopt LCC | B134: 90749.5 | C134: 86483.7 | D134: 82217.9 | E134: 77952.1 | F134: 73686.3 | H134: 91686.7 | I134: 87419.3 | J134: 83151.9 | K134: 78884.5 | L134: 74617.2 | N134: 92592.3 | O134: 88324.9 | P134: 84057.5 | Q134: 79790.1 | R134: 75522.7 | T134: 96246.1 | U134: 91977.2 | V134: 87708.2 | W134: 83439.3 | X134: 79170.3
A136: TMY_highPVBatt_MedDiesel_44_PBD_business | B136: 100 | C136: 95 | D136: 90 | E136: 85 | F136: 80 | G136: TMY_highPVBatt_MedDiesel_44_PBD_nrel | H136: 100 | I136: 95 | J136: 90 | K136: 85 | L136: 80 | M136: TMY_highPVBatt_MedDiesel_44_PBD_average | N136: 100 | O136: 95 | P136: 90 | Q136: 85 | R136: 80 | S136: TMY_highPVBatt_MedDiesel_44_PBD_residential | T136: 100 | U136: 95 | V136: 90 | W136: 85 | X136: 80
A137: PV kW | B137: 7.759 | C137: 7.759 | D137: 7.759 | E137: 7.759 | F137: 7.759 | H137: 5.147 | I137: 5.147 | J137: 5.147 | K137: 5.147 | L137: 5.147 | N137: 4.54 | O137: 4.54 | P137: 4.54 | Q137: 4.54 | R137: 4.54 | T137: 3.212 | U137: 3.212 | V137: 3.212 | W137: 3.212 | X137: 3.212
A138: Battery kW | B138: 0 | C138: 0 | D138: 0 | E138: 0 | F138: 0 | H138: 0 | I138: 0 | J138: 0 | K138: 0 | L138: 0 | N138: 0 | O138: 0 | P138: 0 | Q138: 0 | R138: 0 | T138: 0 | U138: 0 | V138: 0 | W138: 0 | X138: 0
A139: Battery kWh | B139: 0 | C139: 0 | D139: 0 | E139: 0 | F139: 0 | H139: 0 | I139: 0 | J139: 0 | K139: 0 | L139: 0 | N139: 0 | O139: 0 | P139: 0 | Q139: 0 | R139: 0 | T139: 0 | U139: 0 | V139: 0 | W139: 0 | X139: 0
A140: Generator kW | B140: 6 | C140: 6 | D140: 6 | E140: 6 | F140: 6 | H140: 7 | I140: 7 | J140: 7 | K140: 7 | L140: 7 | N140: 8 | O140: 8 | P140: 8 | Q140: 8 | R140: 8 | T140: 12 | U140: 12 | V140: 12 | W140: 12 | X140: 12
A141: PV capital cost | B141: 17068.964 | C141: 17068.964 | D141: 17068.964 | E141: 17068.964 | F141: 17068.964 | H141: 11322.718 | I141: 11322.718 | J141: 11322.718 | K141: 11322.718 | L141: 11322.718 | N141: 9987.67 | O141: 9987.67 | P141: 9987.67 | Q141: 9987.67 | R141: 9987.67 | T141: 7065.344 | U141: 7065.344 | V141: 7065.344 | W141: 7065.344 | X141: 7065.344
A142: PV O&M | B142: 2906.354253 | C142: 2906.354253 | D142: 2906.354253 | E142: 2906.354253 | F142: 2906.354253 | H142: 1927.933624 | I142: 1927.933624 | J142: 1927.933624 | K142: 1927.933624 | L142: 1927.933624 | N142: 1700.613299 | O142: 1700.613299 | P142: 1700.613299 | Q142: 1700.613299 | R142: 1700.613299 | T142: 1203.025127 | U142: 1203.025127 | V142: 1203.025127 | W142: 1203.025127 | X142: 1203.025127
A143: Battery capital cost | B143: 0 | C143: 0 | D143: 0 | E143: 0 | F143: 0 | H143: 0 | I143: 0 | J143: 0 | K143: 0 | L143: 0 | N143: 0 | O143: 0 | P143: 0 | Q143: 0 | R143: 0 | T143: 0 | U143: 0 | V143: 0 | W143: 0 | X143: 0
A144: Battery O&M | B144: 0 | C144: 0 | D144: 0 | E144: 0 | F144: 0 | H144: 0 | I144: 0 | J144: 0 | K144: 0 | L144: 0 | N144: 0 | O144: 0 | P144: 0 | Q144: 0 | R144: 0 | T144: 0 | U144: 0 | V144: 0 | W144: 0 | X144: 0
A145: Diesel capital cost | B145: 3325.32 | C145: 3325.32 | D145: 3325.32 | E145: 3325.32 | F145: 3325.32 | H145: 3879.54 | I145: 3879.54 | J145: 3879.54 | K145: 3879.54 | L145: 3879.54 | N145: 4433.76 | O145: 4433.76 | P145: 4433.76 | Q145: 4433.76 | R145: 4433.76 | T145: 6650.64 | U145: 6650.64 | V145: 6650.64 | W145: 6650.64 | X145: 6650.64
A146: Diesel O&M (kW) | B146: 1277.034558 | C146: 1277.034558 | D146: 1277.034558 | E146: 1277.034558 | F146: 1277.034558 | H146: 1489.873651 | I146: 1489.873651 | J146: 1489.873651 | K146: 1489.873651 | L146: 1489.873651 | N146: 1702.712744 | O146: 1702.712744 | P146: 1702.712744 | Q146: 1702.712744 | R146: 1702.712744 | T146: 2554.069116 | U146: 2554.069116 | V146: 2554.069116 | W146: 2554.069116 | X146: 2554.069116
A147: Diesel O&M (kWh) | B147: 2190.49529 | C147: 1997.558334 | D147: 1804.621376 | E147: 1611.684421 | F147: 1418.747464 | H147: 2755.776014 | I147: 2562.767586 | J147: 2369.759158 | K147: 2176.75073 | L147: 1983.742303 | N147: 2892.391754 | O147: 2699.383326 | P147: 2506.374898 | Q147: 2313.36647 | R147: 2120.358043 | T147: 3221.903665 | U147: 3028.823766 | V147: 2835.743867 | W147: 2642.663967 | X147: 2449.584068
A148: Fuel cost | B148: 52982.07022 | C148: 48315.45469 | D148: 43648.83911 | E148: 38982.22359 | F148: 34315.60803 | H148: 66654.65975 | I148: 61986.31551 | J148: 57317.97127 | K148: 52649.62703 | L148: 47981.28279 | N148: 69959.01962 | O148: 65290.67538 | P148: 60622.33114 | Q148: 55953.9869 | R148: 51285.64266 | T148: 77929.00855 | U148: 73258.93562 | V148: 68588.86268 | W148: 63918.78974 | X148: 59248.71681
A149: REopt LCC | B149: 79752.1 | C149: 74892.4 | D149: 70032.7 | E149: 65172.9 | F149: 60313.2 | H149: 88032.9 | I149: 83171.4 | J149: 78309.8 | K149: 73448.3 | L149: 68586.8 | N149: 90678.7 | O149: 85817.1 | P149: 80955.6 | Q149: 76094 | R149: 71232.5 | T149: 98626.6 | U149: 93763.3 | V149: 88899.9 | W149: 84036.6 | X149: 79173.3
A151: TMY_highPVBatt_MedDiesel_44_PB_business | B151: 100 | C151: 95 | D151: 90 | E151: 85 | F151: 80 | G151: TMY_highPVBatt_MedDiesel_44_PB_nrel | H151: 100 | I151: 95 | J151: 90 | K151: 85 | L151: 80 | M151: TMY_highPVBatt_MedDiesel_44_PB_average | N151: 100 | O151: 95 | P151: 90 | Q151: 85 | R151: 80 | S151: TMY_highPVBatt_MedDiesel_44_PB_residential | T151: 100 | U151: 95 | V151: 90 | W151: 85 | X151: 80
A152: PV kW | B152: 34.202 | C152: 23.841 | D152: 19.234 | E152: 17.756 | F152: 16.399 | H152: 36.053 | I152: 24.584 | J152: 19.94 | K152: 18.192 | L152: 16.938 | N152: 35.987 | O152: 24.553 | P152: 20.306 | Q152: 18.433 | R152: 17.152 | T152: 36.783 | U152: 24.935 | V152: 21.352 | W152: 19.502 | X152: 17.919
A153: Battery kW | B153: 4.76 | C153: 4.76 | D153: 4.728 | E153: 3.63 | F153: 3.007 | H153: 6.078 | I153: 5.798 | J153: 5.449 | K153: 4.775 | L153: 4.276 | N153: 6.78 | O153: 6.78 | P153: 6.099 | Q153: 5.383 | R153: 4.696 | T153: 10.62 | U153: 10.62 | V153: 9.157 | W153: 7.624 | X153: 6.671
A154: Battery kWh | B154: 132.214 | C154: 33.32 | D154: 31.801 | E154: 28.496 | F154: 24.962 | H154: 146.979 | I154: 48.543 | J154: 47.307 | K154: 44.17 | L154: 40.143 | N154: 149.64 | O154: 50.686 | P154: 49.063 | Q154: 45.974 | R154: 42.111 | T154: 158.465 | U154: 58.191 | V154: 55.742 | W154: 52.294 | X154: 48.688
A155: Generator kW | B155: 0 | C155: 0 | D155: 0 | E155: 0 | F155: 0 | H155: 0 | I155: 0 | J155: 0 | K155: 0 | L155: 0 | N155: 0 | O155: 0 | P155: 0 | Q155: 0 | R155: 0 | T155: 0 | U155: 0 | V155: 0 | W155: 0 | X155: 0
A156: PV capital cost | B156: 75244.4 | C156: 52451.3 | D156: 42315.02 | E156: 39064.08 | F156: 36077.8 | H156: 79316.6 | I156: 54085.24 | J156: 43868 | K156: 40021.52 | L156: 37263.82 | N156: 79170.96 | O156: 54015.72 | P156: 44672.54 | Q156: 40553.48 | R156: 37733.74 | T156: 80922.82 | U156: 54856.56 | V156: 46974.18 | W156: 42903.3 | X156: 39422.68
A157: PV O&M | B157: 12811.95988 | C157: 8930.949695 | D157: 7205.032382 | E157: 6651.490685 | F157: 6143.012984 | H157: 13505.33856 | I157: 9209.162741 | J157: 7469.460265 | K157: 6814.515214 | L157: 6344.95812 | N157: 13480.54025 | O157: 9197.325482 | P157: 7606.450316 | Q157: 6905.092721 | R157: 6424.971998 | T157: 13778.83169 | U157: 9340.49638 | V157: 7998.353492 | W157: 7305.199567 | X157: 6712.549964
A158: Battery capital cost | B158: 122747.9834 | C158: 35955.8177 | D158: 34576.8004 | E158: 30128.36717 | F158: 26148.53412 | H158: 137564.6366 | I158: 50779.12401 | J158: 49203.36932 | K158: 45498.73736 | L158: 41261.16903 | N158: 140890.3624 | O158: 54045.10008 | P158: 51661.37766 | Q158: 47940.33846 | R158: 43581.67064 | T158: 154050.9851 | U158: 66047.33893 | V158: 61835.78285 | W158: 56646.52832 | X158: 52138.55789
A159: Battery O&M | B159: 33768.36941 | C159: 8510.209376 | D159: 8122.195196 | E159: 7277.998731 | F159: 6375.518409 | H159: 37539.45246 | I159: 12398.19217 | J159: 12082.66247 | K159: 11281.2722 | L159: 10252.90182 | N159: 38219.09025 | O159: 12945.4781 | P159: 12531.15701 | Q159: 11742.20506 | R159: 10755.54262 | T159: 40473.05625 | U159: 14862.33251 | V159: 14237.01977 | W159: 13356.12133 | X159: 12435.35387
A160: Diesel capital cost | B160: 0 | C160: 0 | D160: 0 | E160: 0 | F160: 0 | H160: 0 | I160: 0 | J160: 0 | K160: 0 | L160: 0 | N160: 0 | O160: 0 | P160: 0 | Q160: 0 | R160: 0 | T160: 0 | U160: 0 | V160: 0 | W160: 0 | X160: 0
A161: Diesel O&M (kW) | B161: 0 | C161: 0 | D161: 0 | E161: 0 | F161: 0 | H161: 0 | I161: 0 | J161: 0 | K161: 0 | L161: 0 | N161: 0 | O161: 0 | P161: 0 | Q161: 0 | R161: 0 | T161: 0 | U161: 0 | V161: 0 | W161: 0 | X161: 0
A162: Diesel O&M (kWh) | B162: 0 | C162: 0 | D162: 0 | E162: 0 | F162: 0 | H162: 0 | I162: 0 | J162: 0 | K162: 0 | L162: 0 | N162: 0 | O162: 0 | P162: 0 | Q162: 0 | R162: 0 | T162: 0 | U162: 0 | V162: 0 | W162: 0 | X162: 0
A163: Fuel cost | B163: 0 | C163: 0 | D163: 0 | E163: 0 | F163: 0 | H163: 0 | I163: 0 | J163: 0 | K163: 0 | L163: 0 | N163: 0 | O163: 0 | P163: 0 | Q163: 0 | R163: 0 | T163: 0 | U163: 0 | V163: 0 | W163: 0 | X163: 0
A164: REopt LCC | B164: 244573 | C164: 105848 | D164: 92219.1 | E164: 83122.1 | F164: 74744.9 | H164: 267926 | I164: 126472 | J164: 112624 | K164: 103616 | L164: 95123 | N164: 271762 | O164: 130204 | P164: 116472 | Q164: 107141 | R164: 98496 | T164: 289226 | U164: 145107 | V164: 131045 | W164: 120211 | X164: 110709
A166: TMY_highPVBatt_MedDiesel_44_D_business | B166: 100 | C166: 95 | D166: 90 | E166: 85 | F166: 80 | G166: TMY_highPVBatt_MedDiesel_44_D_nrel | H166: 100 | I166: 95 | J166: 90 | K166: 85 | L166: 80 | M166: TMY_highPVBatt_MedDiesel_44_D_average | N166: 100 | O166: 95 | P166: 90 | Q166: 85 | R166: 80 | S166: TMY_highPVBatt_MedDiesel_44_D_residential | T166: 100 | U166: 95 | V166: 90 | W166: 85 | X166: 80
A167: PV kW | B167: 0 | C167: 0 | D167: 0 | E167: 0 | F167: 0 | H167: 0 | I167: 0 | J167: 0 | K167: 0 | L167: 0 | N167: 0 | O167: 0 | P167: 0 | Q167: 0 | R167: 0 | T167: 0 | U167: 0 | V167: 0 | W167: 0 | X167: 0
A168: Battery kW | B168: 0 | C168: 0 | D168: 0 | E168: 0 | F168: 0 | H168: 0 | I168: 0 | J168: 0 | K168: 0 | L168: 0 | N168: 0 | O168: 0 | P168: 0 | Q168: 0 | R168: 0 | T168: 0 | U168: 0 | V168: 0 | W168: 0 | X168: 0
A169: Battery kWh | B169: 0 | C169: 0 | D169: 0 | E169: 0 | F169: 0 | H169: 0 | I169: 0 | J169: 0 | K169: 0 | L169: 0 | N169: 0 | O169: 0 | P169: 0 | Q169: 0 | R169: 0 | T169: 0 | U169: 0 | V169: 0 | W169: 0 | X169: 0
A170: Generator kW | B170: 6 | C170: 6 | D170: 6 | E170: 6 | F170: 6 | H170: 7 | I170: 7 | J170: 7 | K170: 7 | L170: 7 | N170: 8 | O170: 8 | P170: 8 | Q170: 8 | R170: 8 | T170: 12 | U170: 12 | V170: 12 | W170: 12 | X170: 12
A171: PV capital cost | B171: 0 | C171: 0 | D171: 0 | E171: 0 | F171: 0 | H171: 0 | I171: 0 | J171: 0 | K171: 0 | L171: 0 | N171: 0 | O171: 0 | P171: 0 | Q171: 0 | R171: 0 | T171: 0 | U171: 0 | V171: 0 | W171: 0 | X171: 0
A172: PV O&M | B172: 0 | C172: 0 | D172: 0 | E172: 0 | F172: 0 | H172: 0 | I172: 0 | J172: 0 | K172: 0 | L172: 0 | N172: 0 | O172: 0 | P172: 0 | Q172: 0 | R172: 0 | T172: 0 | U172: 0 | V172: 0 | W172: 0 | X172: 0
A173: Battery capital cost | B173: 0 | C173: 0 | D173: 0 | E173: 0 | F173: 0 | H173: 0 | I173: 0 | J173: 0 | K173: 0 | L173: 0 | N173: 0 | O173: 0 | P173: 0 | Q173: 0 | R173: 0 | T173: 0 | U173: 0 | V173: 0 | W173: 0 | X173: 0
A174: Battery O&M | B174: 0 | C174: 0 | D174: 0 | E174: 0 | F174: 0 | H174: 0 | I174: 0 | J174: 0 | K174: 0 | L174: 0 | N174: 0 | O174: 0 | P174: 0 | Q174: 0 | R174: 0 | T174: 0 | U174: 0 | V174: 0 | W174: 0 | X174: 0
A175: Diesel capital cost | B175: 3325.32 | C175: 3325.32 | D175: 3325.32 | E175: 3325.32 | F175: 3325.32 | H175: 3879.54 | I175: 3879.54 | J175: 3879.54 | K175: 3879.54 | L175: 3879.54 | N175: 4433.76 | O175: 4433.76 | P175: 4433.76 | Q175: 4433.76 | R175: 4433.76 | T175: 6650.64 | U175: 6650.64 | V175: 6650.64 | W175: 6650.64 | X175: 6650.64
A176: Diesel O&M (kW) | B176: 1277.034558 | C176: 1277.034558 | D176: 1277.034558 | E176: 1277.034558 | F176: 1277.034558 | H176: 1489.873651 | I176: 1489.873651 | J176: 1489.873651 | K176: 1489.873651 | L176: 1489.873651 | N176: 1702.712744 | O176: 1702.712744 | P176: 1702.712744 | Q176: 1702.712744 | R176: 1702.712744 | T176: 2554.069116 | U176: 2554.069116 | V176: 2554.069116 | W176: 2554.069116 | X176: 2554.069116
A177: Diesel O&M (kWh) | B177: 3858.739128 | C177: 3665.802171 | D177: 3472.865215 | E177: 3279.928258 | F177: 3086.991302 | H177: 3860.168555 | I177: 3667.160127 | J177: 3474.151699 | K177: 3281.143272 | L177: 3088.134844 | N177: 3860.168555 | O177: 3667.160127 | P177: 3474.151699 | Q177: 3281.143272 | R177: 3088.134844 | T177: 3861.597982 | U177: 3668.518083 | V177: 3475.438184 | W177: 3282.358285 | X177: 3089.278386
A178: Fuel cost | B178: 93332.31088 | C178: 88665.69534 | D178: 83999.07979 | E178: 79332.46425 | F178: 74665.84871 | H178: 93366.88481 | I178: 88698.54057 | J178: 84030.19633 | K178: 79361.85209 | L178: 74693.50785 | N178: 93366.88481 | O178: 88698.54057 | P178: 84030.19633 | Q178: 79361.85209 | R178: 74693.50785 | T178: 93401.45873 | U178: 88731.3858 | V178: 84061.31286 | W178: 79391.23992 | X178: 74721.16699
A179: REopt LCC | B179: 101797 | C179: 96937.1 | D179: 92077.4 | E179: 87217.7 | F179: 82357.9 | H179: 102600 | I179: 97738.4 | J179: 92876.8 | K179: 88015.3 | L179: 83153.8 | N179: 103367 | O179: 98505.4 | P179: 93643.8 | Q179: 88782.3 | R179: 83920.8 | T179: 106471 | U179: 101608 | V179: 96744.3 | W179: 91881 | X179: 87017.7
A181: TMY_highPVBatt_MedDiesel_36_PBD_business | B181: 100 | C181: 95 | D181: 90 | E181: 85 | F181: 80 | G181: TMY_highPVBatt_MedDiesel_36_PBD_nrel | H181: 100 | I181: 95 | J181: 90 | K181: 85 | L181: 80 | M181: TMY_highPVBatt_MedDiesel_36_PBD_average | N181: 100 | O181: 95 | P181: 90 | Q181: 85 | R181: 80 | S181: TMY_highPVBatt_MedDiesel_36_PBD_residential | T181: 100 | U181: 95 | V181: 90 | W181: 85 | X181: 80
A182: PV kW | B182: 7.108 | C182: 7.108 | D182: 7.108 | E182: 7.108 | F182: 7.108 | H182: 4.764 | I182: 4.764 | J182: 4.764 | K182: 4.764 | L182: 4.764 | N182: 4.111 | O182: 4.111 | P182: 4.111 | Q182: 4.111 | R182: 4.111 | T182: 2.92 | U182: 2.92 | V182: 2.92 | W182: 2.92 | X182: 2.92
A183: Battery kW | B183: 0 | C183: 0 | D183: 0 | E183: 0 | F183: 0 | H183: 0 | I183: 0 | J183: 0 | K183: 0 | L183: 0 | N183: 0 | O183: 0 | P183: 0 | Q183: 0 | R183: 0 | T183: 0 | U183: 0 | V183: 0 | W183: 0 | X183: 0
A184: Battery kWh | B184: 0 | C184: 0 | D184: 0 | E184: 0 | F184: 0 | H184: 0 | I184: 0 | J184: 0 | K184: 0 | L184: 0 | N184: 0 | O184: 0 | P184: 0 | Q184: 0 | R184: 0 | T184: 0 | U184: 0 | V184: 0 | W184: 0 | X184: 0
A185: Generator kW | B185: 6 | C185: 6 | D185: 6 | E185: 6 | F185: 6 | H185: 7 | I185: 7 | J185: 7 | K185: 7 | L185: 7 | N185: 8 | O185: 8 | P185: 8 | Q185: 8 | R185: 8 | T185: 12 | U185: 12 | V185: 12 | W185: 12 | X185: 12
A186: PV capital cost | B186: 15637.556 | C186: 15637.556 | D186: 15637.556 | E186: 15637.556 | F186: 15637.556 | H186: 10481.02 | I186: 10481.02 | J186: 10481.02 | K186: 10481.02 | L186: 10481.02 | N186: 9043.892 | O186: 9043.892 | P186: 9043.892 | Q186: 9043.892 | R186: 9043.892 | T186: 6424.176 | U186: 6424.176 | V186: 6424.176 | W186: 6424.176 | X186: 6424.176
A187: PV O&M | B187: 2662.626589 | C187: 2662.626589 | D187: 2662.626589 | E187: 2662.626589 | F187: 2662.626589 | H187: 1784.616632 | I187: 1784.616632 | J187: 1784.616632 | K187: 1784.616632 | L187: 1784.616632 | N187: 1539.915016 | O187: 1539.915016 | P187: 1539.915016 | Q187: 1539.915016 | R187: 1539.915016 | T187: 1093.852634 | U187: 1093.852634 | V187: 1093.852634 | W187: 1093.852634 | X187: 1093.852634
A188: Battery capital cost | B188: 0 | C188: 0 | D188: 0 | E188: 0 | F188: 0 | H188: 0 | I188: 0 | J188: 0 | K188: 0 | L188: 0 | N188: 0 | O188: 0 | P188: 0 | Q188: 0 | R188: 0 | T188: 0 | U188: 0 | V188: 0 | W188: 0 | X188: 0
A189: Battery O&M | B189: 0 | C189: 0 | D189: 0 | E189: 0 | F189: 0 | H189: 0 | I189: 0 | J189: 0 | K189: 0 | L189: 0 | N189: 0 | O189: 0 | P189: 0 | Q189: 0 | R189: 0 | T189: 0 | U189: 0 | V189: 0 | W189: 0 | X189: 0
A190: Diesel capital cost | B190: 3325.32 | C190: 3325.32 | D190: 3325.32 | E190: 3325.32 | F190: 3325.32 | H190: 3879.54 | I190: 3879.54 | J190: 3879.54 | K190: 3879.54 | L190: 3879.54 | N190: 4433.76 | O190: 4433.76 | P190: 4433.76 | Q190: 4433.76 | R190: 4433.76 | T190: 6650.64 | U190: 6650.64 | V190: 6650.64 | W190: 6650.64 | X190: 6650.64
A191: Diesel O&M (kW) | B191: 1277.034558 | C191: 1277.034558 | D191: 1277.034558 | E191: 1277.034558 | F191: 1277.034558 | H191: 1489.873651 | I191: 1489.873651 | J191: 1489.873651 | K191: 1489.873651 | L191: 1489.873651 | N191: 1702.712744 | O191: 1702.712744 | P191: 1702.712744 | Q191: 1702.712744 | R191: 1702.712744 | T191: 2554.069116 | U191: 2554.069116 | V191: 2554.069116 | W191: 2554.069116 | X191: 2554.069116
A192: Diesel O&M (kWh) | B192: 2262.355952 | C192: 2069.418996 | D192: 1876.48204 | E192: 1683.545083 | F192: 1490.608118 | H192: 2798.461741 | I192: 2605.453314 | J192: 2412.444886 | K192: 2219.436458 | L192: 2026.42803 | N192: 2941.193151 | O192: 2748.184723 | P192: 2555.176295 | Q192: 2362.167868 | R192: 2169.15944 | T192: 3254.660415 | U192: 3061.580516 | V192: 2868.500617 | W192: 2675.420718 | X192: 2482.340819
A193: Fuel cost | B193: 44771.05837 | C193: 40952.91838 | D193: 37134.77839 | E193: 33316.6384 | F193: 29498.49822 | H193: 55380.36303 | I193: 51560.80865 | J193: 47741.25428 | K193: 43921.6999 | L193: 40102.14552 | N193: 58204.95669 | O193: 54385.40231 | P193: 50565.84793 | Q193: 46746.29355 | R193: 42926.73917 | T193: 64408.34002 | U193: 60587.37125 | V193: 56766.40248 | W193: 52945.43372 | X193: 49124.46495
A194: REopt LCC | B194: 69937.9 | C194: 65926.6 | D194: 61915.4 | E194: 57904.1 | F194: 53892.9 | H194: 75816.3 | I194: 71803.5 | J194: 67790.8 | K194: 63778.1 | L194: 59765.3 | N194: 77869 | O194: 73856.2 | P194: 69843.5 | Q194: 65830.7 | R194: 61818 | T194: 84388.4 | U194: 80374.2 | V194: 76359.9 | W194: 72345.7 | X194: 68331.5
A196: TMY_highPVBatt_MedDiesel_36_PB_business | B196: 100 | C196: 95 | D196: 90 | E196: 85 | F196: 80 | G196: TMY_highPVBatt_MedDiesel_36_PB_nrel | H196: 100 | I196: 95 | J196: 90 | K196: 85 | L196: 80 | M196: TMY_highPVBatt_MedDiesel_36_PB_average | N196: 100 | O196: 95 | P196: 90 | Q196: 85 | R196: 80 | S196: TMY_highPVBatt_MedDiesel_36_PB_residential | T196: 100 | U196: 95 | V196: 90 | W196: 85 | X196: 80
A197: PV kW | B197: 34.202 | C197: 23.841 | D197: 19.234 | E197: 17.756 | F197: 16.399 | H197: 36.053 | I197: 24.584 | J197: 19.94 | K197: 18.192 | L197: 16.938 | N197: 35.987 | O197: 24.553 | P197: 20.306 | Q197: 18.433 | R197: 17.152 | T197: 36.783 | U197: 24.935 | V197: 21.352 | W197: 19.502 | X197: 17.919
A198: Battery kW | B198: 4.76 | C198: 4.76 | D198: 4.728 | E198: 3.63 | F198: 3.007 | H198: 6.078 | I198: 5.798 | J198: 5.449 | K198: 4.775 | L198: 4.276 | N198: 6.78 | O198: 6.78 | P198: 6.099 | Q198: 5.383 | R198: 4.696 | T198: 10.62 | U198: 10.62 | V198: 9.157 | W198: 7.624 | X198: 6.671
A199: Battery kWh | B199: 132.214 | C199: 33.32 | D199: 31.801 | E199: 28.496 | F199: 24.962 | H199: 146.979 | I199: 48.543 | J199: 47.307 | K199: 44.17 | L199: 40.143 | N199: 149.64 | O199: 50.686 | P199: 49.063 | Q199: 45.974 | R199: 42.111 | T199: 158.465 | U199: 58.191 | V199: 55.742 | W199: 52.294 | X199: 48.688
A200: Generator kW | B200: 0 | C200: 0 | D200: 0 | E200: 0 | F200: 0 | H200: 0 | I200: 0 | J200: 0 | K200: 0 | L200: 0 | N200: 0 | O200: 0 | P200: 0 | Q200: 0 | R200: 0 | T200: 0 | U200: 0 | V200: 0 | W200: 0 | X200: 0
A201: PV capital cost | B201: 75244.4 | C201: 52451.3 | D201: 42315.02 | E201: 39064.08 | F201: 36077.8 | H201: 79316.6 | I201: 54085.24 | J201: 43868 | K201: 40021.52 | L201: 37263.82 | N201: 79170.96 | O201: 54015.72 | P201: 44672.54 | Q201: 40553.48 | R201: 37733.74 | T201: 80922.82 | U201: 54856.56 | V201: 46974.18 | W201: 42903.3 | X201: 39422.68
A202: PV O&M | B202: 12811.95988 | C202: 8930.949695 | D202: 7205.032382 | E202: 6651.490685 | F202: 6143.012984 | H202: 13505.33856 | I202: 9209.162741 | J202: 7469.460265 | K202: 6814.515214 | L202: 6344.95812 | N202: 13480.54025 | O202: 9197.325482 | P202: 7606.450316 | Q202: 6905.092721 | R202: 6424.971998 | T202: 13778.83169 | U202: 9340.49638 | V202: 7998.353492 | W202: 7305.199567 | X202: 6712.549964
A203: Battery capital cost | B203: 122747.9834 | C203: 35955.8177 | D203: 34576.8004 | E203: 30128.36717 | F203: 26148.53412 | H203: 137564.6366 | I203: 50779.12401 | J203: 49203.36932 | K203: 45498.73736 | L203: 41261.16903 | N203: 140890.3624 | O203: 54045.10008 | P203: 51661.37766 | Q203: 47940.33846 | R203: 43581.67064 | T203: 154050.9851 | U203: 66047.33893 | V203: 61835.78285 | W203: 56646.52832 | X203: 52138.55789
A204: Battery O&M | B204: 33768.36941 | C204: 8510.209376 | D204: 8122.195196 | E204: 7277.998731 | F204: 6375.518409 | H204: 37539.45246 | I204: 12398.19217 | J204: 12082.66247 | K204: 11281.2722 | L204: 10252.90182 | N204: 38219.09025 | O204: 12945.4781 | P204: 12531.15701 | Q204: 11742.20506 | R204: 10755.54262 | T204: 40473.05625 | U204: 14862.33251 | V204: 14237.01977 | W204: 13356.12133 | X204: 12435.35387
A205: Diesel capital cost | B205: 0 | C205: 0 | D205: 0 | E205: 0 | F205: 0 | H205: 0 | I205: 0 | J205: 0 | K205: 0 | L205: 0 | N205: 0 | O205: 0 | P205: 0 | Q205: 0 | R205: 0 | T205: 0 | U205: 0 | V205: 0 | W205: 0 | X205: 0
A206: Diesel O&M (kW) | B206: 0 | C206: 0 | D206: 0 | E206: 0 | F206: 0 | H206: 0 | I206: 0 | J206: 0 | K206: 0 | L206: 0 | N206: 0 | O206: 0 | P206: 0 | Q206: 0 | R206: 0 | T206: 0 | U206: 0 | V206: 0 | W206: 0 | X206: 0
A207: Diesel O&M (kWh) | B207: 0 | C207: 0 | D207: 0 | E207: 0 | F207: 0 | H207: 0 | I207: 0 | J207: 0 | K207: 0 | L207: 0 | N207: 0 | O207: 0 | P207: 0 | Q207: 0 | R207: 0 | T207: 0 | U207: 0 | V207: 0 | W207: 0 | X207: 0
A208: Fuel cost | B208: 0 | C208: 0 | D208: 0 | E208: 0 | F208: 0 | H208: 0 | I208: 0 | J208: 0 | K208: 0 | L208: 0 | N208: 0 | O208: 0 | P208: 0 | Q208: 0 | R208: 0 | T208: 0 | U208: 0 | V208: 0 | W208: 0 | X208: 0
A209: REopt LCC | B209: 244573 | C209: 105848 | D209: 92219.1 | E209: 83122.1 | F209: 74744.9 | H209: 267926 | I209: 126472 | J209: 112624 | K209: 103616 | L209: 95123 | N209: 271762 | O209: 130204 | P209: 116472 | Q209: 107141 | R209: 98496 | T209: 289226 | U209: 145107 | V209: 131045 | W209: 120211 | X209: 110709
A211: TMY_highPVBatt_MedDiesel_36_D_business | B211: 100 | C211: 95 | D211: 90 | E211: 85 | F211: 80 | G211: TMY_highPVBatt_MedDiesel_36_D_nrel | H211: 100 | I211: 95 | J211: 90 | K211: 85 | L211: 80 | M211: TMY_highPVBatt_MedDiesel_36_D_average | N211: 100 | O211: 95 | P211: 90 | Q211: 85 | R211: 80 | S211: TMY_highPVBatt_MedDiesel_36_D_residential | T211: 100 | U211: 95 | V211: 90 | W211: 85 | X211: 80
A212: PV kW | B212: 0 | C212: 0 | D212: 0 | E212: 0 | F212: 0 | H212: 0 | I212: 0 | J212: 0 | K212: 0 | L212: 0 | N212: 0 | O212: 0 | P212: 0 | Q212: 0 | R212: 0 | T212: 0 | U212: 0 | V212: 0 | W212: 0 | X212: 0
A213: Battery kW | B213: 0 | C213: 0 | D213: 0 | E213: 0 | F213: 0 | H213: 0 | I213: 0 | J213: 0 | K213: 0 | L213: 0 | N213: 0 | O213: 0 | P213: 0 | Q213: 0 | R213: 0 | T213: 0 | U213: 0 | V213: 0 | W213: 0 | X213: 0
A214: Battery kWh | B214: 0 | C214: 0 | D214: 0 | E214: 0 | F214: 0 | H214: 0 | I214: 0 | J214: 0 | K214: 0 | L214: 0 | N214: 0 | O214: 0 | P214: 0 | Q214: 0 | R214: 0 | T214: 0 | U214: 0 | V214: 0 | W214: 0 | X214: 0
... 934 more rows

Sheet Accra_15
A1: TMY_highPVBatt_HighDiesel_44_PBD_business | B1: 100 | C1: 95 | D1: 90 | E1: 85 | F1: 80 | G1: TMY_highPVBatt_HighDiesel_44_PBD_nrel | H1: 100 | I1: 95 | J1: 90 | K1: 85 | L1: 80 | M1: TMY_highPVBatt_HighDiesel_44_PBD_average | N1: 100 | O1: 95 | P1: 90 | Q1: 85 | R1: 80 | S1: TMY_highPVBatt_HighDiesel_44_PBD_residential | T1: 100 | U1: 95 | V1: 90 | W1: 85 | X1: 80
A2: PV kW | B2: 8.742 | C2: 8.742 | D2: 8.742 | E2: 8.742 | F2: 8.742 | H2: 5.726 | I2: 5.726 | J2: 5.726 | K2: 5.726 | L2: 5.726 | N2: 5.021 | O2: 5.021 | P2: 5.021 | Q2: 5.021 | R2: 5.021 | T2: 3.251 | U2: 3.251 | V2: 3.251 | W2: 3.251 | X2: 3.251
A3: Battery kW | B3: 0 | C3: 0 | D3: 0 | E3: 0 | F3: 0 | H3: 0 | I3: 0 | J3: 0 | K3: 0 | L3: 0 | N3: 0 | O3: 0 | P3: 0 | Q3: 0 | R3: 0 | T3: 0 | U3: 0 | V3: 0 | W3: 0 | X3: 0
A4: Battery kWh | B4: 0 | C4: 0 | D4: 0 | E4: 0 | F4: 0 | H4: 0 | I4: 0 | J4: 0 | K4: 0 | L4: 0 | N4: 0 | O4: 0 | P4: 0 | Q4: 0 | R4: 0 | T4: 0 | U4: 0 | V4: 0 | W4: 0 | X4: 0
A5: Generator kW | B5: 6 | C5: 6 | D5: 6 | E5: 6 | F5: 6 | H5: 7 | I5: 7 | J5: 7 | K5: 7 | L5: 7 | N5: 8 | O5: 8 | P5: 8 | Q5: 8 | R5: 8 | T5: 12 | U5: 12 | V5: 12 | W5: 12 | X5: 12
A6: PV capital cost | B6: 19232.4 | C6: 19232.4 | D6: 19232.4 | E6: 19232.4 | F6: 19232.4 | H6: 12597.64 | I6: 12597.64 | J6: 12597.64 | K6: 12597.64 | L6: 12597.64 | N6: 11047.124 | O6: 11047.124 | P6: 11047.124 | Q6: 11047.124 | R6: 11047.124 | T6: 7152.464 | U6: 7152.464 | V6: 7152.464 | W6: 7152.464 | X6: 7152.464
A7: PV O&M | B7: 2407.639333 | C7: 2407.639333 | D7: 2407.639333 | E7: 2407.639333 | F7: 2407.639333 | H7: 1577.056091 | I7: 1577.056091 | J7: 1577.056091 | K7: 1577.056091 | L7: 1577.056091 | N7: 1382.952219 | O7: 1382.952219 | P7: 1382.952219 | Q7: 1382.952219 | R7: 1382.952219 | T7: 895.3928606 | U7: 895.3928606 | V7: 895.3928606 | W7: 895.3928606 | X7: 895.3928606
A8: Battery capital cost | B8: 3.513020068e-10 | C8: 0 | D8: 0 | E8: 0 | F8: 0 | H8: 1.465146847e-09 | I8: 0 | J8: 0 | K8: 0 | L8: 0 | N8: 0 | O8: 0 | P8: 0 | Q8: 0 | R8: 0 | T8: 0 | U8: 0 | V8: 0 | W8: 0 | X8: 0
A9: Battery O&M | B9: 8.74586968e-11 | C9: 0 | D9: 0 | E9: 0 | F9: 0 | H9: 3.647569082e-10 | I9: 0 | J9: 0 | K9: 0 | L9: 0 | N9: 0 | O9: 0 | P9: 0 | Q9: 0 | R9: 0 | T9: 0 | U9: 0 | V9: 0 | W9: 0 | X9: 0
A10: Diesel capital cost | B10: 3741.54 | C10: 3741.54 | D10: 3741.54 | E10: 3741.54 | F10: 3741.54 | H10: 4365.13 | I10: 4365.13 | J10: 4365.13 | K10: 4365.13 | L10: 4365.13 | N10: 4988.72 | O10: 4988.72 | P10: 4988.72 | Q10: 4988.72 | R10: 4988.72 | T10: 7483.08 | U10: 7483.08 | V10: 7483.08 | W10: 7483.08 | X10: 7483.08
A11: Diesel O&M (kW) | B11: 938.8997211 | C11: 938.8997211 | D11: 938.8997211 | E11: 938.8997211 | F11: 938.8997211 | H11: 1095.383008 | I11: 1095.383008 | J11: 1095.383008 | K11: 1095.383008 | L11: 1095.383008 | N11: 1251.866295 | O11: 1251.866295 | P11: 1251.866295 | Q11: 1251.866295 | R11: 1251.866295 | T11: 1877.799442 | U11: 1877.799442 | V11: 1877.799442 | W11: 1877.799442 | X11: 1877.799442
A12: Diesel O&M (kWh) | B12: 1471.723874 | C12: 1329.87301 | D12: 1188.022147 | E12: 1046.171284 | F12: 904.3204234 | H12: 1950.493015 | I12: 1808.589604 | J12: 1666.686194 | K12: 1524.782783 | L12: 1382.879373 | N12: 2056.274161 | O12: 1914.370751 | P12: 1772.46734 | Q12: 1630.56393 | R12: 1488.66052 | T12: 2353.811992 | U12: 2211.856035 | V12: 2069.900077 | W12: 1927.94412 | X12: 1785.988163
A13: Fuel cost | B13: 41217.12812 | C13: 37244.45001 | D13: 33271.77191 | E13: 29299.09382 | F13: 25326.41579 | H13: 54625.54621 | I13: 50651.39647 | J13: 46677.24674 | K13: 42703.097 | L13: 38728.94726 | N13: 57588.05511 | O13: 53613.90537 | P13: 49639.75564 | Q13: 45665.6059 | R13: 41691.45616 | T13: 65920.90554 | U13: 61945.28417 | V13: 57969.66279 | W13: 53994.04142 | X13: 50018.42005
A14: REopt LCC | B14: 69009.7 | C14: 64895.2 | D14: 60780.6 | E14: 56666 | F14: 52551.5 | H14: 76211.8 | I14: 72095.7 | J14: 67979.6 | K14: 63863.5 | L14: 59747.4 | N14: 78315.6 | O14: 74199.5 | P14: 70083.4 | Q14: 65967.3 | R14: 61851.2 | T14: 85684.2 | U14: 81566.6 | V14: 77449 | W14: 73331.4 | X14: 69213.8
A16: TMY_highPVBatt_HighDiesel_44_PB_business | B16: 100 | C16: 95 | D16: 90 | E16: 85 | F16: 80 | G16: TMY_highPVBatt_HighDiesel_44_PB_nrel | H16: 100 | I16: 95 | J16: 90 | K16: 85 | L16: 80 | M16: TMY_highPVBatt_HighDiesel_44_PB_average | N16: 100 | O16: 95 | P16: 90 | Q16: 85 | R16: 80 | S16: TMY_highPVBatt_HighDiesel_44_PB_residential | T16: 100 | U16: 95 | V16: 90 | W16: 85 | X16: 80
A17: PV kW | B17: 25.025 | C17: 19.289 | D17: 17.985 | E17: 16.876 | F17: 15.782 | H17: 25.52 | I17: 20.059 | J17: 18.817 | K17: 17.681 | L17: 16.55 | N17: 25.71 | O17: 20.24 | P17: 18.986 | Q17: 17.838 | R17: 16.705 | T17: 25.93 | U17: 21.206 | V17: 19.596 | W17: 18.273 | X17: 17.119
A18: Battery kW | B18: 5.222 | C18: 4.372 | D18: 3.335 | E18: 2.751 | F18: 2.312 | H18: 6.915 | I18: 5.201 | J18: 4.64 | K18: 4.243 | L18: 3.848 | N18: 6.939 | O18: 5.93 | P18: 5.032 | Q18: 4.46 | R18: 4.069 | T18: 10.62 | U18: 9.074 | V18: 7.553 | W18: 6.547 | X18: 5.636
A19: Battery kWh | B19: 36.819 | C19: 30.238 | D19: 26.922 | E19: 23.315 | F19: 19.632 | H19: 54.398 | I19: 45.622 | J19: 42.099 | K19: 38.17 | L19: 34.258 | N19: 56.482 | O19: 47.491 | P19: 44.002 | Q19: 40.306 | R19: 36.413 | T19: 64.989 | U19: 54.196 | V19: 50.962 | W19: 47.422 | X19: 43.618
A20: Generator kW | B20: 0 | C20: 0 | D20: 0 | E20: 0 | F20: 0 | H20: 0 | I20: 0 | J20: 0 | K20: 0 | L20: 0 | N20: 0 | O20: 0 | P20: 0 | Q20: 0 | R20: 0 | T20: 0 | U20: 0 | V20: 0 | W20: 0 | X20: 0
A21: PV capital cost | B21: 55054.78 | C21: 42436.02 | D21: 39565.9 | E21: 37127.86 | F21: 34721.06 | H21: 56143.56 | I21: 44129.36 | J21: 41397.62 | K21: 38899.3 | L21: 36411.1 | N21: 56561.56 | O21: 44528.44 | P21: 41768.54 | Q21: 39242.72 | R21: 36750.56 | T21: 57046.66 | U21: 46652.98 | V21: 43112.3 | W21: 40200.82 | X21: 37662.68
A22: PV O&M | B22: 6892.122345 | C22: 5312.422312 | D22: 4953.121663 | E22: 4647.911653 | F22: 4346.612473 | H22: 7028.423043 | I22: 5524.40584 | J22: 5182.428516 | K22: 4869.672256 | L22: 4558.182885 | N22: 7080.751055 | O22: 5574.36532 | P22: 5228.862741 | Q22: 4912.663848 | R22: 4600.678738 | T22: 7141.479088 | U22: 5840.329321 | V22: 5397.083526 | W22: 5032.605158 | X22: 4714.863966
A23: Battery capital cost | B23: 34710.57368 | C23: 28617.02634 | D23: 24738.44375 | E23: 21242.17142 | F23: 17880.06959 | H23: 50220.35799 | I23: 41322.62381 | J23: 37919.89601 | K23: 34429.59904 | L23: 30953.3326 | N23: 51823.92486 | O23: 43701.6537 | P23: 39876.92686 | Q23: 36328.51094 | R23: 32872.80056 | T23: 63132.79582 | U23: 52937.88841 | V23: 48477.10675 | W23: 44469.18201 | X23: 40390.06235
A24: Battery O&M | B24: 6913.794654 | C24: 5677.996063 | D24: 5055.505548 | E24: 4378.108177 | F24: 3686.420753 | H24: 10214.9473 | I24: 8566.821503 | J24: 7905.291538 | K24: 7167.654361 | L24: 6432.984107 | N24: 10606.1117 | O24: 8917.819775 | P24: 8262.711884 | Q24: 7568.620876 | R24: 6837.668665 | T24: 12203.61202 | U24: 10176.99697 | V24: 9569.697851 | W24: 8904.806625 | X24: 8190.604385
A25: Diesel capital cost | B25: 0 | C25: 0 | D25: 0 | E25: 0 | F25: 0 | H25: 0 | I25: 0 | J25: 0 | K25: 0 | L25: 0 | N25: 0 | O25: 0 | P25: 0 | Q25: 0 | R25: 0 | T25: 0 | U25: 0 | V25: 0 | W25: 0 | X25: 0
A26: Diesel O&M (kW) | B26: 0 | C26: 0 | D26: 0 | E26: 0 | F26: 0 | H26: 0 | I26: 0 | J26: 0 | K26: 0 | L26: 0 | N26: 0 | O26: 0 | P26: 0 | Q26: 0 | R26: 0 | T26: 0 | U26: 0 | V26: 0 | W26: 0 | X26: 0
A27: Diesel O&M (kWh) | B27: 0 | C27: 0 | D27: 0 | E27: 0 | F27: 0 | H27: 0 | I27: 0 | J27: 0 | K27: 0 | L27: 0 | N27: 0 | O27: 0 | P27: 0 | Q27: 0 | R27: 0 | T27: 0 | U27: 0 | V27: 0 | W27: 0 | X27: 0
A28: Fuel cost | B28: 0 | C28: 0 | D28: 0 | E28: 0 | F28: 0 | H28: 0 | I28: 0 | J28: 0 | K28: 0 | L28: 0 | N28: 0 | O28: 0 | P28: 0 | Q28: 0 | R28: 0 | T28: 0 | U28: 0 | V28: 0 | W28: 0 | X28: 0
A29: REopt LCC | B29: 103571 | C29: 82043.4 | D29: 74312.7 | E29: 67395.9 | F29: 60633.9 | H29: 123607 | I29: 99543.1 | J29: 92405 | K29: 85366 | L29: 78355.5 | N29: 126072 | O29: 102722 | P29: 95136.8 | Q29: 88052.4 | R29: 81061.5 | T29: 139524 | U29: 115608 | V29: 106556 | W29: 98607.3 | X29: 90957.9
A31: TMY_highPVBatt_HighDiesel_44_D_business | B31: 100 | C31: 95 | D31: 90 | E31: 85 | F31: 80 | G31: TMY_highPVBatt_HighDiesel_44_D_nrel | H31: 100 | I31: 95 | J31: 90 | K31: 85 | L31: 80 | M31: TMY_highPVBatt_HighDiesel_44_D_average | N31: 100 | O31: 95 | P31: 90 | Q31: 85 | R31: 80 | S31: TMY_highPVBatt_HighDiesel_44_D_residential | T31: 100 | U31: 95 | V31: 90 | W31: 85 | X31: 80
A32: PV kW | B32: 0 | C32: 0 | D32: 0 | E32: 0 | F32: 0 | H32: 0 | I32: 0 | J32: 0 | K32: 0 | L32: 0 | N32: 0 | O32: 0 | P32: 0 | Q32: 0 | R32: 0 | T32: 0 | U32: 0 | V32: 0 | W32: 0 | X32: 0
A33: Battery kW | B33: 0 | C33: 0 | D33: 0 | E33: 0 | F33: 0 | H33: 0 | I33: 0 | J33: 0 | K33: 0 | L33: 0 | N33: 0 | O33: 0 | P33: 0 | Q33: 0 | R33: 0 | T33: 0 | U33: 0 | V33: 0 | W33: 0 | X33: 0
A34: Battery kWh | B34: 0 | C34: 0 | D34: 0 | E34: 0 | F34: 0 | H34: 0 | I34: 0 | J34: 0 | K34: 0 | L34: 0 | N34: 0 | O34: 0 | P34: 0 | Q34: 0 | R34: 0 | T34: 0 | U34: 0 | V34: 0 | W34: 0 | X34: 0
A35: Generator kW | B35: 6 | C35: 6 | D35: 6 | E35: 6 | F35: 6 | H35: 7 | I35: 7 | J35: 7 | K35: 7 | L35: 7 | N35: 8 | O35: 8 | P35: 8 | Q35: 8 | R35: 8 | T35: 12 | U35: 12 | V35: 12 | W35: 12 | X35: 12
A36: PV capital cost | B36: 0 | C36: 0 | D36: 0 | E36: 0 | F36: 0 | H36: 0 | I36: 0 | J36: 0 | K36: 0 | L36: 0 | N36: 0 | O36: 0 | P36: 0 | Q36: 0 | R36: 0 | T36: 0 | U36: 0 | V36: 0 | W36: 0 | X36: 0
A37: PV O&M | B37: 0 | C37: 0 | D37: 0 | E37: 0 | F37: 0 | H37: 0 | I37: 0 | J37: 0 | K37: 0 | L37: 0 | N37: 0 | O37: 0 | P37: 0 | Q37: 0 | R37: 0 | T37: 0 | U37: 0 | V37: 0 | W37: 0 | X37: 0
A38: Battery capital cost | B38: 0 | C38: 0 | D38: 0 | E38: 0 | F38: 0 | H38: 0 | I38: 0 | J38: 0 | K38: 0 | L38: 0 | N38: 0 | O38: 0 | P38: 0 | Q38: 0 | R38: 0 | T38: 0 | U38: 0 | V38: 0 | W38: 0 | X38: 0
A39: Battery O&M | B39: 0 | C39: 0 | D39: 0 | E39: 0 | F39: 0 | H39: 0 | I39: 0 | J39: 0 | K39: 0 | L39: 0 | N39: 0 | O39: 0 | P39: 0 | Q39: 0 | R39: 0 | T39: 0 | U39: 0 | V39: 0 | W39: 0 | X39: 0
A40: Diesel capital cost | B40: 3741.54 | C40: 3741.54 | D40: 3741.54 | E40: 3741.54 | F40: 3741.54 | H40: 4365.13 | I40: 4365.13 | J40: 4365.13 | K40: 4365.13 | L40: 4365.13 | N40: 4988.72 | O40: 4988.72 | P40: 4988.72 | Q40: 4988.72 | R40: 4988.72 | T40: 7483.08 | U40: 7483.08 | V40: 7483.08 | W40: 7483.08 | X40: 7483.08
A41: Diesel O&M (kW) | B41: 938.8997211 | C41: 938.8997211 | D41: 938.8997211 | E41: 938.8997211 | F41: 938.8997211 | H41: 1095.383008 | I41: 1095.383008 | J41: 1095.383008 | K41: 1095.383008 | L41: 1095.383008 | N41: 1251.866295 | O41: 1251.866295 | P41: 1251.866295 | Q41: 1251.866295 | R41: 1251.866295 | T41: 1877.799442 | U41: 1877.799442 | V41: 1877.799442 | W41: 1877.799442 | X41: 1877.799442
A42: Diesel O&M (kWh) | B42: 2837.017266 | C42: 2695.166403 | D42: 2553.31554 | E42: 2411.464676 | F42: 2269.613813 | H42: 2838.068208 | I42: 2696.164798 | J42: 2554.261387 | K42: 2412.357977 | L42: 2270.454566 | N42: 2838.068208 | O42: 2696.164798 | P42: 2554.261387 | Q42: 2412.357977 | R42: 2270.454566 | T42: 2839.11915 | U42: 2697.163192 | V42: 2555.207235 | W42: 2413.251277 | X42: 2271.29532
A43: Fuel cost | B43: 79453.56206 | C43: 75480.88396 | D43: 71508.20585 | E43: 67535.52775 | F43: 63562.84965 | H43: 79482.99475 | I43: 75508.84502 | J43: 71534.69528 | K43: 67560.54554 | L43: 63586.3958 | N43: 79482.99475 | O43: 75508.84502 | P43: 71534.69528 | Q43: 67560.54554 | R43: 63586.3958 | T43: 79512.42745 | U43: 75536.80608 | V43: 71561.18471 | W43: 67585.56333 | X43: 63609.94196
A44: REopt LCC | B44: 86971.8 | C44: 82857.3 | D44: 78742.7 | E44: 74628.1 | F44: 70513.6 | H44: 87782.4 | I44: 83666.3 | J44: 79550.2 | K44: 75434.1 | L44: 71318 | N44: 88562.5 | O44: 84446.4 | P44: 80330.3 | Q44: 76214.2 | R44: 72098.1 | T44: 91713.3 | U44: 87595.7 | V44: 83478.1 | W44: 79360.5 | X44: 75242.9
A46: TMY_highPVBatt_HighDiesel_36_PBD_business | B46: 100 | C46: 95 | D46: 90 | E46: 85 | F46: 80 | G46: TMY_highPVBatt_HighDiesel_36_PBD_nrel | H46: 100 | I46: 95 | J46: 90 | K46: 85 | L46: 80 | M46: TMY_highPVBatt_HighDiesel_36_PBD_average | N46: 100 | O46: 95 | P46: 90 | Q46: 85 | R46: 80 | S46: TMY_highPVBatt_HighDiesel_36_PBD_residential | T46: 100 | U46: 95 | V46: 90 | W46: 85 | X46: 80
A47: PV kW | B47: 8.28 | C47: 8.28 | D47: 8.28 | E47: 8.28 | F47: 8.28 | H47: 5.358 | I47: 5.358 | J47: 5.358 | K47: 5.358 | L47: 5.358 | N47: 4.723 | O47: 4.723 | P47: 4.723 | Q47: 4.723 | R47: 4.723 | T47: 2.844 | U47: 2.844 | V47: 2.844 | W47: 2.844 | X47: 2.844
A48: Battery kW | B48: 0 | C48: 0 | D48: 0 | E48: 0 | F48: 0 | H48: 0 | I48: 0 | J48: 0 | K48: 0 | L48: 0 | N48: 0 | O48: 0 | P48: 0 | Q48: 0 | R48: 0 | T48: 0 | U48: 0 | V48: 0 | W48: 0 | X48: 0
A49: Battery kWh | B49: 0 | C49: 0 | D49: 0 | E49: 0 | F49: 0 | H49: 0 | I49: 0 | J49: 0 | K49: 0 | L49: 0 | N49: 0 | O49: 0 | P49: 0 | Q49: 0 | R49: 0 | T49: 0 | U49: 0 | V49: 0 | W49: 0 | X49: 0
A50: Generator kW | B50: 6 | C50: 6 | D50: 6 | E50: 6 | F50: 6 | H50: 7 | I50: 7 | J50: 7 | K50: 7 | L50: 7 | N50: 8 | O50: 8 | P50: 8 | Q50: 8 | R50: 8 | T50: 12 | U50: 12 | V50: 12 | W50: 12 | X50: 12
A51: PV capital cost | B51: 18215.054 | C51: 18215.054 | D51: 18215.054 | E51: 18215.054 | F51: 18215.054 | H51: 11788.634 | I51: 11788.634 | J51: 11788.634 | K51: 11788.634 | L51: 11788.634 | N51: 10391.018 | O51: 10391.018 | P51: 10391.018 | Q51: 10391.018 | R51: 10391.018 | T51: 6257.636 | U51: 6257.636 | V51: 6257.636 | W51: 6257.636 | X51: 6257.636
A52: PV O&M | B52: 2280.281216 | C52: 2280.281216 | D52: 2280.281216 | E52: 2280.281216 | F52: 2280.281216 | H52: 1475.779357 | I52: 1475.779357 | J52: 1475.779357 | K52: 1475.779357 | L52: 1475.779357 | N52: 1300.81652 | O52: 1300.81652 | P52: 1300.81652 | Q52: 1300.81652 | R52: 1300.81652 | T52: 783.3723594 | U52: 783.3723594 | V52: 783.3723594 | W52: 783.3723594 | X52: 783.3723594
A53: Battery capital cost | B53: 0 | C53: 0 | D53: 0 | E53: 0 | F53: 0 | H53: 0 | I53: 0 | J53: 0 | K53: 0 | L53: 0 | N53: 0 | O53: 0 | P53: 0 | Q53: 0 | R53: 0 | T53: 0 | U53: 0 | V53: 0 | W53: 0 | X53: 0
A54: Battery O&M | B54: 0 | C54: 0 | D54: 0 | E54: 0 | F54: 0 | H54: 0 | I54: 0 | J54: 0 | K54: 0 | L54: 0 | N54: 0 | O54: 0 | P54: 0 | Q54: 0 | R54: 0 | T54: 0 | U54: 0 | V54: 0 | W54: 0 | X54: 0
A55: Diesel capital cost | B55: 3741.54 | C55: 3741.54 | D55: 3741.54 | E55: 3741.54 | F55: 3741.54 | H55: 4365.13 | I55: 4365.13 | J55: 4365.13 | K55: 4365.13 | L55: 4365.13 | N55: 4988.72 | O55: 4988.72 | P55: 4988.72 | Q55: 4988.72 | R55: 4988.72 | T55: 7483.08 | U55: 7483.08 | V55: 7483.08 | W55: 7483.08 | X55: 7483.08
A56: Diesel O&M (kW) | B56: 938.8997211 | C56: 938.8997211 | D56: 938.8997211 | E56: 938.8997211 | F56: 938.8997211 | H56: 1095.383008 | I56: 1095.383008 | J56: 1095.383008 | K56: 1095.383008 | L56: 1095.383008 | N56: 1251.866295 | O56: 1251.866295 | P56: 1251.866295 | Q56: 1251.866295 | R56: 1251.866295 | T56: 1877.799442 | U56: 1877.799442 | V56: 1877.799442 | W56: 1877.799442 | X56: 1877.799442
A57: Diesel O&M (kWh) | B57: 1515.235695 | C57: 1373.384831 | D57: 1231.533969 | E57: 1089.683105 | F57: 947.8322393 | H57: 1985.266205 | I57: 1843.362795 | J57: 1701.459385 | K57: 1559.555974 | L57: 1417.652564 | N57: 2084.525056 | O57: 1942.621645 | P57: 1800.718235 | Q57: 1658.814825 | R57: 1516.911414 | T57: 2391.972668 | U57: 2250.01671 | V57: 2108.060753 | W57: 1966.104795 | X57: 1824.148838
A58: Fuel cost | B58: 34720.13541 | C58: 31469.76241 | D58: 28219.38943 | E58: 24969.01643 | F58: 21718.64337 | H58: 45490.42218 | I58: 42238.84512 | J58: 38987.26806 | K58: 35735.69101 | L58: 32484.11395 | N58: 47764.8411 | O58: 44513.26404 | P58: 41261.68698 | Q58: 38010.10992 | R58: 34758.53286 | T58: 54809.70069 | U58: 51556.91956 | V58: 48304.13844 | W58: 45051.35732 | X58: 41798.57619
A59: REopt LCC | B59: 61411.5 | C59: 58019.3 | D59: 54627 | E59: 51234.8 | F59: 47842.5 | H59: 66201.2 | I59: 62807.7 | J59: 59414.1 | K59: 56020.6 | L59: 52627.1 | N59: 67782.4 | O59: 64388.9 | P59: 60995.4 | Q59: 57601.8 | R59: 54208.3 | T59: 73604.3 | U59: 70209.6 | V59: 66814.8 | W59: 63420 | X59: 60025.2
A61: TMY_highPVBatt_HighDiesel_36_PB_business | B61: 100 | C61: 95 | D61: 90 | E61: 85 | F61: 80 | G61: TMY_highPVBatt_HighDiesel_36_PB_nrel | H61: 100 | I61: 95 | J61: 90 | K61: 85 | L61: 80 | M61: TMY_highPVBatt_HighDiesel_36_PB_average | N61: 100 | O61: 95 | P61: 90 | Q61: 85 | R61: 80 | S61: TMY_highPVBatt_HighDiesel_36_PB_residential | T61: 100 | U61: 95 | V61: 90 | W61: 85 | X61: 80
A62: PV kW | B62: 25.025 | C62: 19.289 | D62: 17.985 | E62: 16.876 | F62: 15.782 | H62: 25.52 | I62: 20.059 | J62: 18.817 | K62: 17.681 | L62: 16.55 | N62: 25.71 | O62: 20.24 | P62: 18.986 | Q62: 17.838 | R62: 16.705 | T62: 25.93 | U62: 21.206 | V62: 19.596 | W62: 18.273 | X62: 17.119
A63: Battery kW | B63: 5.222 | C63: 4.372 | D63: 3.335 | E63: 2.751 | F63: 2.312 | H63: 6.915 | I63: 5.201 | J63: 4.64 | K63: 4.243 | L63: 3.848 | N63: 6.939 | O63: 5.93 | P63: 5.032 | Q63: 4.46 | R63: 4.069 | T63: 10.62 | U63: 9.074 | V63: 7.553 | W63: 6.547 | X63: 5.636
A64: Battery kWh | B64: 36.819 | C64: 30.238 | D64: 26.922 | E64: 23.315 | F64: 19.632 | H64: 54.398 | I64: 45.622 | J64: 42.099 | K64: 38.17 | L64: 34.258 | N64: 56.482 | O64: 47.491 | P64: 44.002 | Q64: 40.306 | R64: 36.413 | T64: 64.989 | U64: 54.196 | V64: 50.962 | W64: 47.422 | X64: 43.618
A65: Generator kW | B65: 0 | C65: 0 | D65: 0 | E65: 0 | F65: 0 | H65: 0 | I65: 0 | J65: 0 | K65: 0 | L65: 0 | N65: 0 | O65: 0 | P65: 0 | Q65: 0 | R65: 0 | T65: 0 | U65: 0 | V65: 0 | W65: 0 | X65: 0
A66: PV capital cost | B66: 55054.78 | C66: 42436.02 | D66: 39565.9 | E66: 37127.86 | F66: 34721.06 | H66: 56143.56 | I66: 44129.36 | J66: 41397.62 | K66: 38899.3 | L66: 36411.1 | N66: 56561.56 | O66: 44528.44 | P66: 41768.54 | Q66: 39242.72 | R66: 36750.56 | T66: 57046.66 | U66: 46652.98 | V66: 43112.3 | W66: 40200.82 | X66: 37662.68
A67: PV O&M | B67: 6892.122345 | C67: 5312.422312 | D67: 4953.121663 | E67: 4647.911653 | F67: 4346.612473 | H67: 7028.423043 | I67: 5524.40584 | J67: 5182.428516 | K67: 4869.672256 | L67: 4558.182885 | N67: 7080.751055 | O67: 5574.36532 | P67: 5228.862741 | Q67: 4912.663848 | R67: 4600.678738 | T67: 7141.479088 | U67: 5840.329321 | V67: 5397.083526 | W67: 5032.605158 | X67: 4714.863966
A68: Battery capital cost | B68: 34710.57368 | C68: 28617.02634 | D68: 24738.44375 | E68: 21242.17142 | F68: 17880.06959 | H68: 50220.35799 | I68: 41322.62381 | J68: 37919.89601 | K68: 34429.59904 | L68: 30953.3326 | N68: 51823.92486 | O68: 43701.6537 | P68: 39876.92686 | Q68: 36328.51094 | R68: 32872.80056 | T68: 63132.79582 | U68: 52937.88841 | V68: 48477.10675 | W68: 44469.18201 | X68: 40390.06235
A69: Battery O&M | B69: 6913.794654 | C69: 5677.996063 | D69: 5055.505548 | E69: 4378.108177 | F69: 3686.420753 | H69: 10214.9473 | I69: 8566.821503 | J69: 7905.291538 | K69: 7167.654361 | L69: 6432.984107 | N69: 10606.1117 | O69: 8917.819775 | P69: 8262.711884 | Q69: 7568.620876 | R69: 6837.668665 | T69: 12203.61202 | U69: 10176.99697 | V69: 9569.697851 | W69: 8904.806625 | X69: 8190.604385
A70: Diesel capital cost | B70: 0 | C70: 0 | D70: 0 | E70: 0 | F70: 0 | H70: 0 | I70: 0 | J70: 0 | K70: 0 | L70: 0 | N70: 0 | O70: 0 | P70: 0 | Q70: 0 | R70: 0 | T70: 0 | U70: 0 | V70: 0 | W70: 0 | X70: 0
A71: Diesel O&M (kW) | B71: 0 | C71: 0 | D71: 0 | E71: 0 | F71: 0 | H71: 0 | I71: 0 | J71: 0 | K71: 0 | L71: 0 | N71: 0 | O71: 0 | P71: 0 | Q71: 0 | R71: 0 | T71: 0 | U71: 0 | V71: 0 | W71: 0 | X71: 0
A72: Diesel O&M (kWh) | B72: 0 | C72: 0 | D72: 0 | E72: 0 | F72: 0 | H72: 0 | I72: 0 | J72: 0 | K72: 0 | L72: 0 | N72: 0 | O72: 0 | P72: 0 | Q72: 0 | R72: 0 | T72: 0 | U72: 0 | V72: 0 | W72: 0 | X72: 0
A73: Fuel cost | B73: 0 | C73: 0 | D73: 0 | E73: 0 | F73: 0 | H73: 0 | I73: 0 | J73: 0 | K73: 0 | L73: 0 | N73: 0 | O73: 0 | P73: 0 | Q73: 0 | R73: 0 | T73: 0 | U73: 0 | V73: 0 | W73: 0 | X73: 0
A74: REopt LCC | B74: 103571 | C74: 82043.4 | D74: 74312.7 | E74: 67395.9 | F74: 60633.9 | H74: 123607 | I74: 99543.1 | J74: 92405 | K74: 85366 | L74: 78355.5 | N74: 126072 | O74: 102722 | P74: 95136.8 | Q74: 88052.4 | R74: 81061.5 | T74: 139524 | U74: 115608 | V74: 106556 | W74: 98607.3 | X74: 90957.9
A76: TMY_highPVBatt_HighDiesel_36_D_business | B76: 100 | C76: 95 | D76: 90 | E76: 85 | F76: 80 | G76: TMY_highPVBatt_HighDiesel_36_D_nrel | H76: 100 | I76: 95 | J76: 90 | K76: 85 | L76: 80 | M76: TMY_highPVBatt_HighDiesel_36_D_average | N76: 100 | O76: 95 | P76: 90 | Q76: 85 | R76: 80 | S76: TMY_highPVBatt_HighDiesel_36_D_residential | T76: 100 | U76: 95 | V76: 90 | W76: 85 | X76: 80
A77: PV kW | B77: 0 | C77: 0 | D77: 0 | E77: 0 | F77: 0 | H77: 0 | I77: 0 | J77: 0 | K77: 0 | L77: 0 | N77: 0 | O77: 0 | P77: 0 | Q77: 0 | R77: 0 | T77: 0 | U77: 0 | V77: 0 | W77: 0 | X77: 0
A78: Battery kW | B78: 0 | C78: 0 | D78: 0 | E78: 0 | F78: 0 | H78: 0 | I78: 0 | J78: 0 | K78: 0 | L78: 0 | N78: 0 | O78: 0 | P78: 0 | Q78: 0 | R78: 0 | T78: 0 | U78: 0 | V78: 0 | W78: 0 | X78: 0
A79: Battery kWh | B79: 0 | C79: 0 | D79: 0 | E79: 0 | F79: 0 | H79: 0 | I79: 0 | J79: 0 | K79: 0 | L79: 0 | N79: 0 | O79: 0 | P79: 0 | Q79: 0 | R79: 0 | T79: 0 | U79: 0 | V79: 0 | W79: 0 | X79: 0
A80: Generator kW | B80: 6 | C80: 6 | D80: 6 | E80: 6 | F80: 6 | H80: 7 | I80: 7 | J80: 7 | K80: 7 | L80: 7 | N80: 8 | O80: 8 | P80: 8 | Q80: 8 | R80: 8 | T80: 12 | U80: 12 | V80: 12 | W80: 12 | X80: 12
A81: PV capital cost | B81: 0 | C81: 0 | D81: 0 | E81: 0 | F81: 0 | H81: 0 | I81: 0 | J81: 0 | K81: 0 | L81: 0 | N81: 0 | O81: 0 | P81: 0 | Q81: 0 | R81: 0 | T81: 0 | U81: 0 | V81: 0 | W81: 0 | X81: 0
A82: PV O&M | B82: 0 | C82: 0 | D82: 0 | E82: 0 | F82: 0 | H82: 0 | I82: 0 | J82: 0 | K82: 0 | L82: 0 | N82: 0 | O82: 0 | P82: 0 | Q82: 0 | R82: 0 | T82: 0 | U82: 0 | V82: 0 | W82: 0 | X82: 0
A83: Battery capital cost | B83: 0 | C83: 0 | D83: 0 | E83: 0 | F83: 0 | H83: 0 | I83: 0 | J83: 0 | K83: 0 | L83: 0 | N83: 0 | O83: 0 | P83: 0 | Q83: 0 | R83: 0 | T83: 0 | U83: 0 | V83: 0 | W83: 0 | X83: 0
A84: Battery O&M | B84: 0 | C84: 0 | D84: 0 | E84: 0 | F84: 0 | H84: 0 | I84: 0 | J84: 0 | K84: 0 | L84: 0 | N84: 0 | O84: 0 | P84: 0 | Q84: 0 | R84: 0 | T84: 0 | U84: 0 | V84: 0 | W84: 0 | X84: 0
A85: Diesel capital cost | B85: 3741.54 | C85: 3741.54 | D85: 3741.54 | E85: 3741.54 | F85: 3741.54 | H85: 4365.13 | I85: 4365.13 | J85: 4365.13 | K85: 4365.13 | L85: 4365.13 | N85: 4988.72 | O85: 4988.72 | P85: 4988.72 | Q85: 4988.72 | R85: 4988.72 | T85: 7483.08 | U85: 7483.08 | V85: 7483.08 | W85: 7483.08 | X85: 7483.08
A86: Diesel O&M (kW) | B86: 938.8997211 | C86: 938.8997211 | D86: 938.8997211 | E86: 938.8997211 | F86: 938.8997211 | H86: 1095.383008 | I86: 1095.383008 | J86: 1095.383008 | K86: 1095.383008 | L86: 1095.383008 | N86: 1251.866295 | O86: 1251.866295 | P86: 1251.866295 | Q86: 1251.866295 | R86: 1251.866295 | T86: 1877.799442 | U86: 1877.799442 | V86: 1877.799442 | W86: 1877.799442 | X86: 1877.799442
A87: Diesel O&M (kWh) | B87: 2837.017266 | C87: 2695.166403 | D87: 2553.31554 | E87: 2411.464676 | F87: 2269.613813 | H87: 2838.068208 | I87: 2696.164798 | J87: 2554.261387 | K87: 2412.357977 | L87: 2270.454566 | N87: 2838.068208 | O87: 2696.164798 | P87: 2554.261387 | Q87: 2412.357977 | R87: 2270.454566 | T87: 2839.11915 | U87: 2697.163192 | V87: 2555.207235 | W87: 2413.251277 | X87: 2271.29532
A88: Fuel cost | B88: 65007.45987 | C88: 61757.08687 | D88: 58506.71388 | E88: 55256.34089 | F88: 52005.96789 | H88: 65031.54116 | I88: 61779.9641 | J88: 58528.38705 | K88: 55276.80999 | L88: 52025.23293 | N88: 65031.54116 | O88: 61779.9641 | P88: 58528.38705 | Q88: 55276.80999 | R88: 52025.23293 | T88: 65055.62246 | U88: 61802.84134 | V88: 58550.06021 | W88: 55297.27909 | X88: 52044.49797
A89: REopt LCC | B89: 72525.7 | C89: 69133.5 | D89: 65741.2 | E89: 62348.9 | F89: 58956.7 | H89: 73330.9 | I89: 69937.4 | J89: 66543.9 | K89: 63150.4 | L89: 59756.9 | N89: 74111 | O89: 70717.5 | P89: 67324 | Q89: 63930.5 | R89: 60537 | T89: 77256.5 | U89: 73861.7 | V89: 70467 | W89: 67072.2 | X89: 63677.4
A91: TMY_highPVBatt_HighDiesel_32_PBD_business | B91: 100 | C91: 95 | D91: 90 | E91: 85 | F91: 80 | G91: TMY_highPVBatt_HighDiesel_32_PBD_nrel | H91: 100 | I91: 95 | J91: 90 | K91: 85 | L91: 80 | M91: TMY_highPVBatt_HighDiesel_32_PBD_average | N91: 100 | O91: 95 | P91: 90 | Q91: 85 | R91: 80 | S91: TMY_highPVBatt_HighDiesel_32_PBD_residential | T91: 100 | U91: 95 | V91: 90 | W91: 85 | X91: 80
A92: PV kW | B92: 7.991 | C92: 7.991 | D92: 7.991 | E92: 7.991 | F92: 7.991 | H92: 5.124 | I92: 5.124 | J92: 5.124 | K92: 5.124 | L92: 5.124 | N92: 4.545 | O92: 4.545 | P92: 4.545 | Q92: 4.545 | R92: 4.545 | T92: 2.657 | U92: 2.657 | V92: 2.657 | W92: 2.657 | X92: 2.657
A93: Battery kW | B93: 0 | C93: 0 | D93: 0 | E93: 0 | F93: 0 | H93: 0 | I93: 0 | J93: 0 | K93: 0 | L93: 0 | N93: 0 | O93: 0 | P93: 0 | Q93: 0 | R93: 0 | T93: 0 | U93: 0 | V93: 0 | W93: 0 | X93: 0
A94: Battery kWh | B94: 0 | C94: 0 | D94: 0 | E94: 0 | F94: 0 | H94: 0 | I94: 0 | J94: 0 | K94: 0 | L94: 0 | N94: 0 | O94: 0 | P94: 0 | Q94: 0 | R94: 0 | T94: 0 | U94: 0 | V94: 0 | W94: 0 | X94: 0
A95: Generator kW | B95: 6 | C95: 6 | D95: 6 | E95: 6 | F95: 6 | H95: 7 | I95: 7 | J95: 7 | K95: 7 | L95: 7 | N95: 8 | O95: 8 | P95: 8 | Q95: 8 | R95: 8 | T95: 12 | U95: 12 | V95: 12 | W95: 12 | X95: 12
A96: PV capital cost | B96: 17580.992 | C96: 17580.992 | D96: 17580.992 | E96: 17580.992 | F96: 17580.992 | H96: 11272.074 | I96: 11272.074 | J96: 11272.074 | K96: 11272.074 | L96: 11272.074 | N96: 9999.99 | O96: 9999.99 | P96: 9999.99 | Q96: 9999.99 | R96: 9999.99 | T96: 5845.796 | U96: 5845.796 | V96: 5845.796 | W96: 5845.796 | X96: 5845.796
A97: PV O&M | B97: 2200.905131 | C97: 2200.905131 | D97: 2200.905131 | E97: 2200.905131 | F97: 2200.905131 | H97: 1411.112951 | I97: 1411.112951 | J97: 1411.112951 | K97: 1411.112951 | L97: 1411.112951 | N97: 1251.865043 | O97: 1251.865043 | P97: 1251.865043 | Q97: 1251.865043 | R97: 1251.865043 | T97: 731.8154979 | U97: 731.8154979 | V97: 731.8154979 | W97: 731.8154979 | X97: 731.8154979
A98: Battery capital cost | B98: 4.505669558e-09 | C98: 0 | D98: 0 | E98: 0 | F98: 0 | H98: 0 | I98: 0 | J98: 0 | K98: 0 | L98: 0 | N98: 0 | O98: 0 | P98: 0 | Q98: 0 | R98: 0 | T98: 0 | U98: 0 | V98: 0 | W98: 0 | X98: 0
A99: Battery O&M | B99: 1.121712886e-09 | C99: 0 | D99: 0 | E99: 0 | F99: 0 | H99: 0 | I99: 0 | J99: 0 | K99: 0 | L99: 0 | N99: 0 | O99: 0 | P99: 0 | Q99: 0 | R99: 0 | T99: 0 | U99: 0 | V99: 0 | W99: 0 | X99: 0
A100: Diesel capital cost | B100: 3741.54 | C100: 3741.54 | D100: 3741.54 | E100: 3741.54 | F100: 3741.54 | H100: 4365.13 | I100: 4365.13 | J100: 4365.13 | K100: 4365.13 | L100: 4365.13 | N100: 4988.72 | O100: 4988.72 | P100: 4988.72 | Q100: 4988.72 | R100: 4988.72 | T100: 7483.08 | U100: 7483.08 | V100: 7483.08 | W100: 7483.08 | X100: 7483.08
A101: Diesel O&M (kW) | B101: 938.8997211 | C101: 938.8997211 | D101: 938.8997211 | E101: 938.8997211 | F101: 938.8997211 | H101: 1095.383008 | I101: 1095.383008 | J101: 1095.383008 | K101: 1095.383008 | L101: 1095.383008 | N101: 1251.866295 | O101: 1251.866295 | P101: 1251.866295 | Q101: 1251.866295 | R101: 1251.866295 | T101: 1877.799442 | U101: 1877.799442 | V101: 1877.799442 | W101: 1877.799442 | X101: 1877.799442
A102: Diesel O&M (kWh) | B102: 1546.869319 | C102: 1405.018454 | D102: 1263.167592 | E102: 1121.316729 | F102: 979.4658616 | H102: 2011.011 | I102: 1869.107589 | J102: 1727.204179 | K102: 1585.300769 | L102: 1443.397358 | N102: 2104.048555 | O102: 1962.145145 | P102: 1820.241734 | Q102: 1678.338324 | R102: 1536.434913 | T102: 2412.427193 | U102: 2270.471236 | V102: 2128.515278 | W102: 1986.559321 | X102: 1844.603364
A103: Fuel cost | B103: 31506.65669 | C103: 28617.43623 | D103: 25728.21581 | E103: 22838.99537 | F103: 19949.77486 | H103: 40960.30117 | I103: 38070.01045 | J103: 35179.71974 | K103: 32289.42902 | L103: 29399.1383 | N103: 42855.29144 | O103: 39965.00073 | P103: 37074.71001 | Q103: 34184.41929 | R103: 31294.12857 | T103: 49136.35202 | U103: 46244.99102 | V103: 43353.63002 | W103: 40462.26902 | X103: 37570.90803
A104: REopt LCC | B104: 57516.3 | C104: 54485.2 | D104: 51454.1 | E104: 48422.9 | F104: 45391.8 | H104: 61115.6 | I104: 58083.4 | J104: 55051.1 | K104: 52018.9 | L104: 48986.7 | N104: 62452.4 | O104: 59420.2 | P104: 56387.9 | Q104: 53355.7 | R104: 50323.5 | T104: 67488 | U104: 64454.7 | V104: 61421.3 | W104: 58388 | X104: 55354.6
A106: TMY_highPVBatt_HighDiesel_32_PB_business | B106: 100 | C106: 95 | D106: 90 | E106: 85 | F106: 80 | G106: TMY_highPVBatt_HighDiesel_32_PB_nrel | H106: 100 | I106: 95 | J106: 90 | K106: 85 | L106: 80 | M106: TMY_highPVBatt_HighDiesel_32_PB_average | N106: 100 | O106: 95 | P106: 90 | Q106: 85 | R106: 80 | S106: TMY_highPVBatt_HighDiesel_32_PB_residential | T106: 100 | U106: 95 | V106: 90 | W106: 85 | X106: 80
A107: PV kW | B107: 25.025 | C107: 19.289 | D107: 17.985 | E107: 16.876 | F107: 15.782 | H107: 25.52 | I107: 20.059 | J107: 18.817 | K107: 17.681 | L107: 16.55 | N107: 25.71 | O107: 20.24 | P107: 18.986 | Q107: 17.838 | R107: 16.705 | T107: 25.93 | U107: 21.206 | V107: 19.596 | W107: 18.273 | X107: 17.119
A108: Battery kW | B108: 5.222 | C108: 4.372 | D108: 3.335 | E108: 2.751 | F108: 2.312 | H108: 6.915 | I108: 5.201 | J108: 4.64 | K108: 4.243 | L108: 3.848 | N108: 6.939 | O108: 5.93 | P108: 5.032 | Q108: 4.46 | R108: 4.069 | T108: 10.62 | U108: 9.074 | V108: 7.553 | W108: 6.547 | X108: 5.636
A109: Battery kWh | B109: 36.819 | C109: 30.238 | D109: 26.922 | E109: 23.315 | F109: 19.632 | H109: 54.398 | I109: 45.622 | J109: 42.099 | K109: 38.17 | L109: 34.258 | N109: 56.482 | O109: 47.491 | P109: 44.002 | Q109: 40.306 | R109: 36.413 | T109: 64.989 | U109: 54.196 | V109: 50.962 | W109: 47.422 | X109: 43.618
A110: Generator kW | B110: 0 | C110: 0 | D110: 0 | E110: 0 | F110: 0 | H110: 0 | I110: 0 | J110: 0 | K110: 0 | L110: 0 | N110: 0 | O110: 0 | P110: 0 | Q110: 0 | R110: 0 | T110: 0 | U110: 0 | V110: 0 | W110: 0 | X110: 0
A111: PV capital cost | B111: 55054.78 | C111: 42436.02 | D111: 39565.9 | E111: 37127.86 | F111: 34721.06 | H111: 56143.56 | I111: 44129.36 | J111: 41397.62 | K111: 38899.3 | L111: 36411.1 | N111: 56561.56 | O111: 44528.44 | P111: 41768.54 | Q111: 39242.72 | R111: 36750.56 | T111: 57046.66 | U111: 46652.98 | V111: 43112.3 | W111: 40200.82 | X111: 37662.68
A112: PV O&M | B112: 6892.122345 | C112: 5312.422312 | D112: 4953.121663 | E112: 4647.911653 | F112: 4346.612473 | H112: 7028.423043 | I112: 5524.40584 | J112: 5182.428516 | K112: 4869.672256 | L112: 4558.182885 | N112: 7080.751055 | O112: 5574.36532 | P112: 5228.862741 | Q112: 4912.663848 | R112: 4600.678738 | T112: 7141.479088 | U112: 5840.329321 | V112: 5397.083526 | W112: 5032.605158 | X112: 4714.863966
A113: Battery capital cost | B113: 34710.57368 | C113: 28617.02634 | D113: 24738.44375 | E113: 21242.17142 | F113: 17880.06959 | H113: 50220.35799 | I113: 41322.62381 | J113: 37919.89601 | K113: 34429.59904 | L113: 30953.3326 | N113: 51823.92486 | O113: 43701.6537 | P113: 39876.92686 | Q113: 36328.51094 | R113: 32872.80056 | T113: 63132.79582 | U113: 52937.88841 | V113: 48477.10675 | W113: 44469.18201 | X113: 40390.06235
A114: Battery O&M | B114: 6913.794654 | C114: 5677.996063 | D114: 5055.505548 | E114: 4378.108177 | F114: 3686.420753 | H114: 10214.9473 | I114: 8566.821503 | J114: 7905.291538 | K114: 7167.654361 | L114: 6432.984107 | N114: 10606.1117 | O114: 8917.819775 | P114: 8262.711884 | Q114: 7568.620876 | R114: 6837.668665 | T114: 12203.61202 | U114: 10176.99697 | V114: 9569.697851 | W114: 8904.806625 | X114: 8190.604385
A115: Diesel capital cost | B115: 0 | C115: 0 | D115: 0 | E115: 0 | F115: 0 | H115: 0 | I115: 0 | J115: 0 | K115: 0 | L115: 0 | N115: 0 | O115: 0 | P115: 0 | Q115: 0 | R115: 0 | T115: 0 | U115: 0 | V115: 0 | W115: 0 | X115: 0
A116: Diesel O&M (kW) | B116: 0 | C116: 0 | D116: 0 | E116: 0 | F116: 0 | H116: 0 | I116: 0 | J116: 0 | K116: 0 | L116: 0 | N116: 0 | O116: 0 | P116: 0 | Q116: 0 | R116: 0 | T116: 0 | U116: 0 | V116: 0 | W116: 0 | X116: 0
A117: Diesel O&M (kWh) | B117: 0 | C117: 0 | D117: 0 | E117: 0 | F117: 0 | H117: 0 | I117: 0 | J117: 0 | K117: 0 | L117: 0 | N117: 0 | O117: 0 | P117: 0 | Q117: 0 | R117: 0 | T117: 0 | U117: 0 | V117: 0 | W117: 0 | X117: 0
A118: Fuel cost | B118: 0 | C118: 0 | D118: 0 | E118: 0 | F118: 0 | H118: 0 | I118: 0 | J118: 0 | K118: 0 | L118: 0 | N118: 0 | O118: 0 | P118: 0 | Q118: 0 | R118: 0 | T118: 0 | U118: 0 | V118: 0 | W118: 0 | X118: 0
A119: REopt LCC | B119: 103571 | C119: 82043.4 | D119: 74312.7 | E119: 67395.9 | F119: 60633.9 | H119: 123607 | I119: 99543.1 | J119: 92405 | K119: 85366 | L119: 78355.5 | N119: 126072 | O119: 102722 | P119: 95136.8 | Q119: 88052.4 | R119: 81061.5 | T119: 139524 | U119: 115608 | V119: 106556 | W119: 98607.3 | X119: 90957.9
A121: TMY_highPVBatt_HighDiesel_32_D_business | B121: 100 | C121: 95 | D121: 90 | E121: 85 | F121: 80 | G121: TMY_highPVBatt_HighDiesel_32_D_nrel | H121: 100 | I121: 95 | J121: 90 | K121: 85 | L121: 80 | M121: TMY_highPVBatt_HighDiesel_32_D_average | N121: 100 | O121: 95 | P121: 90 | Q121: 85 | R121: 80 | S121: TMY_highPVBatt_HighDiesel_32_D_residential | T121: 100 | U121: 95 | V121: 90 | W121: 85 | X121: 80
A122: PV kW | B122: 0 | C122: 0 | D122: 0 | E122: 0 | F122: 0 | H122: 0 | I122: 0 | J122: 0 | K122: 0 | L122: 0 | N122: 0 | O122: 0 | P122: 0 | Q122: 0 | R122: 0 | T122: 0 | U122: 0 | V122: 0 | W122: 0 | X122: 0
A123: Battery kW | B123: 0 | C123: 0 | D123: 0 | E123: 0 | F123: 0 | H123: 0 | I123: 0 | J123: 0 | K123: 0 | L123: 0 | N123: 0 | O123: 0 | P123: 0 | Q123: 0 | R123: 0 | T123: 0 | U123: 0 | V123: 0 | W123: 0 | X123: 0
A124: Battery kWh | B124: 0 | C124: 0 | D124: 0 | E124: 0 | F124: 0 | H124: 0 | I124: 0 | J124: 0 | K124: 0 | L124: 0 | N124: 0 | O124: 0 | P124: 0 | Q124: 0 | R124: 0 | T124: 0 | U124: 0 | V124: 0 | W124: 0 | X124: 0
A125: Generator kW | B125: 6 | C125: 6 | D125: 6 | E125: 6 | F125: 6 | H125: 7 | I125: 7 | J125: 7 | K125: 7 | L125: 7 | N125: 8 | O125: 8 | P125: 8 | Q125: 8 | R125: 8 | T125: 12 | U125: 12 | V125: 12 | W125: 12 | X125: 12
A126: PV capital cost | B126: 0 | C126: 0 | D126: 0 | E126: 0 | F126: 0 | H126: 0 | I126: 0 | J126: 0 | K126: 0 | L126: 0 | N126: 0 | O126: 0 | P126: 0 | Q126: 0 | R126: 0 | T126: 0 | U126: 0 | V126: 0 | W126: 0 | X126: 0
A127: PV O&M | B127: 0 | C127: 0 | D127: 0 | E127: 0 | F127: 0 | H127: 0 | I127: 0 | J127: 0 | K127: 0 | L127: 0 | N127: 0 | O127: 0 | P127: 0 | Q127: 0 | R127: 0 | T127: 0 | U127: 0 | V127: 0 | W127: 0 | X127: 0
A128: Battery capital cost | B128: 0 | C128: 0 | D128: 0 | E128: 0 | F128: 0 | H128: 0 | I128: 0 | J128: 0 | K128: 0 | L128: 0 | N128: 0 | O128: 0 | P128: 0 | Q128: 0 | R128: 0 | T128: 0 | U128: 0 | V128: 0 | W128: 0 | X128: 0
A129: Battery O&M | B129: 0 | C129: 0 | D129: 0 | E129: 0 | F129: 0 | H129: 0 | I129: 0 | J129: 0 | K129: 0 | L129: 0 | N129: 0 | O129: 0 | P129: 0 | Q129: 0 | R129: 0 | T129: 0 | U129: 0 | V129: 0 | W129: 0 | X129: 0
A130: Diesel capital cost | B130: 3741.54 | C130: 3741.54 | D130: 3741.54 | E130: 3741.54 | F130: 3741.54 | H130: 4365.13 | I130: 4365.13 | J130: 4365.13 | K130: 4365.13 | L130: 4365.13 | N130: 4988.72 | O130: 4988.72 | P130: 4988.72 | Q130: 4988.72 | R130: 4988.72 | T130: 7483.08 | U130: 7483.08 | V130: 7483.08 | W130: 7483.08 | X130: 7483.08
A131: Diesel O&M (kW) | B131: 938.8997211 | C131: 938.8997211 | D131: 938.8997211 | E131: 938.8997211 | F131: 938.8997211 | H131: 1095.383008 | I131: 1095.383008 | J131: 1095.383008 | K131: 1095.383008 | L131: 1095.383008 | N131: 1251.866295 | O131: 1251.866295 | P131: 1251.866295 | Q131: 1251.866295 | R131: 1251.866295 | T131: 1877.799442 | U131: 1877.799442 | V131: 1877.799442 | W131: 1877.799442 | X131: 1877.799442
A132: Diesel O&M (kWh) | B132: 2837.017266 | C132: 2695.166403 | D132: 2553.31554 | E132: 2411.464676 | F132: 2269.613813 | H132: 2838.068208 | I132: 2696.164798 | J132: 2554.261387 | K132: 2412.357977 | L132: 2270.454566 | N132: 2838.068208 | O132: 2696.164798 | P132: 2554.261387 | Q132: 2412.357977 | R132: 2270.454566 | T132: 2839.11915 | U132: 2697.163192 | V132: 2555.207235 | W132: 2413.251277 | X132: 2271.29532
A133: Fuel cost | B133: 57784.40877 | C133: 54895.18833 | D133: 52005.96789 | E133: 49116.74745 | F133: 46227.52702 | H133: 57805.81437 | I133: 54915.52365 | J133: 52025.23293 | K133: 49134.94221 | L133: 46244.65149 | N133: 57805.81437 | O133: 54915.52365 | P133: 52025.23293 | Q133: 49134.94221 | R133: 46244.65149 | T133: 57827.21996 | U133: 54935.85897 | V133: 52044.49797 | W133: 49153.13697 | X133: 46261.77597
A134: REopt LCC | B134: 65302.7 | C134: 62271.6 | D134: 59240.5 | E134: 56209.4 | F134: 53178.2 | H134: 66105.2 | I134: 63073 | J134: 60040.8 | K134: 57008.5 | L134: 53976.3 | N134: 66885.3 | O134: 63853.1 | P134: 60820.8 | Q134: 57788.6 | R134: 54756.4 | T134: 70028.1 | U134: 66994.8 | V134: 63961.4 | W134: 60928.1 | X134: 57894.7
A136: TMY_highPVBatt_MedDiesel_44_PBD_business | B136: 100 | C136: 95 | D136: 90 | E136: 85 | F136: 80 | G136: TMY_highPVBatt_MedDiesel_44_PBD_nrel | H136: 100 | I136: 95 | J136: 90 | K136: 85 | L136: 80 | M136: TMY_highPVBatt_MedDiesel_44_PBD_average | N136: 100 | O136: 95 | P136: 90 | Q136: 85 | R136: 80 | S136: TMY_highPVBatt_MedDiesel_44_PBD_residential | T136: 100 | U136: 95 | V136: 90 | W136: 85 | X136: 80
A137: PV kW | B137: 8.33 | C137: 8.33 | D137: 8.33 | E137: 8.33 | F137: 8.33 | H137: 5.397 | I137: 5.397 | J137: 5.397 | K137: 5.397 | L137: 5.397 | N137: 4.752 | O137: 4.752 | P137: 4.752 | Q137: 4.752 | R137: 4.752 | T137: 2.877 | U137: 2.877 | V137: 2.877 | W137: 2.877 | X137: 2.877
A138: Battery kW | B138: 0 | C138: 0 | D138: 0 | E138: 0 | F138: 0 | H138: 0 | I138: 0 | J138: 0 | K138: 0 | L138: 0 | N138: 0 | O138: 0 | P138: 0 | Q138: 0 | R138: 0 | T138: 0 | U138: 0 | V138: 0 | W138: 0 | X138: 0
A139: Battery kWh | B139: 0 | C139: 0 | D139: 0 | E139: 0 | F139: 0 | H139: 0 | I139: 0 | J139: 0 | K139: 0 | L139: 0 | N139: 0 | O139: 0 | P139: 0 | Q139: 0 | R139: 0 | T139: 0 | U139: 0 | V139: 0 | W139: 0 | X139: 0
A140: Generator kW | B140: 6 | C140: 6 | D140: 6 | E140: 6 | F140: 6 | H140: 7 | I140: 7 | J140: 7 | K140: 7 | L140: 7 | N140: 8 | O140: 8 | P140: 8 | Q140: 8 | R140: 8 | T140: 12 | U140: 12 | V140: 12 | W140: 12 | X140: 12
A141: PV capital cost | B141: 18325.648 | C141: 18325.648 | D141: 18325.648 | E141: 18325.648 | F141: 18325.648 | H141: 11872.52 | I141: 11872.52 | J141: 11872.52 | K141: 11872.52 | L141: 11872.52 | N141: 10453.564 | O141: 10453.564 | P141: 10453.564 | Q141: 10453.564 | R141: 10453.564 | T141: 6329.048 | U141: 6329.048 | V141: 6329.048 | W141: 6329.048 | X141: 6329.048
A142: PV O&M | B142: 2294.126106 | C142: 2294.126106 | D142: 2294.126106 | E142: 2294.126106 | F142: 2294.126106 | H142: 1486.280762 | I142: 1486.280762 | J142: 1486.280762 | K142: 1486.280762 | L142: 1486.280762 | N142: 1308.646443 | O142: 1308.646443 | P142: 1308.646443 | Q142: 1308.646443 | R142: 1308.646443 | T142: 792.3121869 | U142: 792.3121869 | V142: 792.3121869 | W142: 792.3121869 | X142: 792.3121869
A143: Battery capital cost | B143: 0 | C143: 0 | D143: 0 | E143: 0 | F143: 0 | H143: 0 | I143: 0 | J143: 0 | K143: 0 | L143: 0 | N143: 0 | O143: 0 | P143: 0 | Q143: 0 | R143: 0 | T143: 0 | U143: 0 | V143: 0 | W143: 0 | X143: 0
A144: Battery O&M | B144: 0 | C144: 0 | D144: 0 | E144: 0 | F144: 0 | H144: 0 | I144: 0 | J144: 0 | K144: 0 | L144: 0 | N144: 0 | O144: 0 | P144: 0 | Q144: 0 | R144: 0 | T144: 0 | U144: 0 | V144: 0 | W144: 0 | X144: 0
A145: Diesel capital cost | B145: 2993.22 | C145: 2993.22 | D145: 2993.22 | E145: 2993.22 | F145: 2993.22 | H145: 3492.09 | I145: 3492.09 | J145: 3492.09 | K145: 3492.09 | L145: 3492.09 | N145: 3990.96 | O145: 3990.96 | P145: 3990.96 | Q145: 3990.96 | R145: 3990.96 | T145: 5986.44 | U145: 5986.44 | V145: 5986.44 | W145: 5986.44 | X145: 5986.44
A146: Diesel O&M (kW) | B146: 938.8997211 | C146: 938.8997211 | D146: 938.8997211 | E146: 938.8997211 | F146: 938.8997211 | H146: 1095.383008 | I146: 1095.383008 | J146: 1095.383008 | K146: 1095.383008 | L146: 1095.383008 | N146: 1251.866295 | O146: 1251.866295 | P146: 1251.866295 | Q146: 1251.866295 | R146: 1251.866295 | T146: 1877.799442 | U146: 1877.799442 | V146: 1877.799442 | W146: 1877.799442 | X146: 1877.799442
A147: Diesel O&M (kWh) | B147: 1510.074808 | C147: 1368.223944 | D147: 1226.373082 | E147: 1084.522218 | F147: 942.6713518 | H147: 1981.346013 | I147: 1839.442603 | J147: 1697.539192 | K147: 1555.635782 | L147: 1413.732371 | N147: 2081.603983 | O147: 1939.700572 | P147: 1797.797162 | Q147: 1655.893751 | R147: 1513.990341 | T147: 2388.642606 | U147: 2246.686649 | V147: 2104.730691 | W147: 1962.774734 | X147: 1820.818776
A148: Fuel cost | B148: 35242.65429 | C148: 31932.08919 | D148: 28621.52412 | E148: 25310.95904 | F148: 22000.39388 | H148: 46241.34658 | I148: 42929.55513 | J148: 39617.76368 | K148: 36305.97224 | L148: 32994.18079 | N148: 48581.20216 | O148: 45269.41071 | P148: 41957.61927 | Q148: 38645.82782 | R148: 35334.03637 | T148: 55746.977 | U148: 52433.95919 | V148: 49120.94138 | W148: 45807.92357 | X148: 42494.90576
A149: REopt LCC | B149: 61305 | C149: 57852.5 | D149: 54400.1 | E149: 50947.7 | F149: 47495.2 | H149: 66169.5 | I149: 62715.8 | J149: 59262.1 | K149: 55808.3 | L149: 52354.6 | N149: 67668.4 | O149: 64214.7 | P149: 60761 | Q149: 57307.3 | R149: 53853.5 | T149: 73122 | U149: 69667 | V149: 66212 | W149: 62757 | X149: 59302
A151: TMY_highPVBatt_MedDiesel_44_PB_business | B151: 100 | C151: 95 | D151: 90 | E151: 85 | F151: 80 | G151: TMY_highPVBatt_MedDiesel_44_PB_nrel | H151: 100 | I151: 95 | J151: 90 | K151: 85 | L151: 80 | M151: TMY_highPVBatt_MedDiesel_44_PB_average | N151: 100 | O151: 95 | P151: 90 | Q151: 85 | R151: 80 | S151: TMY_highPVBatt_MedDiesel_44_PB_residential | T151: 100 | U151: 95 | V151: 90 | W151: 85 | X151: 80
A152: PV kW | B152: 25.025 | C152: 19.289 | D152: 17.985 | E152: 16.876 | F152: 15.782 | H152: 25.52 | I152: 20.059 | J152: 18.817 | K152: 17.681 | L152: 16.55 | N152: 25.71 | O152: 20.24 | P152: 18.986 | Q152: 17.838 | R152: 16.705 | T152: 25.93 | U152: 21.206 | V152: 19.596 | W152: 18.273 | X152: 17.119
A153: Battery kW | B153: 5.222 | C153: 4.372 | D153: 3.335 | E153: 2.751 | F153: 2.312 | H153: 6.915 | I153: 5.201 | J153: 4.64 | K153: 4.243 | L153: 3.848 | N153: 6.939 | O153: 5.93 | P153: 5.032 | Q153: 4.46 | R153: 4.069 | T153: 10.62 | U153: 9.074 | V153: 7.553 | W153: 6.547 | X153: 5.636
A154: Battery kWh | B154: 36.819 | C154: 30.238 | D154: 26.922 | E154: 23.315 | F154: 19.632 | H154: 54.398 | I154: 45.622 | J154: 42.099 | K154: 38.17 | L154: 34.258 | N154: 56.482 | O154: 47.491 | P154: 44.002 | Q154: 40.306 | R154: 36.413 | T154: 64.989 | U154: 54.196 | V154: 50.962 | W154: 47.422 | X154: 43.618
A155: Generator kW | B155: 0 | C155: 0 | D155: 0 | E155: 0 | F155: 0 | H155: 0 | I155: 0 | J155: 0 | K155: 0 | L155: 0 | N155: 0 | O155: 0 | P155: 0 | Q155: 0 | R155: 0 | T155: 0 | U155: 0 | V155: 0 | W155: 0 | X155: 0
A156: PV capital cost | B156: 55054.78 | C156: 42436.02 | D156: 39565.9 | E156: 37127.86 | F156: 34721.06 | H156: 56143.56 | I156: 44129.36 | J156: 41397.62 | K156: 38899.3 | L156: 36411.1 | N156: 56561.56 | O156: 44528.44 | P156: 41768.54 | Q156: 39242.72 | R156: 36750.56 | T156: 57046.66 | U156: 46652.98 | V156: 43112.3 | W156: 40200.82 | X156: 37662.68
A157: PV O&M | B157: 6892.122345 | C157: 5312.422312 | D157: 4953.121663 | E157: 4647.911653 | F157: 4346.612473 | H157: 7028.423043 | I157: 5524.40584 | J157: 5182.428516 | K157: 4869.672256 | L157: 4558.182885 | N157: 7080.751055 | O157: 5574.36532 | P157: 5228.862741 | Q157: 4912.663848 | R157: 4600.678738 | T157: 7141.479088 | U157: 5840.329321 | V157: 5397.083526 | W157: 5032.605158 | X157: 4714.863966
A158: Battery capital cost | B158: 34710.57368 | C158: 28617.02634 | D158: 24738.44375 | E158: 21242.17142 | F158: 17880.06959 | H158: 50220.35799 | I158: 41322.62381 | J158: 37919.89601 | K158: 34429.59904 | L158: 30953.3326 | N158: 51823.92486 | O158: 43701.6537 | P158: 39876.92686 | Q158: 36328.51094 | R158: 32872.80056 | T158: 63132.79582 | U158: 52937.88841 | V158: 48477.10675 | W158: 44469.18201 | X158: 40390.06235
A159: Battery O&M | B159: 6913.794654 | C159: 5677.996063 | D159: 5055.505548 | E159: 4378.108177 | F159: 3686.420753 | H159: 10214.9473 | I159: 8566.821503 | J159: 7905.291538 | K159: 7167.654361 | L159: 6432.984107 | N159: 10606.1117 | O159: 8917.819775 | P159: 8262.711884 | Q159: 7568.620876 | R159: 6837.668665 | T159: 12203.61202 | U159: 10176.99697 | V159: 9569.697851 | W159: 8904.806625 | X159: 8190.604385
A160: Diesel capital cost | B160: 0 | C160: 0 | D160: 0 | E160: 0 | F160: 0 | H160: 0 | I160: 0 | J160: 0 | K160: 0 | L160: 0 | N160: 0 | O160: 0 | P160: 0 | Q160: 0 | R160: 0 | T160: 0 | U160: 0 | V160: 0 | W160: 0 | X160: 0
A161: Diesel O&M (kW) | B161: 0 | C161: 0 | D161: 0 | E161: 0 | F161: 0 | H161: 0 | I161: 0 | J161: 0 | K161: 0 | L161: 0 | N161: 0 | O161: 0 | P161: 0 | Q161: 0 | R161: 0 | T161: 0 | U161: 0 | V161: 0 | W161: 0 | X161: 0
A162: Diesel O&M (kWh) | B162: 0 | C162: 0 | D162: 0 | E162: 0 | F162: 0 | H162: 0 | I162: 0 | J162: 0 | K162: 0 | L162: 0 | N162: 0 | O162: 0 | P162: 0 | Q162: 0 | R162: 0 | T162: 0 | U162: 0 | V162: 0 | W162: 0 | X162: 0
A163: Fuel cost | B163: 0 | C163: 0 | D163: 0 | E163: 0 | F163: 0 | H163: 0 | I163: 0 | J163: 0 | K163: 0 | L163: 0 | N163: 0 | O163: 0 | P163: 0 | Q163: 0 | R163: 0 | T163: 0 | U163: 0 | V163: 0 | W163: 0 | X163: 0
A164: REopt LCC | B164: 103571 | C164: 82043.4 | D164: 74312.7 | E164: 67395.9 | F164: 60633.9 | H164: 123607 | I164: 99543.1 | J164: 92405 | K164: 85366 | L164: 78355.5 | N164: 126072 | O164: 102722 | P164: 95136.8 | Q164: 88052.4 | R164: 81061.5 | T164: 139524 | U164: 115608 | V164: 106556 | W164: 98607.3 | X164: 90957.9
A166: TMY_highPVBatt_MedDiesel_44_D_business | B166: 100 | C166: 95 | D166: 90 | E166: 85 | F166: 80 | G166: TMY_highPVBatt_MedDiesel_44_D_nrel | H166: 100 | I166: 95 | J166: 90 | K166: 85 | L166: 80 | M166: TMY_highPVBatt_MedDiesel_44_D_average | N166: 100 | O166: 95 | P166: 90 | Q166: 85 | R166: 80 | S166: TMY_highPVBatt_MedDiesel_44_D_residential | T166: 100 | U166: 95 | V166: 90 | W166: 85 | X166: 80
A167: PV kW | B167: 0 | C167: 0 | D167: 0 | E167: 0 | F167: 0 | H167: 0 | I167: 0 | J167: 0 | K167: 0 | L167: 0 | N167: 0 | O167: 0 | P167: 0 | Q167: 0 | R167: 0 | T167: 0 | U167: 0 | V167: 0 | W167: 0 | X167: 0
A168: Battery kW | B168: 0 | C168: 0 | D168: 0 | E168: 0 | F168: 0 | H168: 0 | I168: 0 | J168: 0 | K168: 0 | L168: 0 | N168: 0 | O168: 0 | P168: 0 | Q168: 0 | R168: 0 | T168: 0 | U168: 0 | V168: 0 | W168: 0 | X168: 0
A169: Battery kWh | B169: 0 | C169: 0 | D169: 0 | E169: 0 | F169: 0 | H169: 0 | I169: 0 | J169: 0 | K169: 0 | L169: 0 | N169: 0 | O169: 0 | P169: 0 | Q169: 0 | R169: 0 | T169: 0 | U169: 0 | V169: 0 | W169: 0 | X169: 0
A170: Generator kW | B170: 6 | C170: 6 | D170: 6 | E170: 6 | F170: 6 | H170: 7 | I170: 7 | J170: 7 | K170: 7 | L170: 7 | N170: 8 | O170: 8 | P170: 8 | Q170: 8 | R170: 8 | T170: 12 | U170: 12 | V170: 12 | W170: 12 | X170: 12
A171: PV capital cost | B171: 0 | C171: 0 | D171: 0 | E171: 0 | F171: 0 | H171: 0 | I171: 0 | J171: 0 | K171: 0 | L171: 0 | N171: 0 | O171: 0 | P171: 0 | Q171: 0 | R171: 0 | T171: 0 | U171: 0 | V171: 0 | W171: 0 | X171: 0
A172: PV O&M | B172: 0 | C172: 0 | D172: 0 | E172: 0 | F172: 0 | H172: 0 | I172: 0 | J172: 0 | K172: 0 | L172: 0 | N172: 0 | O172: 0 | P172: 0 | Q172: 0 | R172: 0 | T172: 0 | U172: 0 | V172: 0 | W172: 0 | X172: 0
A173: Battery capital cost | B173: 0 | C173: 0 | D173: 0 | E173: 0 | F173: 0 | H173: 0 | I173: 0 | J173: 0 | K173: 0 | L173: 0 | N173: 0 | O173: 0 | P173: 0 | Q173: 0 | R173: 0 | T173: 0 | U173: 0 | V173: 0 | W173: 0 | X173: 0
A174: Battery O&M | B174: 0 | C174: 0 | D174: 0 | E174: 0 | F174: 0 | H174: 0 | I174: 0 | J174: 0 | K174: 0 | L174: 0 | N174: 0 | O174: 0 | P174: 0 | Q174: 0 | R174: 0 | T174: 0 | U174: 0 | V174: 0 | W174: 0 | X174: 0
A175: Diesel capital cost | B175: 2993.22 | C175: 2993.22 | D175: 2993.22 | E175: 2993.22 | F175: 2993.22 | H175: 3492.09 | I175: 3492.09 | J175: 3492.09 | K175: 3492.09 | L175: 3492.09 | N175: 3990.96 | O175: 3990.96 | P175: 3990.96 | Q175: 3990.96 | R175: 3990.96 | T175: 5986.44 | U175: 5986.44 | V175: 5986.44 | W175: 5986.44 | X175: 5986.44
A176: Diesel O&M (kW) | B176: 938.8997211 | C176: 938.8997211 | D176: 938.8997211 | E176: 938.8997211 | F176: 938.8997211 | H176: 1095.383008 | I176: 1095.383008 | J176: 1095.383008 | K176: 1095.383008 | L176: 1095.383008 | N176: 1251.866295 | O176: 1251.866295 | P176: 1251.866295 | Q176: 1251.866295 | R176: 1251.866295 | T176: 1877.799442 | U176: 1877.799442 | V176: 1877.799442 | W176: 1877.799442 | X176: 1877.799442
A177: Diesel O&M (kWh) | B177: 2837.017266 | C177: 2695.166403 | D177: 2553.31554 | E177: 2411.464676 | F177: 2269.613813 | H177: 2838.068208 | I177: 2696.164798 | J177: 2554.261387 | K177: 2412.357977 | L177: 2270.454566 | N177: 2838.068208 | O177: 2696.164798 | P177: 2554.261387 | Q177: 2412.357977 | R177: 2270.454566 | T177: 2839.11915 | U177: 2697.163192 | V177: 2555.207235 | W177: 2413.251277 | X177: 2271.29532
A178: Fuel cost | B178: 66211.30172 | C178: 62900.73663 | D178: 59590.17154 | E178: 56279.60646 | F178: 52969.04137 | H178: 66235.82896 | I178: 62924.03751 | J178: 59612.24607 | K178: 56300.45462 | L178: 52988.66317 | N178: 66235.82896 | O178: 62924.03751 | P178: 59612.24607 | Q178: 56300.45462 | R178: 52988.66317 | T178: 66260.35621 | U178: 62947.3384 | V178: 59634.32059 | W178: 56321.30278 | X178: 53008.28497
A179: REopt LCC | B179: 72981.2 | C179: 69528.8 | D179: 66076.3 | E179: 62623.9 | F179: 59171.4 | H179: 73662.2 | I179: 70208.5 | J179: 66754.7 | K179: 63301 | L179: 59847.3 | N179: 74317.6 | O179: 70863.8 | P179: 67410.1 | Q179: 63956.4 | R179: 60502.6 | T179: 76964.6 | U179: 73509.6 | V179: 70054.6 | W179: 66599.6 | X179: 63144.6
A181: TMY_highPVBatt_MedDiesel_36_PBD_business | B181: 100 | C181: 95 | D181: 90 | E181: 85 | F181: 80 | G181: TMY_highPVBatt_MedDiesel_36_PBD_nrel | H181: 100 | I181: 95 | J181: 90 | K181: 85 | L181: 80 | M181: TMY_highPVBatt_MedDiesel_36_PBD_average | N181: 100 | O181: 95 | P181: 90 | Q181: 85 | R181: 80 | S181: TMY_highPVBatt_MedDiesel_36_PBD_residential | T181: 100 | U181: 95 | V181: 90 | W181: 85 | X181: 80
A182: PV kW | B182: 7.824 | C182: 7.824 | D182: 7.824 | E182: 7.824 | F182: 7.824 | H182: 4.984 | I182: 4.984 | J182: 4.984 | K182: 4.984 | L182: 4.984 | N182: 4.443 | O182: 4.443 | P182: 4.443 | Q182: 4.443 | R182: 4.443 | T182: 2.586 | U182: 2.586 | V182: 2.586 | W182: 2.586 | X182: 2.586
A183: Battery kW | B183: 0 | C183: 0 | D183: 0 | E183: 0 | F183: 0 | H183: 0 | I183: 0 | J183: 0 | K183: 0 | L183: 0 | N183: 0 | O183: 0 | P183: 0 | Q183: 0 | R183: 0 | T183: 0 | U183: 0 | V183: 0 | W183: 0 | X183: 0
A184: Battery kWh | B184: 0 | C184: 0 | D184: 0 | E184: 0 | F184: 0 | H184: 0 | I184: 0 | J184: 0 | K184: 0 | L184: 0 | N184: 0 | O184: 0 | P184: 0 | Q184: 0 | R184: 0 | T184: 0 | U184: 0 | V184: 0 | W184: 0 | X184: 0
A185: Generator kW | B185: 6 | C185: 6 | D185: 6 | E185: 6 | F185: 6 | H185: 7 | I185: 7 | J185: 7 | K185: 7 | L185: 7 | N185: 8 | O185: 8 | P185: 8 | Q185: 8 | R185: 8 | T185: 12 | U185: 12 | V185: 12 | W185: 12 | X185: 12
A186: PV capital cost | B186: 17213.46 | C186: 17213.46 | D186: 17213.46 | E186: 17213.46 | F186: 17213.46 | H186: 10964.47 | I186: 10964.47 | J186: 10964.47 | K186: 10964.47 | L186: 10964.47 | N186: 9774.688 | O186: 9774.688 | P186: 9774.688 | Q186: 9774.688 | R186: 9774.688 | T186: 5690.058 | U186: 5690.058 | V186: 5690.058 | W186: 5690.058 | X186: 5690.058
A187: PV O&M | B187: 2154.895039 | C187: 2154.895039 | D187: 2154.895039 | E187: 2154.895039 | F187: 2154.895039 | H187: 1372.605043 | I187: 1372.605043 | J187: 1372.605043 | K187: 1372.605043 | L187: 1372.605043 | N187: 1223.660245 | O187: 1223.660245 | P187: 1223.660245 | Q187: 1223.660245 | R187: 1223.660245 | T187: 712.3191826 | U187: 712.3191826 | V187: 712.3191826 | W187: 712.3191826 | X187: 712.3191826
A188: Battery capital cost | B188: 0 | C188: 0 | D188: 0 | E188: 0 | F188: 0 | H188: 0 | I188: 0 | J188: 0 | K188: 0 | L188: 0 | N188: 0 | O188: 0 | P188: 0 | Q188: 0 | R188: 0 | T188: 0 | U188: 0 | V188: 0 | W188: 0 | X188: 0
A189: Battery O&M | B189: 0 | C189: 0 | D189: 0 | E189: 0 | F189: 0 | H189: 0 | I189: 0 | J189: 0 | K189: 0 | L189: 0 | N189: 0 | O189: 0 | P189: 0 | Q189: 0 | R189: 0 | T189: 0 | U189: 0 | V189: 0 | W189: 0 | X189: 0
A190: Diesel capital cost | B190: 2993.22 | C190: 2993.22 | D190: 2993.22 | E190: 2993.22 | F190: 2993.22 | H190: 3492.09 | I190: 3492.09 | J190: 3492.09 | K190: 3492.09 | L190: 3492.09 | N190: 3990.96 | O190: 3990.96 | P190: 3990.96 | Q190: 3990.96 | R190: 3990.96 | T190: 5986.44 | U190: 5986.44 | V190: 5986.44 | W190: 5986.44 | X190: 5986.44
A191: Diesel O&M (kW) | B191: 938.8997211 | C191: 938.8997211 | D191: 938.8997211 | E191: 938.8997211 | F191: 938.8997211 | H191: 1095.383008 | I191: 1095.383008 | J191: 1095.383008 | K191: 1095.383008 | L191: 1095.383008 | N191: 1251.866295 | O191: 1251.866295 | P191: 1251.866295 | Q191: 1251.866295 | R191: 1251.866295 | T191: 1877.799442 | U191: 1877.799442 | V191: 1877.799442 | W191: 1877.799442 | X191: 1877.799442
A192: Diesel O&M (kWh) | B192: 1566.820366 | C192: 1424.969503 | D192: 1283.11864 | E192: 1141.267777 | F192: 999.4169181 | H192: 2027.681214 | I192: 1885.777803 | J192: 1743.874393 | K192: 1601.970982 | L192: 1460.067572 | N192: 2116.305161 | O192: 1974.40175 | P192: 1832.49834 | Q192: 1690.59493 | R192: 1548.691519 | T192: 2420.880229 | U192: 2278.924271 | V192: 2136.968314 | W192: 1995.012356 | X192: 1853.056399
A193: Fuel cost | B193: 29918.45617 | C193: 27209.81201 | D193: 24501.16785 | E193: 21792.52369 | F193: 19083.87962 | H193: 38718.60031 | I193: 36008.95276 | J193: 33299.30521 | K193: 30589.65766 | L193: 27880.01011 | N193: 40410.87578 | O193: 37701.22824 | P193: 34991.58069 | Q193: 32281.93314 | R193: 29572.28559 | T193: 46226.74084 | U193: 43516.0899 | V193: 40805.43897 | W193: 38094.78803 | X193: 35384.1371
A194: REopt LCC | B194: 54786.1 | C194: 51935.6 | D194: 49085.1 | E194: 46234.6 | F194: 43384 | H194: 57671.4 | I194: 54819.8 | J194: 51968.2 | K194: 49116.6 | L194: 46265.1 | N194: 58769 | O194: 55917.4 | P194: 53065.8 | Q194: 50214.2 | R194: 47362.6 | T194: 62915 | U194: 60062.4 | V194: 57209.7 | W194: 54357.1 | X194: 51504.4
A196: TMY_highPVBatt_MedDiesel_36_PB_business | B196: 100 | C196: 95 | D196: 90 | E196: 85 | F196: 80 | G196: TMY_highPVBatt_MedDiesel_36_PB_nrel | H196: 100 | I196: 95 | J196: 90 | K196: 85 | L196: 80 | M196: TMY_highPVBatt_MedDiesel_36_PB_average | N196: 100 | O196: 95 | P196: 90 | Q196: 85 | R196: 80 | S196: TMY_highPVBatt_MedDiesel_36_PB_residential | T196: 100 | U196: 95 | V196: 90 | W196: 85 | X196: 80
A197: PV kW | B197: 25.025 | C197: 19.289 | D197: 17.985 | E197: 16.876 | F197: 15.782 | H197: 25.52 | I197: 20.059 | J197: 18.817 | K197: 17.681 | L197: 16.55 | N197: 25.71 | O197: 20.24 | P197: 18.986 | Q197: 17.838 | R197: 16.705 | T197: 25.93 | U197: 21.206 | V197: 19.596 | W197: 18.273 | X197: 17.119
A198: Battery kW | B198: 5.222 | C198: 4.372 | D198: 3.335 | E198: 2.751 | F198: 2.312 | H198: 6.915 | I198: 5.201 | J198: 4.64 | K198: 4.243 | L198: 3.848 | N198: 6.939 | O198: 5.93 | P198: 5.032 | Q198: 4.46 | R198: 4.069 | T198: 10.62 | U198: 9.074 | V198: 7.553 | W198: 6.547 | X198: 5.636
A199: Battery kWh | B199: 36.819 | C199: 30.238 | D199: 26.922 | E199: 23.315 | F199: 19.632 | H199: 54.398 | I199: 45.622 | J199: 42.099 | K199: 38.17 | L199: 34.258 | N199: 56.482 | O199: 47.491 | P199: 44.002 | Q199: 40.306 | R199: 36.413 | T199: 64.989 | U199: 54.196 | V199: 50.962 | W199: 47.422 | X199: 43.618
A200: Generator kW | B200: 0 | C200: 0 | D200: 0 | E200: 0 | F200: 0 | H200: 0 | I200: 0 | J200: 0 | K200: 0 | L200: 0 | N200: 0 | O200: 0 | P200: 0 | Q200: 0 | R200: 0 | T200: 0 | U200: 0 | V200: 0 | W200: 0 | X200: 0
A201: PV capital cost | B201: 55054.78 | C201: 42436.02 | D201: 39565.9 | E201: 37127.86 | F201: 34721.06 | H201: 56143.56 | I201: 44129.36 | J201: 41397.62 | K201: 38899.3 | L201: 36411.1 | N201: 56561.56 | O201: 44528.44 | P201: 41768.54 | Q201: 39242.72 | R201: 36750.56 | T201: 57046.66 | U201: 46652.98 | V201: 43112.3 | W201: 40200.82 | X201: 37662.68
A202: PV O&M | B202: 6892.122345 | C202: 5312.422312 | D202: 4953.121663 | E202: 4647.911653 | F202: 4346.612473 | H202: 7028.423043 | I202: 5524.40584 | J202: 5182.428516 | K202: 4869.672256 | L202: 4558.182885 | N202: 7080.751055 | O202: 5574.36532 | P202: 5228.862741 | Q202: 4912.663848 | R202: 4600.678738 | T202: 7141.479088 | U202: 5840.329321 | V202: 5397.083526 | W202: 5032.605158 | X202: 4714.863966
A203: Battery capital cost | B203: 34710.57368 | C203: 28617.02634 | D203: 24738.44375 | E203: 21242.17142 | F203: 17880.06959 | H203: 50220.35799 | I203: 41322.62381 | J203: 37919.89601 | K203: 34429.59904 | L203: 30953.3326 | N203: 51823.92486 | O203: 43701.6537 | P203: 39876.92686 | Q203: 36328.51094 | R203: 32872.80056 | T203: 63132.79582 | U203: 52937.88841 | V203: 48477.10675 | W203: 44469.18201 | X203: 40390.06235
A204: Battery O&M | B204: 6913.794654 | C204: 5677.996063 | D204: 5055.505548 | E204: 4378.108177 | F204: 3686.420753 | H204: 10214.9473 | I204: 8566.821503 | J204: 7905.291538 | K204: 7167.654361 | L204: 6432.984107 | N204: 10606.1117 | O204: 8917.819775 | P204: 8262.711884 | Q204: 7568.620876 | R204: 6837.668665 | T204: 12203.61202 | U204: 10176.99697 | V204: 9569.697851 | W204: 8904.806625 | X204: 8190.604385
A205: Diesel capital cost | B205: 0 | C205: 0 | D205: 0 | E205: 0 | F205: 0 | H205: 0 | I205: 0 | J205: 0 | K205: 0 | L205: 0 | N205: 0 | O205: 0 | P205: 0 | Q205: 0 | R205: 0 | T205: 0 | U205: 0 | V205: 0 | W205: 0 | X205: 0
A206: Diesel O&M (kW) | B206: 0 | C206: 0 | D206: 0 | E206: 0 | F206: 0 | H206: 0 | I206: 0 | J206: 0 | K206: 0 | L206: 0 | N206: 0 | O206: 0 | P206: 0 | Q206: 0 | R206: 0 | T206: 0 | U206: 0 | V206: 0 | W206: 0 | X206: 0
A207: Diesel O&M (kWh) | B207: 0 | C207: 0 | D207: 0 | E207: 0 | F207: 0 | H207: 0 | I207: 0 | J207: 0 | K207: 0 | L207: 0 | N207: 0 | O207: 0 | P207: 0 | Q207: 0 | R207: 0 | T207: 0 | U207: 0 | V207: 0 | W207: 0 | X207: 0
A208: Fuel cost | B208: 0 | C208: 0 | D208: 0 | E208: 0 | F208: 0 | H208: 0 | I208: 0 | J208: 0 | K208: 0 | L208: 0 | N208: 0 | O208: 0 | P208: 0 | Q208: 0 | R208: 0 | T208: 0 | U208: 0 | V208: 0 | W208: 0 | X208: 0
A209: REopt LCC | B209: 103571 | C209: 82043.4 | D209: 74312.7 | E209: 67395.9 | F209: 60633.9 | H209: 123607 | I209: 99543.1 | J209: 92405 | K209: 85366 | L209: 78355.5 | N209: 126072 | O209: 102722 | P209: 95136.8 | Q209: 88052.4 | R209: 81061.5 | T209: 139524 | U209: 115608 | V209: 106556 | W209: 98607.3 | X209: 90957.9
A211: TMY_highPVBatt_MedDiesel_36_D_business | B211: 100 | C211: 95 | D211: 90 | E211: 85 | F211: 80 | G211: TMY_highPVBatt_MedDiesel_36_D_nrel | H211: 100 | I211: 95 | J211: 90 | K211: 85 | L211: 80 | M211: TMY_highPVBatt_MedDiesel_36_D_average | N211: 100 | O211: 95 | P211: 90 | Q211: 85 | R211: 80 | S211: TMY_highPVBatt_MedDiesel_36_D_residential | T211: 100 | U211: 95 | V211: 90 | W211: 85 | X211: 80
A212: PV kW | B212: 0 | C212: 0 | D212: 0 | E212: 0 | F212: 0 | H212: 0 | I212: 0 | J212: 0 | K212: 0 | L212: 0 | N212: 0 | O212: 0 | P212: 0 | Q212: 0 | R212: 0 | T212: 0 | U212: 0 | V212: 0 | W212: 0 | X212: 0
A213: Battery kW | B213: 0 | C213: 0 | D213: 0 | E213: 0 | F213: 0 | H213: 0 | I213: 0 | J213: 0 | K213: 0 | L213: 0 | N213: 0 | O213: 0 | P213: 0 | Q213: 0 | R213: 0 | T213: 0 | U213: 0 | V213: 0 | W213: 0 | X213: 0
A214: Battery kWh | B214: 0 | C214: 0 | D214: 0 | E214: 0 | F214: 0 | H214: 0 | I214: 0 | J214: 0 | K214: 0 | L214: 0 | N214: 0 | O214: 0 | P214: 0 | Q214: 0 | R214: 0 | T214: 0 | U214: 0 | V214: 0 | W214: 0 | X214: 0
... 934 more rows

Sheet Lodwar_15
A1: TMY_highPVBatt_HighDiesel_44_PBD_business | B1: 100 | C1: 95 | D1: 90 | E1: 85 | F1: 80 | G1: TMY_highPVBatt_HighDiesel_44_PBD_nrel | H1: 100 | I1: 95 | J1: 90 | K1: 85 | L1: 80 | M1: TMY_highPVBatt_HighDiesel_44_PBD_average | N1: 100 | O1: 95 | P1: 90 | Q1: 85 | R1: 80 | S1: TMY_highPVBatt_HighDiesel_44_PBD_residential | T1: 100 | U1: 95 | V1: 90 | W1: 85 | X1: 80
A2: PV kW | B2: 8.282 | C2: 8.282 | D2: 8.282 | E2: 8.282 | F2: 8.282 | H2: 5.274 | I2: 5.274 | J2: 5.274 | K2: 5.274 | L2: 5.274 | N2: 4.714 | O2: 4.714 | P2: 4.714 | Q2: 4.714 | R2: 4.714 | T2: 3.215 | U2: 3.215 | V2: 3.215 | W2: 3.215 | X2: 3.215
A3: Battery kW | B3: 0 | C3: 0 | D3: 0 | E3: 0 | F3: 0 | H3: 0 | I3: 0 | J3: 0 | K3: 0 | L3: 0 | N3: 0 | O3: 0 | P3: 0 | Q3: 0 | R3: 0 | T3: 0 | U3: 0 | V3: 0 | W3: 0 | X3: 0
A4: Battery kWh | B4: 0 | C4: 0 | D4: 0 | E4: 0 | F4: 0 | H4: 0 | I4: 0 | J4: 0 | K4: 0 | L4: 0 | N4: 0 | O4: 0 | P4: 0 | Q4: 0 | R4: 0 | T4: 0 | U4: 0 | V4: 0 | W4: 0 | X4: 0
A5: Generator kW | B5: 6 | C5: 6 | D5: 6 | E5: 6 | F5: 6 | H5: 7 | I5: 7 | J5: 7 | K5: 7 | L5: 7 | N5: 8 | O5: 8 | P5: 8 | Q5: 8 | R5: 8 | T5: 12 | U5: 12 | V5: 12 | W5: 12 | X5: 12
A6: PV capital cost | B6: 18219.74 | C6: 18219.74 | D6: 18219.74 | E6: 18219.74 | F6: 18219.74 | H6: 11602.778 | I6: 11602.778 | J6: 11602.778 | K6: 11602.778 | L6: 11602.778 | N6: 10371.02 | O6: 10371.02 | P6: 10371.02 | Q6: 10371.02 | R6: 10371.02 | T6: 7073.176 | U6: 7073.176 | V6: 7073.176 | W6: 7073.176 | X6: 7073.176
A7: PV O&M | B7: 2280.867841 | C7: 2280.867841 | D7: 2280.867841 | E7: 2280.867841 | F7: 2280.867841 | H7: 1452.51267 | I7: 1452.51267 | J7: 1452.51267 | K7: 1452.51267 | L7: 1452.51267 | N7: 1298.313038 | O7: 1298.313038 | P7: 1298.313038 | Q7: 1298.313038 | R7: 1298.313038 | T7: 885.4670632 | U7: 885.4670632 | V7: 885.4670632 | W7: 885.4670632 | X7: 885.4670632
A8: Battery capital cost | B8: 0 | C8: 0 | D8: 0 | E8: 0 | F8: 0 | H8: 0 | I8: 0 | J8: 0 | K8: 0 | L8: 0 | N8: 0 | O8: 0 | P8: 0 | Q8: 0 | R8: 0 | T8: 0 | U8: 0 | V8: 0 | W8: 0 | X8: 0
A9: Battery O&M | B9: 0 | C9: 0 | D9: 0 | E9: 0 | F9: 0 | H9: 0 | I9: 0 | J9: 0 | K9: 0 | L9: 0 | N9: 0 | O9: 0 | P9: 0 | Q9: 0 | R9: 0 | T9: 0 | U9: 0 | V9: 0 | W9: 0 | X9: 0
A10: Diesel capital cost | B10: 3741.54 | C10: 3741.54 | D10: 3741.54 | E10: 3741.54 | F10: 3741.54 | H10: 4365.13 | I10: 4365.13 | J10: 4365.13 | K10: 4365.13 | L10: 4365.13 | N10: 4988.72 | O10: 4988.72 | P10: 4988.72 | Q10: 4988.72 | R10: 4988.72 | T10: 7483.08 | U10: 7483.08 | V10: 7483.08 | W10: 7483.08 | X10: 7483.08
A11: Diesel O&M (kW) | B11: 938.8997211 | C11: 938.8997211 | D11: 938.8997211 | E11: 938.8997211 | F11: 938.8997211 | H11: 1095.383008 | I11: 1095.383008 | J11: 1095.383008 | K11: 1095.383008 | L11: 1095.383008 | N11: 1251.866295 | O11: 1251.866295 | P11: 1251.866295 | Q11: 1251.866295 | R11: 1251.866295 | T11: 1877.799442 | U11: 1877.799442 | V11: 1877.799442 | W11: 1877.799442 | X11: 1877.799442
A12: Diesel O&M (kWh) | B12: 1342.687285 | C12: 1200.836422 | D12: 1058.985559 | E12: 917.1346953 | F12: 775.2838391 | H12: 1898.564202 | I12: 1756.660792 | J12: 1614.757381 | K12: 1472.853971 | L12: 1330.95056 | N12: 1994.092259 | O12: 1852.188848 | P12: 1710.285438 | Q12: 1568.382028 | R12: 1426.478617 | T12: 2302.601904 | U12: 2160.645947 | V12: 2018.689989 | W12: 1876.734032 | X12: 1734.778074
A13: Fuel cost | B13: 37603.32685 | C13: 33630.64875 | D13: 29657.97065 | E13: 25685.29254 | F13: 21712.61464 | H13: 53171.22685 | I13: 49197.07711 | J13: 45222.92737 | K13: 41248.77764 | L13: 37274.6279 | N13: 55846.58751 | O13: 51872.43777 | P13: 47898.28804 | Q13: 43924.1383 | R13: 39949.98856 | T13: 64486.71479 | U13: 60511.09341 | V13: 56535.47204 | W13: 52559.85067 | X13: 48584.2293
A14: REopt LCC | B14: 64127.4 | C14: 60012.8 | D14: 55898.3 | E14: 51783.7 | F14: 47669.2 | H14: 73586.1 | I14: 69470 | J14: 65354 | K14: 61237.9 | L14: 57121.8 | N14: 75751.2 | O14: 71635.1 | P14: 67519 | Q14: 63402.9 | R14: 59286.8 | T14: 84109.6 | U14: 79992 | V14: 75874.3 | W14: 71756.7 | X14: 67639.1
A16: TMY_highPVBatt_HighDiesel_44_PB_business | B16: 100 | C16: 95 | D16: 90 | E16: 85 | F16: 80 | G16: TMY_highPVBatt_HighDiesel_44_PB_nrel | H16: 100 | I16: 95 | J16: 90 | K16: 85 | L16: 80 | M16: TMY_highPVBatt_HighDiesel_44_PB_average | N16: 100 | O16: 95 | P16: 90 | Q16: 85 | R16: 80 | S16: TMY_highPVBatt_HighDiesel_44_PB_residential | T16: 100 | U16: 95 | V16: 90 | W16: 85 | X16: 80
A17: PV kW | B17: 20.713 | C17: 16.328 | D17: 15.241 | E17: 14.244 | F17: 13.322 | H17: 21.872 | I17: 17.08 | J17: 15.993 | K17: 15.033 | L17: 14.072 | N17: 21.846 | O17: 17.245 | P17: 16.16 | Q17: 15.147 | R17: 14.183 | T17: 22.34 | U17: 17.912 | V17: 16.7 | W17: 15.585 | X17: 14.637
A18: Battery kW | B18: 4.76 | C18: 4.237 | D18: 3.16 | E18: 2.541 | F18: 2.044 | H18: 5.71 | I18: 5.097 | J18: 4.43 | K18: 4.043 | L18: 3.66 | N18: 6.78 | O18: 5.85 | P18: 4.958 | Q18: 4.233 | R18: 3.854 | T18: 10.62 | U18: 9.149 | V18: 7.482 | W18: 6.494 | X18: 5.572
A19: Battery kWh | B19: 47.188 | C19: 27.56 | D19: 24.156 | E19: 20.704 | F19: 17.14 | H19: 63.973 | I19: 44.144 | J19: 40.801 | K19: 36.943 | L19: 33.098 | N19: 66.611 | O19: 46.018 | P19: 42.51 | Q19: 39.061 | R19: 35.215 | T19: 74.42 | U19: 53.423 | V19: 49.831 | W19: 46.244 | X19: 42.415
A20: Generator kW | B20: 0 | C20: 0 | D20: 0 | E20: 0 | F20: 0 | H20: 0 | I20: 0 | J20: 0 | K20: 0 | L20: 0 | N20: 0 | O20: 0 | P20: 0 | Q20: 0 | R20: 0 | T20: 0 | U20: 0 | V20: 0 | W20: 0 | X20: 0
A21: PV capital cost | B21: 45567.94 | C21: 35922.7 | D21: 33531.08 | E21: 31337.46 | F21: 29308.18 | H21: 48118.4 | I21: 37576.22 | J21: 35184.82 | K21: 33072.16 | L21: 30957.52 | N21: 48061.64 | O21: 37939.66 | P21: 35552.88 | Q21: 33322.96 | R21: 31203.48 | T21: 49148.44 | U21: 39406.18 | V21: 36740.44 | W21: 34285.9 | X21: 32201.4
A22: PV O&M | B22: 5704.496821 | C22: 4497.041735 | D22: 4197.642888 | E22: 3923.030994 | F22: 3668.99227 | H22: 6023.780312 | I22: 4704.04033 | J22: 4404.669025 | K22: 4140.19224 | L22: 3875.467586 | N22: 6016.674719 | O22: 4749.538159 | P22: 4450.745216 | Q22: 4171.589047 | R22: 3906.258489 | T22: 6152.727548 | U22: 4933.126855 | V22: 4599.411849 | W22: 4292.13626 | X22: 4031.184731
A23: Battery capital cost | B23: 41918.74774 | C23: 26418.27496 | D23: 22419.62496 | E23: 18992.96299 | F23: 15644.94868 | H23: 55841.6119 | I23: 40070.43754 | J23: 36662.4395 | K23: 33237.39456 | L23: 29828.41815 | N23: 59252.76629 | O23: 42483.82296 | P23: 38652.65007 | Q23: 35087.59208 | R23: 31682.93015 | T23: 70246.08991 | U23: 52454.38551 | V23: 47529.17046 | W23: 43510.96133 | X23: 39397.20471
A24: Battery O&M | B24: 8861.053898 | C24: 5175.196485 | D24: 4535.955999 | E24: 3887.795965 | F24: 3218.567022 | H24: 12012.92148 | I24: 8289.282746 | J24: 7661.534392 | K24: 6937.154479 | L24: 6215.08426 | N24: 12508.13475 | O24: 8641.257473 | P24: 7982.562985 | Q24: 7334.797289 | R24: 6612.689514 | T24: 13974.50834 | U24: 10031.74918 | V24: 9357.35629 | W24: 8683.658185 | X24: 7964.611222
A25: Diesel capital cost | B25: 0 | C25: 0 | D25: 0 | E25: 0 | F25: 0 | H25: 0 | I25: 0 | J25: 0 | K25: 0 | L25: 0 | N25: 0 | O25: 0 | P25: 0 | Q25: 0 | R25: 0 | T25: 0 | U25: 0 | V25: 0 | W25: 0 | X25: 0
A26: Diesel O&M (kW) | B26: 0 | C26: 0 | D26: 0 | E26: 0 | F26: 0 | H26: 0 | I26: 0 | J26: 0 | K26: 0 | L26: 0 | N26: 0 | O26: 0 | P26: 0 | Q26: 0 | R26: 0 | T26: 0 | U26: 0 | V26: 0 | W26: 0 | X26: 0
A27: Diesel O&M (kWh) | B27: 0 | C27: 0 | D27: 0 | E27: 0 | F27: 0 | H27: 0 | I27: 0 | J27: 0 | K27: 0 | L27: 0 | N27: 0 | O27: 0 | P27: 0 | Q27: 0 | R27: 0 | T27: 0 | U27: 0 | V27: 0 | W27: 0 | X27: 0
A28: Fuel cost | B28: 0 | C28: 0 | D28: 0 | E28: 0 | F28: 0 | H28: 0 | I28: 0 | J28: 0 | K28: 0 | L28: 0 | N28: 0 | O28: 0 | P28: 0 | Q28: 0 | R28: 0 | T28: 0 | U28: 0 | V28: 0 | W28: 0 | X28: 0
A29: REopt LCC | B29: 102052 | C29: 72013.1 | D29: 64684 | E29: 58141 | F29: 51840.6 | H29: 121996 | I29: 90639.8 | J29: 83913.4 | K29: 77386.7 | L29: 70876.3 | N29: 125839 | O29: 93814.1 | P29: 86638.6 | Q29: 79916.7 | R29: 73405.3 | T29: 139522 | U29: 106825 | V29: 98226.3 | W29: 90772.6 | X29: 83594.3
A31: TMY_highPVBatt_HighDiesel_44_D_business | B31: 100 | C31: 95 | D31: 90 | E31: 85 | F31: 80 | G31: TMY_highPVBatt_HighDiesel_44_D_nrel | H31: 100 | I31: 95 | J31: 90 | K31: 85 | L31: 80 | M31: TMY_highPVBatt_HighDiesel_44_D_average | N31: 100 | O31: 95 | P31: 90 | Q31: 85 | R31: 80 | S31: TMY_highPVBatt_HighDiesel_44_D_residential | T31: 100 | U31: 95 | V31: 90 | W31: 85 | X31: 80
A32: PV kW | B32: 0 | C32: 0 | D32: 0 | E32: 0 | F32: 0 | H32: 0 | I32: 0 | J32: 0 | K32: 0 | L32: 0 | N32: 0 | O32: 0 | P32: 0 | Q32: 0 | R32: 0 | T32: 0 | U32: 0 | V32: 0 | W32: 0 | X32: 0
A33: Battery kW | B33: 0 | C33: 0 | D33: 0 | E33: 0 | F33: 0 | H33: 0 | I33: 0 | J33: 0 | K33: 0 | L33: 0 | N33: 0 | O33: 0 | P33: 0 | Q33: 0 | R33: 0 | T33: 0 | U33: 0 | V33: 0 | W33: 0 | X33: 0
A34: Battery kWh | B34: 0 | C34: 0 | D34: 0 | E34: 0 | F34: 0 | H34: 0 | I34: 0 | J34: 0 | K34: 0 | L34: 0 | N34: 0 | O34: 0 | P34: 0 | Q34: 0 | R34: 0 | T34: 0 | U34: 0 | V34: 0 | W34: 0 | X34: 0
A35: Generator kW | B35: 6 | C35: 6 | D35: 6 | E35: 6 | F35: 6 | H35: 7 | I35: 7 | J35: 7 | K35: 7 | L35: 7 | N35: 8 | O35: 8 | P35: 8 | Q35: 8 | R35: 8 | T35: 12 | U35: 12 | V35: 12 | W35: 12 | X35: 12
A36: PV capital cost | B36: 0 | C36: 0 | D36: 0 | E36: 0 | F36: 0 | H36: 0 | I36: 0 | J36: 0 | K36: 0 | L36: 0 | N36: 0 | O36: 0 | P36: 0 | Q36: 0 | R36: 0 | T36: 0 | U36: 0 | V36: 0 | W36: 0 | X36: 0
A37: PV O&M | B37: 0 | C37: 0 | D37: 0 | E37: 0 | F37: 0 | H37: 0 | I37: 0 | J37: 0 | K37: 0 | L37: 0 | N37: 0 | O37: 0 | P37: 0 | Q37: 0 | R37: 0 | T37: 0 | U37: 0 | V37: 0 | W37: 0 | X37: 0
A38: Battery capital cost | B38: 0 | C38: 0 | D38: 0 | E38: 0 | F38: 0 | H38: 0 | I38: 0 | J38: 0 | K38: 0 | L38: 0 | N38: 0 | O38: 0 | P38: 0 | Q38: 0 | R38: 0 | T38: 0 | U38: 0 | V38: 0 | W38: 0 | X38: 0
A39: Battery O&M | B39: 0 | C39: 0 | D39: 0 | E39: 0 | F39: 0 | H39: 0 | I39: 0 | J39: 0 | K39: 0 | L39: 0 | N39: 0 | O39: 0 | P39: 0 | Q39: 0 | R39: 0 | T39: 0 | U39: 0 | V39: 0 | W39: 0 | X39: 0
A40: Diesel capital cost | B40: 3741.54 | C40: 3741.54 | D40: 3741.54 | E40: 3741.54 | F40: 3741.54 | H40: 4365.13 | I40: 4365.13 | J40: 4365.13 | K40: 4365.13 | L40: 4365.13 | N40: 4988.72 | O40: 4988.72 | P40: 4988.72 | Q40: 4988.72 | R40: 4988.72 | T40: 7483.08 | U40: 7483.08 | V40: 7483.08 | W40: 7483.08 | X40: 7483.08
A41: Diesel O&M (kW) | B41: 938.8997211 | C41: 938.8997211 | D41: 938.8997211 | E41: 938.8997211 | F41: 938.8997211 | H41: 1095.383008 | I41: 1095.383008 | J41: 1095.383008 | K41: 1095.383008 | L41: 1095.383008 | N41: 1251.866295 | O41: 1251.866295 | P41: 1251.866295 | Q41: 1251.866295 | R41: 1251.866295 | T41: 1877.799442 | U41: 1877.799442 | V41: 1877.799442 | W41: 1877.799442 | X41: 1877.799442
A42: Diesel O&M (kWh) | B42: 2837.017266 | C42: 2695.166403 | D42: 2553.31554 | E42: 2411.464676 | F42: 2269.613813 | H42: 2838.068208 | I42: 2696.164798 | J42: 2554.261387 | K42: 2412.357977 | L42: 2270.454566 | N42: 2838.068208 | O42: 2696.164798 | P42: 2554.261387 | Q42: 2412.357977 | R42: 2270.454566 | T42: 2839.11915 | U42: 2697.163192 | V42: 2555.207235 | W42: 2413.251277 | X42: 2271.29532
A43: Fuel cost | B43: 79453.56206 | C43: 75480.88396 | D43: 71508.20585 | E43: 67535.52775 | F43: 63562.84965 | H43: 79482.99475 | I43: 75508.84502 | J43: 71534.69528 | K43: 67560.54554 | L43: 63586.3958 | N43: 79482.99475 | O43: 75508.84502 | P43: 71534.69528 | Q43: 67560.54554 | R43: 63586.3958 | T43: 79512.42745 | U43: 75536.80608 | V43: 71561.18471 | W43: 67585.56333 | X43: 63609.94196
A44: REopt LCC | B44: 86971.8 | C44: 82857.3 | D44: 78742.7 | E44: 74628.1 | F44: 70513.6 | H44: 87782.4 | I44: 83666.3 | J44: 79550.2 | K44: 75434.1 | L44: 71318 | N44: 88562.5 | O44: 84446.4 | P44: 80330.3 | Q44: 76214.2 | R44: 72098.1 | T44: 91713.3 | U44: 87595.7 | V44: 83478.1 | W44: 79360.5 | X44: 75242.9
A46: TMY_highPVBatt_HighDiesel_36_PBD_business | B46: 100 | C46: 95 | D46: 90 | E46: 85 | F46: 80 | G46: TMY_highPVBatt_HighDiesel_36_PBD_nrel | H46: 100 | I46: 95 | J46: 90 | K46: 85 | L46: 80 | M46: TMY_highPVBatt_HighDiesel_36_PBD_average | N46: 100 | O46: 95 | P46: 90 | Q46: 85 | R46: 80 | S46: TMY_highPVBatt_HighDiesel_36_PBD_residential | T46: 100 | U46: 95 | V46: 90 | W46: 85 | X46: 80
A47: PV kW | B47: 7.846 | C47: 7.846 | D47: 7.846 | E47: 7.846 | F47: 7.846 | H47: 4.982 | I47: 4.982 | J47: 4.982 | K47: 4.982 | L47: 4.982 | N47: 4.459 | O47: 4.459 | P47: 4.459 | Q47: 4.459 | R47: 4.459 | T47: 2.825 | U47: 2.825 | V47: 2.825 | W47: 2.825 | X47: 2.825
A48: Battery kW | B48: 0 | C48: 0 | D48: 0 | E48: 0 | F48: 0 | H48: 0 | I48: 0 | J48: 0 | K48: 0 | L48: 0 | N48: 0 | O48: 0 | P48: 0 | Q48: 0 | R48: 0 | T48: 0 | U48: 0 | V48: 0 | W48: 0 | X48: 0
A49: Battery kWh | B49: 0 | C49: 0 | D49: 0 | E49: 0 | F49: 0 | H49: 0 | I49: 0 | J49: 0 | K49: 0 | L49: 0 | N49: 0 | O49: 0 | P49: 0 | Q49: 0 | R49: 0 | T49: 0 | U49: 0 | V49: 0 | W49: 0 | X49: 0
A50: Generator kW | B50: 6 | C50: 6 | D50: 6 | E50: 6 | F50: 6 | H50: 7 | I50: 7 | J50: 7 | K50: 7 | L50: 7 | N50: 8 | O50: 8 | P50: 8 | Q50: 8 | R50: 8 | T50: 12 | U50: 12 | V50: 12 | W50: 12 | X50: 12
A51: PV capital cost | B51: 17261.442 | C51: 17261.442 | D51: 17261.442 | E51: 17261.442 | F51: 17261.442 | H51: 10959.894 | I51: 10959.894 | J51: 10959.894 | K51: 10959.894 | L51: 10959.894 | N51: 9808.92 | O51: 9808.92 | P51: 9808.92 | Q51: 9808.92 | R51: 9808.92 | T51: 6214.692 | U51: 6214.692 | V51: 6214.692 | W51: 6214.692 | X51: 6214.692
A52: PV O&M | B52: 2160.901744 | C52: 2160.901744 | D52: 2160.901744 | E52: 2160.901744 | F52: 2160.901744 | H52: 1372.032189 | I52: 1372.032189 | J52: 1372.032189 | K52: 1372.032189 | L52: 1372.032189 | N52: 1227.945634 | O52: 1227.945634 | P52: 1227.945634 | Q52: 1227.945634 | R52: 1227.945634 | T52: 777.9963447 | U52: 777.9963447 | V52: 777.9963447 | W52: 777.9963447 | X52: 777.9963447
A53: Battery capital cost | B53: 0 | C53: 0 | D53: 0 | E53: 0 | F53: 0 | H53: 0 | I53: 0 | J53: 0 | K53: 0 | L53: 0 | N53: 0 | O53: 0 | P53: 0 | Q53: 0 | R53: 0 | T53: 0 | U53: 0 | V53: 0 | W53: 0 | X53: 0
A54: Battery O&M | B54: 0 | C54: 0 | D54: 0 | E54: 0 | F54: 0 | H54: 0 | I54: 0 | J54: 0 | K54: 0 | L54: 0 | N54: 0 | O54: 0 | P54: 0 | Q54: 0 | R54: 0 | T54: 0 | U54: 0 | V54: 0 | W54: 0 | X54: 0
A55: Diesel capital cost | B55: 3741.54 | C55: 3741.54 | D55: 3741.54 | E55: 3741.54 | F55: 3741.54 | H55: 4365.13 | I55: 4365.13 | J55: 4365.13 | K55: 4365.13 | L55: 4365.13 | N55: 4988.72 | O55: 4988.72 | P55: 4988.72 | Q55: 4988.72 | R55: 4988.72 | T55: 7483.08 | U55: 7483.08 | V55: 7483.08 | W55: 7483.08 | X55: 7483.08
A56: Diesel O&M (kW) | B56: 938.8997211 | C56: 938.8997211 | D56: 938.8997211 | E56: 938.8997211 | F56: 938.8997211 | H56: 1095.383008 | I56: 1095.383008 | J56: 1095.383008 | K56: 1095.383008 | L56: 1095.383008 | N56: 1251.866295 | O56: 1251.866295 | P56: 1251.866295 | Q56: 1251.866295 | R56: 1251.866295 | T56: 1877.799442 | U56: 1877.799442 | V56: 1877.799442 | W56: 1877.799442 | X56: 1877.799442
A57: Diesel O&M (kWh) | B57: 1383.474621 | C57: 1241.623758 | D57: 1099.772894 | E57: 957.922031 | F57: 816.0711675 | H57: 1926.040244 | I57: 1784.136833 | J57: 1642.233423 | K57: 1500.330013 | L57: 1358.426602 | N57: 2018.133489 | O57: 1876.230079 | P57: 1734.326668 | Q57: 1592.423258 | R57: 1450.519847 | T57: 2339.594454 | U57: 2197.638496 | V57: 2055.682539 | W57: 1913.726581 | X57: 1771.770624
A58: Fuel cost | B58: 31700.96001 | C58: 28450.58701 | D58: 25200.21402 | E58: 21949.84103 | F58: 18699.46803 | H58: 44133.31753 | I58: 40881.74047 | J58: 37630.16341 | K58: 34378.58635 | L58: 31127.0093 | N58: 46243.54365 | O58: 42991.96659 | P58: 39740.38953 | Q58: 36488.81248 | R58: 33237.23542 | T58: 53609.50544 | U58: 50356.72431 | V58: 47103.94319 | W58: 43851.16207 | X58: 40598.38094
A59: REopt LCC | B59: 57187.6 | C59: 53795.3 | D59: 50403.1 | E59: 47010.8 | F59: 43618.5 | H59: 63852.3 | I59: 60458.8 | J59: 57065.3 | K59: 53671.8 | L59: 50278.3 | N59: 65539.7 | O59: 62146.2 | P59: 58752.7 | Q59: 55359.2 | R59: 51965.7 | T59: 72303.4 | U59: 68908.6 | V59: 65513.9 | W59: 62119.1 | X59: 58724.3
A61: TMY_highPVBatt_HighDiesel_36_PB_business | B61: 100 | C61: 95 | D61: 90 | E61: 85 | F61: 80 | G61: TMY_highPVBatt_HighDiesel_36_PB_nrel | H61: 100 | I61: 95 | J61: 90 | K61: 85 | L61: 80 | M61: TMY_highPVBatt_HighDiesel_36_PB_average | N61: 100 | O61: 95 | P61: 90 | Q61: 85 | R61: 80 | S61: TMY_highPVBatt_HighDiesel_36_PB_residential | T61: 100 | U61: 95 | V61: 90 | W61: 85 | X61: 80
A62: PV kW | B62: 20.713 | C62: 16.328 | D62: 15.241 | E62: 14.244 | F62: 13.322 | H62: 21.872 | I62: 17.08 | J62: 15.993 | K62: 15.033 | L62: 14.072 | N62: 21.846 | O62: 17.245 | P62: 16.16 | Q62: 15.147 | R62: 14.183 | T62: 22.34 | U62: 17.912 | V62: 16.7 | W62: 15.585 | X62: 14.637
A63: Battery kW | B63: 4.76 | C63: 4.237 | D63: 3.16 | E63: 2.541 | F63: 2.044 | H63: 5.71 | I63: 5.097 | J63: 4.43 | K63: 4.043 | L63: 3.66 | N63: 6.78 | O63: 5.85 | P63: 4.958 | Q63: 4.233 | R63: 3.854 | T63: 10.62 | U63: 9.149 | V63: 7.482 | W63: 6.494 | X63: 5.572
A64: Battery kWh | B64: 47.188 | C64: 27.56 | D64: 24.156 | E64: 20.704 | F64: 17.14 | H64: 63.973 | I64: 44.144 | J64: 40.801 | K64: 36.943 | L64: 33.098 | N64: 66.611 | O64: 46.018 | P64: 42.51 | Q64: 39.061 | R64: 35.215 | T64: 74.42 | U64: 53.423 | V64: 49.831 | W64: 46.244 | X64: 42.415
A65: Generator kW | B65: 0 | C65: 0 | D65: 0 | E65: 0 | F65: 0 | H65: 0 | I65: 0 | J65: 0 | K65: 0 | L65: 0 | N65: 0 | O65: 0 | P65: 0 | Q65: 0 | R65: 0 | T65: 0 | U65: 0 | V65: 0 | W65: 0 | X65: 0
A66: PV capital cost | B66: 45567.94 | C66: 35922.7 | D66: 33531.08 | E66: 31337.46 | F66: 29308.18 | H66: 48118.4 | I66: 37576.22 | J66: 35184.82 | K66: 33072.16 | L66: 30957.52 | N66: 48061.64 | O66: 37939.66 | P66: 35552.88 | Q66: 33322.96 | R66: 31203.48 | T66: 49148.44 | U66: 39406.18 | V66: 36740.44 | W66: 34285.9 | X66: 32201.4
A67: PV O&M | B67: 5704.496821 | C67: 4497.041735 | D67: 4197.642888 | E67: 3923.030994 | F67: 3668.99227 | H67: 6023.780312 | I67: 4704.04033 | J67: 4404.669025 | K67: 4140.19224 | L67: 3875.467586 | N67: 6016.674719 | O67: 4749.538159 | P67: 4450.745216 | Q67: 4171.589047 | R67: 3906.258489 | T67: 6152.727548 | U67: 4933.126855 | V67: 4599.411849 | W67: 4292.13626 | X67: 4031.184731
A68: Battery capital cost | B68: 41918.74774 | C68: 26418.27496 | D68: 22419.62496 | E68: 18992.96299 | F68: 15644.94868 | H68: 55841.6119 | I68: 40070.43754 | J68: 36662.4395 | K68: 33237.39456 | L68: 29828.41815 | N68: 59252.76629 | O68: 42483.82296 | P68: 38652.65007 | Q68: 35087.59208 | R68: 31682.93015 | T68: 70246.08991 | U68: 52454.38551 | V68: 47529.17046 | W68: 43510.96133 | X68: 39397.20471
A69: Battery O&M | B69: 8861.053898 | C69: 5175.196485 | D69: 4535.955999 | E69: 3887.795965 | F69: 3218.567022 | H69: 12012.92148 | I69: 8289.282746 | J69: 7661.534392 | K69: 6937.154479 | L69: 6215.08426 | N69: 12508.13475 | O69: 8641.257473 | P69: 7982.562985 | Q69: 7334.797289 | R69: 6612.689514 | T69: 13974.50834 | U69: 10031.74918 | V69: 9357.35629 | W69: 8683.658185 | X69: 7964.611222
A70: Diesel capital cost | B70: 0 | C70: 0 | D70: 0 | E70: 0 | F70: 0 | H70: 0 | I70: 0 | J70: 0 | K70: 0 | L70: 0 | N70: 0 | O70: 0 | P70: 0 | Q70: 0 | R70: 0 | T70: 0 | U70: 0 | V70: 0 | W70: 0 | X70: 0
A71: Diesel O&M (kW) | B71: 0 | C71: 0 | D71: 0 | E71: 0 | F71: 0 | H71: 0 | I71: 0 | J71: 0 | K71: 0 | L71: 0 | N71: 0 | O71: 0 | P71: 0 | Q71: 0 | R71: 0 | T71: 0 | U71: 0 | V71: 0 | W71: 0 | X71: 0
A72: Diesel O&M (kWh) | B72: 0 | C72: 0 | D72: 0 | E72: 0 | F72: 0 | H72: 0 | I72: 0 | J72: 0 | K72: 0 | L72: 0 | N72: 0 | O72: 0 | P72: 0 | Q72: 0 | R72: 0 | T72: 0 | U72: 0 | V72: 0 | W72: 0 | X72: 0
A73: Fuel cost | B73: 0 | C73: 0 | D73: 0 | E73: 0 | F73: 0 | H73: 0 | I73: 0 | J73: 0 | K73: 0 | L73: 0 | N73: 0 | O73: 0 | P73: 0 | Q73: 0 | R73: 0 | T73: 0 | U73: 0 | V73: 0 | W73: 0 | X73: 0
A74: REopt LCC | B74: 102052 | C74: 72013.1 | D74: 64684 | E74: 58141 | F74: 51840.6 | H74: 121996 | I74: 90639.8 | J74: 83913.4 | K74: 77386.7 | L74: 70876.3 | N74: 125839 | O74: 93814.1 | P74: 86638.6 | Q74: 79916.7 | R74: 73405.3 | T74: 139522 | U74: 106825 | V74: 98226.3 | W74: 90772.6 | X74: 83594.3
A76: TMY_highPVBatt_HighDiesel_36_D_business | B76: 100 | C76: 95 | D76: 90 | E76: 85 | F76: 80 | G76: TMY_highPVBatt_HighDiesel_36_D_nrel | H76: 100 | I76: 95 | J76: 90 | K76: 85 | L76: 80 | M76: TMY_highPVBatt_HighDiesel_36_D_average | N76: 100 | O76: 95 | P76: 90 | Q76: 85 | R76: 80 | S76: TMY_highPVBatt_HighDiesel_36_D_residential | T76: 100 | U76: 95 | V76: 90 | W76: 85 | X76: 80
A77: PV kW | B77: 0 | C77: 0 | D77: 0 | E77: 0 | F77: 0 | H77: 0 | I77: 0 | J77: 0 | K77: 0 | L77: 0 | N77: 0 | O77: 0 | P77: 0 | Q77: 0 | R77: 0 | T77: 0 | U77: 0 | V77: 0 | W77: 0 | X77: 0
A78: Battery kW | B78: 0 | C78: 0 | D78: 0 | E78: 0 | F78: 0 | H78: 0 | I78: 0 | J78: 0 | K78: 0 | L78: 0 | N78: 0 | O78: 0 | P78: 0 | Q78: 0 | R78: 0 | T78: 0 | U78: 0 | V78: 0 | W78: 0 | X78: 0
A79: Battery kWh | B79: 0 | C79: 0 | D79: 0 | E79: 0 | F79: 0 | H79: 0 | I79: 0 | J79: 0 | K79: 0 | L79: 0 | N79: 0 | O79: 0 | P79: 0 | Q79: 0 | R79: 0 | T79: 0 | U79: 0 | V79: 0 | W79: 0 | X79: 0
A80: Generator kW | B80: 6 | C80: 6 | D80: 6 | E80: 6 | F80: 6 | H80: 7 | I80: 7 | J80: 7 | K80: 7 | L80: 7 | N80: 8 | O80: 8 | P80: 8 | Q80: 8 | R80: 8 | T80: 12 | U80: 12 | V80: 12 | W80: 12 | X80: 12
A81: PV capital cost | B81: 0 | C81: 0 | D81: 0 | E81: 0 | F81: 0 | H81: 0 | I81: 0 | J81: 0 | K81: 0 | L81: 0 | N81: 0 | O81: 0 | P81: 0 | Q81: 0 | R81: 0 | T81: 0 | U81: 0 | V81: 0 | W81: 0 | X81: 0
A82: PV O&M | B82: 0 | C82: 0 | D82: 0 | E82: 0 | F82: 0 | H82: 0 | I82: 0 | J82: 0 | K82: 0 | L82: 0 | N82: 0 | O82: 0 | P82: 0 | Q82: 0 | R82: 0 | T82: 0 | U82: 0 | V82: 0 | W82: 0 | X82: 0
A83: Battery capital cost | B83: 0 | C83: 0 | D83: 0 | E83: 0 | F83: 0 | H83: 0 | I83: 0 | J83: 0 | K83: 0 | L83: 0 | N83: 0 | O83: 0 | P83: 0 | Q83: 0 | R83: 0 | T83: 0 | U83: 0 | V83: 0 | W83: 0 | X83: 0
A84: Battery O&M | B84: 0 | C84: 0 | D84: 0 | E84: 0 | F84: 0 | H84: 0 | I84: 0 | J84: 0 | K84: 0 | L84: 0 | N84: 0 | O84: 0 | P84: 0 | Q84: 0 | R84: 0 | T84: 0 | U84: 0 | V84: 0 | W84: 0 | X84: 0
A85: Diesel capital cost | B85: 3741.54 | C85: 3741.54 | D85: 3741.54 | E85: 3741.54 | F85: 3741.54 | H85: 4365.13 | I85: 4365.13 | J85: 4365.13 | K85: 4365.13 | L85: 4365.13 | N85: 4988.72 | O85: 4988.72 | P85: 4988.72 | Q85: 4988.72 | R85: 4988.72 | T85: 7483.08 | U85: 7483.08 | V85: 7483.08 | W85: 7483.08 | X85: 7483.08
A86: Diesel O&M (kW) | B86: 938.8997211 | C86: 938.8997211 | D86: 938.8997211 | E86: 938.8997211 | F86: 938.8997211 | H86: 1095.383008 | I86: 1095.383008 | J86: 1095.383008 | K86: 1095.383008 | L86: 1095.383008 | N86: 1251.866295 | O86: 1251.866295 | P86: 1251.866295 | Q86: 1251.866295 | R86: 1251.866295 | T86: 1877.799442 | U86: 1877.799442 | V86: 1877.799442 | W86: 1877.799442 | X86: 1877.799442
A87: Diesel O&M (kWh) | B87: 2837.017266 | C87: 2695.166403 | D87: 2553.31554 | E87: 2411.464676 | F87: 2269.613813 | H87: 2838.068208 | I87: 2696.164798 | J87: 2554.261387 | K87: 2412.357977 | L87: 2270.454566 | N87: 2838.068208 | O87: 2696.164798 | P87: 2554.261387 | Q87: 2412.357977 | R87: 2270.454566 | T87: 2839.11915 | U87: 2697.163192 | V87: 2555.207235 | W87: 2413.251277 | X87: 2271.29532
A88: Fuel cost | B88: 65007.45987 | C88: 61757.08687 | D88: 58506.71388 | E88: 55256.34089 | F88: 52005.96789 | H88: 65031.54116 | I88: 61779.9641 | J88: 58528.38705 | K88: 55276.80999 | L88: 52025.23293 | N88: 65031.54116 | O88: 61779.9641 | P88: 58528.38705 | Q88: 55276.80999 | R88: 52025.23293 | T88: 65055.62246 | U88: 61802.84134 | V88: 58550.06021 | W88: 55297.27909 | X88: 52044.49797
A89: REopt LCC | B89: 72525.7 | C89: 69133.5 | D89: 65741.2 | E89: 62348.9 | F89: 58956.7 | H89: 73330.9 | I89: 69937.4 | J89: 66543.9 | K89: 63150.4 | L89: 59756.9 | N89: 74111 | O89: 70717.5 | P89: 67324 | Q89: 63930.5 | R89: 60537 | T89: 77256.5 | U89: 73861.7 | V89: 70467 | W89: 67072.2 | X89: 63677.4
A91: TMY_highPVBatt_HighDiesel_32_PBD_business | B91: 100 | C91: 95 | D91: 90 | E91: 85 | F91: 80 | G91: TMY_highPVBatt_HighDiesel_32_PBD_nrel | H91: 100 | I91: 95 | J91: 90 | K91: 85 | L91: 80 | M91: TMY_highPVBatt_HighDiesel_32_PBD_average | N91: 100 | O91: 95 | P91: 90 | Q91: 85 | R91: 80 | S91: TMY_highPVBatt_HighDiesel_32_PBD_residential | T91: 100 | U91: 95 | V91: 90 | W91: 85 | X91: 80
A92: PV kW | B92: 7.637 | C92: 7.637 | D92: 7.637 | E92: 7.637 | F92: 7.637 | H92: 4.826 | I92: 4.826 | J92: 4.826 | K92: 4.826 | L92: 4.826 | N92: 4.316 | O92: 4.316 | P92: 4.316 | Q92: 4.316 | R92: 4.316 | T92: 2.583 | U92: 2.583 | V92: 2.583 | W92: 2.583 | X92: 2.583
A93: Battery kW | B93: 0 | C93: 0 | D93: 0 | E93: 0 | F93: 0 | H93: 0 | I93: 0 | J93: 0 | K93: 0 | L93: 0 | N93: 0 | O93: 0 | P93: 0 | Q93: 0 | R93: 0 | T93: 0 | U93: 0 | V93: 0 | W93: 0 | X93: 0
A94: Battery kWh | B94: 0 | C94: 0 | D94: 0 | E94: 0 | F94: 0 | H94: 0 | I94: 0 | J94: 0 | K94: 0 | L94: 0 | N94: 0 | O94: 0 | P94: 0 | Q94: 0 | R94: 0 | T94: 0 | U94: 0 | V94: 0 | W94: 0 | X94: 0
A95: Generator kW | B95: 6 | C95: 6 | D95: 6 | E95: 6 | F95: 6 | H95: 7 | I95: 7 | J95: 7 | K95: 7 | L95: 7 | N95: 8 | O95: 8 | P95: 8 | Q95: 8 | R95: 8 | T95: 12 | U95: 12 | V95: 12 | W95: 12 | X95: 12
A96: PV capital cost | B96: 16800.608 | C96: 16800.608 | D96: 16800.608 | E96: 16800.608 | F96: 16800.608 | H96: 10617.684 | I96: 10617.684 | J96: 10617.684 | K96: 10617.684 | L96: 10617.684 | N96: 9495.508 | O96: 9495.508 | P96: 9495.508 | Q96: 9495.508 | R96: 9495.508 | T96: 5683.216 | U96: 5683.216 | V96: 5683.216 | W96: 5683.216 | X96: 5683.216
A97: PV O&M | B97: 2103.211489 | C97: 2103.211489 | D97: 2103.211489 | E97: 2103.211489 | F97: 2103.211489 | H97: 1329.192073 | I97: 1329.192073 | J97: 1329.192073 | K97: 1329.192073 | L97: 1329.192073 | N97: 1188.710642 | O97: 1188.710642 | P97: 1188.710642 | Q97: 1188.710642 | R97: 1188.710642 | T97: 711.4626556 | U97: 711.4626556 | V97: 711.4626556 | W97: 711.4626556 | X97: 711.4626556
A98: Battery capital cost | B98: 0 | C98: 0 | D98: 0 | E98: 0 | F98: 0 | H98: 0 | I98: 0 | J98: 0 | K98: 0 | L98: 0 | N98: 0 | O98: 0 | P98: 0 | Q98: 0 | R98: 0 | T98: 0 | U98: 0 | V98: 0 | W98: 0 | X98: 0
A99: Battery O&M | B99: 0 | C99: 0 | D99: 0 | E99: 0 | F99: 0 | H99: 0 | I99: 0 | J99: 0 | K99: 0 | L99: 0 | N99: 0 | O99: 0 | P99: 0 | Q99: 0 | R99: 0 | T99: 0 | U99: 0 | V99: 0 | W99: 0 | X99: 0
A100: Diesel capital cost | B100: 3741.54 | C100: 3741.54 | D100: 3741.54 | E100: 3741.54 | F100: 3741.54 | H100: 4365.13 | I100: 4365.13 | J100: 4365.13 | K100: 4365.13 | L100: 4365.13 | N100: 4988.72 | O100: 4988.72 | P100: 4988.72 | Q100: 4988.72 | R100: 4988.72 | T100: 7483.08 | U100: 7483.08 | V100: 7483.08 | W100: 7483.08 | X100: 7483.08
A101: Diesel O&M (kW) | B101: 938.8997211 | C101: 938.8997211 | D101: 938.8997211 | E101: 938.8997211 | F101: 938.8997211 | H101: 1095.383008 | I101: 1095.383008 | J101: 1095.383008 | K101: 1095.383008 | L101: 1095.383008 | N101: 1251.866295 | O101: 1251.866295 | P101: 1251.866295 | Q101: 1251.866295 | R101: 1251.866295 | T101: 1877.799442 | U101: 1877.799442 | V101: 1877.799442 | W101: 1877.799442 | X101: 1877.799442
A102: Diesel O&M (kWh) | B102: 1406.416061 | C102: 1264.565198 | D102: 1122.714335 | E102: 980.8634715 | F102: 839.0126057 | H102: 1943.093804 | I102: 1801.190394 | J102: 1659.286983 | K102: 1517.383573 | L102: 1375.480162 | N102: 2033.688045 | O102: 1891.784634 | P102: 1749.881224 | Q102: 1607.977813 | R102: 1466.074403 | T102: 2366.066242 | U102: 2224.110284 | V102: 2082.154327 | W102: 1940.198369 | X102: 1798.242412
A103: Fuel cost | B103: 28645.90271 | C103: 25756.68227 | D103: 22867.46183 | E103: 19978.2414 | F103: 17089.0209 | H103: 39576.96274 | I103: 36686.67202 | J103: 33796.38131 | K103: 30906.09059 | L103: 28015.79987 | N103: 41422.18755 | O103: 38531.89683 | P103: 35641.60611 | Q103: 32751.31539 | R103: 29861.02467 | T103: 48192.07148 | U103: 45300.71048 | V103: 42409.34949 | W103: 39517.98849 | X103: 36626.62749
A104: REopt LCC | B104: 53636.9 | C104: 50605.8 | D104: 47574.7 | E104: 44543.6 | F104: 41512.5 | H104: 58928 | I104: 55895.8 | J104: 52863.5 | K104: 49831.3 | L104: 46799.1 | N104: 60381.3 | O104: 57349 | P104: 54316.8 | Q104: 51284.6 | R104: 48252.4 | T104: 66314.4 | U104: 63281.1 | V104: 60247.7 | W104: 57214.4 | X104: 54181
A106: TMY_highPVBatt_HighDiesel_32_PB_business | B106: 100 | C106: 95 | D106: 90 | E106: 85 | F106: 80 | G106: TMY_highPVBatt_HighDiesel_32_PB_nrel | H106: 100 | I106: 95 | J106: 90 | K106: 85 | L106: 80 | M106: TMY_highPVBatt_HighDiesel_32_PB_average | N106: 100 | O106: 95 | P106: 90 | Q106: 85 | R106: 80 | S106: TMY_highPVBatt_HighDiesel_32_PB_residential | T106: 100 | U106: 95 | V106: 90 | W106: 85 | X106: 80
A107: PV kW | B107: 20.713 | C107: 16.328 | D107: 15.241 | E107: 14.244 | F107: 13.322 | H107: 21.872 | I107: 17.08 | J107: 15.993 | K107: 15.033 | L107: 14.072 | N107: 21.846 | O107: 17.245 | P107: 16.16 | Q107: 15.147 | R107: 14.183 | T107: 22.34 | U107: 17.912 | V107: 16.7 | W107: 15.585 | X107: 14.637
A108: Battery kW | B108: 4.76 | C108: 4.237 | D108: 3.16 | E108: 2.541 | F108: 2.044 | H108: 5.71 | I108: 5.097 | J108: 4.43 | K108: 4.043 | L108: 3.66 | N108: 6.78 | O108: 5.85 | P108: 4.958 | Q108: 4.233 | R108: 3.854 | T108: 10.62 | U108: 9.149 | V108: 7.482 | W108: 6.494 | X108: 5.572
A109: Battery kWh | B109: 47.188 | C109: 27.56 | D109: 24.156 | E109: 20.704 | F109: 17.14 | H109: 63.973 | I109: 44.144 | J109: 40.801 | K109: 36.943 | L109: 33.098 | N109: 66.611 | O109: 46.018 | P109: 42.51 | Q109: 39.061 | R109: 35.215 | T109: 74.42 | U109: 53.423 | V109: 49.831 | W109: 46.244 | X109: 42.415
A110: Generator kW | B110: 0 | C110: 0 | D110: 0 | E110: 0 | F110: 0 | H110: 0 | I110: 0 | J110: 0 | K110: 0 | L110: 0 | N110: 0 | O110: 0 | P110: 0 | Q110: 0 | R110: 0 | T110: 0 | U110: 0 | V110: 0 | W110: 0 | X110: 0
A111: PV capital cost | B111: 45567.94 | C111: 35922.7 | D111: 33531.08 | E111: 31337.46 | F111: 29308.18 | H111: 48118.4 | I111: 37576.22 | J111: 35184.82 | K111: 33072.16 | L111: 30957.52 | N111: 48061.64 | O111: 37939.66 | P111: 35552.88 | Q111: 33322.96 | R111: 31203.48 | T111: 49148.44 | U111: 39406.18 | V111: 36740.44 | W111: 34285.9 | X111: 32201.4
A112: PV O&M | B112: 5704.496821 | C112: 4497.041735 | D112: 4197.642888 | E112: 3923.030994 | F112: 3668.99227 | H112: 6023.780312 | I112: 4704.04033 | J112: 4404.669025 | K112: 4140.19224 | L112: 3875.467586 | N112: 6016.674719 | O112: 4749.538159 | P112: 4450.745216 | Q112: 4171.589047 | R112: 3906.258489 | T112: 6152.727548 | U112: 4933.126855 | V112: 4599.411849 | W112: 4292.13626 | X112: 4031.184731
A113: Battery capital cost | B113: 41918.74774 | C113: 26418.27496 | D113: 22419.62496 | E113: 18992.96299 | F113: 15644.94868 | H113: 55841.6119 | I113: 40070.43754 | J113: 36662.4395 | K113: 33237.39456 | L113: 29828.41815 | N113: 59252.76629 | O113: 42483.82296 | P113: 38652.65007 | Q113: 35087.59208 | R113: 31682.93015 | T113: 70246.08991 | U113: 52454.38551 | V113: 47529.17046 | W113: 43510.96133 | X113: 39397.20471
A114: Battery O&M | B114: 8861.053898 | C114: 5175.196485 | D114: 4535.955999 | E114: 3887.795965 | F114: 3218.567022 | H114: 12012.92148 | I114: 8289.282746 | J114: 7661.534392 | K114: 6937.154479 | L114: 6215.08426 | N114: 12508.13475 | O114: 8641.257473 | P114: 7982.562985 | Q114: 7334.797289 | R114: 6612.689514 | T114: 13974.50834 | U114: 10031.74918 | V114: 9357.35629 | W114: 8683.658185 | X114: 7964.611222
A115: Diesel capital cost | B115: 0 | C115: 0 | D115: 0 | E115: 0 | F115: 0 | H115: 0 | I115: 0 | J115: 0 | K115: 0 | L115: 0 | N115: 0 | O115: 0 | P115: 0 | Q115: 0 | R115: 0 | T115: 0 | U115: 0 | V115: 0 | W115: 0 | X115: 0
A116: Diesel O&M (kW) | B116: 0 | C116: 0 | D116: 0 | E116: 0 | F116: 0 | H116: 0 | I116: 0 | J116: 0 | K116: 0 | L116: 0 | N116: 0 | O116: 0 | P116: 0 | Q116: 0 | R116: 0 | T116: 0 | U116: 0 | V116: 0 | W116: 0 | X116: 0
A117: Diesel O&M (kWh) | B117: 0 | C117: 0 | D117: 0 | E117: 0 | F117: 0 | H117: 0 | I117: 0 | J117: 0 | K117: 0 | L117: 0 | N117: 0 | O117: 0 | P117: 0 | Q117: 0 | R117: 0 | T117: 0 | U117: 0 | V117: 0 | W117: 0 | X117: 0
